{"text_format":"1","workbook":"xlsx","n_sheets":5,"sheets":["hasbat","sh_nesf_hasbat","sh_ahker_hasbat","degre","Awael_has"],"not_rendered":{"charts":0,"images":12,"macros":1,"external_links":2,"defined_names":5,"comments":0,"pivot_tables":0},"unopened":[],"bounds":{"document_bytes":16777216,"sheet_cells":100000,"rows_first":2000,"rows_last":500,"rows_between":2000,"halvings":0,"cell_chars":16384,"cell_head_chars":4096},"cells_cut":0,"cells_raw":0,"read":"whole","date_system":"1900"}

{"sheet":"hasbat","index":0,"n_rows":239,"n_cols":181,"rows_kept":239,"cut":false,"hidden":false,"merged":[[3,0,8,0],[3,1,4,1],[3,2,8,2],[3,3,8,3],[3,4,8,4],[3,5,8,5],[3,6,8,6],[4,71,4,75],[4,76,4,80],[5,60,8,60],[5,61,8,61],[5,62,8,62],[5,50,6,50],[5,51,6,51],[5,52,6,52],[5,53,6,53],[5,54,6,54],[5,56,8,56],[5,69,8,69],[5,70,8,70],[5,71,8,71],[5,72,8,72],[5,73,8,73],[5,74,8,74],[3,66,3,80],[3,81,3,93],[4,66,4,70],[4,81,4,85],[3,7,8,7],[3,8,6,10],[3,11,5,13],[3,14,6,17],[3,18,8,18],[3,20,3,54],[5,28,6,28],[5,29,6,29],[5,30,6,30],[5,31,6,31],[5,40,6,40],[5,41,6,41],[5,42,6,42],[5,43,6,43],[5,32,6,32],[5,33,6,33],[5,34,6,34],[5,35,6,35],[5,36,6,36],[5,37,6,37],[4,30,4,34],[4,35,4,39],[4,40,4,44],[4,45,4,49],[4,50,4,54],[4,56,4,60],[4,61,4,65],[3,55,6,55],[3,56,3,65],[5,57,8,57],[5,58,8,58],[5,59,8,59],[5,20,6,20],[5,21,6,21],[5,22,6,22],[5,23,6,23],[5,24,6,24],[5,25,6,25],[5,26,6,26],[5,27,6,27],[4,20,4,24],[4,25,4,29],[5,63,8,63],[5,64,8,64],[5,65,8,65],[5,66,8,66],[5,67,8,67],[5,68,8,68],[5,81,6,81],[5,82,6,82],[5,83,6,83],[5,84,6,84],[5,85,6,85],[5,86,6,86],[5,75,8,75],[5,76,8,76],[5,77,8,77],[5,78,8,78],[5,79,8,79],[5,80,8,80],[5,93,6,93],[5,123,6,123],[5,124,6,124],[5,125,6,125],[5,126,6,126],[5,127,6,127],[5,87,6,87],[5,88,6,88],[5,89,6,89],[5,90,6,90],[5,91,6,91],[5,92,6,92],[3,96,8,96],[3,94,8,94],[3,95,8,95],[4,86,4,90],[4,91,4,93],[7,15,8,15],[7,16,8,16],[7,17,8,17],[9,26,9,32],[9,36,9,42],[9,46,9,52],[6,11,6,13],[6,19,8,19],[7,1,8,1],[7,8,8,8],[7,9,8,9],[7,10,8,10],[7,11,8,11],[7,12,8,12],[7,13,8,13],[7,14,8,14],[5,44,6,44],[5,45,6,45],[5,46,6,46],[5,47,6,47],[5,48,6,48],[5,49,6,49],[5,38,6,38],[5,39,6,39],[9,61,9,63],[9,72,9,78],[9,88,9,91],[9,145,9,149],[183,5,183,6],[184,4,184,6],[184,19,184,21],[184,22,184,23],[184,25,184,30],[188,20,188,22],[188,25,188,30],[192,10,192,15],[192,17,192,18],[192,25,195,25],[192,26,195,26],[195,15,195,18],[185,19,185,20],[185,21,185,23],[185,25,185,30],[186,20,186,23],[186,25,186,30],[187,19,187,20],[187,21,187,23],[187,25,187,30],[196,10,196,13],[196,15,196,18],[196,21,196,24],[197,10,197,13],[197,15,197,18],[198,10,198,13],[198,15,198,18],[198,21,198,24],[193,2,193,6],[193,10,193,15],[193,17,193,18],[193,20,194,20],[193,21,194,24],[194,10,194,15],[194,17,194,18],[204,21,204,24],[205,15,205,18],[206,15,206,18],[206,20,206,21],[207,15,207,18],[208,15,208,18],[200,15,200,18],[200,21,200,24],[201,15,201,18],[202,15,202,18],[202,21,202,24],[203,15,203,18],[217,15,217,18],[218,15,218,18],[220,15,220,18],[221,15,221,18],[222,15,222,18],[223,15,223,18],[210,15,210,18],[211,15,211,18],[212,15,212,18],[213,15,213,18],[215,15,215,18],[216,15,216,18],[232,15,232,18],[233,15,233,18],[235,15,235,18],[236,15,236,18],[237,15,237,18],[238,15,238,18],[225,15,225,18],[226,15,226,18],[227,15,227,18],[228,15,228,18],[230,15,230,18],[231,15,231,18]]}
[null,null,"اختر الديانة","اختر البيان","مستجد","باق للاعادة","محروم","سحب ملف","مفصول"]
[null,null,"مسلم",null,"اجتاز","لم يجتاز","غياب"]
[null,null,"مسيحي"]
["رقم التسلسل","التاريخ","الديانة","كود الطالب","الفصل","بيان الطالب","الرقم القومي للطالب","تاريخ ميلاد الطالب","تاريخ الميلاد",null,null,"السن في اول اكتوبر ",null,null,"مدة الاقامة في الفرقة",null,null,null,"رقم الجلوس","فني الحاسبات","المواد الثقافية العامة",null,null,null,null,null,null,null,null,null,null,null,null,null,null,null,null,null,null,null,null,null,null,null,null,null,null,null,null,null,null,null,null,null,null,"المجموع الكلي","تقييم الوحدات المبنية على نظام الجدارات ( فني _ أجهزة الكترونية ) _ التيرم الأول",null,null,null,null,null,null,null,null,null,"تقييم الوحدات المبنية على نظام الجدارات ( فني _ أجهزة الكترونية ) _ التيرم الثاني",null,null,null,null,null,null,null,null,null,null,null,null,null,null,"مواد ثقافية خارج المجموع",null,null,null,null,null,null,null,null,null,null,null,null,"بيان الطالب","بيان الطالب","مواد الرسوب"]
[null,null,null,null,null,null,null,null,null,null,null,null,null,null,null,null,null,null,null,null,"اللغة العربية",null,null,null,null,"اللغة الأجنبية",null,null,null,null,"رياضيات",null,null,null,null,"فيزياء",null,null,null,null,"كيمياء",null,null,null,null,"الدراسات الاجتماعية",null,null,null,null,"الحاسب الالي",null,null,null,null,null,"السلامة والصحة المهنية",null,null,null,null,"اساسيات الحاسب",null,null,null,null,"الدوائر الرقمية والمنطقية",null,null,null,null,"تجميع أجهزة الحاسب الالي",null,null,null,null,"الرسم الفني",null,null,null,null,"تربية وطنية",null,null,null,null,"تربية دينية",null,null,null,null,"التربية العسكرية"]
[null,"2023-07-07T13:29:37.150",null,null,null,null,null,null,null,null,null,null,null,null,null,null,null,null,null,null,"اعمال السنة","نصف العام","اعمال السنة","اخر العام","المجموع","اعمال السنة","نصف العام","اعمال السنة","اخر العام","المجموع","اعمال السنة","نصف العام","اعمال السنة","اخر العام","المجموع","اعمال السنة","نصف العام","اعمال السنة","اخر العام","المجموع","اعمال السنة","نصف العام","اعمال السنة","اخر العام","المجموع","اعمال السنة","نصف العام","اعمال السنة","اخر العام","المجموع","اعمال السنة","نصف العام","اعمال السنة","اخر العام","المجموع",null,"التقييم الاول","التقييم الثاني","التقييم الثالث","التقييم الرابع","التقييم النهائي للوحدة ( 1 )","التقييم الاول","التقييم الثاني","التقييم الثالث","التقييم الرابع","التقييم النهائي للوحدة ( 3 )","التقييم الاول","التقييم الثاني","التقييم الثالث","التقييم الرابع","التقييم النهائي للوحدة ( 2 )","التقييم الاول","التقييم الثاني","التقييم الثالث","التقييم الرابع","التقييم النهائي للوحدة ( 4 )","التقييم الاول","التقييم الثاني","التقييم الثالث","التقييم الرابع","التقييم النهائي للوحدة ( 5 )","اعمال السنة","نصف العام","اعمال السنة","اخر العام","المجموع","اعمال السنة","نصف العام","اعمال السنة","اخر العام","المجموع","نصف العام","اخر العام","المجموع",null,null,null,null,null,null,null,null,null,null,null,null,null,null,null,null,null,null,null,null,null,null,null,null,null,null," "," ",null,{"$f":"DT10","v":"ناجح ومنقول للصف الثاني"},{"$f":"DU10","v":"دور ثان مادة"},{"$f":"DV10","v":"دور ثان مادتين"},{"$f":"DW10","v":"راسب وله حق الإعادة"},{"$f":"DX10","v":"راسب وليس له حق الاعادة"}]
[null,"2023-07-07T13:29:37.150",null,null,null,null,null,null,null,null,null,"2023-10-01",null,null,null,null,null,null,null,"الرقم السري",null,null,null,null,null,null,null,null,null,null,null,null,null,null,null,null,null,null,null,null,null,null,null,null,null,null,null,null,null,null,null,null,null,null,null,null,null,null,null,null,null,null,null,null,null,null,null,null,null,null,null,null,null,null,null,null,null,null,null,null,null,null,null,null,null,null,null,null,null,null,null,null,null,null,null,null,null,null,null,null,null,null,null,null,null,null,null,null,null,null,null,null,null,null,"السلامة والصحة المهنية","اساسيات الحاسب","الدوائر الرقمية والمنطقية","تجميع أجهزة الحاسب الالي","الرسم الفني",null,null,null,null,null,null,null,null,null,null,null,null,null,null,null,null,null,null,null,null,null,null,null,null,null,null,null,null,null,null,null,"السلامة والصحة المهنية","اساسيات الحاسب","الدوائر الرقمية والمنطقية","تجميع أجهزة الحاسب الالي","الرسم الفني"]
[null,"الاســــم",null,null,null,null,null,null,"يوم","شهر","سنة","يوم","شهر","سنة","اولى","ثانية","ثالثة","رابعة",null,null,5,20,5,20,{"$f":"SUM(U8:X8)","v":50},4,16,4,16,{"$f":"SUM(Z8:AC8)","v":40},3,12,3,12,{"$f":"SUM(AE8:AH8)","v":30},2,8,2,8,{"$f":"SUM(AJ8:AM8)","v":20},2,8,2,8,{"$f":"SUM(AO8:AR8)","v":20},2,8,2,8,{"$f":"SUM(AT8:AW8)","v":20},2,8,2,8,{"$f":"SUM(AY8:BB8)","v":20},{"$f":"SUM(BC8,AX8,AS8,AN8,AI8,AD8,Y8)","v":200},null,null,null,null,null,null,null,null,null,null,null,null,null,null,null,null,null,null,null,null,null,null,null,null,null,2,8,2,8,{"$f":"SUM(CD8:CG8)","v":20},2,8,2,8,{"$f":"SUM(CI8:CL8)","v":20},25,25,{"$f":"SUM(CN8:CO8)","v":50},null,null,null,null,null,null,null,null,null,null,null,null,null,null,null,null,null,null,null,null,null,null,null,null,null,null,null,null,null,{"$f":"SUM(DT11:DT28)","v":1},{"$f":"SUM(DU11:DU28)","v":1},{"$f":"SUM(DV11:DV28)","v":1},{"$f":"SUM(DW11:DW28)-DX8","v":14},{"$f":"SUM(DX11:DX28)","v":1},null,null,null,null,null,null,null," "," "]
[null,null,null,null,null,null,null,null,null,null,null,null,null,null,null,null,null,null,null,null,null,null,null,{"$f":"X8/4","v":5},{"$f":"Y8/2","v":25},null,null,null,{"$f":"AC8/4","v":4},{"$f":"AD8/2","v":20},null,null,null,{"$f":"AH8/4","v":3},{"$f":"AI8/2","v":15},null,null,null,{"$f":"AM8/4","v":2},{"$f":"AN8/2","v":10},null,null,null,{"$f":"AR8/4","v":2},{"$f":"AS8/2","v":10},null,null,null,{"$f":"AW8/4","v":2},{"$f":"AX8/2","v":10},null,null,null,{"$f":"BB8/4","v":2},{"$f":"BC8/2","v":10},{"$f":"SUM(BC9,AX9,AS9,AN9,AI9,AD9,Y9)","v":100},null,null,null,null,null,null,null,null,null,null,null,null,null,null,null,null,null,null,null,null,null,null,null,null,null,null,null,null,{"$f":"CG8/4","v":2},{"$f":"CH8/2","v":10},null,null,null,{"$f":"CL8/4","v":2},{"$f":"CM8/2","v":10},null,{"$f":"CO8/4","v":6.25},20,null,null,null,null,null,null,null,{"$f":"COUNTIF(CY11:CY174,$DX$10)","v":1},"راسب وليس له حق الإعادة","راسب",{"$f":"COUNTIF(DA11:DA28,\"=1\")","v":14},{"$f":"COUNTIF(DB11:DB28,\"=1\")","v":16},15,14,14,14,14,14,14,14,null,null,null,null,null,null,null,null,null,null,null,null,null,null,"اللغة العربية","اللغة الأجنبية","رياضيات","فيزياء","كيمياء","الدراسات الاجتماعية","الحاسب الالي","تربية وطنية","تربية دينية","تربية عسكرية"]
[null,null,null,null,null,null,null,null,null,null,null,null,null,null,null,null,null,null,null,null,null,null,null,null,"الحاسبات",null,"\" اللهم اجعل هذا العمل خالصا لوجهك الكريم \"",null,null,null,null,null,null,null,"الحاسبات",null,"\" اللهم اجعل هذا العمل خالصا لوجهك الكريم \"",null,null,null,null,null,null,null,"الحاسبات",null,"\" اللهم اجعل هذا العمل خالصا لوجهك الكريم \"",null,null,null,null,null,null,null,"الحاسبات",null,null,null,null,null,"الحاسبات",null,null,null,null,"الحاسبات",null,null,null,null,null,null,"\" اللهم اجعل هذا العمل خالصا لوجهك الكريم \"",null,null,null,null,null,null,null,"الحاسبات",null,null,null,null,"الحاسبات",null,null,"\" اللهم اجعل هذا العمل خالصا لوجهك الكريم \"",null,null,null,null,"الحاسبات",null,null,null,null,null,null,null,null,null,null,{"$f":"U5","v":"اللغة العربية"},{"$f":"Z5","v":"اللغة الأجنبية"},{"$f":"AE5","v":"رياضيات"},{"$f":"AJ5","v":"فيزياء"},{"$f":"AO5","v":"كيمياء"},{"$f":"AT5","v":"الدراسات الاجتماعية"},{"$f":"AY5","v":"الحاسب الالي"},{"$f":"CD5","v":"تربية وطنية"},{"$f":"CI5","v":"تربية دينية"},{"$f":"#REF!","v":{"$error":"#REF!"}},1,2,3,4,5,null,null,null,null,"ناجح ومنقول للصف الثاني","دور ثان مادة","دور ثان مادتين","راسب وله حق الإعادة","راسب وليس له حق الاعادة","اللغة العربية","اللغة الأجنبية","رياضيات","فيزياء","كيمياء","الدراسات الاجتماعية","الحاسب الالي","تربية وطنية","تربية دينية","تربية عسكرية",null,null,1,2,3,4,5,"تقييم جدارات",null,null,null,null,1,2,3,4,5,null,null,"اللغة العربية","اللغة الأجنبية","رياضيات","فيزياء","كيمياء","الدراسات الاجتماعية","الحاسب الالي","تربية وطنية","تربية دينية","تربية عسكرية",null,"ربع الدرجة","مواد ربع الدرجة",null,"اللغة العربية","اللغة الأجنبية","رياضيات","فيزياء","كيمياء","الدراسات الاجتماعية","الحاسب الالي","تربية وطنية","تربية دينية","تربية عسكرية"]
[{"$f":"IF(B11=\"\",\"\",$A$10+1)","v":1},"خالد","مسلم",null,"10/1","مستجد",305020200651,{"$f":"IF(G11=\"\",\"\",DATE(IF(LEFT(G11,1)*1=3,20,19)&MID(G11,2,2),MID(G11,4,2),MID(G11,6,2)))","v":"2005-02-02"},{"$f":"IF(G11=\"\",\"\",(DAY(H11)))","v":2},{"$f":"IF(G11=\"\",\"\",(MONTH(H11)))","v":2},{"$f":"IF(G11=\"\",\"\",(YEAR(H11)))","v":2005},{"$f":"IF(H11<>\"\",IF(DAY(H11)>DAY($L$7),(DAY($L$7)+30)-DAY(H11),DAY($L$7)-DAY(E4)),\"\")","v":29},{"$f":"IF(H11 =\"\",\"\",DATEDIF(H11,$L$7,\"ym\"))","v":7},{"$f":"IF(H11 =\"\",\"\",DATEDIF(H11,$L$7,\"y\"))","v":18},{"$f":"IF(F11=\"باق\",1,\"\")","v":""},{"$f":"IF(F11=\"مفصول ويفصل\",2,IF(F11=\"باق\",2,IF(F11=\"سحب ملف\",2,IF(F11=\"\",2,\"\"))))","v":""},null,null,5001,null,3,12,3,10,{"$f":"SUM(U11:X11)","v":28},2,10,4,12,{"$f":"SUM(Z11:AC11)","v":28},3,10,2,10,{"$f":"SUM(AE11:AH11)","v":25},1,5,1,4,{"$f":"SUM(AJ11:AM11)","v":11},1,5,1,4,{"$f":"SUM(AO11:AR11)","v":11},1,5,1,4,{"$f":"SUM(AT11:AW11)","v":11},1,5,1,4,{"$f":"SUM(AY11:BB11)","v":11},{"$f":"SUM(BC11,AX11,AS11,AN11,AI11,AD11,Y11)","v":125},"اجتاز",null,null,null,{"$f":"EP11","v":"اجتاز"},"اجتاز",null,null,null,{"$f":"EQ11","v":"اجتاز"},"لم يجتاز","اجتاز",null,null,{"$f":"ER11","v":"اجتاز"},"اجتاز",null,null,null,{"$f":"ES11","v":"اجتاز"},"لم يجتاز","اجتاز",null,null,{"$f":"ET11","v":"اجتاز"},1,4,1,5,{"$f":"SUM(CD11:CG11)","v":11},1,4,1,5,{"$f":"SUM(CI11:CL11)","v":11},10,10,{"$f":"SUM(CN11:CO11)","v":20},{"$f":"IF(DS11=0,$DT$10,IF(DS11=1,$DU$10,IF(DS11=2,$DV$10,$DW$10)))","v":"ناجح ومنقول للصف الثاني"},{"$f":"IF(CY11=\"\",CQ11,CY11)","v":"ناجح ومنقول للصف الثاني"},{"$f":"IF(CR11=\"راسب وله حق الاعادة\",\"\",IF(CR11=\"راسب وليس له حق الاعادة\",\"\",CONCATENATE(DY11,\" \",DZ11,\" \",EA11,\" \",EB11,\" \",EC11,\" \",ED11,\" \",EE11,\" \",EF11,\" \",EG11,\" \",EH11,\" \",EU11,\" \",EV11,\" \",EW11,\" \",EX11,\" \",EY11)))","v":"              "},null,null,null,null,{"$f":"IF(CQ11=$DT$10,0,IF(CQ11=$DU$10,1,IF(CQ11=$DV$10,3,IF(CQ11=$DW$10,2,$DX$10))))","v":0},{"$f":"IF(P11=CX11,$DX$10,\"\")","v":""},null,{"$f":"IF(OR(X11<$X$9,Y11<$Y$9,X11=\"غ\"),1,0)","v":0},{"$f":"IF(OR(AC11<$AC$9,AD11<$AD$9,AC11=\"غ\"),1,0)","v":0},{"$f":"IF(OR(AH11<$AH$9,AI11<$AI$9,AH11=\"غ\"),1,0)","v":0},{"$f":"IF(OR(AM11<$AM$9,AN11<$AN$9,AM11=\"غ\"),1,0)","v":0},{"$f":"IF(OR(AR11<$AR$9,AS11<$AS$9,AR11=\"غ\"),1,0)","v":0},{"$f":"IF(OR(AW11<$AW$9,AX11<$AX$9,AW11=\"غ\"),1,0)","v":0},{"$f":"IF(OR(BB11<$BB$9,BC11<$BC$9,BB11=\"غ\"),1,0)","v":0},{"$f":"IF(OR(CH11<$CH$9,CG11<$CG$9,CG11=\"غ\"),1,0)","v":0},{"$f":"IF(OR(CM11<$CM$9,CL11<$CL$9,CL11=\"غ\"),1,0)","v":0},{"$f":"IF(OR(CP11<$CP$9,CO11=\"غ\"),1,0)","v":0},{"$f":"IF(EU11=\"\",0,1)","v":0},{"$f":"IF(EV11=\"\",0,1)","v":0},{"$f":"IF(EW11=\"\",0,1)","v":0},{"$f":"IF(EX11=\"\",0,1)","v":0},{"$f":"IF(EY11=\"\",0,1)","v":0},null,null,null,{"$f":"SUM(DA11:DO11)","v":0},{"$f":"IF(DS11=0,1,0)","v":1},{"$f":"IF(DS11=1,1,0)","v":0},{"$f":"IF(DS11=2,1,0)","v":0},{"$f":"IF(DS11>2,1,0)","v":0},{"$f":"IF(CY11=\"راسب وليس له حق الإعادة\",1,0)","v":0},{"$f":"IF(X11=\"غ\",\"العربي _ للغياب\",IF(DA11=0,\"\",\" لغة عربية\"))","v":""},{"$f":"IF(AC11=\"غ\",\"الإنجليزي _ للغياب\",IF(DB11=0,\"\",\"لغة إنجليزية \"))","v":""},{"$f":"IF(AH11=\"غ\",\"الرياضيات _ للغياب\",IF(DC11=0,\"\",\"رياضيات \"))","v":""},{"$f":"IF(AM11=\"غ\",\"الفيزياء _ للغياب\",IF(DD11=0,\"\",\"فيزياء \"))","v":""},{"$f":"IF(AR11=\"غ\",\"الكيمياء _ للغياب\",IF(DE11=0,\"\",\"كيمياء\"))","v":""},{"$f":"IF(AW11=\"غ\",\"الدراسات _ للغياب\",IF(DF11=0,\"\",\"الدراسات الاجتماعية \"))","v":""},{"$f":"IF(BB11=\"غ\",\"الحاسب_ للغياب\",IF(DG11=0,\"\",\"الحاسب الالي\"))","v":""},{"$f":"IF(CG11=\"غ\",\"الوطنية _ للغياب\",IF(DH11=0,\"\",\"تربية وطنية\"))","v":""},{"$f":"IF(CL11=\"غ\",\"الدين _ للغياب\",IF(DI11=0,\"\",\"تربية دينية\"))","v":""},{"$f":"IF(CO11=\"غ\",\"العسكرية _ للغياب\",IF(DJ11=0,\"\",\"تربية عسكرية\"))","v":""},null,null,{"$f":"COUNTIF(BE11:BH11,\"اجتاز\")","v":1},{"$f":"COUNTIF(BJ11:BM11,\"اجتاز\")","v":1},{"$f":"COUNTIF(BO11:BR11,\"اجتاز\")","v":1},{"$f":"COUNTIF(BT11:BW11,\"اجتاز\")","v":1},{"$f":"COUNTIF(BY11:CB11,\"اجتاز\")","v":1},{"$f":"IF(EK11>0,\"اجتاز\",\"لم يجتاز\")","v":"اجتاز"},"اجتاز","اجتاز","اجتاز","اجتاز",{"$f":"IF(EP11=\"لم يجتاز\",$EU$7,\"\")","v":""},{"$f":"IF(EQ11=\"لم يجتاز\",$EV$7,\"\")","v":""},{"$f":"IF(ER11=\"لم يجتاز\",$EW$7,\"\")","v":""},{"$f":"IF(ES11=\"لم يجتاز\",$EX$7,\"\")","v":""},{"$f":"IF(ET11=\"لم يجتاز\",$EY$7,\"\")","v":""},null,null,{"$f":"IF(X11<$X$9,\"لغة عربية\",\"\")","v":""},{"$f":"IF(AC11<$AC$9,\"لغة انجليزية\",\"\")","v":""},{"$f":"IF(AH11<$AH$9,\"رياضيات\",\"\")","v":""},{"$f":"IF(AM11<$AM$9,\"فيزياء\",\"\")","v":""},{"$f":"IF(AR11<$AR$9,\"كيمياء\",\"\")","v":""},{"$f":"IF(AW11<$AW$9,\"الدراسات الاجتماعية\",\"\")","v":""},{"$f":"IF(BB11<$BB$9,\" الحاسب الالي\",\"\")","v":""},{"$f":"IF(CG11<$CG$9,\"تربية وطنية\",\"\")","v":""},{"$f":"IF(CL11<$CL$9,\" تربية دينية\",\"\")","v":""},{"$f":"IF(CO11<$CO$9,\"تربية عسكرية\",\"\")","v":""},null,{"$f":"IF(FO11<3,FN11,\"\")","v":"       "},{"$f":"CONCATENATE(FB11,\" \",FC11,\" \",FD11,\" \",FE11,\" \",FF11,\" \",FG11,\" \",FH11,\" \",FI11,\"\",FJ11,\"\",FK11)","v":"       "},{"$f":"SUM(FP11:FY11)","v":0},{"$f":"IF(FB11=\"لغة عربية\",1,0)","v":0},{"$f":"IF(FC11=\"لغة انجليزية\",1,0)","v":0},{"$f":"IF(FD11=\"رياضيات\",1,0)","v":0},{"$f":"IF(FE11=\"فيزياء\",1,0)","v":0},{"$f":"IF(FF11=\"كيمياء\",1,0)","v":0},{"$f":"IF(FG11=\"الدراسات الاجتماعية\",1,0)","v":0},{"$f":"IF(FH11=\" الحاسب الالي\",1,0)","v":0},{"$f":"IF(FI11=\"تربية وطنية\",1,0)","v":0},{"$f":"IF(FJ11=\" تربية دينية\",1,0)","v":0},{"$f":"IF(FK11=\"تربية عسكرية\",1,0)","v":0}]
[{"$f":"IF(B12=\"\",\"\",A11+1)","v":2},"محمد","مسلم",null,"10/1","مستجد",null,{"$f":"IF(G12=\"\",\"\",DATE(IF(LEFT(G12,1)*1=3,20,19)&MID(G12,2,2),MID(G12,4,2),MID(G12,6,2)))","v":""},{"$f":"IF(G12=\"\",\"\",(DAY(H12)))","v":""},{"$f":"IF(G12=\"\",\"\",(MONTH(H12)))","v":""},{"$f":"IF(G12=\"\",\"\",(YEAR(H12)))","v":""},{"$f":"IF(H12<>\"\",IF(DAY(H12)>DAY($L$7),(DAY($L$7)+30)-DAY(H12),DAY($L$7)-DAY(E5)),\"\")","v":""},{"$f":"IF(H12 =\"\",\"\",DATEDIF(H12,$L$7,\"ym\"))","v":""},{"$f":"IF(H12 =\"\",\"\",DATEDIF(H12,$L$7,\"y\"))","v":""},{"$f":"IF(F12=\"باق\",1,\"\")","v":""},{"$f":"IF(F12=\"مفصول ويفصل\",2,IF(F12=\"باق\",2,IF(F12=\"سحب ملف\",2,IF(F12=\"\",2,\"\"))))","v":""},null,null,{"$f":"IF(S11=\"\",\"\",$S11+1)","v":5002},{"$f":"IF(T11=\"\",\"\",$T11+1)","v":""},3,12,3,10,{"$f":"SUM(U12:X12)","v":28},3,10,4,3,{"$f":"SUM(Z12:AC12)","v":20},3,10,2,10,{"$f":"SUM(AE12:AH12)","v":25},1,5,1,4,{"$f":"SUM(AJ12:AM12)","v":11},1,5,1,4,{"$f":"SUM(AO12:AR12)","v":11},1,5,1,4,{"$f":"SUM(AT12:AW12)","v":11},1,5,1,4,{"$f":"SUM(AY12:BB12)","v":11},{"$f":"SUM(BC12,AX12,AS12,AN12,AI12,AD12,Y12)","v":117},"اجتاز",null,null,null,{"$f":"EP12","v":"اجتاز"},"لم يجتاز",null,null,null,{"$f":"EQ12","v":"لم يجتاز"},"لم يجتاز","اجتاز",null,null,{"$f":"ER12","v":"اجتاز"},"اجتاز",null,null,null,{"$f":"ES12","v":"اجتاز"},"غياب","اجتاز",null,null,{"$f":"ET12","v":"اجتاز"},1,4,1,5,{"$f":"SUM(CD12:CG12)","v":11},1,4,1,5,{"$f":"SUM(CI12:CL12)","v":11},10,10,{"$f":"SUM(CN12:CO12)","v":20},{"$f":"IF(DS12=0,$DT$10,IF(DS12=1,$DU$10,IF(DS12=2,$DV$10,$DW$10)))","v":"دور ثان مادتين"},{"$f":"IF(CY12=\"\",CQ12,CY12)","v":"دور ثان مادتين"}," لغة إنجليزية           اساسيات الحاسب   ",null,null,null,null,{"$f":"IF(CQ12=$DT$10,0,IF(CQ12=$DU$10,1,IF(CQ12=$DV$10,3,IF(CQ12=$DW$10,2,$DX$10))))","v":3},{"$f":"IF(P12=CX12,$DX$10,\"\")","v":""},null,0,1,0,0,0,0,0,0,0,{"$f":"IF(OR(CP12<$CP$9,CO12=\"غ\"),1,0)","v":0},{"$f":"IF(EU12=\"\",0,1)","v":0},1,0,0,0,null,null,null,{"$f":"SUM(DA12:DO12)","v":2},{"$f":"IF(DS12=0,1,0)","v":0},{"$f":"IF(DS12=1,1,0)","v":0},{"$f":"IF(DS12=2,1,0)","v":1},{"$f":"IF(DS12>2,1,0)","v":0},0,{"$f":"IF(X12=\"غ\",\"العربي _ للغياب\",IF(DA12=0,\"\",\" لغة عربية\"))","v":""},{"$f":"IF(AC12=\"غ\",\"الإنجليزي _ للغياب\",IF(DB12=0,\"\",\"لغة إنجليزية \"))","v":"لغة إنجليزية "},{"$f":"IF(AH12=\"غ\",\"الرياضيات _ للغياب\",IF(DC12=0,\"\",\"رياضيات \"))","v":""},{"$f":"IF(AM12=\"غ\",\"الفيزياء _ للغياب\",IF(DD12=0,\"\",\"فيزياء \"))","v":""},{"$f":"IF(AR12=\"غ\",\"الكيمياء _ للغياب\",IF(DE12=0,\"\",\"كيمياء\"))","v":""},{"$f":"IF(AW12=\"غ\",\"الدراسات _ للغياب\",IF(DF12=0,\"\",\"الدراسات الاجتماعية \"))","v":""},{"$f":"IF(BB12=\"غ\",\"الحاسب_ للغياب\",IF(DG12=0,\"\",\"الحاسب الالي\"))","v":""},{"$f":"IF(CG12=\"غ\",\"الوطنية _ للغياب\",IF(DH12=0,\"\",\"تربية وطنية\"))","v":""},{"$f":"IF(CL12=\"غ\",\"الدين _ للغياب\",IF(DI12=0,\"\",\"تربية دينية\"))","v":""},{"$f":"IF(CO12=\"غ\",\"العسكرية _ للغياب\",IF(DJ12=0,\"\",\"تربية عسكرية\"))","v":""},null,null,1,0,1,1,1,"اجتاز","لم يجتاز","اجتاز","اجتاز","اجتاز",{"$f":"IF(EP12=\"لم يجتاز\",$EU$7,\"\")","v":""},{"$f":"IF(EQ12=\"لم يجتاز\",$EV$7,\"\")","v":"اساسيات الحاسب"},{"$f":"IF(ER12=\"لم يجتاز\",$EW$7,\"\")","v":""},{"$f":"IF(ES12=\"لم يجتاز\",$EX$7,\"\")","v":""},{"$f":"IF(ET12=\"لم يجتاز\",$EY$7,\"\")","v":""},null,null,"","لغة انجليزية","","","","","","","","",null,{"$f":"IF(FO12<3,FN12,\"\")","v":" لغة انجليزية      "},{"$f":"CONCATENATE(FB12,\" \",FC12,\" \",FD12,\" \",FE12,\" \",FF12,\" \",FG12,\" \",FH12,\" \",FI12,\"\",FJ12,\"\",FK12)","v":" لغة انجليزية      "},{"$f":"SUM(FP12:FY12)","v":1},{"$f":"IF(FB12=\"لغة عربية\",1,0)","v":0},{"$f":"IF(FC12=\"لغة انجليزية\",1,0)","v":1},{"$f":"IF(FD12=\"رياضيات\",1,0)","v":0},{"$f":"IF(FE12=\"فيزياء\",1,0)","v":0},{"$f":"IF(FF12=\"كيمياء\",1,0)","v":0},{"$f":"IF(FG12=\"الدراسات الاجتماعية\",1,0)","v":0},{"$f":"IF(FH12=\" الحاسب الالي\",1,0)","v":0},{"$f":"IF(FI12=\"تربية وطنية\",1,0)","v":0},{"$f":"IF(FJ12=\" تربية دينية\",1,0)","v":0},{"$f":"IF(FK12=\"تربية عسكرية\",1,0)","v":0}]
[{"$f":"IF(B13=\"\",\"\",A12+1)","v":3},"عبدالله","مسلم",null,"10/1","مستجد",null,"","","","","","","","","",null,null,{"$f":"IF(S12=\"\",\"\",$S12+1)","v":5003},{"$f":"IF(T12=\"\",\"\",$T12+1)","v":""},3,12,3,10,28,2,10,4,12,28,3,10,2,"غ",15,1,5,1,4,11,1,5,1,4,11,1,5,1,4,11,1,5,1,4,11,115,"اجتاز",null,null,null,"اجتاز","اجتاز",null,null,null,"اجتاز","لم يجتاز","اجتاز",null,null,"اجتاز","اجتاز",null,null,null,"اجتاز","لم يجتاز","اجتاز",null,null,"اجتاز",1,4,1,5,11,1,4,1,5,11,10,10,20,"دور ثان مادة","دور ثان مادة","  الرياضيات _ للغياب            ",null,null,null,null,1,"",null,0,0,1,0,0,0,0,0,0,0,0,0,0,0,0,null,null,null,1,0,1,0,0,0,"","","الرياضيات _ للغياب","","","","","","","",null,null,1,1,1,1,1,"اجتاز","اجتاز","اجتاز","اجتاز","اجتاز","","","","","",null,null,"","","","","","","","","","",null,"       ","       ",0,0,0,0,0,0,0,0,0,0,0]
[4,"جون","مسيحي",null,"10/1","مستجد",null,"","","","","","","","","",null,null,5004,"",3,12,3,10,28,2,4,4,8,18,3,10,2,10,25,1,5,1,4,11,1,5,1,4,11,1,5,1,4,11,1,5,1,4,11,115,"اجتاز",null,null,null,"اجتاز","اجتاز",null,null,null,"اجتاز","لم يجتاز","لم يجتاز",null,null,"لم يجتاز","اجتاز",null,null,null,"اجتاز","لم يجتاز",null,null,null,"لم يجتاز",1,4,1,5,11,1,4,1,5,11,10,10,20,"راسب وله حق الإعادة","راسب وله حق الإعادة","",null,null,null,null,2,"",null,0,1,0,0,0,0,0,0,0,0,0,0,1,0,1,null,null,null,3,0,0,0,1,0,"","لغة إنجليزية ","","","","","","","","",null,null,1,1,0,1,0,"اجتاز","اجتاز","لم يجتاز","اجتاز","لم يجتاز","","","الدوائر الرقمية والمنطقية","","الرسم الفني",null,null,"","","","","","","","","","",null,"       ","       ",0,0,0,0,0,0,0,0,0,0,0]
["",null,"مسلم",null,"10/1","مستجد",null,"","","","","","","","","",null,null,5005,"",null,null,null,null,{"$f":"SUM(U15:X15)","v":0},null,null,null,null,{"$f":"SUM(Z15:AC15)","v":0},null,null,null,null,{"$f":"SUM(AE15:AH15)","v":0},null,null,null,null,{"$f":"SUM(AJ15:AM15)","v":0},null,null,null,null,{"$f":"SUM(AO15:AR15)","v":0},null,null,null,null,{"$f":"SUM(AT15:AW15)","v":0},null,null,null,null,{"$f":"SUM(AY15:BB15)","v":0},{"$f":"SUM(BC15,AX15,AS15,AN15,AI15,AD15,Y15)","v":0},null,null,null,null,{"$f":"EP15","v":"لم يجتاز"},null,null,null,null,{"$f":"EQ15","v":"لم يجتاز"},null,null,null,null,{"$f":"ER15","v":"لم يجتاز"},null,null,null,null,{"$f":"ES15","v":"لم يجتاز"},null,null,null,null,{"$f":"ET15","v":"لم يجتاز"},null,null,null,null,{"$f":"SUM(CD15:CG15)","v":0},null,null,null,null,{"$f":"SUM(CI15:CL15)","v":0},null,null,{"$f":"SUM(CN15:CO15)","v":0},"راسب وله حق الإعادة","راسب وله حق الإعادة","",null,null,null,null,2,"",null,1,1,1,1,1,1,1,1,1,1,1,1,1,1,1,null,null,null,15,0,0,0,1,0," لغة عربية","لغة إنجليزية ","رياضيات ","فيزياء ","كيمياء","الدراسات الاجتماعية ","الحاسب الالي","تربية وطنية","تربية دينية","تربية عسكرية",null,null,0,0,0,0,0,"لم يجتاز","لم يجتاز","لم يجتاز","لم يجتاز","لم يجتاز","السلامة والصحة المهنية","اساسيات الحاسب","الدوائر الرقمية والمنطقية","تجميع أجهزة الحاسب الالي","الرسم الفني",null,null,"لغة عربية","لغة انجليزية","رياضيات","فيزياء","كيمياء","الدراسات الاجتماعية"," الحاسب الالي","تربية وطنية"," تربية دينية","تربية عسكرية",null,"","لغة عربية لغة انجليزية رياضيات فيزياء كيمياء الدراسات الاجتماعية  الحاسب الالي تربية وطنية تربية دينيةتربية عسكرية",10,1,1,1,1,1,1,1,1,1,1]
["",null,"مسلم",null,"10/1","سحب ملف",null,"","","","","","","","",2,null,null,5006,"",null,null,null,null,0,null,null,null,null,0,null,null,null,null,0,null,null,null,null,0,null,null,null,null,0,null,null,null,null,0,null,null,null,null,0,0,null,null,null,null,"لم يجتاز",null,null,null,null,"لم يجتاز",null,null,null,null,"لم يجتاز",null,null,null,null,"لم يجتاز",null,null,null,null,"لم يجتاز",null,null,null,null,0,null,null,null,null,0,null,null,{"$f":"SUM(CN16:CO16)","v":0},"راسب وله حق الإعادة","راسب وليس له حق الاعادة","",null,null,null,null,2,"راسب وليس له حق الاعادة",null,1,1,1,1,1,1,1,1,1,1,1,1,1,1,1,null,null,null,15,0,0,0,1,1," لغة عربية","لغة إنجليزية ","رياضيات ","فيزياء ","كيمياء","الدراسات الاجتماعية ","الحاسب الالي","تربية وطنية","تربية دينية","تربية عسكرية",null,null,0,0,0,0,0,"لم يجتاز","لم يجتاز","لم يجتاز","لم يجتاز","لم يجتاز","السلامة والصحة المهنية","اساسيات الحاسب","الدوائر الرقمية والمنطقية","تجميع أجهزة الحاسب الالي","الرسم الفني",null,null,"لغة عربية","لغة انجليزية","رياضيات","فيزياء","كيمياء","الدراسات الاجتماعية"," الحاسب الالي","تربية وطنية"," تربية دينية","تربية عسكرية",null,"","لغة عربية لغة انجليزية رياضيات فيزياء كيمياء الدراسات الاجتماعية  الحاسب الالي تربية وطنية تربية دينيةتربية عسكرية",10,1,1,1,1,1,1,1,1,1,1]
["",null,"مسلم",null,"10/1","مستجد",null,"","","","","","","","","",null,null,5007,"",null,null,null,null,0,null,null,null,null,0,null,null,null,null,0,null,null,null,null,0,null,null,null,null,0,null,null,null,null,0,null,null,null,null,0,0,null,null,null,null,"لم يجتاز",null,null,null,null,"لم يجتاز",null,null,null,null,"لم يجتاز",null,null,null,null,"لم يجتاز",null,null,null,null,"لم يجتاز",null,null,null,null,0,null,null,null,null,0,null,null,0,{"$f":"IF(DS17=0,$DT$10,IF(DS17=1,$DU$10,IF(DS17=2,$DV$10,$DW$10)))","v":"راسب وله حق الإعادة"},"راسب وله حق الإعادة","",null,null,null,null,2,"",null,1,1,1,1,1,1,1,1,1,1,1,1,1,1,1,null,null,null,15,0,0,0,1,0," لغة عربية","لغة إنجليزية ","رياضيات ","فيزياء ","كيمياء","الدراسات الاجتماعية ","الحاسب الالي","تربية وطنية","تربية دينية","تربية عسكرية",null,null,0,0,0,0,0,"لم يجتاز","لم يجتاز","لم يجتاز","لم يجتاز","لم يجتاز","السلامة والصحة المهنية","اساسيات الحاسب","الدوائر الرقمية والمنطقية","تجميع أجهزة الحاسب الالي","الرسم الفني",null,null,"لغة عربية","لغة انجليزية","رياضيات","فيزياء","كيمياء","الدراسات الاجتماعية"," الحاسب الالي","تربية وطنية"," تربية دينية","تربية عسكرية",null,"","لغة عربية لغة انجليزية رياضيات فيزياء كيمياء الدراسات الاجتماعية  الحاسب الالي تربية وطنية تربية دينيةتربية عسكرية",10,1,1,1,1,1,1,1,1,1,1]
["",null,"مسلم",null,"10/1","مستجد",null,"","","","","","","","","",null,null,5008,"",null,null,null,null,0,null,null,null,null,0,null,null,null,null,0,null,null,null,null,0,null,null,null,null,0,null,null,null,null,0,null,null,null,null,0,0,null,null,null,null,"لم يجتاز",null,null,null,null,"لم يجتاز",null,null,null,null,"لم يجتاز",null,null,null,null,"لم يجتاز",null,null,null,null,"لم يجتاز",null,null,null,null,0,null,null,null,null,0,null,null,0,"راسب وله حق الإعادة","راسب وله حق الإعادة","",null,null,null,null,2,"",null,1,1,1,1,1,1,1,1,1,1,1,1,1,1,1,null,null,null,15,0,0,0,1,0," لغة عربية","لغة إنجليزية ","رياضيات ","فيزياء ","كيمياء","الدراسات الاجتماعية ","الحاسب الالي","تربية وطنية","تربية دينية","تربية عسكرية",null,null,0,0,0,0,0,"لم يجتاز","لم يجتاز","لم يجتاز","لم يجتاز","لم يجتاز","السلامة والصحة المهنية","اساسيات الحاسب","الدوائر الرقمية والمنطقية","تجميع أجهزة الحاسب الالي","الرسم الفني",null,null,"لغة عربية","لغة انجليزية","رياضيات","فيزياء","كيمياء","الدراسات الاجتماعية"," الحاسب الالي","تربية وطنية"," تربية دينية","تربية عسكرية",null,"","لغة عربية لغة انجليزية رياضيات فيزياء كيمياء الدراسات الاجتماعية  الحاسب الالي تربية وطنية تربية دينيةتربية عسكرية",10,1,1,1,1,1,1,1,1,1,1]
["",null,"مسلم",null,"10/1","مستجد",null,"","","","","","","","","",null,null,5009,"",null,null,null,null,0,null,null,null,null,0,null,null,null,null,0,null,null,null,null,0,null,null,null,null,0,null,null,null,null,0,null,null,null,null,0,0,null,null,null,null,"لم يجتاز",null,null,null,null,"لم يجتاز",null,null,null,null,"لم يجتاز",null,null,null,null,"لم يجتاز",null,null,null,null,"لم يجتاز",null,null,null,null,0,null,null,null,null,0,null,null,0,"راسب وله حق الإعادة","راسب وله حق الإعادة","",null,null,null,null,2,"",null,1,1,1,1,1,1,1,1,1,1,1,1,1,1,1,null,null,null,15,0,0,0,1,0," لغة عربية","لغة إنجليزية ","رياضيات ","فيزياء ","كيمياء","الدراسات الاجتماعية ","الحاسب الالي","تربية وطنية","تربية دينية","تربية عسكرية",null,null,0,0,0,0,0,"لم يجتاز","لم يجتاز","لم يجتاز","لم يجتاز","لم يجتاز","السلامة والصحة المهنية","اساسيات الحاسب","الدوائر الرقمية والمنطقية","تجميع أجهزة الحاسب الالي","الرسم الفني",null,null,"لغة عربية","لغة انجليزية","رياضيات","فيزياء","كيمياء","الدراسات الاجتماعية"," الحاسب الالي","تربية وطنية"," تربية دينية","تربية عسكرية",null,"","لغة عربية لغة انجليزية رياضيات فيزياء كيمياء الدراسات الاجتماعية  الحاسب الالي تربية وطنية تربية دينيةتربية عسكرية",10,1,1,1,1,1,1,1,1,1,1]
["",null,"مسلم",null,"10/1","مستجد",null,"","","","","","","","","",null,null,5010,"",null,null,null,null,0,null,null,null,null,0,null,null,null,null,0,null,null,null,null,0,null,null,null,null,0,null,null,null,null,0,null,null,null,null,0,0,null,null,null,null,"لم يجتاز",null,null,null,null,"لم يجتاز",null,null,null,null,"لم يجتاز",null,null,null,null,"لم يجتاز",null,null,null,null,"لم يجتاز",null,null,null,null,0,null,null,null,null,0,null,null,0,"راسب وله حق الإعادة","راسب وله حق الإعادة","",null,null,null,null,2,"",null,1,1,1,1,1,1,1,1,1,1,1,1,1,1,1,null,null,null,15,0,0,0,1,0," لغة عربية","لغة إنجليزية ","رياضيات ","فيزياء ","كيمياء","الدراسات الاجتماعية ","الحاسب الالي","تربية وطنية","تربية دينية","تربية عسكرية",null,null,0,0,0,0,0,"لم يجتاز","لم يجتاز","لم يجتاز","لم يجتاز","لم يجتاز","السلامة والصحة المهنية","اساسيات الحاسب","الدوائر الرقمية والمنطقية","تجميع أجهزة الحاسب الالي","الرسم الفني",null,null,"لغة عربية","لغة انجليزية","رياضيات","فيزياء","كيمياء","الدراسات الاجتماعية"," الحاسب الالي","تربية وطنية"," تربية دينية","تربية عسكرية",null,"","لغة عربية لغة انجليزية رياضيات فيزياء كيمياء الدراسات الاجتماعية  الحاسب الالي تربية وطنية تربية دينيةتربية عسكرية",10,1,1,1,1,1,1,1,1,1,1]
["",null,"مسلم",null,"10/1","مستجد",null,"","","","","","","","","",null,null,5011,"",null,null,null,null,0,null,null,null,null,0,null,null,null,null,0,null,null,null,null,0,null,null,null,null,0,null,null,null,null,0,null,null,null,null,0,0,null,null,null,null,"لم يجتاز",null,null,null,null,"لم يجتاز",null,null,null,null,"لم يجتاز",null,null,null,null,"لم يجتاز",null,null,null,null,"لم يجتاز",null,null,null,null,0,null,null,null,null,0,null,null,0,"راسب وله حق الإعادة","راسب وله حق الإعادة","",null,null,null,null,2,"",null,1,1,1,1,1,1,1,1,1,1,1,1,1,1,1,null,null,null,15,0,0,0,1,0," لغة عربية","لغة إنجليزية ","رياضيات ","فيزياء ","كيمياء","الدراسات الاجتماعية ","الحاسب الالي","تربية وطنية","تربية دينية","تربية عسكرية",null,null,0,0,0,0,0,"لم يجتاز","لم يجتاز","لم يجتاز","لم يجتاز","لم يجتاز","السلامة والصحة المهنية","اساسيات الحاسب","الدوائر الرقمية والمنطقية","تجميع أجهزة الحاسب الالي","الرسم الفني",null,null,"لغة عربية","لغة انجليزية","رياضيات","فيزياء","كيمياء","الدراسات الاجتماعية"," الحاسب الالي","تربية وطنية"," تربية دينية","تربية عسكرية",null,"","لغة عربية لغة انجليزية رياضيات فيزياء كيمياء الدراسات الاجتماعية  الحاسب الالي تربية وطنية تربية دينيةتربية عسكرية",10,1,1,1,1,1,1,1,1,1,1]
["",null,"مسلم",null,"10/1","مستجد",null,"","","","","","","","","",null,null,5012,"",null,null,null,null,0,null,null,null,null,0,null,null,null,null,0,null,null,null,null,0,null,null,null,null,0,null,null,null,null,0,null,null,null,null,0,0,null,null,null,null,"لم يجتاز",null,null,null,null,"لم يجتاز",null,null,null,null,"لم يجتاز",null,null,null,null,"لم يجتاز",null,null,null,null,"لم يجتاز",null,null,null,null,0,null,null,null,null,0,null,null,0,"راسب وله حق الإعادة","راسب وله حق الإعادة","",null,null,null,null,2,"",null,1,1,1,1,1,1,1,1,1,1,1,1,1,1,1,null,null,null,15,0,0,0,1,0," لغة عربية","لغة إنجليزية ","رياضيات ","فيزياء ","كيمياء","الدراسات الاجتماعية ","الحاسب الالي","تربية وطنية","تربية دينية","تربية عسكرية",null,null,0,0,0,0,0,"لم يجتاز","لم يجتاز","لم يجتاز","لم يجتاز","لم يجتاز","السلامة والصحة المهنية","اساسيات الحاسب","الدوائر الرقمية والمنطقية","تجميع أجهزة الحاسب الالي","الرسم الفني",null,null,"لغة عربية","لغة انجليزية","رياضيات","فيزياء","كيمياء","الدراسات الاجتماعية"," الحاسب الالي","تربية وطنية"," تربية دينية","تربية عسكرية",null,"","لغة عربية لغة انجليزية رياضيات فيزياء كيمياء الدراسات الاجتماعية  الحاسب الالي تربية وطنية تربية دينيةتربية عسكرية",10,1,1,1,1,1,1,1,1,1,1]
["",null,"مسلم",null,"10/1","مستجد",null,"","","","","","","","","",null,null,5013,"",null,null,null,null,0,null,null,null,null,0,null,null,null,null,0,null,null,null,null,0,null,null,null,null,0,null,null,null,null,0,null,null,null,null,0,0,null,null,null,null,"لم يجتاز",null,null,null,null,"لم يجتاز",null,null,null,null,"لم يجتاز",null,null,null,null,"لم يجتاز",null,null,null,null,"لم يجتاز",null,null,null,null,0,null,null,null,null,0,null,null,0,"راسب وله حق الإعادة","راسب وله حق الإعادة","",null,null,null,null,2,"",null,1,1,1,1,1,1,1,1,1,1,1,1,1,1,1,null,null,null,15,0,0,0,1,0," لغة عربية","لغة إنجليزية ","رياضيات ","فيزياء ","كيمياء","الدراسات الاجتماعية ","الحاسب الالي","تربية وطنية","تربية دينية","تربية عسكرية",null,null,0,0,0,0,0,"لم يجتاز","لم يجتاز","لم يجتاز","لم يجتاز","لم يجتاز","السلامة والصحة المهنية","اساسيات الحاسب","الدوائر الرقمية والمنطقية","تجميع أجهزة الحاسب الالي","الرسم الفني",null,null,"لغة عربية","لغة انجليزية","رياضيات","فيزياء","كيمياء","الدراسات الاجتماعية"," الحاسب الالي","تربية وطنية"," تربية دينية","تربية عسكرية",null,"","لغة عربية لغة انجليزية رياضيات فيزياء كيمياء الدراسات الاجتماعية  الحاسب الالي تربية وطنية تربية دينيةتربية عسكرية",10,1,1,1,1,1,1,1,1,1,1]
["",null,"مسلم",null,"10/1","مستجد",null,"","","","","","","","","",null,null,5014,"",null,null,null,null,0,null,null,null,null,0,null,null,null,null,0,null,null,null,null,0,null,null,null,null,0,null,null,null,null,0,null,null,null,null,0,0,null,null,null,null,"لم يجتاز",null,null,null,null,"لم يجتاز",null,null,null,null,"لم يجتاز",null,null,null,null,"لم يجتاز",null,null,null,null,"لم يجتاز",null,null,null,null,0,null,null,null,null,0,null,null,0,"راسب وله حق الإعادة","راسب وله حق الإعادة","",null,null,null,null,2,"",null,1,1,1,1,1,1,1,1,1,1,1,1,1,1,1,null,null,null,15,0,0,0,1,0," لغة عربية","لغة إنجليزية ","رياضيات ","فيزياء ","كيمياء","الدراسات الاجتماعية ","الحاسب الالي","تربية وطنية","تربية دينية","تربية عسكرية",null,null,0,0,0,0,0,"لم يجتاز","لم يجتاز","لم يجتاز","لم يجتاز","لم يجتاز","السلامة والصحة المهنية","اساسيات الحاسب","الدوائر الرقمية والمنطقية","تجميع أجهزة الحاسب الالي","الرسم الفني",null,null,"لغة عربية","لغة انجليزية","رياضيات","فيزياء","كيمياء","الدراسات الاجتماعية"," الحاسب الالي","تربية وطنية"," تربية دينية","تربية عسكرية",null,"","لغة عربية لغة انجليزية رياضيات فيزياء كيمياء الدراسات الاجتماعية  الحاسب الالي تربية وطنية تربية دينيةتربية عسكرية",10,1,1,1,1,1,1,1,1,1,1]
["",null,"مسلم",null,"10/1","مستجد",null,"","","","","","","","","",null,null,5015,"",null,null,null,null,0,null,null,null,null,0,null,null,null,null,0,null,null,null,null,0,null,null,null,null,0,null,null,null,null,0,null,null,null,null,0,0,null,null,null,null,"لم يجتاز",null,null,null,null,"لم يجتاز",null,null,null,null,"لم يجتاز",null,null,null,null,"لم يجتاز",null,null,null,null,"لم يجتاز",null,null,null,null,0,null,null,null,null,0,null,null,0,"راسب وله حق الإعادة","راسب وله حق الإعادة","",null,null,null,null,2,"",null,1,1,1,1,1,1,1,1,1,1,1,1,1,1,1,null,null,null,15,0,0,0,1,0," لغة عربية","لغة إنجليزية ","رياضيات ","فيزياء ","كيمياء","الدراسات الاجتماعية ","الحاسب الالي","تربية وطنية","تربية دينية","تربية عسكرية",null,null,0,0,0,0,0,"لم يجتاز","لم يجتاز","لم يجتاز","لم يجتاز","لم يجتاز","السلامة والصحة المهنية","اساسيات الحاسب","الدوائر الرقمية والمنطقية","تجميع أجهزة الحاسب الالي","الرسم الفني",null,null,"لغة عربية","لغة انجليزية","رياضيات","فيزياء","كيمياء","الدراسات الاجتماعية"," الحاسب الالي","تربية وطنية"," تربية دينية","تربية عسكرية",null,"","لغة عربية لغة انجليزية رياضيات فيزياء كيمياء الدراسات الاجتماعية  الحاسب الالي تربية وطنية تربية دينيةتربية عسكرية",10,1,1,1,1,1,1,1,1,1,1]
["",null,"مسلم",null,"10/1","مستجد",null,"","","","","","","","","",null,null,5016,"",null,null,null,null,0,null,null,null,null,0,null,null,null,null,0,null,null,null,null,0,null,null,null,null,0,null,null,null,null,0,null,null,null,null,0,0,null,null,null,null,"لم يجتاز",null,null,null,null,"لم يجتاز",null,null,null,null,"لم يجتاز",null,null,null,null,"لم يجتاز",null,null,null,null,"لم يجتاز",null,null,null,null,0,null,null,null,null,0,null,null,0,"راسب وله حق الإعادة","راسب وله حق الإعادة","",null,null,null,null,2,"",null,1,1,1,1,1,1,1,1,1,1,1,1,1,1,1,null,null,null,15,0,0,0,1,0," لغة عربية","لغة إنجليزية ","رياضيات ","فيزياء ","كيمياء","الدراسات الاجتماعية ","الحاسب الالي","تربية وطنية","تربية دينية","تربية عسكرية",null,null,0,0,0,0,0,"لم يجتاز","لم يجتاز","لم يجتاز","لم يجتاز","لم يجتاز","السلامة والصحة المهنية","اساسيات الحاسب","الدوائر الرقمية والمنطقية","تجميع أجهزة الحاسب الالي","الرسم الفني",null,null,"لغة عربية","لغة انجليزية","رياضيات","فيزياء","كيمياء","الدراسات الاجتماعية"," الحاسب الالي","تربية وطنية"," تربية دينية","تربية عسكرية",null,"","لغة عربية لغة انجليزية رياضيات فيزياء كيمياء الدراسات الاجتماعية  الحاسب الالي تربية وطنية تربية دينيةتربية عسكرية",10,1,1,1,1,1,1,1,1,1,1]
["",null,"مسلم",null,"10/1","مستجد",null,"","","","","","","","","",null,null,5017,"",null,null,null,null,0,null,null,null,null,0,null,null,null,null,0,null,null,null,null,0,null,null,null,null,0,null,null,null,null,0,null,null,null,null,0,0,null,null,null,null,"لم يجتاز",null,null,null,null,"لم يجتاز",null,null,null,null,"لم يجتاز",null,null,null,null,"لم يجتاز",null,null,null,null,"لم يجتاز",null,null,null,null,0,null,null,null,null,0,null,null,0,"راسب وله حق الإعادة","راسب وله حق الإعادة","",null,null,null,null,2,"",null,1,1,1,1,1,1,1,1,1,1,1,1,1,1,1,null,null,null,15,0,0,0,1,0," لغة عربية","لغة إنجليزية ","رياضيات ","فيزياء ","كيمياء","الدراسات الاجتماعية ","الحاسب الالي","تربية وطنية","تربية دينية","تربية عسكرية",null,null,0,0,0,0,0,"لم يجتاز","لم يجتاز","لم يجتاز","لم يجتاز","لم يجتاز","السلامة والصحة المهنية","اساسيات الحاسب","الدوائر الرقمية والمنطقية","تجميع أجهزة الحاسب الالي","الرسم الفني",null,null,"لغة عربية","لغة انجليزية","رياضيات","فيزياء","كيمياء","الدراسات الاجتماعية"," الحاسب الالي","تربية وطنية"," تربية دينية","تربية عسكرية",null,"","لغة عربية لغة انجليزية رياضيات فيزياء كيمياء الدراسات الاجتماعية  الحاسب الالي تربية وطنية تربية دينيةتربية عسكرية",10,1,1,1,1,1,1,1,1,1,1]
["",null,"مسلم",null,"10/1","مستجد",null,"","","","","","","","","",null,null,5018,"",null,null,null,null,0,null,null,null,null,0,null,null,null,null,0,null,null,null,null,0,null,null,null,null,0,null,null,null,null,0,null,null,null,null,0,0,null,null,null,null,"لم يجتاز",null,null,null,null,"لم يجتاز",null,null,null,null,"لم يجتاز",null,null,null,null,"لم يجتاز",null,null,null,null,"لم يجتاز",null,null,null,null,0,null,null,null,null,0,null,null,0,"راسب وله حق الإعادة","راسب وله حق الإعادة","",null,null,null,null,2,"",null,1,1,1,1,1,1,1,1,1,1,1,1,1,1,1,null,null,null,15,0,0,0,1,0," لغة عربية","لغة إنجليزية ","رياضيات ","فيزياء ","كيمياء","الدراسات الاجتماعية ","الحاسب الالي","تربية وطنية","تربية دينية","تربية عسكرية",null,null,0,0,0,0,0,"لم يجتاز","لم يجتاز","لم يجتاز","لم يجتاز","لم يجتاز","السلامة والصحة المهنية","اساسيات الحاسب","الدوائر الرقمية والمنطقية","تجميع أجهزة الحاسب الالي","الرسم الفني",null,null,"لغة عربية","لغة انجليزية","رياضيات","فيزياء","كيمياء","الدراسات الاجتماعية"," الحاسب الالي","تربية وطنية"," تربية دينية","تربية عسكرية",null,"","لغة عربية لغة انجليزية رياضيات فيزياء كيمياء الدراسات الاجتماعية  الحاسب الالي تربية وطنية تربية دينيةتربية عسكرية",10,1,1,1,1,1,1,1,1,1,1]
["",null,"اختر الديانة",null,null,"اختر البيان",null,"","","","","","","","","",null,null,null,null,null,null,null,null,0,null,null,null,null,0,null,null,null,null,0,null,null,null,null,0,null,null,null,null,0,null,null,null,null,0,null,null,null,null,0,0,null,null,null,null,"لم يجتاز",null,null,null,null,"لم يجتاز",null,null,null,null,"لم يجتاز",null,null,null,null,"لم يجتاز",null,null,null,null,"لم يجتاز",null,null,null,null,0,null,null,null,null,0,null,null,0,"راسب وله حق الإعادة","راسب وله حق الإعادة","",null,null,null,null,2,"",null,1,1,1,1,1,1,1,1,1,1,1,1,1,1,1,null,null,null,15,0,0,0,1,0," لغة عربية","لغة إنجليزية ","رياضيات ","فيزياء ","كيمياء","الدراسات الاجتماعية ","الحاسب الالي","تربية وطنية","تربية دينية","تربية عسكرية",null,null,0,0,0,0,0,"لم يجتاز","لم يجتاز","لم يجتاز","لم يجتاز","لم يجتاز","السلامة والصحة المهنية","اساسيات الحاسب","الدوائر الرقمية والمنطقية","تجميع أجهزة الحاسب الالي","الرسم الفني",null,null,"لغة عربية","لغة انجليزية","رياضيات","فيزياء","كيمياء","الدراسات الاجتماعية"," الحاسب الالي","تربية وطنية"," تربية دينية","تربية عسكرية",null,"","لغة عربية لغة انجليزية رياضيات فيزياء كيمياء الدراسات الاجتماعية  الحاسب الالي تربية وطنية تربية دينيةتربية عسكرية",10,1,1,1,1,1,1,1,1,1,1]
["",null,"اختر الديانة",null,null,"اختر البيان",null,"","","","","","","","","",null,null,{"$f":"IF(B30=\"\",\"\",$S29+1)","v":""},"",null,null,null,null,0,null,null,null,null,0,null,null,null,null,0,null,null,null,null,0,null,null,null,null,0,null,null,null,null,0,null,null,null,null,0,0,null,null,null,null,"لم يجتاز",null,null,null,null,"لم يجتاز",null,null,null,null,"لم يجتاز",null,null,null,null,"لم يجتاز",null,null,null,null,"لم يجتاز",null,null,null,null,0,null,null,null,null,0,null,null,0,"راسب وله حق الإعادة","راسب وله حق الإعادة","",null,null,null,null,2,"",null,1,1,1,1,1,1,1,1,1,1,1,1,1,1,1,null,null,null,15,0,0,0,1,0," لغة عربية","لغة إنجليزية ","رياضيات ","فيزياء ","كيمياء","الدراسات الاجتماعية ","الحاسب الالي","تربية وطنية","تربية دينية","تربية عسكرية",null,null,0,0,0,0,0,"لم يجتاز","لم يجتاز","لم يجتاز","لم يجتاز","لم يجتاز","السلامة والصحة المهنية","اساسيات الحاسب","الدوائر الرقمية والمنطقية","تجميع أجهزة الحاسب الالي","الرسم الفني",null,null,"لغة عربية","لغة انجليزية","رياضيات","فيزياء","كيمياء","الدراسات الاجتماعية"," الحاسب الالي","تربية وطنية"," تربية دينية","تربية عسكرية",null,"","لغة عربية لغة انجليزية رياضيات فيزياء كيمياء الدراسات الاجتماعية  الحاسب الالي تربية وطنية تربية دينيةتربية عسكرية",10,1,1,1,1,1,1,1,1,1,1]
["",null,"اختر الديانة",null,null,"اختر البيان",null,"","","","","","","","","",null,null,"","",null,null,null,null,0,null,null,null,null,0,null,null,null,null,0,null,null,null,null,0,null,null,null,null,0,null,null,null,null,0,null,null,null,null,0,0,null,null,null,null,"لم يجتاز",null,null,null,null,"لم يجتاز",null,null,null,null,"لم يجتاز",null,null,null,null,"لم يجتاز",null,null,null,null,"لم يجتاز",null,null,null,null,0,null,null,null,null,0,null,null,0,"راسب وله حق الإعادة","راسب وله حق الإعادة","",null,null,null,null,2,"",null,1,1,1,1,1,1,1,1,1,1,1,1,1,1,1,null,null,null,15,0,0,0,1,0," لغة عربية","لغة إنجليزية ","رياضيات ","فيزياء ","كيمياء","الدراسات الاجتماعية ","الحاسب الالي","تربية وطنية","تربية دينية","تربية عسكرية",null,null,0,0,0,0,0,"لم يجتاز","لم يجتاز","لم يجتاز","لم يجتاز","لم يجتاز","السلامة والصحة المهنية","اساسيات الحاسب","الدوائر الرقمية والمنطقية","تجميع أجهزة الحاسب الالي","الرسم الفني",null,null,"لغة عربية","لغة انجليزية","رياضيات","فيزياء","كيمياء","الدراسات الاجتماعية"," الحاسب الالي","تربية وطنية"," تربية دينية","تربية عسكرية",null,"","لغة عربية لغة انجليزية رياضيات فيزياء كيمياء الدراسات الاجتماعية  الحاسب الالي تربية وطنية تربية دينيةتربية عسكرية",10,1,1,1,1,1,1,1,1,1,1]
["",null,"اختر الديانة",null,null,"اختر البيان",null,"","","","","","","","","",null,null,"","",null,null,null,null,0,null,null,null,null,0,null,null,null,null,0,null,null,null,null,0,null,null,null,null,0,null,null,null,null,0,null,null,null,null,0,0,null,null,null,null,"لم يجتاز",null,null,null,null,"لم يجتاز",null,null,null,null,"لم يجتاز",null,null,null,null,"لم يجتاز",null,null,null,null,"لم يجتاز",null,null,null,null,0,null,null,null,null,0,null,null,0,"راسب وله حق الإعادة","راسب وله حق الإعادة","",null,null,null,null,2,"",null,1,1,1,1,1,1,1,1,1,1,1,1,1,1,1,null,null,null,15,0,0,0,1,0," لغة عربية","لغة إنجليزية ","رياضيات ","فيزياء ","كيمياء","الدراسات الاجتماعية ","الحاسب الالي","تربية وطنية","تربية دينية","تربية عسكرية",null,null,0,0,0,0,0,"لم يجتاز","لم يجتاز","لم يجتاز","لم يجتاز","لم يجتاز","السلامة والصحة المهنية","اساسيات الحاسب","الدوائر الرقمية والمنطقية","تجميع أجهزة الحاسب الالي","الرسم الفني",null,null,"لغة عربية","لغة انجليزية","رياضيات","فيزياء","كيمياء","الدراسات الاجتماعية"," الحاسب الالي","تربية وطنية"," تربية دينية","تربية عسكرية",null,"","لغة عربية لغة انجليزية رياضيات فيزياء كيمياء الدراسات الاجتماعية  الحاسب الالي تربية وطنية تربية دينيةتربية عسكرية",10,1,1,1,1,1,1,1,1,1,1]
["",null,"اختر الديانة",null,null,"اختر البيان",null,"","","","","","","","","",null,null,"","",null,null,null,null,0,null,null,null,null,0,null,null,null,null,0,null,null,null,null,0,null,null,null,null,0,null,null,null,null,0,null,null,null,null,0,0,null,null,null,null,"لم يجتاز",null,null,null,null,"لم يجتاز",null,null,null,null,"لم يجتاز",null,null,null,null,"لم يجتاز",null,null,null,null,"لم يجتاز",null,null,null,null,0,null,null,null,null,0,null,null,0,"راسب وله حق الإعادة","راسب وله حق الإعادة","",null,null,null,null,2,"",null,1,1,1,1,1,1,1,1,1,1,1,1,1,1,1,null,null,null,15,0,0,0,1,0," لغة عربية","لغة إنجليزية ","رياضيات ","فيزياء ","كيمياء","الدراسات الاجتماعية ","الحاسب الالي","تربية وطنية","تربية دينية","تربية عسكرية",null,null,0,0,0,0,0,"لم يجتاز","لم يجتاز","لم يجتاز","لم يجتاز","لم يجتاز","السلامة والصحة المهنية","اساسيات الحاسب","الدوائر الرقمية والمنطقية","تجميع أجهزة الحاسب الالي","الرسم الفني",null,null,"لغة عربية","لغة انجليزية","رياضيات","فيزياء","كيمياء","الدراسات الاجتماعية"," الحاسب الالي","تربية وطنية"," تربية دينية","تربية عسكرية",null,"","لغة عربية لغة انجليزية رياضيات فيزياء كيمياء الدراسات الاجتماعية  الحاسب الالي تربية وطنية تربية دينيةتربية عسكرية",10,1,1,1,1,1,1,1,1,1,1]
["",null,"اختر الديانة",null,null,"اختر البيان",null,"","","","","","","","","",null,null,"","",null,null,null,null,0,null,null,null,null,0,null,null,null,null,0,null,null,null,null,0,null,null,null,null,0,null,null,null,null,0,null,null,null,null,0,0,null,null,null,null,"لم يجتاز",null,null,null,null,"لم يجتاز",null,null,null,null,"لم يجتاز",null,null,null,null,"لم يجتاز",null,null,null,null,"لم يجتاز",null,null,null,null,0,null,null,null,null,0,null,null,0,"راسب وله حق الإعادة","راسب وله حق الإعادة","",null,null,null,null,2,"",null,1,1,1,1,1,1,1,1,1,1,1,1,1,1,1,null,null,null,15,0,0,0,1,0," لغة عربية","لغة إنجليزية ","رياضيات ","فيزياء ","كيمياء","الدراسات الاجتماعية ","الحاسب الالي","تربية وطنية","تربية دينية","تربية عسكرية",null,null,0,0,0,0,0,"لم يجتاز","لم يجتاز","لم يجتاز","لم يجتاز","لم يجتاز","السلامة والصحة المهنية","اساسيات الحاسب","الدوائر الرقمية والمنطقية","تجميع أجهزة الحاسب الالي","الرسم الفني",null,null,"لغة عربية","لغة انجليزية","رياضيات","فيزياء","كيمياء","الدراسات الاجتماعية"," الحاسب الالي","تربية وطنية"," تربية دينية","تربية عسكرية",null,"","لغة عربية لغة انجليزية رياضيات فيزياء كيمياء الدراسات الاجتماعية  الحاسب الالي تربية وطنية تربية دينيةتربية عسكرية",10,1,1,1,1,1,1,1,1,1,1]
["",null,"اختر الديانة",null,null,"اختر البيان",null,"","","","","","","","","",null,null,"","",null,null,null,null,0,null,null,null,null,0,null,null,null,null,0,null,null,null,null,0,null,null,null,null,0,null,null,null,null,0,null,null,null,null,0,0,null,null,null,null,"لم يجتاز",null,null,null,null,"لم يجتاز",null,null,null,null,"لم يجتاز",null,null,null,null,"لم يجتاز",null,null,null,null,"لم يجتاز",null,null,null,null,0,null,null,null,null,0,null,null,0,"راسب وله حق الإعادة","راسب وله حق الإعادة","",null,null,null,null,2,"",null,1,1,1,1,1,1,1,1,1,1,1,1,1,1,1,null,null,null,15,0,0,0,1,0," لغة عربية","لغة إنجليزية ","رياضيات ","فيزياء ","كيمياء","الدراسات الاجتماعية ","الحاسب الالي","تربية وطنية","تربية دينية","تربية عسكرية",null,null,0,0,0,0,0,"لم يجتاز","لم يجتاز","لم يجتاز","لم يجتاز","لم يجتاز","السلامة والصحة المهنية","اساسيات الحاسب","الدوائر الرقمية والمنطقية","تجميع أجهزة الحاسب الالي","الرسم الفني",null,null,"لغة عربية","لغة انجليزية","رياضيات","فيزياء","كيمياء","الدراسات الاجتماعية"," الحاسب الالي","تربية وطنية"," تربية دينية","تربية عسكرية",null,"","لغة عربية لغة انجليزية رياضيات فيزياء كيمياء الدراسات الاجتماعية  الحاسب الالي تربية وطنية تربية دينيةتربية عسكرية",10,1,1,1,1,1,1,1,1,1,1]
["",null,"اختر الديانة",null,null,"اختر البيان",null,"","","","","","","","","",null,null,"","",null,null,null,null,0,null,null,null,null,0,null,null,null,null,0,null,null,null,null,0,null,null,null,null,0,null,null,null,null,0,null,null,null,null,0,0,null,null,null,null,"لم يجتاز",null,null,null,null,"لم يجتاز",null,null,null,null,"لم يجتاز",null,null,null,null,"لم يجتاز",null,null,null,null,"لم يجتاز",null,null,null,null,0,null,null,null,null,0,null,null,0,"راسب وله حق الإعادة","راسب وله حق الإعادة","",null,null,null,null,2,"",null,1,1,1,1,1,1,1,1,1,1,1,1,1,1,1,null,null,null,15,0,0,0,1,0," لغة عربية","لغة إنجليزية ","رياضيات ","فيزياء ","كيمياء","الدراسات الاجتماعية ","الحاسب الالي","تربية وطنية","تربية دينية","تربية عسكرية",null,null,0,0,0,0,0,"لم يجتاز","لم يجتاز","لم يجتاز","لم يجتاز","لم يجتاز","السلامة والصحة المهنية","اساسيات الحاسب","الدوائر الرقمية والمنطقية","تجميع أجهزة الحاسب الالي","الرسم الفني",null,null,"لغة عربية","لغة انجليزية","رياضيات","فيزياء","كيمياء","الدراسات الاجتماعية"," الحاسب الالي","تربية وطنية"," تربية دينية","تربية عسكرية",null,"","لغة عربية لغة انجليزية رياضيات فيزياء كيمياء الدراسات الاجتماعية  الحاسب الالي تربية وطنية تربية دينيةتربية عسكرية",10,1,1,1,1,1,1,1,1,1,1]
["",null,"اختر الديانة",null,null,"اختر البيان",null,"","","","","","","","","",null,null,"","",null,null,null,null,0,null,null,null,null,0,null,null,null,null,0,null,null,null,null,0,null,null,null,null,0,null,null,null,null,0,null,null,null,null,0,0,null,null,null,null,"لم يجتاز",null,null,null,null,"لم يجتاز",null,null,null,null,"لم يجتاز",null,null,null,null,"لم يجتاز",null,null,null,null,"لم يجتاز",null,null,null,null,0,null,null,null,null,0,null,null,0,"راسب وله حق الإعادة","راسب وله حق الإعادة","",null,null,null,null,2,"",null,1,1,1,1,1,1,1,1,1,1,1,1,1,1,1,null,null,null,15,0,0,0,1,0," لغة عربية","لغة إنجليزية ","رياضيات ","فيزياء ","كيمياء","الدراسات الاجتماعية ","الحاسب الالي","تربية وطنية","تربية دينية","تربية عسكرية",null,null,0,0,0,0,0,"لم يجتاز","لم يجتاز","لم يجتاز","لم يجتاز","لم يجتاز","السلامة والصحة المهنية","اساسيات الحاسب","الدوائر الرقمية والمنطقية","تجميع أجهزة الحاسب الالي","الرسم الفني",null,null,"لغة عربية","لغة انجليزية","رياضيات","فيزياء","كيمياء","الدراسات الاجتماعية"," الحاسب الالي","تربية وطنية"," تربية دينية","تربية عسكرية",null,"","لغة عربية لغة انجليزية رياضيات فيزياء كيمياء الدراسات الاجتماعية  الحاسب الالي تربية وطنية تربية دينيةتربية عسكرية",10,1,1,1,1,1,1,1,1,1,1]
["",null,"اختر الديانة",null,null,"اختر البيان",null,"","","","","","","","","",null,null,"","",null,null,null,null,0,null,null,null,null,0,null,null,null,null,0,null,null,null,null,0,null,null,null,null,0,null,null,null,null,0,null,null,null,null,0,0,null,null,null,null,"لم يجتاز",null,null,null,null,"لم يجتاز",null,null,null,null,"لم يجتاز",null,null,null,null,"لم يجتاز",null,null,null,null,"لم يجتاز",null,null,null,null,0,null,null,null,null,0,null,null,0,"راسب وله حق الإعادة","دور ثان لغيابه في مادة :"," لغة عربية لغة إنجليزية  رياضيات  فيزياء  كيمياء الدراسات الاجتماعية  الحاسب الالي تربية وطنية تربية دينية تربية عسكرية السلامة والصحة المهنية اساسيات الحاسب الدوائر الرقمية والمنطقية تجميع أجهزة الحاسب الالي الرسم الفني",null,null,null,null,2,"",null,1,1,1,1,1,1,1,1,1,1,1,1,1,1,1,null,null,null,15,0,0,0,1,0," لغة عربية","لغة إنجليزية ","رياضيات ","فيزياء ","كيمياء","الدراسات الاجتماعية ","الحاسب الالي","تربية وطنية","تربية دينية","تربية عسكرية",null,null,0,0,0,0,0,"لم يجتاز","لم يجتاز","لم يجتاز","لم يجتاز","لم يجتاز","السلامة والصحة المهنية","اساسيات الحاسب","الدوائر الرقمية والمنطقية","تجميع أجهزة الحاسب الالي","الرسم الفني",null,null,"لغة عربية","لغة انجليزية","رياضيات","فيزياء","كيمياء","الدراسات الاجتماعية"," الحاسب الالي","تربية وطنية"," تربية دينية","تربية عسكرية",null,"","لغة عربية لغة انجليزية رياضيات فيزياء كيمياء الدراسات الاجتماعية  الحاسب الالي تربية وطنية تربية دينيةتربية عسكرية",10,1,1,1,1,1,1,1,1,1,1]
["",null,"اختر الديانة",null,null,"اختر البيان",null,"","","","","","","","","",null,null,"","",null,null,null,null,0,null,null,null,null,0,null,null,null,null,0,null,null,null,null,0,null,null,null,null,0,null,null,null,null,0,null,null,null,null,0,0,null,null,null,null,"لم يجتاز",null,null,null,null,"لم يجتاز",null,null,null,null,"لم يجتاز",null,null,null,null,"لم يجتاز",null,null,null,null,"لم يجتاز",null,null,null,null,0,null,null,null,null,0,null,null,0,"راسب وله حق الإعادة","راسب وله حق الإعادة","",null,null,null,null,2,"",null,1,1,1,1,1,1,1,1,1,1,1,1,1,1,1,null,null,null,15,0,0,0,1,0," لغة عربية","لغة إنجليزية ","رياضيات ","فيزياء ","كيمياء","الدراسات الاجتماعية ","الحاسب الالي","تربية وطنية","تربية دينية","تربية عسكرية",null,null,0,0,0,0,0,"لم يجتاز","لم يجتاز","لم يجتاز","لم يجتاز","لم يجتاز","السلامة والصحة المهنية","اساسيات الحاسب","الدوائر الرقمية والمنطقية","تجميع أجهزة الحاسب الالي","الرسم الفني",null,null,"لغة عربية","لغة انجليزية","رياضيات","فيزياء","كيمياء","الدراسات الاجتماعية"," الحاسب الالي","تربية وطنية"," تربية دينية","تربية عسكرية",null,"","لغة عربية لغة انجليزية رياضيات فيزياء كيمياء الدراسات الاجتماعية  الحاسب الالي تربية وطنية تربية دينيةتربية عسكرية",10,1,1,1,1,1,1,1,1,1,1]
["",null,"اختر الديانة",null,null,"اختر البيان",null,"","","","","","","","","",null,null,"","",null,null,null,null,0,null,null,null,null,0,null,null,null,null,0,null,null,null,null,0,null,null,null,null,0,null,null,null,null,0,null,null,null,null,0,0,null,null,null,null,"لم يجتاز",null,null,null,null,"لم يجتاز",null,null,null,null,"لم يجتاز",null,null,null,null,"لم يجتاز",null,null,null,null,"لم يجتاز",null,null,null,null,0,null,null,null,null,0,null,null,0,"راسب وله حق الإعادة","راسب وله حق الإعادة","",null,null,null,null,2,"",null,1,1,1,1,1,1,1,1,1,1,1,1,1,1,1,null,null,null,15,0,0,0,1,0," لغة عربية","لغة إنجليزية ","رياضيات ","فيزياء ","كيمياء","الدراسات الاجتماعية ","الحاسب الالي","تربية وطنية","تربية دينية","تربية عسكرية",null,null,0,0,0,0,0,"لم يجتاز","لم يجتاز","لم يجتاز","لم يجتاز","لم يجتاز","السلامة والصحة المهنية","اساسيات الحاسب","الدوائر الرقمية والمنطقية","تجميع أجهزة الحاسب الالي","الرسم الفني",null,null,"لغة عربية","لغة انجليزية","رياضيات","فيزياء","كيمياء","الدراسات الاجتماعية"," الحاسب الالي","تربية وطنية"," تربية دينية","تربية عسكرية",null,"","لغة عربية لغة انجليزية رياضيات فيزياء كيمياء الدراسات الاجتماعية  الحاسب الالي تربية وطنية تربية دينيةتربية عسكرية",10,1,1,1,1,1,1,1,1,1,1]
["",null,"اختر الديانة",null,null,"اختر البيان",null,"","","","","","","","","",null,null,"","",null,null,null,null,0,null,null,null,null,0,null,null,null,null,0,null,null,null,null,0,null,null,null,null,0,null,null,null,null,0,null,null,null,null,0,0,null,null,null,null,"لم يجتاز",null,null,null,null,"لم يجتاز",null,null,null,null,"لم يجتاز",null,null,null,null,"لم يجتاز",null,null,null,null,"لم يجتاز",null,null,null,null,0,null,null,null,null,0,null,null,0,"راسب وله حق الإعادة","راسب وله حق الإعادة","",null,null,null,null,2,"",null,1,1,1,1,1,1,1,1,1,1,1,1,1,1,1,null,null,null,15,0,0,0,1,0," لغة عربية","لغة إنجليزية ","رياضيات ","فيزياء ","كيمياء","الدراسات الاجتماعية ","الحاسب الالي","تربية وطنية","تربية دينية","تربية عسكرية",null,null,0,0,0,0,0,"لم يجتاز","لم يجتاز","لم يجتاز","لم يجتاز","لم يجتاز","السلامة والصحة المهنية","اساسيات الحاسب","الدوائر الرقمية والمنطقية","تجميع أجهزة الحاسب الالي","الرسم الفني",null,null,"لغة عربية","لغة انجليزية","رياضيات","فيزياء","كيمياء","الدراسات الاجتماعية"," الحاسب الالي","تربية وطنية"," تربية دينية","تربية عسكرية",null,"","لغة عربية لغة انجليزية رياضيات فيزياء كيمياء الدراسات الاجتماعية  الحاسب الالي تربية وطنية تربية دينيةتربية عسكرية",10,1,1,1,1,1,1,1,1,1,1]
["",null,"اختر الديانة",null,null,"اختر البيان",null,"","","","","","","","","",null,null,"","",null,null,null,null,0,null,null,null,null,0,null,null,null,null,0,null,null,null,null,0,null,null,null,null,0,null,null,null,null,0,null,null,null,null,0,0,null,null,null,null,"لم يجتاز",null,null,null,null,"لم يجتاز",null,null,null,null,"لم يجتاز",null,null,null,null,"لم يجتاز",null,null,null,null,"لم يجتاز",null,null,null,null,0,null,null,null,null,0,null,null,0,"راسب وله حق الإعادة","راسب وله حق الإعادة","",null,null,null,null,2,"",null,1,1,1,1,1,1,1,1,1,1,1,1,1,1,1,null,null,null,15,0,0,0,1,0," لغة عربية","لغة إنجليزية ","رياضيات ","فيزياء ","كيمياء","الدراسات الاجتماعية ","الحاسب الالي","تربية وطنية","تربية دينية","تربية عسكرية",null,null,0,0,0,0,0,"لم يجتاز","لم يجتاز","لم يجتاز","لم يجتاز","لم يجتاز","السلامة والصحة المهنية","اساسيات الحاسب","الدوائر الرقمية والمنطقية","تجميع أجهزة الحاسب الالي","الرسم الفني",null,null,"لغة عربية","لغة انجليزية","رياضيات","فيزياء","كيمياء","الدراسات الاجتماعية"," الحاسب الالي","تربية وطنية"," تربية دينية","تربية عسكرية",null,"","لغة عربية لغة انجليزية رياضيات فيزياء كيمياء الدراسات الاجتماعية  الحاسب الالي تربية وطنية تربية دينيةتربية عسكرية",10,1,1,1,1,1,1,1,1,1,1]
["",null,"اختر الديانة",null,null,"اختر البيان",null,"","","","","","","","","",null,null,"","",null,null,null,null,0,null,null,null,null,0,null,null,null,null,0,null,null,null,null,0,null,null,null,null,0,null,null,null,null,0,null,null,null,null,0,0,null,null,null,null,"لم يجتاز",null,null,null,null,"لم يجتاز",null,null,null,null,"لم يجتاز",null,null,null,null,"لم يجتاز",null,null,null,null,"لم يجتاز",null,null,null,null,0,null,null,null,null,0,null,null,0,"راسب وله حق الإعادة","راسب وله حق الإعادة","",null,null,null,null,2,"",null,1,1,1,1,1,1,1,1,1,1,1,1,1,1,1,null,null,null,15,0,0,0,1,0," لغة عربية","لغة إنجليزية ","رياضيات ","فيزياء ","كيمياء","الدراسات الاجتماعية ","الحاسب الالي","تربية وطنية","تربية دينية","تربية عسكرية",null,null,0,0,0,0,0,{"$f":"IF(EK43>0,\"اجتاز\",\"لم يجتاز\")","v":"لم يجتاز"},"لم يجتاز","لم يجتاز","لم يجتاز","لم يجتاز","السلامة والصحة المهنية","اساسيات الحاسب","الدوائر الرقمية والمنطقية","تجميع أجهزة الحاسب الالي","الرسم الفني",null,null,"لغة عربية","لغة انجليزية","رياضيات","فيزياء","كيمياء","الدراسات الاجتماعية"," الحاسب الالي","تربية وطنية"," تربية دينية","تربية عسكرية",null,"","لغة عربية لغة انجليزية رياضيات فيزياء كيمياء الدراسات الاجتماعية  الحاسب الالي تربية وطنية تربية دينيةتربية عسكرية",10,1,1,1,1,1,1,1,1,1,1]
["",null,"اختر الديانة",null,null,"اختر البيان",null,"","","","","","","","","",null,null,"","",null,null,null,null,0,null,null,null,null,0,null,null,null,null,0,null,null,null,null,0,null,null,null,null,0,null,null,null,null,0,null,null,null,null,0,0,null,null,null,null,"لم يجتاز",null,null,null,null,"لم يجتاز",null,null,null,null,"لم يجتاز",null,null,null,null,"لم يجتاز",null,null,null,null,"لم يجتاز",null,null,null,null,0,null,null,null,null,0,null,null,0,"راسب وله حق الإعادة","راسب وله حق الإعادة","",null,null,null,null,2,"",null,1,1,1,1,1,1,1,1,1,1,1,1,1,1,1,null,null,null,15,0,0,0,1,0," لغة عربية","لغة إنجليزية ","رياضيات ","فيزياء ","كيمياء","الدراسات الاجتماعية ","الحاسب الالي","تربية وطنية","تربية دينية","تربية عسكرية",null,null,0,0,0,0,0,"لم يجتاز","لم يجتاز","لم يجتاز","لم يجتاز","لم يجتاز","السلامة والصحة المهنية","اساسيات الحاسب","الدوائر الرقمية والمنطقية","تجميع أجهزة الحاسب الالي","الرسم الفني",null,null,"لغة عربية","لغة انجليزية","رياضيات","فيزياء","كيمياء","الدراسات الاجتماعية"," الحاسب الالي","تربية وطنية"," تربية دينية","تربية عسكرية",null,"","لغة عربية لغة انجليزية رياضيات فيزياء كيمياء الدراسات الاجتماعية  الحاسب الالي تربية وطنية تربية دينيةتربية عسكرية",10,1,1,1,1,1,1,1,1,1,1]
["",null,"اختر الديانة",null,null,"اختر البيان",null,"","","","","","","","","",null,null,"","",null,null,null,null,0,null,null,null,null,0,null,null,null,null,0,null,null,null,null,0,null,null,null,null,0,null,null,null,null,0,null,null,null,null,0,0,null,null,null,null,"لم يجتاز",null,null,null,null,"لم يجتاز",null,null,null,null,"لم يجتاز",null,null,null,null,"لم يجتاز",null,null,null,null,"لم يجتاز",null,null,null,null,0,null,null,null,null,0,null,null,0,"راسب وله حق الإعادة","راسب وله حق الإعادة","",null,null,null,null,2,"",null,1,1,1,1,1,1,1,1,1,1,1,1,1,1,1,null,null,null,15,0,0,0,1,0," لغة عربية","لغة إنجليزية ","رياضيات ","فيزياء ","كيمياء","الدراسات الاجتماعية ","الحاسب الالي","تربية وطنية","تربية دينية","تربية عسكرية",null,null,0,0,0,0,0,"لم يجتاز","لم يجتاز","لم يجتاز","لم يجتاز","لم يجتاز","السلامة والصحة المهنية","اساسيات الحاسب","الدوائر الرقمية والمنطقية","تجميع أجهزة الحاسب الالي","الرسم الفني",null,null,"لغة عربية","لغة انجليزية","رياضيات","فيزياء","كيمياء","الدراسات الاجتماعية"," الحاسب الالي","تربية وطنية"," تربية دينية","تربية عسكرية",null,"","لغة عربية لغة انجليزية رياضيات فيزياء كيمياء الدراسات الاجتماعية  الحاسب الالي تربية وطنية تربية دينيةتربية عسكرية",10,1,1,1,1,1,1,1,1,1,1]
["",null,"اختر الديانة",null,null,"اختر البيان",null,"","","","","","","","","",null,null,"","",null,null,null,null,0,null,null,null,null,0,null,null,null,null,0,null,null,null,null,0,null,null,null,null,0,null,null,null,null,0,null,null,null,null,0,0,null,null,null,null,"لم يجتاز",null,null,null,null,"لم يجتاز",null,null,null,null,"لم يجتاز",null,null,null,null,"لم يجتاز",null,null,null,null,"لم يجتاز",null,null,null,null,0,null,null,null,null,0,null,null,0,"راسب وله حق الإعادة","راسب وله حق الإعادة","",null,null,null,null,2,"",null,1,1,1,1,1,1,1,1,1,1,1,1,1,1,1,null,null,null,15,0,0,0,1,0," لغة عربية","لغة إنجليزية ","رياضيات ","فيزياء ","كيمياء","الدراسات الاجتماعية ","الحاسب الالي","تربية وطنية","تربية دينية","تربية عسكرية",null,null,0,0,0,0,0,"لم يجتاز","لم يجتاز","لم يجتاز","لم يجتاز","لم يجتاز","السلامة والصحة المهنية","اساسيات الحاسب","الدوائر الرقمية والمنطقية","تجميع أجهزة الحاسب الالي","الرسم الفني",null,null,"لغة عربية","لغة انجليزية","رياضيات","فيزياء","كيمياء","الدراسات الاجتماعية"," الحاسب الالي","تربية وطنية"," تربية دينية","تربية عسكرية",null,"","لغة عربية لغة انجليزية رياضيات فيزياء كيمياء الدراسات الاجتماعية  الحاسب الالي تربية وطنية تربية دينيةتربية عسكرية",10,1,1,1,1,1,1,1,1,1,1]
["",null,"اختر الديانة",null,null,"اختر البيان",null,"","","","","","","","","",null,null,"","",null,null,null,null,0,null,null,null,null,0,null,null,null,null,0,null,null,null,null,0,null,null,null,null,0,null,null,null,null,0,null,null,null,null,0,0,null,null,null,null,"لم يجتاز",null,null,null,null,"لم يجتاز",null,null,null,null,"لم يجتاز",null,null,null,null,"لم يجتاز",null,null,null,null,"لم يجتاز",null,null,null,null,0,null,null,null,null,0,null,null,0,"راسب وله حق الإعادة","راسب وله حق الإعادة","",null,null,null,null,2,"",null,1,1,1,1,1,1,1,1,1,1,1,1,1,1,1,null,null,null,15,0,0,0,1,0," لغة عربية","لغة إنجليزية ","رياضيات ","فيزياء ","كيمياء","الدراسات الاجتماعية ","الحاسب الالي","تربية وطنية","تربية دينية","تربية عسكرية",null,null,0,0,0,0,0,"لم يجتاز","لم يجتاز","لم يجتاز","لم يجتاز","لم يجتاز","السلامة والصحة المهنية","اساسيات الحاسب","الدوائر الرقمية والمنطقية","تجميع أجهزة الحاسب الالي","الرسم الفني",null,null,"لغة عربية","لغة انجليزية","رياضيات","فيزياء","كيمياء","الدراسات الاجتماعية"," الحاسب الالي","تربية وطنية"," تربية دينية","تربية عسكرية",null,"","لغة عربية لغة انجليزية رياضيات فيزياء كيمياء الدراسات الاجتماعية  الحاسب الالي تربية وطنية تربية دينيةتربية عسكرية",10,1,1,1,1,1,1,1,1,1,1]
["",null,"اختر الديانة",null,null,"اختر البيان",null,"","","","","","","","","",null,null,"","",null,null,null,null,0,null,null,null,null,0,null,null,null,null,0,null,null,null,null,0,null,null,null,null,0,null,null,null,null,0,null,null,null,null,0,0,null,null,null,null,"لم يجتاز",null,null,null,null,"لم يجتاز",null,null,null,null,"لم يجتاز",null,null,null,null,"لم يجتاز",null,null,null,null,"لم يجتاز",null,null,null,null,0,null,null,null,null,0,null,null,0,"راسب وله حق الإعادة","راسب وله حق الإعادة","",null,null,null,null,2,"",null,1,1,1,1,1,1,1,1,1,1,1,1,1,1,1,null,null,null,15,0,0,0,1,0," لغة عربية","لغة إنجليزية ","رياضيات ","فيزياء ","كيمياء","الدراسات الاجتماعية ","الحاسب الالي","تربية وطنية","تربية دينية","تربية عسكرية",null,null,0,0,0,0,0,"لم يجتاز","لم يجتاز","لم يجتاز","لم يجتاز","لم يجتاز","السلامة والصحة المهنية","اساسيات الحاسب","الدوائر الرقمية والمنطقية","تجميع أجهزة الحاسب الالي","الرسم الفني",null,null,"لغة عربية","لغة انجليزية","رياضيات","فيزياء","كيمياء","الدراسات الاجتماعية"," الحاسب الالي","تربية وطنية"," تربية دينية","تربية عسكرية",null,"","لغة عربية لغة انجليزية رياضيات فيزياء كيمياء الدراسات الاجتماعية  الحاسب الالي تربية وطنية تربية دينيةتربية عسكرية",10,1,1,1,1,1,1,1,1,1,1]
["",null,"اختر الديانة",null,null,"اختر البيان",null,"","","","","","","","","",null,null,"","",null,null,null,null,0,null,null,null,null,0,null,null,null,null,0,null,null,null,null,0,null,null,null,null,0,null,null,null,null,0,null,null,null,null,0,0,null,null,null,null,"لم يجتاز",null,null,null,null,"لم يجتاز",null,null,null,null,"لم يجتاز",null,null,null,null,"لم يجتاز",null,null,null,null,"لم يجتاز",null,null,null,null,0,null,null,null,null,0,null,null,0,"راسب وله حق الإعادة","راسب وله حق الإعادة","",null,null,null,null,2,"",null,1,1,1,1,1,1,1,1,1,1,1,1,1,1,1,null,null,null,15,0,0,0,1,0," لغة عربية","لغة إنجليزية ","رياضيات ","فيزياء ","كيمياء","الدراسات الاجتماعية ","الحاسب الالي","تربية وطنية","تربية دينية","تربية عسكرية",null,null,0,0,0,0,0,"لم يجتاز","لم يجتاز","لم يجتاز","لم يجتاز","لم يجتاز","السلامة والصحة المهنية","اساسيات الحاسب","الدوائر الرقمية والمنطقية","تجميع أجهزة الحاسب الالي","الرسم الفني",null,null,"لغة عربية","لغة انجليزية","رياضيات","فيزياء","كيمياء","الدراسات الاجتماعية"," الحاسب الالي","تربية وطنية"," تربية دينية","تربية عسكرية",null,"","لغة عربية لغة انجليزية رياضيات فيزياء كيمياء الدراسات الاجتماعية  الحاسب الالي تربية وطنية تربية دينيةتربية عسكرية",10,1,1,1,1,1,1,1,1,1,1]
["",null,"اختر الديانة",null,null,"اختر البيان",null,"","","","","","","","","",null,null,"","",null,null,null,null,0,null,null,null,null,0,null,null,null,null,0,null,null,null,null,0,null,null,null,null,0,null,null,null,null,0,null,null,null,null,0,0,null,null,null,null,"لم يجتاز",null,null,null,null,"لم يجتاز",null,null,null,null,"لم يجتاز",null,null,null,null,"لم يجتاز",null,null,null,null,"لم يجتاز",null,null,null,null,0,null,null,null,null,0,null,null,0,"راسب وله حق الإعادة","راسب وله حق الإعادة","",null,null,null,null,2,"",null,1,1,1,1,1,1,1,1,1,1,1,1,1,1,1,null,null,null,15,0,0,0,1,0," لغة عربية","لغة إنجليزية ","رياضيات ","فيزياء ","كيمياء","الدراسات الاجتماعية ","الحاسب الالي","تربية وطنية","تربية دينية","تربية عسكرية",null,null,0,0,0,0,0,"لم يجتاز","لم يجتاز","لم يجتاز","لم يجتاز","لم يجتاز","السلامة والصحة المهنية","اساسيات الحاسب","الدوائر الرقمية والمنطقية","تجميع أجهزة الحاسب الالي","الرسم الفني",null,null,"لغة عربية","لغة انجليزية","رياضيات","فيزياء","كيمياء","الدراسات الاجتماعية"," الحاسب الالي","تربية وطنية"," تربية دينية","تربية عسكرية",null,"","لغة عربية لغة انجليزية رياضيات فيزياء كيمياء الدراسات الاجتماعية  الحاسب الالي تربية وطنية تربية دينيةتربية عسكرية",10,1,1,1,1,1,1,1,1,1,1]
["",null,"اختر الديانة",null,null,"اختر البيان",null,"","","","","","","","","",null,null,"","",null,null,null,null,0,null,null,null,null,0,null,null,null,null,0,null,null,null,null,0,null,null,null,null,0,null,null,null,null,0,null,null,null,null,0,0,null,null,null,null,"لم يجتاز",null,null,null,null,"لم يجتاز",null,null,null,null,"لم يجتاز",null,null,null,null,"لم يجتاز",null,null,null,null,"لم يجتاز",null,null,null,null,0,null,null,null,null,0,null,null,0,"راسب وله حق الإعادة","راسب وله حق الإعادة","",null,null,null,null,2,"",null,1,1,1,1,1,1,1,1,1,1,1,1,1,1,1,null,null,null,15,0,0,0,1,0," لغة عربية","لغة إنجليزية ","رياضيات ","فيزياء ","كيمياء","الدراسات الاجتماعية ","الحاسب الالي","تربية وطنية","تربية دينية","تربية عسكرية",null,null,0,0,0,0,0,"لم يجتاز","لم يجتاز","لم يجتاز","لم يجتاز","لم يجتاز","السلامة والصحة المهنية","اساسيات الحاسب","الدوائر الرقمية والمنطقية","تجميع أجهزة الحاسب الالي","الرسم الفني",null,null,"لغة عربية","لغة انجليزية","رياضيات","فيزياء","كيمياء","الدراسات الاجتماعية"," الحاسب الالي","تربية وطنية"," تربية دينية","تربية عسكرية",null,"","لغة عربية لغة انجليزية رياضيات فيزياء كيمياء الدراسات الاجتماعية  الحاسب الالي تربية وطنية تربية دينيةتربية عسكرية",10,1,1,1,1,1,1,1,1,1,1]
["",null,"اختر الديانة",null,null,"اختر البيان",null,"","","","","","","","","",null,null,"","",null,null,null,null,0,null,null,null,null,0,null,null,null,null,0,null,null,null,null,0,null,null,null,null,0,null,null,null,null,0,null,null,null,null,0,0,null,null,null,null,"لم يجتاز",null,null,null,null,"لم يجتاز",null,null,null,null,"لم يجتاز",null,null,null,null,"لم يجتاز",null,null,null,null,"لم يجتاز",null,null,null,null,0,null,null,null,null,0,null,null,0,"راسب وله حق الإعادة","راسب وله حق الإعادة","",null,null,null,null,2,"",null,1,1,1,1,1,1,1,1,1,1,1,1,1,1,1,null,null,null,15,0,0,0,1,0," لغة عربية","لغة إنجليزية ","رياضيات ","فيزياء ","كيمياء","الدراسات الاجتماعية ","الحاسب الالي","تربية وطنية","تربية دينية","تربية عسكرية",null,null,0,0,0,0,0,"لم يجتاز","لم يجتاز","لم يجتاز","لم يجتاز","لم يجتاز","السلامة والصحة المهنية","اساسيات الحاسب","الدوائر الرقمية والمنطقية","تجميع أجهزة الحاسب الالي","الرسم الفني",null,null,"لغة عربية","لغة انجليزية","رياضيات","فيزياء","كيمياء","الدراسات الاجتماعية"," الحاسب الالي","تربية وطنية"," تربية دينية","تربية عسكرية",null,"","لغة عربية لغة انجليزية رياضيات فيزياء كيمياء الدراسات الاجتماعية  الحاسب الالي تربية وطنية تربية دينيةتربية عسكرية",10,1,1,1,1,1,1,1,1,1,1]
["",null,"اختر الديانة",null,null,"اختر البيان",null,"","","","","","","","","",null,null,"","",null,null,null,null,0,null,null,null,null,0,null,null,null,null,0,null,null,null,null,0,null,null,null,null,0,null,null,null,null,0,null,null,null,null,0,0,null,null,null,null,"لم يجتاز",null,null,null,null,"لم يجتاز",null,null,null,null,"لم يجتاز",null,null,null,null,"لم يجتاز",null,null,null,null,"لم يجتاز",null,null,null,null,0,null,null,null,null,0,null,null,0,"راسب وله حق الإعادة","راسب وله حق الإعادة","",null,null,null,null,2,"",null,1,1,1,1,1,1,1,1,1,1,1,1,1,1,1,null,null,null,15,0,0,0,1,0," لغة عربية","لغة إنجليزية ","رياضيات ","فيزياء ","كيمياء","الدراسات الاجتماعية ","الحاسب الالي","تربية وطنية","تربية دينية","تربية عسكرية",null,null,0,0,0,0,0,"لم يجتاز","لم يجتاز","لم يجتاز","لم يجتاز","لم يجتاز","السلامة والصحة المهنية","اساسيات الحاسب","الدوائر الرقمية والمنطقية","تجميع أجهزة الحاسب الالي","الرسم الفني",null,null,"لغة عربية","لغة انجليزية","رياضيات","فيزياء","كيمياء","الدراسات الاجتماعية"," الحاسب الالي","تربية وطنية"," تربية دينية","تربية عسكرية",null,"","لغة عربية لغة انجليزية رياضيات فيزياء كيمياء الدراسات الاجتماعية  الحاسب الالي تربية وطنية تربية دينيةتربية عسكرية",10,1,1,1,1,1,1,1,1,1,1]
["",null,"اختر الديانة",null,null,"اختر البيان",null,"","","","","","","","","",null,null,"","",null,null,null,null,0,null,null,null,null,0,null,null,null,null,0,null,null,null,null,0,null,null,null,null,0,null,null,null,null,0,null,null,null,null,0,0,null,null,null,null,"لم يجتاز",null,null,null,null,"لم يجتاز",null,null,null,null,"لم يجتاز",null,null,null,null,"لم يجتاز",null,null,null,null,"لم يجتاز",null,null,null,null,0,null,null,null,null,0,null,null,0,"راسب وله حق الإعادة","راسب وله حق الإعادة","",null,null,null,null,2,"",null,1,1,1,1,1,1,1,1,1,1,1,1,1,1,1,null,null,null,15,0,0,0,1,0," لغة عربية","لغة إنجليزية ","رياضيات ","فيزياء ","كيمياء","الدراسات الاجتماعية ","الحاسب الالي","تربية وطنية","تربية دينية","تربية عسكرية",null,null,0,0,0,0,0,"لم يجتاز","لم يجتاز","لم يجتاز","لم يجتاز","لم يجتاز","السلامة والصحة المهنية","اساسيات الحاسب","الدوائر الرقمية والمنطقية","تجميع أجهزة الحاسب الالي","الرسم الفني",null,null,"لغة عربية","لغة انجليزية","رياضيات","فيزياء","كيمياء","الدراسات الاجتماعية"," الحاسب الالي","تربية وطنية"," تربية دينية","تربية عسكرية",null,"","لغة عربية لغة انجليزية رياضيات فيزياء كيمياء الدراسات الاجتماعية  الحاسب الالي تربية وطنية تربية دينيةتربية عسكرية",10,1,1,1,1,1,1,1,1,1,1]
["",null,"اختر الديانة",null,null,"اختر البيان",null,"","","","","","","","","",null,null,"","",null,null,null,null,0,null,null,null,null,0,null,null,null,null,0,null,null,null,null,0,null,null,null,null,0,null,null,null,null,0,null,null,null,null,0,0,null,null,null,null,"لم يجتاز",null,null,null,null,"لم يجتاز",null,null,null,null,"لم يجتاز",null,null,null,null,"لم يجتاز",null,null,null,null,"لم يجتاز",null,null,null,null,0,null,null,null,null,0,null,null,0,"راسب وله حق الإعادة","راسب وله حق الإعادة","",null,null,null,null,2,"",null,1,1,1,1,1,1,1,1,1,1,1,1,1,1,1,null,null,null,15,0,0,0,1,0," لغة عربية","لغة إنجليزية ","رياضيات ","فيزياء ","كيمياء","الدراسات الاجتماعية ","الحاسب الالي","تربية وطنية","تربية دينية","تربية عسكرية",null,null,0,0,0,0,0,"لم يجتاز","لم يجتاز","لم يجتاز","لم يجتاز","لم يجتاز","السلامة والصحة المهنية","اساسيات الحاسب","الدوائر الرقمية والمنطقية","تجميع أجهزة الحاسب الالي","الرسم الفني",null,null,"لغة عربية","لغة انجليزية","رياضيات","فيزياء","كيمياء","الدراسات الاجتماعية"," الحاسب الالي","تربية وطنية"," تربية دينية","تربية عسكرية",null,"","لغة عربية لغة انجليزية رياضيات فيزياء كيمياء الدراسات الاجتماعية  الحاسب الالي تربية وطنية تربية دينيةتربية عسكرية",10,1,1,1,1,1,1,1,1,1,1]
["",null,"اختر الديانة",null,null,"اختر البيان",null,"","","","","","","","","",null,null,"","",null,null,null,null,0,null,null,null,null,0,null,null,null,null,0,null,null,null,null,0,null,null,null,null,0,null,null,null,null,0,null,null,null,null,0,0,null,null,null,null,"لم يجتاز",null,null,null,null,"لم يجتاز",null,null,null,null,"لم يجتاز",null,null,null,null,"لم يجتاز",null,null,null,null,"لم يجتاز",null,null,null,null,0,null,null,null,null,0,null,null,0,"راسب وله حق الإعادة","راسب وله حق الإعادة","",null,null,null,null,2,"",null,1,1,1,1,1,1,1,1,1,1,1,1,1,1,1,null,null,null,15,0,0,0,1,0," لغة عربية","لغة إنجليزية ","رياضيات ","فيزياء ","كيمياء","الدراسات الاجتماعية ","الحاسب الالي","تربية وطنية","تربية دينية","تربية عسكرية",null,null,0,0,0,0,0,"لم يجتاز","لم يجتاز","لم يجتاز","لم يجتاز","لم يجتاز","السلامة والصحة المهنية","اساسيات الحاسب","الدوائر الرقمية والمنطقية","تجميع أجهزة الحاسب الالي","الرسم الفني",null,null,"لغة عربية","لغة انجليزية","رياضيات","فيزياء","كيمياء","الدراسات الاجتماعية"," الحاسب الالي","تربية وطنية"," تربية دينية","تربية عسكرية",null,"","لغة عربية لغة انجليزية رياضيات فيزياء كيمياء الدراسات الاجتماعية  الحاسب الالي تربية وطنية تربية دينيةتربية عسكرية",10,1,1,1,1,1,1,1,1,1,1]
["",null,"اختر الديانة",null,null,"اختر البيان",null,"","","","","","","","","",null,null,"","",null,null,null,null,0,null,null,null,null,0,null,null,null,null,0,null,null,null,null,0,null,null,null,null,0,null,null,null,null,0,null,null,null,null,0,0,null,null,null,null,"لم يجتاز",null,null,null,null,"لم يجتاز",null,null,null,null,"لم يجتاز",null,null,null,null,"لم يجتاز",null,null,null,null,"لم يجتاز",null,null,null,null,0,null,null,null,null,0,null,null,0,"راسب وله حق الإعادة","راسب وله حق الإعادة","",null,null,null,null,2,"",null,1,1,1,1,1,1,1,1,1,1,1,1,1,1,1,null,null,null,15,0,0,0,1,0," لغة عربية","لغة إنجليزية ","رياضيات ","فيزياء ","كيمياء","الدراسات الاجتماعية ","الحاسب الالي","تربية وطنية","تربية دينية","تربية عسكرية",null,null,0,0,0,0,0,"لم يجتاز","لم يجتاز","لم يجتاز","لم يجتاز","لم يجتاز","السلامة والصحة المهنية","اساسيات الحاسب","الدوائر الرقمية والمنطقية","تجميع أجهزة الحاسب الالي","الرسم الفني",null,null,"لغة عربية","لغة انجليزية","رياضيات","فيزياء","كيمياء","الدراسات الاجتماعية"," الحاسب الالي","تربية وطنية"," تربية دينية","تربية عسكرية",null,"","لغة عربية لغة انجليزية رياضيات فيزياء كيمياء الدراسات الاجتماعية  الحاسب الالي تربية وطنية تربية دينيةتربية عسكرية",10,1,1,1,1,1,1,1,1,1,1]
["",null,"اختر الديانة",null,null,"اختر البيان",null,"","","","","","","","","",null,null,"","",null,null,null,null,0,null,null,null,null,0,null,null,null,null,0,null,null,null,null,0,null,null,null,null,0,null,null,null,null,0,null,null,null,null,0,0,null,null,null,null,"لم يجتاز",null,null,null,null,"لم يجتاز",null,null,null,null,"لم يجتاز",null,null,null,null,"لم يجتاز",null,null,null,null,"لم يجتاز",null,null,null,null,0,null,null,null,null,0,null,null,0,"راسب وله حق الإعادة","راسب وله حق الإعادة","",null,null,null,null,2,"",null,1,1,1,1,1,1,1,1,1,1,1,1,1,1,1,null,null,null,15,0,0,0,1,0," لغة عربية","لغة إنجليزية ","رياضيات ","فيزياء ","كيمياء","الدراسات الاجتماعية ","الحاسب الالي","تربية وطنية","تربية دينية","تربية عسكرية",null,null,0,0,0,0,0,"لم يجتاز","لم يجتاز","لم يجتاز","لم يجتاز","لم يجتاز","السلامة والصحة المهنية","اساسيات الحاسب","الدوائر الرقمية والمنطقية","تجميع أجهزة الحاسب الالي","الرسم الفني",null,null,"لغة عربية","لغة انجليزية","رياضيات","فيزياء","كيمياء","الدراسات الاجتماعية"," الحاسب الالي","تربية وطنية"," تربية دينية","تربية عسكرية",null,"","لغة عربية لغة انجليزية رياضيات فيزياء كيمياء الدراسات الاجتماعية  الحاسب الالي تربية وطنية تربية دينيةتربية عسكرية",10,1,1,1,1,1,1,1,1,1,1]
["",null,"اختر الديانة",null,null,"اختر البيان",null,"","","","","","","","","",null,null,"","",null,null,null,null,0,null,null,null,null,0,null,null,null,null,0,null,null,null,null,0,null,null,null,null,0,null,null,null,null,0,null,null,null,null,0,0,null,null,null,null,"لم يجتاز",null,null,null,null,"لم يجتاز",null,null,null,null,"لم يجتاز",null,null,null,null,"لم يجتاز",null,null,null,null,"لم يجتاز",null,null,null,null,0,null,null,null,null,0,null,null,0,"راسب وله حق الإعادة","راسب وله حق الإعادة","",null,null,null,null,2,"",null,1,1,1,1,1,1,1,1,1,1,1,1,1,1,1,null,null,null,15,0,0,0,1,0," لغة عربية","لغة إنجليزية ","رياضيات ","فيزياء ","كيمياء","الدراسات الاجتماعية ","الحاسب الالي","تربية وطنية","تربية دينية","تربية عسكرية",null,null,0,0,0,0,0,"لم يجتاز","لم يجتاز","لم يجتاز","لم يجتاز","لم يجتاز","السلامة والصحة المهنية","اساسيات الحاسب","الدوائر الرقمية والمنطقية","تجميع أجهزة الحاسب الالي","الرسم الفني",null,null,"لغة عربية","لغة انجليزية","رياضيات","فيزياء","كيمياء","الدراسات الاجتماعية"," الحاسب الالي","تربية وطنية"," تربية دينية","تربية عسكرية",null,"","لغة عربية لغة انجليزية رياضيات فيزياء كيمياء الدراسات الاجتماعية  الحاسب الالي تربية وطنية تربية دينيةتربية عسكرية",10,1,1,1,1,1,1,1,1,1,1]
["",null,"اختر الديانة",null,null,"اختر البيان",null,"","","","","","","","","",null,null,"","",null,null,null,null,0,null,null,null,null,0,null,null,null,null,0,null,null,null,null,0,null,null,null,null,0,null,null,null,null,0,null,null,null,null,0,0,null,null,null,null,"لم يجتاز",null,null,null,null,"لم يجتاز",null,null,null,null,"لم يجتاز",null,null,null,null,"لم يجتاز",null,null,null,null,"لم يجتاز",null,null,null,null,0,null,null,null,null,0,null,null,0,"راسب وله حق الإعادة","راسب وله حق الإعادة","",null,null,null,null,2,"",null,1,1,1,1,1,1,1,1,1,1,1,1,1,1,1,null,null,null,15,0,0,0,1,0," لغة عربية","لغة إنجليزية ","رياضيات ","فيزياء ","كيمياء","الدراسات الاجتماعية ","الحاسب الالي","تربية وطنية","تربية دينية","تربية عسكرية",null,null,0,0,0,0,0,"لم يجتاز","لم يجتاز","لم يجتاز","لم يجتاز","لم يجتاز","السلامة والصحة المهنية","اساسيات الحاسب","الدوائر الرقمية والمنطقية","تجميع أجهزة الحاسب الالي","الرسم الفني",null,null,"لغة عربية","لغة انجليزية","رياضيات","فيزياء","كيمياء","الدراسات الاجتماعية"," الحاسب الالي","تربية وطنية"," تربية دينية","تربية عسكرية",null,"","لغة عربية لغة انجليزية رياضيات فيزياء كيمياء الدراسات الاجتماعية  الحاسب الالي تربية وطنية تربية دينيةتربية عسكرية",10,1,1,1,1,1,1,1,1,1,1]
["",null,"اختر الديانة",null,null,"اختر البيان",null,"","","","","","","","","",null,null,"","",null,null,null,null,0,null,null,null,null,0,null,null,null,null,0,null,null,null,null,0,null,null,null,null,0,null,null,null,null,0,null,null,null,null,0,0,null,null,null,null,"لم يجتاز",null,null,null,null,"لم يجتاز",null,null,null,null,"لم يجتاز",null,null,null,null,"لم يجتاز",null,null,null,null,"لم يجتاز",null,null,null,null,0,null,null,null,null,0,null,null,0,"راسب وله حق الإعادة","راسب وله حق الإعادة","",null,null,null,null,2,"",null,1,1,1,1,1,1,1,1,1,1,1,1,1,1,1,null,null,null,15,0,0,0,1,0," لغة عربية","لغة إنجليزية ","رياضيات ","فيزياء ","كيمياء","الدراسات الاجتماعية ","الحاسب الالي","تربية وطنية","تربية دينية","تربية عسكرية",null,null,0,0,0,0,0,"لم يجتاز","لم يجتاز","لم يجتاز","لم يجتاز","لم يجتاز","السلامة والصحة المهنية","اساسيات الحاسب","الدوائر الرقمية والمنطقية","تجميع أجهزة الحاسب الالي","الرسم الفني",null,null,"لغة عربية","لغة انجليزية","رياضيات","فيزياء","كيمياء","الدراسات الاجتماعية"," الحاسب الالي","تربية وطنية"," تربية دينية","تربية عسكرية",null,"","لغة عربية لغة انجليزية رياضيات فيزياء كيمياء الدراسات الاجتماعية  الحاسب الالي تربية وطنية تربية دينيةتربية عسكرية",10,1,1,1,1,1,1,1,1,1,1]
["",null,"اختر الديانة",null,null,"اختر البيان",null,"","","","","","","","","",null,null,"","",null,null,null,null,0,null,null,null,null,0,null,null,null,null,0,null,null,null,null,0,null,null,null,null,0,null,null,null,null,0,null,null,null,null,0,0,null,null,null,null,"لم يجتاز",null,null,null,null,"لم يجتاز",null,null,null,null,"لم يجتاز",null,null,null,null,"لم يجتاز",null,null,null,null,"لم يجتاز",null,null,null,null,0,null,null,null,null,0,null,null,0,"راسب وله حق الإعادة","راسب وله حق الإعادة","",null,null,null,null,2,"",null,1,1,1,1,1,1,1,1,1,1,1,1,1,1,1,null,null,null,15,0,0,0,1,0," لغة عربية","لغة إنجليزية ","رياضيات ","فيزياء ","كيمياء","الدراسات الاجتماعية ","الحاسب الالي","تربية وطنية","تربية دينية","تربية عسكرية",null,null,0,0,0,0,0,"لم يجتاز","لم يجتاز","لم يجتاز","لم يجتاز","لم يجتاز","السلامة والصحة المهنية","اساسيات الحاسب","الدوائر الرقمية والمنطقية","تجميع أجهزة الحاسب الالي","الرسم الفني",null,null,"لغة عربية","لغة انجليزية","رياضيات","فيزياء","كيمياء","الدراسات الاجتماعية"," الحاسب الالي","تربية وطنية"," تربية دينية","تربية عسكرية",null,"","لغة عربية لغة انجليزية رياضيات فيزياء كيمياء الدراسات الاجتماعية  الحاسب الالي تربية وطنية تربية دينيةتربية عسكرية",10,1,1,1,1,1,1,1,1,1,1]
["",null,"اختر الديانة",null,null,"اختر البيان",null,"","","","","","","","","",null,null,"","",null,null,null,null,0,null,null,null,null,0,null,null,null,null,0,null,null,null,null,0,null,null,null,null,0,null,null,null,null,0,null,null,null,null,0,0,null,null,null,null,"لم يجتاز",null,null,null,null,"لم يجتاز",null,null,null,null,"لم يجتاز",null,null,null,null,"لم يجتاز",null,null,null,null,"لم يجتاز",null,null,null,null,0,null,null,null,null,0,null,null,0,"راسب وله حق الإعادة","راسب وله حق الإعادة","",null,null,null,null,2,"",null,1,1,1,1,1,1,1,1,1,1,{"$f":"IF(EU63=\"\",0,1)","v":1},1,1,1,1,null,null,null,15,0,0,0,1,0," لغة عربية","لغة إنجليزية ","رياضيات ","فيزياء ","كيمياء","الدراسات الاجتماعية ","الحاسب الالي","تربية وطنية","تربية دينية","تربية عسكرية",null,null,0,0,0,0,0,"لم يجتاز","لم يجتاز","لم يجتاز","لم يجتاز","لم يجتاز","السلامة والصحة المهنية","اساسيات الحاسب","الدوائر الرقمية والمنطقية","تجميع أجهزة الحاسب الالي","الرسم الفني",null,null,"لغة عربية","لغة انجليزية","رياضيات","فيزياء","كيمياء","الدراسات الاجتماعية"," الحاسب الالي","تربية وطنية"," تربية دينية","تربية عسكرية",null,"","لغة عربية لغة انجليزية رياضيات فيزياء كيمياء الدراسات الاجتماعية  الحاسب الالي تربية وطنية تربية دينيةتربية عسكرية",10,1,1,1,1,1,1,1,1,1,1]
["",null,"اختر الديانة",null,null,"اختر البيان",null,"","","","","","","","","",null,null,"","",null,null,null,null,0,null,null,null,null,0,null,null,null,null,0,null,null,null,null,0,null,null,null,null,0,null,null,null,null,0,null,null,null,null,0,0,null,null,null,null,"لم يجتاز",null,null,null,null,"لم يجتاز",null,null,null,null,"لم يجتاز",null,null,null,null,"لم يجتاز",null,null,null,null,"لم يجتاز",null,null,null,null,0,null,null,null,null,0,null,null,0,"راسب وله حق الإعادة","راسب وله حق الإعادة","",null,null,null,null,2,"",null,1,1,1,1,1,1,1,1,1,1,1,1,1,1,1,null,null,null,15,0,0,0,1,0," لغة عربية","لغة إنجليزية ","رياضيات ","فيزياء ","كيمياء","الدراسات الاجتماعية ","الحاسب الالي","تربية وطنية","تربية دينية","تربية عسكرية",null,null,0,0,0,0,0,"لم يجتاز","لم يجتاز","لم يجتاز","لم يجتاز","لم يجتاز","السلامة والصحة المهنية","اساسيات الحاسب","الدوائر الرقمية والمنطقية","تجميع أجهزة الحاسب الالي","الرسم الفني",null,null,"لغة عربية","لغة انجليزية","رياضيات","فيزياء","كيمياء","الدراسات الاجتماعية"," الحاسب الالي","تربية وطنية"," تربية دينية","تربية عسكرية",null,"","لغة عربية لغة انجليزية رياضيات فيزياء كيمياء الدراسات الاجتماعية  الحاسب الالي تربية وطنية تربية دينيةتربية عسكرية",10,1,1,1,1,1,1,1,1,1,1]
["",null,"اختر الديانة",null,null,"اختر البيان",null,"","","","","","","","","",null,null,"","",null,null,null,null,0,null,null,null,null,0,null,null,null,null,0,null,null,null,null,0,null,null,null,null,0,null,null,null,null,0,null,null,null,null,0,0,null,null,null,null,"لم يجتاز",null,null,null,null,"لم يجتاز",null,null,null,null,"لم يجتاز",null,null,null,null,"لم يجتاز",null,null,null,null,"لم يجتاز",null,null,null,null,0,null,null,null,null,0,null,null,0,"راسب وله حق الإعادة","راسب وله حق الإعادة","",null,null,null,null,2,"",null,1,1,1,1,1,1,1,1,1,1,1,1,1,1,1,null,null,null,15,0,0,0,1,0," لغة عربية","لغة إنجليزية ","رياضيات ","فيزياء ","كيمياء","الدراسات الاجتماعية ","الحاسب الالي","تربية وطنية","تربية دينية","تربية عسكرية",null,null,0,0,0,0,0,"لم يجتاز","لم يجتاز","لم يجتاز","لم يجتاز","لم يجتاز","السلامة والصحة المهنية","اساسيات الحاسب","الدوائر الرقمية والمنطقية","تجميع أجهزة الحاسب الالي","الرسم الفني",null,null,"لغة عربية","لغة انجليزية","رياضيات","فيزياء","كيمياء","الدراسات الاجتماعية"," الحاسب الالي","تربية وطنية"," تربية دينية","تربية عسكرية",null,"","لغة عربية لغة انجليزية رياضيات فيزياء كيمياء الدراسات الاجتماعية  الحاسب الالي تربية وطنية تربية دينيةتربية عسكرية",10,1,1,1,1,1,1,1,1,1,1]
["",null,"اختر الديانة",null,null,"اختر البيان",null,"","","","","","","","","",null,null,"","",null,null,null,null,0,null,null,null,null,0,null,null,null,null,0,null,null,null,null,0,null,null,null,null,0,null,null,null,null,0,null,null,null,null,0,0,null,null,null,null,"لم يجتاز",null,null,null,null,"لم يجتاز",null,null,null,null,"لم يجتاز",null,null,null,null,"لم يجتاز",null,null,null,null,"لم يجتاز",null,null,null,null,0,null,null,null,null,0,null,null,0,"راسب وله حق الإعادة","راسب وله حق الإعادة","",null,null,null,null,2,"",null,1,1,1,1,1,1,1,1,1,1,1,1,1,1,1,null,null,null,15,0,0,0,1,0," لغة عربية","لغة إنجليزية ","رياضيات ","فيزياء ","كيمياء","الدراسات الاجتماعية ","الحاسب الالي","تربية وطنية","تربية دينية","تربية عسكرية",null,null,0,0,0,0,0,"لم يجتاز","لم يجتاز","لم يجتاز","لم يجتاز","لم يجتاز","السلامة والصحة المهنية","اساسيات الحاسب","الدوائر الرقمية والمنطقية","تجميع أجهزة الحاسب الالي","الرسم الفني",null,null,"لغة عربية","لغة انجليزية","رياضيات","فيزياء","كيمياء","الدراسات الاجتماعية"," الحاسب الالي","تربية وطنية"," تربية دينية","تربية عسكرية",null,"","لغة عربية لغة انجليزية رياضيات فيزياء كيمياء الدراسات الاجتماعية  الحاسب الالي تربية وطنية تربية دينيةتربية عسكرية",10,1,1,1,1,1,1,1,1,1,1]
["",null,"اختر الديانة",null,null,"اختر البيان",null,"","","","","","","","","",null,null,"","",null,null,null,null,0,null,null,null,null,0,null,null,null,null,0,null,null,null,null,0,null,null,null,null,0,null,null,null,null,0,null,null,null,null,0,0,null,null,null,null,"لم يجتاز",null,null,null,null,"لم يجتاز",null,null,null,null,"لم يجتاز",null,null,null,null,"لم يجتاز",null,null,null,null,"لم يجتاز",null,null,null,null,0,null,null,null,null,0,null,null,0,"راسب وله حق الإعادة","راسب وله حق الإعادة","",null,null,null,null,2,"",null,1,1,1,1,1,1,1,1,1,1,1,1,1,1,1,null,null,null,15,0,0,0,1,0," لغة عربية","لغة إنجليزية ","رياضيات ","فيزياء ","كيمياء","الدراسات الاجتماعية ","الحاسب الالي","تربية وطنية","تربية دينية","تربية عسكرية",null,null,0,0,0,0,0,"لم يجتاز","لم يجتاز","لم يجتاز","لم يجتاز","لم يجتاز","السلامة والصحة المهنية","اساسيات الحاسب","الدوائر الرقمية والمنطقية","تجميع أجهزة الحاسب الالي","الرسم الفني",null,null,"لغة عربية","لغة انجليزية","رياضيات","فيزياء","كيمياء","الدراسات الاجتماعية"," الحاسب الالي","تربية وطنية"," تربية دينية","تربية عسكرية",null,"","لغة عربية لغة انجليزية رياضيات فيزياء كيمياء الدراسات الاجتماعية  الحاسب الالي تربية وطنية تربية دينيةتربية عسكرية",10,1,1,1,1,1,1,1,1,1,1]
["",null,"اختر الديانة",null,null,"اختر البيان",null,"","","","","","","","","",null,null,"","",null,null,null,null,0,null,null,null,null,0,null,null,null,null,0,null,null,null,null,0,null,null,null,null,0,null,null,null,null,0,null,null,null,null,0,0,null,null,null,null,"لم يجتاز",null,null,null,null,"لم يجتاز",null,null,null,null,"لم يجتاز",null,null,null,null,"لم يجتاز",null,null,null,null,"لم يجتاز",null,null,null,null,0,null,null,null,null,0,null,null,0,"راسب وله حق الإعادة","راسب وله حق الإعادة","",null,null,null,null,2,"",null,1,1,1,1,1,1,1,1,1,1,1,1,1,1,1,null,null,null,15,0,0,0,1,0," لغة عربية","لغة إنجليزية ","رياضيات ","فيزياء ","كيمياء","الدراسات الاجتماعية ","الحاسب الالي","تربية وطنية","تربية دينية","تربية عسكرية",null,null,0,0,0,0,0,"لم يجتاز","لم يجتاز","لم يجتاز","لم يجتاز","لم يجتاز","السلامة والصحة المهنية","اساسيات الحاسب","الدوائر الرقمية والمنطقية","تجميع أجهزة الحاسب الالي","الرسم الفني",null,null,"لغة عربية","لغة انجليزية","رياضيات","فيزياء","كيمياء","الدراسات الاجتماعية"," الحاسب الالي","تربية وطنية"," تربية دينية","تربية عسكرية",null,"","لغة عربية لغة انجليزية رياضيات فيزياء كيمياء الدراسات الاجتماعية  الحاسب الالي تربية وطنية تربية دينيةتربية عسكرية",10,1,1,1,1,1,1,1,1,1,1]
["",null,"اختر الديانة",null,null,"اختر البيان",null,"","","","","","","","","",null,null,"","",null,null,null,null,0,null,null,null,null,0,null,null,null,null,0,null,null,null,null,0,null,null,null,null,0,null,null,null,null,0,null,null,null,null,0,0,null,null,null,null,"لم يجتاز",null,null,null,null,"لم يجتاز",null,null,null,null,"لم يجتاز",null,null,null,null,"لم يجتاز",null,null,null,null,"لم يجتاز",null,null,null,null,0,null,null,null,null,0,null,null,0,"راسب وله حق الإعادة","راسب وله حق الإعادة","",null,null,null,null,2,"",null,1,1,1,1,1,1,1,1,1,1,1,1,1,1,1,null,null,null,15,0,0,0,1,0," لغة عربية","لغة إنجليزية ","رياضيات ","فيزياء ","كيمياء","الدراسات الاجتماعية ","الحاسب الالي","تربية وطنية","تربية دينية","تربية عسكرية",null,null,0,0,0,0,0,"لم يجتاز","لم يجتاز","لم يجتاز","لم يجتاز","لم يجتاز","السلامة والصحة المهنية","اساسيات الحاسب","الدوائر الرقمية والمنطقية","تجميع أجهزة الحاسب الالي","الرسم الفني",null,null,"لغة عربية","لغة انجليزية","رياضيات","فيزياء","كيمياء","الدراسات الاجتماعية"," الحاسب الالي","تربية وطنية"," تربية دينية","تربية عسكرية",null,"","لغة عربية لغة انجليزية رياضيات فيزياء كيمياء الدراسات الاجتماعية  الحاسب الالي تربية وطنية تربية دينيةتربية عسكرية",10,1,1,1,1,1,1,1,1,1,1]
["",null,"اختر الديانة",null,null,"اختر البيان",null,"","","","","","","","","",null,null,"","",null,null,null,null,0,null,null,null,null,0,null,null,null,null,0,null,null,null,null,0,null,null,null,null,0,null,null,null,null,0,null,null,null,null,0,0,null,null,null,null,"لم يجتاز",null,null,null,null,"لم يجتاز",null,null,null,null,"لم يجتاز",null,null,null,null,"لم يجتاز",null,null,null,null,"لم يجتاز",null,null,null,null,0,null,null,null,null,0,null,null,0,"راسب وله حق الإعادة","راسب وله حق الإعادة","",null,null,null,null,2,"",null,1,1,1,1,1,1,1,1,1,1,1,1,1,1,1,null,null,null,15,0,0,0,1,0," لغة عربية","لغة إنجليزية ","رياضيات ","فيزياء ","كيمياء","الدراسات الاجتماعية ","الحاسب الالي","تربية وطنية","تربية دينية","تربية عسكرية",null,null,0,0,0,0,0,"لم يجتاز","لم يجتاز","لم يجتاز","لم يجتاز","لم يجتاز","السلامة والصحة المهنية","اساسيات الحاسب","الدوائر الرقمية والمنطقية","تجميع أجهزة الحاسب الالي","الرسم الفني",null,null,"لغة عربية","لغة انجليزية","رياضيات","فيزياء","كيمياء","الدراسات الاجتماعية"," الحاسب الالي","تربية وطنية"," تربية دينية","تربية عسكرية",null,"","لغة عربية لغة انجليزية رياضيات فيزياء كيمياء الدراسات الاجتماعية  الحاسب الالي تربية وطنية تربية دينيةتربية عسكرية",10,1,1,1,1,1,1,1,1,1,1]
["",null,"اختر الديانة",null,null,"اختر البيان",null,"","","","","","","","","",null,null,"","",null,null,null,null,0,null,null,null,null,0,null,null,null,null,0,null,null,null,null,0,null,null,null,null,0,null,null,null,null,0,null,null,null,null,0,0,null,null,null,null,"لم يجتاز",null,null,null,null,"لم يجتاز",null,null,null,null,"لم يجتاز",null,null,null,null,"لم يجتاز",null,null,null,null,"لم يجتاز",null,null,null,null,0,null,null,null,null,0,null,null,0,"راسب وله حق الإعادة","راسب وله حق الإعادة","",null,null,null,null,2,"",null,1,1,1,1,1,1,1,1,1,1,1,1,1,1,1,null,null,null,15,0,0,0,1,0," لغة عربية","لغة إنجليزية ","رياضيات ","فيزياء ","كيمياء","الدراسات الاجتماعية ","الحاسب الالي","تربية وطنية","تربية دينية","تربية عسكرية",null,null,0,0,0,0,0,"لم يجتاز","لم يجتاز","لم يجتاز","لم يجتاز","لم يجتاز","السلامة والصحة المهنية","اساسيات الحاسب","الدوائر الرقمية والمنطقية","تجميع أجهزة الحاسب الالي","الرسم الفني",null,null,"لغة عربية","لغة انجليزية","رياضيات","فيزياء","كيمياء","الدراسات الاجتماعية"," الحاسب الالي","تربية وطنية"," تربية دينية","تربية عسكرية",null,"","لغة عربية لغة انجليزية رياضيات فيزياء كيمياء الدراسات الاجتماعية  الحاسب الالي تربية وطنية تربية دينيةتربية عسكرية",10,1,1,1,1,1,1,1,1,1,1]
["",null,"اختر الديانة",null,null,"اختر البيان",null,"","","","","","","","","",null,null,"","",null,null,null,null,0,null,null,null,null,0,null,null,null,null,0,null,null,null,null,0,null,null,null,null,0,null,null,null,null,0,null,null,null,null,0,0,null,null,null,null,"لم يجتاز",null,null,null,null,"لم يجتاز",null,null,null,null,"لم يجتاز",null,null,null,null,"لم يجتاز",null,null,null,null,"لم يجتاز",null,null,null,null,0,null,null,null,null,0,null,null,0,"راسب وله حق الإعادة","راسب وله حق الإعادة","",null,null,null,null,2,"",null,1,1,1,1,1,1,1,1,1,1,1,1,1,1,1,null,null,null,15,0,0,0,1,0," لغة عربية","لغة إنجليزية ","رياضيات ","فيزياء ","كيمياء","الدراسات الاجتماعية ","الحاسب الالي","تربية وطنية","تربية دينية","تربية عسكرية",null,null,0,0,0,0,0,"لم يجتاز","لم يجتاز","لم يجتاز","لم يجتاز","لم يجتاز","السلامة والصحة المهنية","اساسيات الحاسب","الدوائر الرقمية والمنطقية","تجميع أجهزة الحاسب الالي","الرسم الفني",null,null,"لغة عربية","لغة انجليزية","رياضيات","فيزياء","كيمياء","الدراسات الاجتماعية"," الحاسب الالي","تربية وطنية"," تربية دينية","تربية عسكرية",null,"","لغة عربية لغة انجليزية رياضيات فيزياء كيمياء الدراسات الاجتماعية  الحاسب الالي تربية وطنية تربية دينيةتربية عسكرية",10,1,1,1,1,1,1,1,1,1,1]
["",null,"اختر الديانة",null,null,"اختر البيان",null,"","","","","","","","","",null,null,"","",null,null,null,null,0,null,null,null,null,0,null,null,null,null,0,null,null,null,null,0,null,null,null,null,0,null,null,null,null,0,null,null,null,null,0,0,null,null,null,null,"لم يجتاز",null,null,null,null,"لم يجتاز",null,null,null,null,"لم يجتاز",null,null,null,null,"لم يجتاز",null,null,null,null,"لم يجتاز",null,null,null,null,0,null,null,null,null,0,null,null,0,"راسب وله حق الإعادة","راسب وله حق الإعادة","",null,null,null,null,2,"",null,1,1,1,1,1,1,1,1,1,1,1,1,1,1,1,null,null,null,15,0,0,0,1,0," لغة عربية","لغة إنجليزية ","رياضيات ","فيزياء ","كيمياء","الدراسات الاجتماعية ","الحاسب الالي","تربية وطنية","تربية دينية","تربية عسكرية",null,null,0,0,0,0,0,"لم يجتاز","لم يجتاز","لم يجتاز","لم يجتاز","لم يجتاز","السلامة والصحة المهنية","اساسيات الحاسب","الدوائر الرقمية والمنطقية","تجميع أجهزة الحاسب الالي","الرسم الفني",null,null,"لغة عربية","لغة انجليزية","رياضيات","فيزياء","كيمياء","الدراسات الاجتماعية"," الحاسب الالي","تربية وطنية"," تربية دينية","تربية عسكرية",null,"","لغة عربية لغة انجليزية رياضيات فيزياء كيمياء الدراسات الاجتماعية  الحاسب الالي تربية وطنية تربية دينيةتربية عسكرية",10,1,1,1,1,1,1,1,1,1,1]
["",null,"اختر الديانة",null,null,"اختر البيان",null,"","","","","","","","","",null,null,"","",null,null,null,null,0,null,null,null,null,0,null,null,null,null,0,null,null,null,null,0,null,null,null,null,0,null,null,null,null,0,null,null,null,null,0,0,null,null,null,null,"لم يجتاز",null,null,null,null,"لم يجتاز",null,null,null,null,"لم يجتاز",null,null,null,null,"لم يجتاز",null,null,null,null,"لم يجتاز",null,null,null,null,0,null,null,null,null,0,null,null,0,"راسب وله حق الإعادة","راسب وله حق الإعادة","",null,null,null,null,2,"",null,1,1,1,1,1,1,1,1,1,1,1,1,1,1,1,null,null,null,15,0,0,0,1,0," لغة عربية","لغة إنجليزية ","رياضيات ","فيزياء ","كيمياء","الدراسات الاجتماعية ","الحاسب الالي","تربية وطنية","تربية دينية","تربية عسكرية",null,null,0,0,0,0,0,"لم يجتاز","لم يجتاز","لم يجتاز","لم يجتاز","لم يجتاز","السلامة والصحة المهنية","اساسيات الحاسب","الدوائر الرقمية والمنطقية","تجميع أجهزة الحاسب الالي","الرسم الفني",null,null,"لغة عربية","لغة انجليزية","رياضيات","فيزياء","كيمياء","الدراسات الاجتماعية"," الحاسب الالي","تربية وطنية"," تربية دينية","تربية عسكرية",null,"","لغة عربية لغة انجليزية رياضيات فيزياء كيمياء الدراسات الاجتماعية  الحاسب الالي تربية وطنية تربية دينيةتربية عسكرية",10,1,1,1,1,1,1,1,1,1,1]
["",null,"اختر الديانة",null,null,"اختر البيان",null,"","","","","","","","","",null,null,"","",null,null,null,null,0,null,null,null,null,0,null,null,null,null,0,null,null,null,null,0,null,null,null,null,0,null,null,null,null,0,null,null,null,null,0,0,null,null,null,null,"لم يجتاز",null,null,null,null,"لم يجتاز",null,null,null,null,"لم يجتاز",null,null,null,null,"لم يجتاز",null,null,null,null,"لم يجتاز",null,null,null,null,0,null,null,null,null,0,null,null,0,"راسب وله حق الإعادة","راسب وله حق الإعادة",{"$f":"IF(CR75=\"راسب وله حق الاعادة\",\"\",IF(CR75=\"راسب وليس له حق الاعادة\",\"\",CONCATENATE(DY75,\" \",DZ75,\" \",EA75,\" \",EB75,\" \",EC75,\" \",ED75,\" \",EE75,\" \",EF75,\" \",EG75,\" \",EH75,\" \",EU75,\" \",EV75,\" \",EW75,\" \",EX75,\" \",EY75)))","v":""},null,null,null,null,2,"",null,{"$f":"IF(OR(X75<$X$9,Y75<$Y$9,X75=\"غ\"),1,0)","v":1},{"$f":"IF(OR(AC75<$AC$9,AD75<$AD$9,AC75=\"غ\"),1,0)","v":1},{"$f":"IF(OR(AH75<$AH$9,AI75<$AI$9,AH75=\"غ\"),1,0)","v":1},{"$f":"IF(OR(AM75<$AM$9,AN75<$AN$9,AM75=\"غ\"),1,0)","v":1},{"$f":"IF(OR(AR75<$AR$9,AS75<$AS$9,AR75=\"غ\"),1,0)","v":1},{"$f":"IF(OR(AW75<$AW$9,AX75<$AX$9,AW75=\"غ\"),1,0)","v":1},{"$f":"IF(OR(BB75<$BB$9,BC75<$BC$9,BB75=\"غ\"),1,0)","v":1},{"$f":"IF(OR(CH75<$CH$9,CG75<$CG$9,CG75=\"غ\"),1,0)","v":1},{"$f":"IF(OR(CM75<$CM$9,CL75<$CL$9,CL75=\"غ\"),1,0)","v":1},1,1,1,1,1,1,null,null,null,15,0,0,0,1,{"$f":"IF(CY75=\"راسب وليس له حق الإعادة\",1,0)","v":0}," لغة عربية","لغة إنجليزية ","رياضيات ","فيزياء ","كيمياء","الدراسات الاجتماعية ","الحاسب الالي","تربية وطنية","تربية دينية","تربية عسكرية",null,null,{"$f":"COUNTIF(BE75:BH75,\"اجتاز\")","v":0},{"$f":"COUNTIF(BJ75:BM75,\"اجتاز\")","v":0},{"$f":"COUNTIF(BO75:BR75,\"اجتاز\")","v":0},{"$f":"COUNTIF(BT75:BW75,\"اجتاز\")","v":0},{"$f":"COUNTIF(BY75:CB75,\"اجتاز\")","v":0},{"$f":"IF(EK75>0,\"اجتاز\",\"لم يجتاز\")","v":"لم يجتاز"},"لم يجتاز","لم يجتاز","لم يجتاز","لم يجتاز","السلامة والصحة المهنية","اساسيات الحاسب","الدوائر الرقمية والمنطقية","تجميع أجهزة الحاسب الالي","الرسم الفني",null,null,{"$f":"IF(X75<$X$9,\"لغة عربية\",\"\")","v":"لغة عربية"},{"$f":"IF(AC75<$AC$9,\"لغة انجليزية\",\"\")","v":"لغة انجليزية"},{"$f":"IF(AH75<$AH$9,\"رياضيات\",\"\")","v":"رياضيات"},{"$f":"IF(AM75<$AM$9,\"فيزياء\",\"\")","v":"فيزياء"},{"$f":"IF(AR75<$AR$9,\"كيمياء\",\"\")","v":"كيمياء"},{"$f":"IF(AW75<$AW$9,\"الدراسات الاجتماعية\",\"\")","v":"الدراسات الاجتماعية"},{"$f":"IF(BB75<$BB$9,\" الحاسب الالي\",\"\")","v":" الحاسب الالي"},{"$f":"IF(CG75<$CG$9,\"تربية وطنية\",\"\")","v":"تربية وطنية"},{"$f":"IF(CL75<$CL$9,\" تربية دينية\",\"\")","v":" تربية دينية"},{"$f":"IF(CO75<$CO$9,\"تربية عسكرية\",\"\")","v":"تربية عسكرية"},null,"","لغة عربية لغة انجليزية رياضيات فيزياء كيمياء الدراسات الاجتماعية  الحاسب الالي تربية وطنية تربية دينيةتربية عسكرية",10,1,1,1,1,1,1,1,1,1,1]
["",null,"اختر الديانة",null,null,"اختر البيان",null,{"$f":"IF(G76=\"\",\"\",DATE(IF(LEFT(G76,1)*1=3,20,19)&MID(G76,2,2),MID(G76,4,2),MID(G76,6,2)))","v":""},{"$f":"IF(G76=\"\",\"\",(DAY(H76)))","v":""},{"$f":"IF(G76=\"\",\"\",(MONTH(H76)))","v":""},{"$f":"IF(G76=\"\",\"\",(YEAR(H76)))","v":""},{"$f":"IF(H76<>\"\",IF(DAY(H76)>DAY($L$7),(DAY($L$7)+30)-DAY(H76),DAY($L$7)-DAY(E69)),\"\")","v":""},{"$f":"IF(H76 =\"\",\"\",DATEDIF(H76,$L$7,\"ym\"))","v":""},{"$f":"IF(H76 =\"\",\"\",DATEDIF(H76,$L$7,\"y\"))","v":""},{"$f":"IF(F76=\"باق\",1,\"\")","v":""},{"$f":"IF(F76=\"مفصول ويفصل\",2,IF(F76=\"باق\",2,IF(F76=\"سحب ملف\",2,IF(F76=\"\",2,\"\"))))","v":""},null,null,"","",null,null,null,null,{"$f":"SUM(U76:X76)","v":0},null,null,null,null,{"$f":"SUM(Z76:AC76)","v":0},null,null,null,null,{"$f":"SUM(AE76:AH76)","v":0},null,null,null,null,{"$f":"SUM(AJ76:AM76)","v":0},null,null,null,null,{"$f":"SUM(AO76:AR76)","v":0},null,null,null,null,{"$f":"SUM(AT76:AW76)","v":0},null,null,null,null,{"$f":"SUM(AY76:BB76)","v":0},{"$f":"SUM(BC76,AX76,AS76,AN76,AI76,AD76,Y76)","v":0},null,null,null,null,{"$f":"EP76","v":"لم يجتاز"},null,null,null,null,{"$f":"EQ76","v":"لم يجتاز"},null,null,null,null,{"$f":"ER76","v":"لم يجتاز"},null,null,null,null,{"$f":"ES76","v":"لم يجتاز"},null,null,null,null,{"$f":"ET76","v":"لم يجتاز"},null,null,null,null,{"$f":"SUM(CD76:CG76)","v":0},null,null,null,null,{"$f":"SUM(CI76:CL76)","v":0},null,null,0,{"$f":"IF(DS76=0,$DT$10,IF(DS76=1,$DU$10,IF(DS76=2,$DV$10,$DW$10)))","v":"راسب وله حق الإعادة"},{"$f":"IF(CY76=\"\",CQ76,CY76)","v":"راسب وله حق الإعادة"},"",null,null,null,null,{"$f":"IF(CQ76=$DT$10,0,IF(CQ76=$DU$10,1,IF(CQ76=$DV$10,3,IF(CQ76=$DW$10,2,$DX$10))))","v":2},{"$f":"IF(P76=CX76,$DX$10,\"\")","v":""},null,1,1,1,1,1,1,1,1,1,{"$f":"IF(OR(CP76<$CP$9,CO76=\"غ\"),1,0)","v":1},1,1,1,1,1,null,null,null,{"$f":"SUM(DA76:DO76)","v":15},{"$f":"IF(DS76=0,1,0)","v":0},{"$f":"IF(DS76=1,1,0)","v":0},{"$f":"IF(DS76=2,1,0)","v":0},{"$f":"IF(DS76>2,1,0)","v":1},0,{"$f":"IF(X76=\"غ\",\"العربي _ للغياب\",IF(DA76=0,\"\",\" لغة عربية\"))","v":" لغة عربية"},{"$f":"IF(AC76=\"غ\",\"الإنجليزي _ للغياب\",IF(DB76=0,\"\",\"لغة إنجليزية \"))","v":"لغة إنجليزية "},{"$f":"IF(AH76=\"غ\",\"الرياضيات _ للغياب\",IF(DC76=0,\"\",\"رياضيات \"))","v":"رياضيات "},{"$f":"IF(AM76=\"غ\",\"الفيزياء _ للغياب\",IF(DD76=0,\"\",\"فيزياء \"))","v":"فيزياء "},{"$f":"IF(AR76=\"غ\",\"الكيمياء _ للغياب\",IF(DE76=0,\"\",\"كيمياء\"))","v":"كيمياء"},{"$f":"IF(AW76=\"غ\",\"الدراسات _ للغياب\",IF(DF76=0,\"\",\"الدراسات الاجتماعية \"))","v":"الدراسات الاجتماعية "},{"$f":"IF(BB76=\"غ\",\"الحاسب_ للغياب\",IF(DG76=0,\"\",\"الحاسب الالي\"))","v":"الحاسب الالي"},{"$f":"IF(CG76=\"غ\",\"الوطنية _ للغياب\",IF(DH76=0,\"\",\"تربية وطنية\"))","v":"تربية وطنية"},{"$f":"IF(CL76=\"غ\",\"الدين _ للغياب\",IF(DI76=0,\"\",\"تربية دينية\"))","v":"تربية دينية"},{"$f":"IF(CO76=\"غ\",\"العسكرية _ للغياب\",IF(DJ76=0,\"\",\"تربية عسكرية\"))","v":"تربية عسكرية"},null,null,0,0,0,0,0,"لم يجتاز","لم يجتاز","لم يجتاز","لم يجتاز","لم يجتاز",{"$f":"IF(EP76=\"لم يجتاز\",$EU$7,\"\")","v":"السلامة والصحة المهنية"},{"$f":"IF(EQ76=\"لم يجتاز\",$EV$7,\"\")","v":"اساسيات الحاسب"},{"$f":"IF(ER76=\"لم يجتاز\",$EW$7,\"\")","v":"الدوائر الرقمية والمنطقية"},{"$f":"IF(ES76=\"لم يجتاز\",$EX$7,\"\")","v":"تجميع أجهزة الحاسب الالي"},{"$f":"IF(ET76=\"لم يجتاز\",$EY$7,\"\")","v":"الرسم الفني"},null,null,"لغة عربية","لغة انجليزية","رياضيات","فيزياء","كيمياء","الدراسات الاجتماعية"," الحاسب الالي","تربية وطنية"," تربية دينية","تربية عسكرية",null,{"$f":"IF(FO76<3,FN76,\"\")","v":""},{"$f":"CONCATENATE(FB76,\" \",FC76,\" \",FD76,\" \",FE76,\" \",FF76,\" \",FG76,\" \",FH76,\" \",FI76,\"\",FJ76,\"\",FK76)","v":"لغة عربية لغة انجليزية رياضيات فيزياء كيمياء الدراسات الاجتماعية  الحاسب الالي تربية وطنية تربية دينيةتربية عسكرية"},{"$f":"SUM(FP76:FY76)","v":10},{"$f":"IF(FB76=\"لغة عربية\",1,0)","v":1},{"$f":"IF(FC76=\"لغة انجليزية\",1,0)","v":1},{"$f":"IF(FD76=\"رياضيات\",1,0)","v":1},{"$f":"IF(FE76=\"فيزياء\",1,0)","v":1},{"$f":"IF(FF76=\"كيمياء\",1,0)","v":1},{"$f":"IF(FG76=\"الدراسات الاجتماعية\",1,0)","v":1},{"$f":"IF(FH76=\" الحاسب الالي\",1,0)","v":1},{"$f":"IF(FI76=\"تربية وطنية\",1,0)","v":1},{"$f":"IF(FJ76=\" تربية دينية\",1,0)","v":1},{"$f":"IF(FK76=\"تربية عسكرية\",1,0)","v":1}]
[{"$f":"IF(B77=\"\",\"\",A76+1)","v":""},null,"اختر الديانة",null,null,"اختر البيان",null,"","","","","","","","","",null,null,"",{"$f":"IF(T76=\"\",\"\",$T76+1)","v":""},null,null,null,null,0,null,null,null,null,0,null,null,null,null,0,null,null,null,null,0,null,null,null,null,0,null,null,null,null,0,null,null,null,null,0,0,null,null,null,null,"لم يجتاز",null,null,null,null,"لم يجتاز",null,null,null,null,"لم يجتاز",null,null,null,null,"لم يجتاز",null,null,null,null,"لم يجتاز",null,null,null,null,0,null,null,null,null,0,null,null,0,"راسب وله حق الإعادة","راسب وله حق الإعادة","",null,null,null,null,2,"",null,1,1,1,1,1,1,1,1,1,1,1,1,1,1,1,null,null,null,15,0,0,0,1,0," لغة عربية","لغة إنجليزية ","رياضيات ","فيزياء ","كيمياء","الدراسات الاجتماعية ","الحاسب الالي","تربية وطنية","تربية دينية","تربية عسكرية",null,null,0,0,0,0,0,"لم يجتاز","لم يجتاز","لم يجتاز","لم يجتاز","لم يجتاز","السلامة والصحة المهنية","اساسيات الحاسب","الدوائر الرقمية والمنطقية","تجميع أجهزة الحاسب الالي","الرسم الفني",null,null,"لغة عربية","لغة انجليزية","رياضيات","فيزياء","كيمياء","الدراسات الاجتماعية"," الحاسب الالي","تربية وطنية"," تربية دينية","تربية عسكرية",null,"","لغة عربية لغة انجليزية رياضيات فيزياء كيمياء الدراسات الاجتماعية  الحاسب الالي تربية وطنية تربية دينيةتربية عسكرية",10,1,1,1,1,1,1,1,1,1,1]
["",null,"اختر الديانة",null,null,"اختر البيان",null,"","","","","","","","","",null,null,"","",null,null,null,null,0,null,null,null,null,0,null,null,null,null,0,null,null,null,null,0,null,null,null,null,0,null,null,null,null,0,null,null,null,null,0,0,null,null,null,null,"لم يجتاز",null,null,null,null,"لم يجتاز",null,null,null,null,"لم يجتاز",null,null,null,null,"لم يجتاز",null,null,null,null,"لم يجتاز",null,null,null,null,0,null,null,null,null,0,null,null,0,"راسب وله حق الإعادة","راسب وله حق الإعادة","",null,null,null,null,2,"",null,1,1,1,1,1,1,1,1,1,1,1,1,1,1,1,null,null,null,15,0,0,0,1,0," لغة عربية","لغة إنجليزية ","رياضيات ","فيزياء ","كيمياء","الدراسات الاجتماعية ","الحاسب الالي","تربية وطنية","تربية دينية","تربية عسكرية",null,null,0,0,0,0,0,"لم يجتاز","لم يجتاز","لم يجتاز","لم يجتاز","لم يجتاز","السلامة والصحة المهنية","اساسيات الحاسب","الدوائر الرقمية والمنطقية","تجميع أجهزة الحاسب الالي","الرسم الفني",null,null,"لغة عربية","لغة انجليزية","رياضيات","فيزياء","كيمياء","الدراسات الاجتماعية"," الحاسب الالي","تربية وطنية"," تربية دينية","تربية عسكرية",null,"","لغة عربية لغة انجليزية رياضيات فيزياء كيمياء الدراسات الاجتماعية  الحاسب الالي تربية وطنية تربية دينيةتربية عسكرية",10,1,1,1,1,1,1,1,1,1,1]
["",null,"اختر الديانة",null,null,"اختر البيان",null,"","","","","","","","","",null,null,"","",null,null,null,null,0,null,null,null,null,0,null,null,null,null,0,null,null,null,null,0,null,null,null,null,0,null,null,null,null,0,null,null,null,null,0,0,null,null,null,null,"لم يجتاز",null,null,null,null,"لم يجتاز",null,null,null,null,"لم يجتاز",null,null,null,null,"لم يجتاز",null,null,null,null,"لم يجتاز",null,null,null,null,0,null,null,null,null,0,null,null,0,"راسب وله حق الإعادة","راسب وله حق الإعادة","",null,null,null,null,2,"",null,1,1,1,1,1,1,1,1,1,1,1,1,1,1,1,null,null,null,15,0,0,0,1,0," لغة عربية","لغة إنجليزية ","رياضيات ","فيزياء ","كيمياء","الدراسات الاجتماعية ","الحاسب الالي","تربية وطنية","تربية دينية","تربية عسكرية",null,null,0,0,0,0,0,"لم يجتاز","لم يجتاز","لم يجتاز","لم يجتاز","لم يجتاز","السلامة والصحة المهنية","اساسيات الحاسب","الدوائر الرقمية والمنطقية","تجميع أجهزة الحاسب الالي","الرسم الفني",null,null,"لغة عربية","لغة انجليزية","رياضيات","فيزياء","كيمياء","الدراسات الاجتماعية"," الحاسب الالي","تربية وطنية"," تربية دينية","تربية عسكرية",null,"","لغة عربية لغة انجليزية رياضيات فيزياء كيمياء الدراسات الاجتماعية  الحاسب الالي تربية وطنية تربية دينيةتربية عسكرية",10,1,1,1,1,1,1,1,1,1,1]
["",null,"اختر الديانة",null,null,"اختر البيان",null,"","","","","","","","","",null,null,"","",null,null,null,null,0,null,null,null,null,0,null,null,null,null,0,null,null,null,null,0,null,null,null,null,0,null,null,null,null,0,null,null,null,null,0,0,null,null,null,null,"لم يجتاز",null,null,null,null,"لم يجتاز",null,null,null,null,"لم يجتاز",null,null,null,null,"لم يجتاز",null,null,null,null,"لم يجتاز",null,null,null,null,0,null,null,null,null,0,null,null,{"$f":"SUM(CN80:CO80)","v":0},"راسب وله حق الإعادة","راسب وله حق الإعادة","",null,null,null,null,2,"",null,1,1,1,1,1,1,1,1,1,1,1,1,1,1,1,null,null,null,15,0,0,0,1,0," لغة عربية","لغة إنجليزية ","رياضيات ","فيزياء ","كيمياء","الدراسات الاجتماعية ","الحاسب الالي","تربية وطنية","تربية دينية","تربية عسكرية",null,null,0,0,0,0,0,"لم يجتاز","لم يجتاز","لم يجتاز","لم يجتاز","لم يجتاز","السلامة والصحة المهنية","اساسيات الحاسب","الدوائر الرقمية والمنطقية","تجميع أجهزة الحاسب الالي","الرسم الفني",null,null,"لغة عربية","لغة انجليزية","رياضيات","فيزياء","كيمياء","الدراسات الاجتماعية"," الحاسب الالي","تربية وطنية"," تربية دينية","تربية عسكرية",null,"","لغة عربية لغة انجليزية رياضيات فيزياء كيمياء الدراسات الاجتماعية  الحاسب الالي تربية وطنية تربية دينيةتربية عسكرية",10,1,1,1,1,1,1,1,1,1,1]
["",null,"اختر الديانة",null,null,"اختر البيان",null,"","","","","","","","","",null,null,"","",null,null,null,null,0,null,null,null,null,0,null,null,null,null,0,null,null,null,null,0,null,null,null,null,0,null,null,null,null,0,null,null,null,null,0,0,null,null,null,null,"لم يجتاز",null,null,null,null,"لم يجتاز",null,null,null,null,"لم يجتاز",null,null,null,null,"لم يجتاز",null,null,null,null,"لم يجتاز",null,null,null,null,0,null,null,null,null,0,null,null,0,"راسب وله حق الإعادة","راسب وله حق الإعادة","",null,null,null,null,2,"",null,1,1,1,1,1,1,1,1,1,1,1,1,1,1,1,null,null,null,15,0,0,0,1,0," لغة عربية","لغة إنجليزية ","رياضيات ","فيزياء ","كيمياء","الدراسات الاجتماعية ","الحاسب الالي","تربية وطنية","تربية دينية","تربية عسكرية",null,null,0,0,0,0,0,"لم يجتاز","لم يجتاز","لم يجتاز","لم يجتاز","لم يجتاز","السلامة والصحة المهنية","اساسيات الحاسب","الدوائر الرقمية والمنطقية","تجميع أجهزة الحاسب الالي","الرسم الفني",null,null,"لغة عربية","لغة انجليزية","رياضيات","فيزياء","كيمياء","الدراسات الاجتماعية"," الحاسب الالي","تربية وطنية"," تربية دينية","تربية عسكرية",null,"","لغة عربية لغة انجليزية رياضيات فيزياء كيمياء الدراسات الاجتماعية  الحاسب الالي تربية وطنية تربية دينيةتربية عسكرية",10,1,1,1,1,1,1,1,1,1,1]
["",null,"اختر الديانة",null,null,"اختر البيان",null,"","","","","","","","","",null,null,"","",null,null,null,null,0,null,null,null,null,0,null,null,null,null,0,null,null,null,null,0,null,null,null,null,0,null,null,null,null,0,null,null,null,null,0,0,null,null,null,null,"لم يجتاز",null,null,null,null,"لم يجتاز",null,null,null,null,"لم يجتاز",null,null,null,null,"لم يجتاز",null,null,null,null,"لم يجتاز",null,null,null,null,0,null,null,null,null,0,null,null,0,"راسب وله حق الإعادة","راسب وله حق الإعادة","",null,null,null,null,2,"",null,1,1,1,1,1,1,1,1,1,1,1,1,1,1,1,null,null,null,15,0,0,0,1,0," لغة عربية","لغة إنجليزية ","رياضيات ","فيزياء ","كيمياء","الدراسات الاجتماعية ","الحاسب الالي","تربية وطنية","تربية دينية","تربية عسكرية",null,null,0,0,0,0,0,"لم يجتاز","لم يجتاز","لم يجتاز","لم يجتاز","لم يجتاز","السلامة والصحة المهنية","اساسيات الحاسب","الدوائر الرقمية والمنطقية","تجميع أجهزة الحاسب الالي","الرسم الفني",null,null,"لغة عربية","لغة انجليزية","رياضيات","فيزياء","كيمياء","الدراسات الاجتماعية"," الحاسب الالي","تربية وطنية"," تربية دينية","تربية عسكرية"]
["",null,"اختر الديانة",null,null,"اختر البيان",null,"","","","","","","","","",null,null,"","",null,null,null,null,0,null,null,null,null,0,null,null,null,null,0,null,null,null,null,0,null,null,null,null,0,null,null,null,null,0,null,null,null,null,0,0,null,null,null,null,"لم يجتاز",null,null,null,null,"لم يجتاز",null,null,null,null,"لم يجتاز",null,null,null,null,"لم يجتاز",null,null,null,null,"لم يجتاز",null,null,null,null,0,null,null,null,null,0,null,null,0,"راسب وله حق الإعادة","راسب وله حق الإعادة","",null,null,null,null,2,"",null,1,1,1,1,1,1,1,1,1,1,1,1,1,1,1,null,null,null,15,0,0,0,1,0," لغة عربية","لغة إنجليزية ","رياضيات ","فيزياء ","كيمياء","الدراسات الاجتماعية ","الحاسب الالي","تربية وطنية","تربية دينية","تربية عسكرية",null,null,0,0,0,0,0,"لم يجتاز","لم يجتاز","لم يجتاز","لم يجتاز","لم يجتاز","السلامة والصحة المهنية","اساسيات الحاسب","الدوائر الرقمية والمنطقية","تجميع أجهزة الحاسب الالي","الرسم الفني",null,null,"لغة عربية","لغة انجليزية","رياضيات","فيزياء","كيمياء","الدراسات الاجتماعية"," الحاسب الالي","تربية وطنية"," تربية دينية","تربية عسكرية"]
["",null,"اختر الديانة",null,null,"اختر البيان",null,"","","","","","","","","",null,null,"","",null,null,null,null,0,null,null,null,null,0,null,null,null,null,0,null,null,null,null,0,null,null,null,null,0,null,null,null,null,0,null,null,null,null,0,0,null,null,null,null,"لم يجتاز",null,null,null,null,"لم يجتاز",null,null,null,null,"لم يجتاز",null,null,null,null,"لم يجتاز",null,null,null,null,"لم يجتاز",null,null,null,null,0,null,null,null,null,0,null,null,0,"راسب وله حق الإعادة","راسب وله حق الإعادة","",null,null,null,null,2,"",null,1,1,1,1,1,1,1,1,1,1,1,1,1,1,1,null,null,null,15,0,0,0,1,0," لغة عربية","لغة إنجليزية ","رياضيات ","فيزياء ","كيمياء","الدراسات الاجتماعية ","الحاسب الالي","تربية وطنية","تربية دينية","تربية عسكرية",null,null,0,0,0,0,0,"لم يجتاز","لم يجتاز","لم يجتاز","لم يجتاز","لم يجتاز","السلامة والصحة المهنية","اساسيات الحاسب","الدوائر الرقمية والمنطقية","تجميع أجهزة الحاسب الالي","الرسم الفني",null,null,"لغة عربية","لغة انجليزية","رياضيات","فيزياء","كيمياء","الدراسات الاجتماعية"," الحاسب الالي","تربية وطنية"," تربية دينية","تربية عسكرية"]
["",null,"اختر الديانة",null,null,"اختر البيان",null,"","","","","","","","","",null,null,"","",null,null,null,null,0,null,null,null,null,0,null,null,null,null,0,null,null,null,null,0,null,null,null,null,0,null,null,null,null,0,null,null,null,null,0,0,null,null,null,null,"لم يجتاز",null,null,null,null,"لم يجتاز",null,null,null,null,"لم يجتاز",null,null,null,null,"لم يجتاز",null,null,null,null,"لم يجتاز",null,null,null,null,0,null,null,null,null,0,null,null,0,"راسب وله حق الإعادة","راسب وله حق الإعادة","",null,null,null,null,2,"",null,1,1,1,1,1,1,1,1,1,1,1,1,1,1,1,null,null,null,15,0,0,0,1,0," لغة عربية","لغة إنجليزية ","رياضيات ","فيزياء ","كيمياء","الدراسات الاجتماعية ","الحاسب الالي","تربية وطنية","تربية دينية","تربية عسكرية",null,null,0,0,0,0,0,"لم يجتاز","لم يجتاز","لم يجتاز","لم يجتاز","لم يجتاز","السلامة والصحة المهنية","اساسيات الحاسب","الدوائر الرقمية والمنطقية","تجميع أجهزة الحاسب الالي","الرسم الفني",null,null,"لغة عربية","لغة انجليزية","رياضيات","فيزياء","كيمياء","الدراسات الاجتماعية"," الحاسب الالي","تربية وطنية"," تربية دينية","تربية عسكرية"]
["",null,"اختر الديانة",null,null,"اختر البيان",null,"","","","","","","","","",null,null,"","",null,null,null,null,0,null,null,null,null,0,null,null,null,null,0,null,null,null,null,0,null,null,null,null,0,null,null,null,null,0,null,null,null,null,0,0,null,null,null,null,"لم يجتاز",null,null,null,null,"لم يجتاز",null,null,null,null,"لم يجتاز",null,null,null,null,"لم يجتاز",null,null,null,null,"لم يجتاز",null,null,null,null,0,null,null,null,null,0,null,null,0,"راسب وله حق الإعادة","راسب وله حق الإعادة","",null,null,null,null,2,"",null,1,1,1,1,1,1,1,1,1,1,1,1,1,1,1,null,null,null,15,0,0,0,1,0," لغة عربية","لغة إنجليزية ","رياضيات ","فيزياء ","كيمياء","الدراسات الاجتماعية ","الحاسب الالي","تربية وطنية","تربية دينية","تربية عسكرية",null,null,0,0,0,0,0,"لم يجتاز","لم يجتاز","لم يجتاز","لم يجتاز","لم يجتاز","السلامة والصحة المهنية","اساسيات الحاسب","الدوائر الرقمية والمنطقية","تجميع أجهزة الحاسب الالي","الرسم الفني",null,null,"لغة عربية","لغة انجليزية","رياضيات","فيزياء","كيمياء","الدراسات الاجتماعية"," الحاسب الالي","تربية وطنية"," تربية دينية","تربية عسكرية"]
["",null,"اختر الديانة",null,null,"اختر البيان",null,"","","","","","","","","",null,null,"","",null,null,null,null,0,null,null,null,null,0,null,null,null,null,0,null,null,null,null,0,null,null,null,null,0,null,null,null,null,0,null,null,null,null,0,0,null,null,null,null,"لم يجتاز",null,null,null,null,"لم يجتاز",null,null,null,null,"لم يجتاز",null,null,null,null,"لم يجتاز",null,null,null,null,"لم يجتاز",null,null,null,null,0,null,null,null,null,0,null,null,0,"راسب وله حق الإعادة","راسب وله حق الإعادة","",null,null,null,null,2,"",null,1,1,1,1,1,1,1,1,1,1,1,1,1,1,1,null,null,null,15,0,0,0,1,0," لغة عربية","لغة إنجليزية ","رياضيات ","فيزياء ","كيمياء","الدراسات الاجتماعية ","الحاسب الالي","تربية وطنية","تربية دينية","تربية عسكرية",null,null,0,0,0,0,0,"لم يجتاز","لم يجتاز","لم يجتاز","لم يجتاز","لم يجتاز","السلامة والصحة المهنية","اساسيات الحاسب","الدوائر الرقمية والمنطقية","تجميع أجهزة الحاسب الالي","الرسم الفني",null,null,"لغة عربية","لغة انجليزية","رياضيات","فيزياء","كيمياء","الدراسات الاجتماعية"," الحاسب الالي","تربية وطنية"," تربية دينية","تربية عسكرية"]
["",null,"اختر الديانة",null,null,"اختر البيان",null,"","","","","","","","","",null,null,"","",null,null,null,null,0,null,null,null,null,0,null,null,null,null,0,null,null,null,null,0,null,null,null,null,0,null,null,null,null,0,null,null,null,null,0,0,null,null,null,null,"لم يجتاز",null,null,null,null,"لم يجتاز",null,null,null,null,"لم يجتاز",null,null,null,null,"لم يجتاز",null,null,null,null,"لم يجتاز",null,null,null,null,0,null,null,null,null,0,null,null,0,"راسب وله حق الإعادة","راسب وله حق الإعادة","",null,null,null,null,2,"",null,1,1,1,1,1,1,1,1,1,1,1,1,1,1,1,null,null,null,15,0,0,0,1,0," لغة عربية","لغة إنجليزية ","رياضيات ","فيزياء ","كيمياء","الدراسات الاجتماعية ","الحاسب الالي","تربية وطنية","تربية دينية","تربية عسكرية",null,null,0,0,0,0,0,"لم يجتاز","لم يجتاز","لم يجتاز","لم يجتاز","لم يجتاز","السلامة والصحة المهنية","اساسيات الحاسب","الدوائر الرقمية والمنطقية","تجميع أجهزة الحاسب الالي","الرسم الفني",null,null,"لغة عربية","لغة انجليزية","رياضيات","فيزياء","كيمياء","الدراسات الاجتماعية"," الحاسب الالي","تربية وطنية"," تربية دينية","تربية عسكرية"]
["",null,"اختر الديانة",null,null,"اختر البيان",null,"","","","","","","","","",null,null,"","",null,null,null,null,0,null,null,null,null,0,null,null,null,null,0,null,null,null,null,0,null,null,null,null,0,null,null,null,null,0,null,null,null,null,0,0,null,null,null,null,"لم يجتاز",null,null,null,null,"لم يجتاز",null,null,null,null,"لم يجتاز",null,null,null,null,"لم يجتاز",null,null,null,null,"لم يجتاز",null,null,null,null,0,null,null,null,null,0,null,null,0,"راسب وله حق الإعادة","راسب وله حق الإعادة","",null,null,null,null,2,"",null,1,1,1,1,1,1,1,1,1,1,1,1,1,1,1,null,null,null,15,0,0,0,1,0," لغة عربية","لغة إنجليزية ","رياضيات ","فيزياء ","كيمياء","الدراسات الاجتماعية ","الحاسب الالي","تربية وطنية","تربية دينية","تربية عسكرية",null,null,0,0,0,0,0,"لم يجتاز","لم يجتاز","لم يجتاز","لم يجتاز","لم يجتاز","السلامة والصحة المهنية","اساسيات الحاسب","الدوائر الرقمية والمنطقية","تجميع أجهزة الحاسب الالي","الرسم الفني",null,null,"لغة عربية","لغة انجليزية","رياضيات","فيزياء","كيمياء","الدراسات الاجتماعية"," الحاسب الالي","تربية وطنية"," تربية دينية","تربية عسكرية"]
["",null,"اختر الديانة",null,null,"اختر البيان",null,"","","","","","","","","",null,null,"","",null,null,null,null,0,null,null,null,null,0,null,null,null,null,0,null,null,null,null,0,null,null,null,null,0,null,null,null,null,0,null,null,null,null,0,0,null,null,null,null,"لم يجتاز",null,null,null,null,"لم يجتاز",null,null,null,null,"لم يجتاز",null,null,null,null,"لم يجتاز",null,null,null,null,"لم يجتاز",null,null,null,null,0,null,null,null,null,0,null,null,0,"راسب وله حق الإعادة","راسب وله حق الإعادة","",null,null,null,null,2,"",null,1,1,1,1,1,1,1,1,1,1,1,1,1,1,1,null,null,null,15,0,0,0,1,0," لغة عربية","لغة إنجليزية ","رياضيات ","فيزياء ","كيمياء","الدراسات الاجتماعية ","الحاسب الالي","تربية وطنية","تربية دينية","تربية عسكرية",null,null,0,0,0,0,0,"لم يجتاز","لم يجتاز","لم يجتاز","لم يجتاز","لم يجتاز","السلامة والصحة المهنية","اساسيات الحاسب","الدوائر الرقمية والمنطقية","تجميع أجهزة الحاسب الالي","الرسم الفني",null,null,"لغة عربية","لغة انجليزية","رياضيات","فيزياء","كيمياء","الدراسات الاجتماعية"," الحاسب الالي","تربية وطنية"," تربية دينية","تربية عسكرية"]
["",null,"اختر الديانة",null,null,"اختر البيان",null,"","","","","","","","","",null,null,"","",null,null,null,null,0,null,null,null,null,0,null,null,null,null,0,null,null,null,null,0,null,null,null,null,0,null,null,null,null,0,null,null,null,null,0,0,null,null,null,null,"لم يجتاز",null,null,null,null,"لم يجتاز",null,null,null,null,"لم يجتاز",null,null,null,null,"لم يجتاز",null,null,null,null,"لم يجتاز",null,null,null,null,0,null,null,null,null,0,null,null,0,"راسب وله حق الإعادة","راسب وله حق الإعادة","",null,null,null,null,2,"",null,1,1,1,1,1,1,1,1,1,1,1,1,1,1,1,null,null,null,15,0,0,0,1,0," لغة عربية","لغة إنجليزية ","رياضيات ","فيزياء ","كيمياء","الدراسات الاجتماعية ","الحاسب الالي","تربية وطنية","تربية دينية","تربية عسكرية",null,null,0,0,0,0,0,"لم يجتاز","لم يجتاز","لم يجتاز","لم يجتاز","لم يجتاز","السلامة والصحة المهنية","اساسيات الحاسب","الدوائر الرقمية والمنطقية","تجميع أجهزة الحاسب الالي","الرسم الفني",null,null,"لغة عربية","لغة انجليزية","رياضيات","فيزياء","كيمياء","الدراسات الاجتماعية"," الحاسب الالي","تربية وطنية"," تربية دينية","تربية عسكرية"]
["",null,"اختر الديانة",null,null,"اختر البيان",null,"","","","","","","","","",null,null,"","",null,null,null,null,0,null,null,null,null,0,null,null,null,null,0,null,null,null,null,0,null,null,null,null,0,null,null,null,null,0,null,null,null,null,0,0,null,null,null,null,"لم يجتاز",null,null,null,null,"لم يجتاز",null,null,null,null,"لم يجتاز",null,null,null,null,"لم يجتاز",null,null,null,null,"لم يجتاز",null,null,null,null,0,null,null,null,null,0,null,null,0,"راسب وله حق الإعادة","راسب وله حق الإعادة","",null,null,null,null,2,"",null,1,1,1,1,1,1,1,1,1,1,1,1,1,1,1,null,null,null,15,0,0,0,1,0," لغة عربية","لغة إنجليزية ","رياضيات ","فيزياء ","كيمياء","الدراسات الاجتماعية ","الحاسب الالي","تربية وطنية","تربية دينية","تربية عسكرية",null,null,0,0,0,0,0,"لم يجتاز","لم يجتاز","لم يجتاز","لم يجتاز","لم يجتاز","السلامة والصحة المهنية","اساسيات الحاسب","الدوائر الرقمية والمنطقية","تجميع أجهزة الحاسب الالي","الرسم الفني",null,null,"لغة عربية","لغة انجليزية","رياضيات","فيزياء","كيمياء","الدراسات الاجتماعية"," الحاسب الالي","تربية وطنية"," تربية دينية","تربية عسكرية"]
["",null,"اختر الديانة",null,null,"اختر البيان",null,"","","","","","","","","",null,null,"","",null,null,null,null,0,null,null,null,null,0,null,null,null,null,0,null,null,null,null,0,null,null,null,null,0,null,null,null,null,0,null,null,null,null,0,0,null,null,null,null,"لم يجتاز",null,null,null,null,"لم يجتاز",null,null,null,null,"لم يجتاز",null,null,null,null,"لم يجتاز",null,null,null,null,"لم يجتاز",null,null,null,null,0,null,null,null,null,0,null,null,0,"راسب وله حق الإعادة","راسب وله حق الإعادة","",null,null,null,null,2,"",null,1,1,1,1,1,1,1,1,1,1,1,1,1,1,1,null,null,null,15,0,0,0,1,0," لغة عربية","لغة إنجليزية ","رياضيات ","فيزياء ","كيمياء","الدراسات الاجتماعية ","الحاسب الالي","تربية وطنية","تربية دينية","تربية عسكرية",null,null,0,0,0,0,0,"لم يجتاز","لم يجتاز","لم يجتاز","لم يجتاز","لم يجتاز","السلامة والصحة المهنية","اساسيات الحاسب","الدوائر الرقمية والمنطقية","تجميع أجهزة الحاسب الالي","الرسم الفني",null,null,"لغة عربية","لغة انجليزية","رياضيات","فيزياء","كيمياء","الدراسات الاجتماعية"," الحاسب الالي","تربية وطنية"," تربية دينية","تربية عسكرية"]
["",null,"اختر الديانة",null,null,"اختر البيان",null,"","","","","","","","","",null,null,{"$f":"IF(B94=\"\",\"\",$S93+1)","v":""},"",null,null,null,null,0,null,null,null,null,0,null,null,null,null,0,null,null,null,null,0,null,null,null,null,0,null,null,null,null,0,null,null,null,null,0,0,null,null,null,null,"لم يجتاز",null,null,null,null,"لم يجتاز",null,null,null,null,"لم يجتاز",null,null,null,null,"لم يجتاز",null,null,null,null,"لم يجتاز",null,null,null,null,0,null,null,null,null,0,null,null,0,"راسب وله حق الإعادة","راسب وله حق الإعادة","",null,null,null,null,2,"",null,1,1,1,1,1,1,1,1,1,1,1,1,1,1,1,null,null,null,15,0,0,0,1,0," لغة عربية","لغة إنجليزية ","رياضيات ","فيزياء ","كيمياء","الدراسات الاجتماعية ","الحاسب الالي","تربية وطنية","تربية دينية","تربية عسكرية",null,null,0,0,0,0,0,"لم يجتاز","لم يجتاز","لم يجتاز","لم يجتاز","لم يجتاز","السلامة والصحة المهنية","اساسيات الحاسب","الدوائر الرقمية والمنطقية","تجميع أجهزة الحاسب الالي","الرسم الفني",null,null,"لغة عربية","لغة انجليزية","رياضيات","فيزياء","كيمياء","الدراسات الاجتماعية"," الحاسب الالي","تربية وطنية"," تربية دينية","تربية عسكرية"]
["",null,"اختر الديانة",null,null,"اختر البيان",null,"","","","","","","","","",null,null,"","",null,null,null,null,0,null,null,null,null,0,null,null,null,null,0,null,null,null,null,0,null,null,null,null,0,null,null,null,null,0,null,null,null,null,0,0,null,null,null,null,"لم يجتاز",null,null,null,null,"لم يجتاز",null,null,null,null,"لم يجتاز",null,null,null,null,"لم يجتاز",null,null,null,null,"لم يجتاز",null,null,null,null,0,null,null,null,null,0,null,null,0,"راسب وله حق الإعادة","راسب وله حق الإعادة","",null,null,null,null,2,"",null,1,1,1,1,1,1,1,1,1,1,1,1,1,1,1,null,null,null,15,0,0,0,1,0," لغة عربية","لغة إنجليزية ","رياضيات ","فيزياء ","كيمياء","الدراسات الاجتماعية ","الحاسب الالي","تربية وطنية","تربية دينية","تربية عسكرية",null,null,0,0,0,0,0,"لم يجتاز","لم يجتاز","لم يجتاز","لم يجتاز","لم يجتاز","السلامة والصحة المهنية","اساسيات الحاسب","الدوائر الرقمية والمنطقية","تجميع أجهزة الحاسب الالي","الرسم الفني",null,null,"لغة عربية","لغة انجليزية","رياضيات","فيزياء","كيمياء","الدراسات الاجتماعية"," الحاسب الالي","تربية وطنية"," تربية دينية","تربية عسكرية"]
["",null,"اختر الديانة",null,null,"اختر البيان",null,"","","","","","","","","",null,null,"","",null,null,null,null,0,null,null,null,null,0,null,null,null,null,0,null,null,null,null,0,null,null,null,null,0,null,null,null,null,0,null,null,null,null,0,0,null,null,null,null,"لم يجتاز",null,null,null,null,"لم يجتاز",null,null,null,null,"لم يجتاز",null,null,null,null,"لم يجتاز",null,null,null,null,"لم يجتاز",null,null,null,null,0,null,null,null,null,0,null,null,0,"راسب وله حق الإعادة","راسب وله حق الإعادة","",null,null,null,null,2,"",null,1,1,1,1,1,1,1,1,1,1,1,1,1,1,1,null,null,null,15,0,0,0,1,0," لغة عربية","لغة إنجليزية ","رياضيات ","فيزياء ","كيمياء","الدراسات الاجتماعية ","الحاسب الالي","تربية وطنية","تربية دينية","تربية عسكرية",null,null,0,0,0,0,0,"لم يجتاز","لم يجتاز","لم يجتاز","لم يجتاز","لم يجتاز","السلامة والصحة المهنية","اساسيات الحاسب","الدوائر الرقمية والمنطقية","تجميع أجهزة الحاسب الالي","الرسم الفني",null,null,"لغة عربية","لغة انجليزية","رياضيات","فيزياء","كيمياء","الدراسات الاجتماعية"," الحاسب الالي","تربية وطنية"," تربية دينية","تربية عسكرية"]
["",null,"اختر الديانة",null,null,"اختر البيان",null,"","","","","","","","","",null,null,"","",null,null,null,null,0,null,null,null,null,0,null,null,null,null,0,null,null,null,null,0,null,null,null,null,0,null,null,null,null,0,null,null,null,null,0,0,null,null,null,null,"لم يجتاز",null,null,null,null,"لم يجتاز",null,null,null,null,"لم يجتاز",null,null,null,null,"لم يجتاز",null,null,null,null,"لم يجتاز",null,null,null,null,0,null,null,null,null,0,null,null,0,"راسب وله حق الإعادة","راسب وله حق الإعادة","",null,null,null,null,2,"",null,1,1,1,1,1,1,1,1,1,1,1,1,1,1,1,null,null,null,15,0,0,0,1,0," لغة عربية","لغة إنجليزية ","رياضيات ","فيزياء ","كيمياء","الدراسات الاجتماعية ","الحاسب الالي","تربية وطنية","تربية دينية","تربية عسكرية",null,null,0,0,0,0,0,"لم يجتاز","لم يجتاز","لم يجتاز","لم يجتاز","لم يجتاز","السلامة والصحة المهنية","اساسيات الحاسب","الدوائر الرقمية والمنطقية","تجميع أجهزة الحاسب الالي","الرسم الفني",null,null,"لغة عربية","لغة انجليزية","رياضيات","فيزياء","كيمياء","الدراسات الاجتماعية"," الحاسب الالي","تربية وطنية"," تربية دينية","تربية عسكرية"]
["",null,"اختر الديانة",null,null,"اختر البيان",null,"","","","","","","","","",null,null,"","",null,null,null,null,0,null,null,null,null,0,null,null,null,null,0,null,null,null,null,0,null,null,null,null,0,null,null,null,null,0,null,null,null,null,0,0,null,null,null,null,"لم يجتاز",null,null,null,null,"لم يجتاز",null,null,null,null,"لم يجتاز",null,null,null,null,"لم يجتاز",null,null,null,null,"لم يجتاز",null,null,null,null,0,null,null,null,null,0,null,null,0,"راسب وله حق الإعادة","راسب وله حق الإعادة","",null,null,null,null,2,"",null,1,1,1,1,1,1,1,1,1,1,1,1,1,1,1,null,null,null,15,0,0,0,1,0," لغة عربية","لغة إنجليزية ","رياضيات ","فيزياء ","كيمياء","الدراسات الاجتماعية ","الحاسب الالي","تربية وطنية","تربية دينية","تربية عسكرية",null,null,0,0,0,0,0,"لم يجتاز","لم يجتاز","لم يجتاز","لم يجتاز","لم يجتاز","السلامة والصحة المهنية","اساسيات الحاسب","الدوائر الرقمية والمنطقية","تجميع أجهزة الحاسب الالي","الرسم الفني",null,null,"لغة عربية","لغة انجليزية","رياضيات","فيزياء","كيمياء","الدراسات الاجتماعية"," الحاسب الالي","تربية وطنية"," تربية دينية","تربية عسكرية"]
["",null,"اختر الديانة",null,null,"اختر البيان",null,"","","","","","","","","",null,null,"","",null,null,null,null,0,null,null,null,null,0,null,null,null,null,0,null,null,null,null,0,null,null,null,null,0,null,null,null,null,0,null,null,null,null,0,0,null,null,null,null,"لم يجتاز",null,null,null,null,"لم يجتاز",null,null,null,null,"لم يجتاز",null,null,null,null,"لم يجتاز",null,null,null,null,"لم يجتاز",null,null,null,null,0,null,null,null,null,0,null,null,0,"راسب وله حق الإعادة","راسب وله حق الإعادة","",null,null,null,null,2,"",null,1,1,1,1,1,1,1,1,1,1,1,1,1,1,1,null,null,null,15,0,0,0,1,0," لغة عربية","لغة إنجليزية ","رياضيات ","فيزياء ","كيمياء","الدراسات الاجتماعية ","الحاسب الالي","تربية وطنية","تربية دينية","تربية عسكرية",null,null,0,0,0,0,0,"لم يجتاز","لم يجتاز","لم يجتاز","لم يجتاز","لم يجتاز","السلامة والصحة المهنية","اساسيات الحاسب","الدوائر الرقمية والمنطقية","تجميع أجهزة الحاسب الالي","الرسم الفني",null,null,"لغة عربية","لغة انجليزية","رياضيات","فيزياء","كيمياء","الدراسات الاجتماعية"," الحاسب الالي","تربية وطنية"," تربية دينية","تربية عسكرية"]
["",null,"اختر الديانة",null,null,"اختر البيان",null,"","","","","","","","","",null,null,"","",null,null,null,null,0,null,null,null,null,0,null,null,null,null,0,null,null,null,null,0,null,null,null,null,0,null,null,null,null,0,null,null,null,null,0,0,null,null,null,null,"لم يجتاز",null,null,null,null,"لم يجتاز",null,null,null,null,"لم يجتاز",null,null,null,null,"لم يجتاز",null,null,null,null,"لم يجتاز",null,null,null,null,0,null,null,null,null,0,null,null,0,"راسب وله حق الإعادة","راسب وله حق الإعادة","",null,null,null,null,2,"",null,1,1,1,1,1,1,1,1,1,1,1,1,1,1,1,null,null,null,15,0,0,0,1,0," لغة عربية","لغة إنجليزية ","رياضيات ","فيزياء ","كيمياء","الدراسات الاجتماعية ","الحاسب الالي","تربية وطنية","تربية دينية","تربية عسكرية",null,null,0,0,0,0,0,"لم يجتاز","لم يجتاز","لم يجتاز","لم يجتاز","لم يجتاز","السلامة والصحة المهنية","اساسيات الحاسب","الدوائر الرقمية والمنطقية","تجميع أجهزة الحاسب الالي","الرسم الفني",null,null,"لغة عربية","لغة انجليزية","رياضيات","فيزياء","كيمياء","الدراسات الاجتماعية"," الحاسب الالي","تربية وطنية"," تربية دينية","تربية عسكرية"]
["",null,"اختر الديانة",null,null,"اختر البيان",null,"","","","","","","","","",null,null,"","",null,null,null,null,0,null,null,null,null,0,null,null,null,null,0,null,null,null,null,0,null,null,null,null,0,null,null,null,null,0,null,null,null,null,0,0,null,null,null,null,"لم يجتاز",null,null,null,null,"لم يجتاز",null,null,null,null,"لم يجتاز",null,null,null,null,"لم يجتاز",null,null,null,null,"لم يجتاز",null,null,null,null,0,null,null,null,null,0,null,null,0,"راسب وله حق الإعادة","راسب وله حق الإعادة","",null,null,null,null,2,"",null,1,1,1,1,1,1,1,1,1,1,1,1,1,1,1,null,null,null,15,0,0,0,1,0," لغة عربية","لغة إنجليزية ","رياضيات ","فيزياء ","كيمياء","الدراسات الاجتماعية ","الحاسب الالي","تربية وطنية","تربية دينية","تربية عسكرية",null,null,0,0,0,0,0,"لم يجتاز","لم يجتاز","لم يجتاز","لم يجتاز","لم يجتاز","السلامة والصحة المهنية","اساسيات الحاسب","الدوائر الرقمية والمنطقية","تجميع أجهزة الحاسب الالي","الرسم الفني",null,null,"لغة عربية","لغة انجليزية","رياضيات","فيزياء","كيمياء","الدراسات الاجتماعية"," الحاسب الالي","تربية وطنية"," تربية دينية","تربية عسكرية"]
["",null,"اختر الديانة",null,null,"اختر البيان",null,"","","","","","","","","",null,null,"","",null,null,null,null,0,null,null,null,null,0,null,null,null,null,0,null,null,null,null,0,null,null,null,null,0,null,null,null,null,0,null,null,null,null,0,0,null,null,null,null,"لم يجتاز",null,null,null,null,"لم يجتاز",null,null,null,null,"لم يجتاز",null,null,null,null,"لم يجتاز",null,null,null,null,"لم يجتاز",null,null,null,null,0,null,null,null,null,0,null,null,0,"راسب وله حق الإعادة","راسب وله حق الإعادة","",null,null,null,null,2,"",null,1,1,1,1,1,1,1,1,1,1,1,1,1,1,1,null,null,null,15,0,0,0,1,0," لغة عربية","لغة إنجليزية ","رياضيات ","فيزياء ","كيمياء","الدراسات الاجتماعية ","الحاسب الالي","تربية وطنية","تربية دينية","تربية عسكرية",null,null,0,0,0,0,0,"لم يجتاز","لم يجتاز","لم يجتاز","لم يجتاز","لم يجتاز","السلامة والصحة المهنية","اساسيات الحاسب","الدوائر الرقمية والمنطقية","تجميع أجهزة الحاسب الالي","الرسم الفني",null,null,"لغة عربية","لغة انجليزية","رياضيات","فيزياء","كيمياء","الدراسات الاجتماعية"," الحاسب الالي","تربية وطنية"," تربية دينية","تربية عسكرية"]
["",null,"اختر الديانة",null,null,"اختر البيان",null,"","","","","","","","","",null,null,"","",null,null,null,null,0,null,null,null,null,0,null,null,null,null,0,null,null,null,null,0,null,null,null,null,0,null,null,null,null,0,null,null,null,null,0,0,null,null,null,null,"لم يجتاز",null,null,null,null,"لم يجتاز",null,null,null,null,"لم يجتاز",null,null,null,null,"لم يجتاز",null,null,null,null,"لم يجتاز",null,null,null,null,0,null,null,null,null,0,null,null,0,"راسب وله حق الإعادة","راسب وله حق الإعادة","",null,null,null,null,2,"",null,1,1,1,1,1,1,1,1,1,1,1,1,1,1,1,null,null,null,15,0,0,0,1,0," لغة عربية","لغة إنجليزية ","رياضيات ","فيزياء ","كيمياء","الدراسات الاجتماعية ","الحاسب الالي","تربية وطنية","تربية دينية","تربية عسكرية",null,null,0,0,0,0,0,"لم يجتاز","لم يجتاز","لم يجتاز","لم يجتاز","لم يجتاز","السلامة والصحة المهنية","اساسيات الحاسب","الدوائر الرقمية والمنطقية","تجميع أجهزة الحاسب الالي","الرسم الفني",null,null,"لغة عربية","لغة انجليزية","رياضيات","فيزياء","كيمياء","الدراسات الاجتماعية"," الحاسب الالي","تربية وطنية"," تربية دينية","تربية عسكرية"]
["",null,"اختر الديانة",null,null,"اختر البيان",null,"","","","","","","","","",null,null,"","",null,null,null,null,0,null,null,null,null,0,null,null,null,null,0,null,null,null,null,0,null,null,null,null,0,null,null,null,null,0,null,null,null,null,0,0,null,null,null,null,"لم يجتاز",null,null,null,null,"لم يجتاز",null,null,null,null,"لم يجتاز",null,null,null,null,"لم يجتاز",null,null,null,null,"لم يجتاز",null,null,null,null,0,null,null,null,null,0,null,null,0,"راسب وله حق الإعادة","راسب وله حق الإعادة","",null,null,null,null,2,"",null,1,1,1,1,1,1,1,1,1,1,1,1,1,1,1,null,null,null,15,0,0,0,1,0," لغة عربية","لغة إنجليزية ","رياضيات ","فيزياء ","كيمياء","الدراسات الاجتماعية ","الحاسب الالي","تربية وطنية","تربية دينية","تربية عسكرية",null,null,0,0,0,0,0,"لم يجتاز","لم يجتاز","لم يجتاز","لم يجتاز","لم يجتاز","السلامة والصحة المهنية","اساسيات الحاسب","الدوائر الرقمية والمنطقية","تجميع أجهزة الحاسب الالي","الرسم الفني",null,null,"لغة عربية","لغة انجليزية","رياضيات","فيزياء","كيمياء","الدراسات الاجتماعية"," الحاسب الالي","تربية وطنية"," تربية دينية","تربية عسكرية"]
["",null,"اختر الديانة",null,null,"اختر البيان",null,"","","","","","","","","",null,null,"","",null,null,null,null,0,null,null,null,null,0,null,null,null,null,0,null,null,null,null,0,null,null,null,null,0,null,null,null,null,0,null,null,null,null,0,0,null,null,null,null,"لم يجتاز",null,null,null,null,"لم يجتاز",null,null,null,null,"لم يجتاز",null,null,null,null,"لم يجتاز",null,null,null,null,"لم يجتاز",null,null,null,null,0,null,null,null,null,0,null,null,0,"راسب وله حق الإعادة","راسب وله حق الإعادة","",null,null,null,null,2,"",null,1,1,1,1,1,1,1,1,1,1,1,1,1,1,1,null,null,null,15,0,0,0,1,0," لغة عربية","لغة إنجليزية ","رياضيات ","فيزياء ","كيمياء","الدراسات الاجتماعية ","الحاسب الالي","تربية وطنية","تربية دينية","تربية عسكرية",null,null,0,0,0,0,0,"لم يجتاز","لم يجتاز","لم يجتاز","لم يجتاز","لم يجتاز","السلامة والصحة المهنية","اساسيات الحاسب","الدوائر الرقمية والمنطقية","تجميع أجهزة الحاسب الالي","الرسم الفني",null,null,"لغة عربية","لغة انجليزية","رياضيات","فيزياء","كيمياء","الدراسات الاجتماعية"," الحاسب الالي","تربية وطنية"," تربية دينية","تربية عسكرية"]
["",null,"اختر الديانة",null,null,"اختر البيان",null,"","","","","","","","","",null,null,"","",null,null,null,null,0,null,null,null,null,0,null,null,null,null,0,null,null,null,null,0,null,null,null,null,0,null,null,null,null,0,null,null,null,null,0,0,null,null,null,null,"لم يجتاز",null,null,null,null,"لم يجتاز",null,null,null,null,"لم يجتاز",null,null,null,null,"لم يجتاز",null,null,null,null,"لم يجتاز",null,null,null,null,0,null,null,null,null,0,null,null,0,"راسب وله حق الإعادة","راسب وله حق الإعادة","",null,null,null,null,2,"",null,1,1,1,1,1,1,1,1,1,1,1,1,1,1,1,null,null,null,15,0,0,0,1,0," لغة عربية","لغة إنجليزية ","رياضيات ","فيزياء ","كيمياء","الدراسات الاجتماعية ","الحاسب الالي","تربية وطنية","تربية دينية","تربية عسكرية",null,null,0,0,0,0,0,"لم يجتاز","لم يجتاز","لم يجتاز","لم يجتاز","لم يجتاز","السلامة والصحة المهنية","اساسيات الحاسب","الدوائر الرقمية والمنطقية","تجميع أجهزة الحاسب الالي","الرسم الفني",null,null,"لغة عربية","لغة انجليزية","رياضيات","فيزياء","كيمياء","الدراسات الاجتماعية"," الحاسب الالي","تربية وطنية"," تربية دينية","تربية عسكرية"]
["",null,"اختر الديانة",null,null,"اختر البيان",null,"","","","","","","","","",null,null,"","",null,null,null,null,0,null,null,null,null,0,null,null,null,null,0,null,null,null,null,0,null,null,null,null,0,null,null,null,null,0,null,null,null,null,0,0,null,null,null,null,"لم يجتاز",null,null,null,null,"لم يجتاز",null,null,null,null,"لم يجتاز",null,null,null,null,"لم يجتاز",null,null,null,null,"لم يجتاز",null,null,null,null,0,null,null,null,null,0,null,null,0,"راسب وله حق الإعادة","راسب وله حق الإعادة","",null,null,null,null,2,"",null,1,1,1,1,1,1,1,1,1,1,1,1,1,1,1,null,null,null,15,0,0,0,1,0," لغة عربية","لغة إنجليزية ","رياضيات ","فيزياء ","كيمياء","الدراسات الاجتماعية ","الحاسب الالي","تربية وطنية","تربية دينية","تربية عسكرية",null,null,0,0,0,0,0,{"$f":"IF(EK107>0,\"اجتاز\",\"لم يجتاز\")","v":"لم يجتاز"},"لم يجتاز","لم يجتاز","لم يجتاز","لم يجتاز","السلامة والصحة المهنية","اساسيات الحاسب","الدوائر الرقمية والمنطقية","تجميع أجهزة الحاسب الالي","الرسم الفني",null,null,"لغة عربية","لغة انجليزية","رياضيات","فيزياء","كيمياء","الدراسات الاجتماعية"," الحاسب الالي","تربية وطنية"," تربية دينية","تربية عسكرية"]
["",null,"اختر الديانة",null,null,"اختر البيان",null,"","","","","","","","","",null,null,"","",null,null,null,null,0,null,null,null,null,0,null,null,null,null,0,null,null,null,null,0,null,null,null,null,0,null,null,null,null,0,null,null,null,null,0,0,null,null,null,null,"لم يجتاز",null,null,null,null,"لم يجتاز",null,null,null,null,"لم يجتاز",null,null,null,null,"لم يجتاز",null,null,null,null,"لم يجتاز",null,null,null,null,0,null,null,null,null,0,null,null,0,"راسب وله حق الإعادة","راسب وله حق الإعادة","",null,null,null,null,2,"",null,1,1,1,1,1,1,1,1,1,1,1,1,1,1,1,null,null,null,15,0,0,0,1,0," لغة عربية","لغة إنجليزية ","رياضيات ","فيزياء ","كيمياء","الدراسات الاجتماعية ","الحاسب الالي","تربية وطنية","تربية دينية","تربية عسكرية",null,null,0,0,0,0,0,"لم يجتاز","لم يجتاز","لم يجتاز","لم يجتاز","لم يجتاز","السلامة والصحة المهنية","اساسيات الحاسب","الدوائر الرقمية والمنطقية","تجميع أجهزة الحاسب الالي","الرسم الفني",null,null,"لغة عربية","لغة انجليزية","رياضيات","فيزياء","كيمياء","الدراسات الاجتماعية"," الحاسب الالي","تربية وطنية"," تربية دينية","تربية عسكرية"]
["",null,"اختر الديانة",null,null,"اختر البيان",null,"","","","","","","","","",null,null,"","",null,null,null,null,0,null,null,null,null,0,null,null,null,null,0,null,null,null,null,0,null,null,null,null,0,null,null,null,null,0,null,null,null,null,0,0,null,null,null,null,"لم يجتاز",null,null,null,null,"لم يجتاز",null,null,null,null,"لم يجتاز",null,null,null,null,"لم يجتاز",null,null,null,null,"لم يجتاز",null,null,null,null,0,null,null,null,null,0,null,null,0,"راسب وله حق الإعادة","راسب وله حق الإعادة","",null,null,null,null,2,"",null,1,1,1,1,1,1,1,1,1,1,1,1,1,1,1,null,null,null,15,0,0,0,1,0," لغة عربية","لغة إنجليزية ","رياضيات ","فيزياء ","كيمياء","الدراسات الاجتماعية ","الحاسب الالي","تربية وطنية","تربية دينية","تربية عسكرية",null,null,0,0,0,0,0,"لم يجتاز","لم يجتاز","لم يجتاز","لم يجتاز","لم يجتاز","السلامة والصحة المهنية","اساسيات الحاسب","الدوائر الرقمية والمنطقية","تجميع أجهزة الحاسب الالي","الرسم الفني",null,null,"لغة عربية","لغة انجليزية","رياضيات","فيزياء","كيمياء","الدراسات الاجتماعية"," الحاسب الالي","تربية وطنية"," تربية دينية","تربية عسكرية"]
["",null,"اختر الديانة",null,null,"اختر البيان",null,"","","","","","","","","",null,null,"","",null,null,null,null,0,null,null,null,null,0,null,null,null,null,0,null,null,null,null,0,null,null,null,null,0,null,null,null,null,0,null,null,null,null,0,0,null,null,null,null,"لم يجتاز",null,null,null,null,"لم يجتاز",null,null,null,null,"لم يجتاز",null,null,null,null,"لم يجتاز",null,null,null,null,"لم يجتاز",null,null,null,null,0,null,null,null,null,0,null,null,0,"راسب وله حق الإعادة","راسب وله حق الإعادة","",null,null,null,null,2,"",null,1,1,1,1,1,1,1,1,1,1,1,1,1,1,1,null,null,null,15,0,0,0,1,0," لغة عربية","لغة إنجليزية ","رياضيات ","فيزياء ","كيمياء","الدراسات الاجتماعية ","الحاسب الالي","تربية وطنية","تربية دينية","تربية عسكرية",null,null,0,0,0,0,0,"لم يجتاز","لم يجتاز","لم يجتاز","لم يجتاز","لم يجتاز","السلامة والصحة المهنية","اساسيات الحاسب","الدوائر الرقمية والمنطقية","تجميع أجهزة الحاسب الالي","الرسم الفني",null,null,"لغة عربية","لغة انجليزية","رياضيات","فيزياء","كيمياء","الدراسات الاجتماعية"," الحاسب الالي","تربية وطنية"," تربية دينية","تربية عسكرية"]
["",null,"اختر الديانة",null,null,"اختر البيان",null,"","","","","","","","","",null,null,"","",null,null,null,null,0,null,null,null,null,0,null,null,null,null,0,null,null,null,null,0,null,null,null,null,0,null,null,null,null,0,null,null,null,null,0,0,null,null,null,null,"لم يجتاز",null,null,null,null,"لم يجتاز",null,null,null,null,"لم يجتاز",null,null,null,null,"لم يجتاز",null,null,null,null,"لم يجتاز",null,null,null,null,0,null,null,null,null,0,null,null,0,"راسب وله حق الإعادة","راسب وله حق الإعادة","",null,null,null,null,2,"",null,1,1,1,1,1,1,1,1,1,1,1,1,1,1,1,null,null,null,15,0,0,0,1,0," لغة عربية","لغة إنجليزية ","رياضيات ","فيزياء ","كيمياء","الدراسات الاجتماعية ","الحاسب الالي","تربية وطنية","تربية دينية","تربية عسكرية",null,null,0,0,0,0,0,"لم يجتاز","لم يجتاز","لم يجتاز","لم يجتاز","لم يجتاز","السلامة والصحة المهنية","اساسيات الحاسب","الدوائر الرقمية والمنطقية","تجميع أجهزة الحاسب الالي","الرسم الفني",null,null,"لغة عربية","لغة انجليزية","رياضيات","فيزياء","كيمياء","الدراسات الاجتماعية"," الحاسب الالي","تربية وطنية"," تربية دينية","تربية عسكرية"]
["",null,"اختر الديانة",null,null,"اختر البيان",null,"","","","","","","","","",null,null,"","",null,null,null,null,0,null,null,null,null,0,null,null,null,null,0,null,null,null,null,0,null,null,null,null,0,null,null,null,null,0,null,null,null,null,0,0,null,null,null,null,"لم يجتاز",null,null,null,null,"لم يجتاز",null,null,null,null,"لم يجتاز",null,null,null,null,"لم يجتاز",null,null,null,null,"لم يجتاز",null,null,null,null,0,null,null,null,null,0,null,null,0,"راسب وله حق الإعادة","راسب وله حق الإعادة","",null,null,null,null,2,"",null,1,1,1,1,1,1,1,1,1,1,1,1,1,1,1,null,null,null,15,0,0,0,1,0," لغة عربية","لغة إنجليزية ","رياضيات ","فيزياء ","كيمياء","الدراسات الاجتماعية ","الحاسب الالي","تربية وطنية","تربية دينية","تربية عسكرية",null,null,0,0,0,0,0,"لم يجتاز","لم يجتاز","لم يجتاز","لم يجتاز","لم يجتاز","السلامة والصحة المهنية","اساسيات الحاسب","الدوائر الرقمية والمنطقية","تجميع أجهزة الحاسب الالي","الرسم الفني",null,null,"لغة عربية","لغة انجليزية","رياضيات","فيزياء","كيمياء","الدراسات الاجتماعية"," الحاسب الالي","تربية وطنية"," تربية دينية","تربية عسكرية"]
["",null,"اختر الديانة",null,null,"اختر البيان",null,"","","","","","","","","",null,null,"","",null,null,null,null,0,null,null,null,null,0,null,null,null,null,0,null,null,null,null,0,null,null,null,null,0,null,null,null,null,0,null,null,null,null,0,0,null,null,null,null,"لم يجتاز",null,null,null,null,"لم يجتاز",null,null,null,null,"لم يجتاز",null,null,null,null,"لم يجتاز",null,null,null,null,"لم يجتاز",null,null,null,null,0,null,null,null,null,0,null,null,0,"راسب وله حق الإعادة","راسب وله حق الإعادة","",null,null,null,null,2,"",null,1,1,1,1,1,1,1,1,1,1,1,1,1,1,1,null,null,null,15,0,0,0,1,0," لغة عربية","لغة إنجليزية ","رياضيات ","فيزياء ","كيمياء","الدراسات الاجتماعية ","الحاسب الالي","تربية وطنية","تربية دينية","تربية عسكرية",null,null,0,0,0,0,0,"لم يجتاز","لم يجتاز","لم يجتاز","لم يجتاز","لم يجتاز","السلامة والصحة المهنية","اساسيات الحاسب","الدوائر الرقمية والمنطقية","تجميع أجهزة الحاسب الالي","الرسم الفني",null,null,"لغة عربية","لغة انجليزية","رياضيات","فيزياء","كيمياء","الدراسات الاجتماعية"," الحاسب الالي","تربية وطنية"," تربية دينية","تربية عسكرية"]
["",null,"اختر الديانة",null,null,"اختر البيان",null,"","","","","","","","","",null,null,"","",null,null,null,null,0,null,null,null,null,0,null,null,null,null,0,null,null,null,null,0,null,null,null,null,0,null,null,null,null,0,null,null,null,null,0,0,null,null,null,null,"لم يجتاز",null,null,null,null,"لم يجتاز",null,null,null,null,"لم يجتاز",null,null,null,null,"لم يجتاز",null,null,null,null,"لم يجتاز",null,null,null,null,0,null,null,null,null,0,null,null,0,"راسب وله حق الإعادة","راسب وله حق الإعادة","",null,null,null,null,2,"",null,1,1,1,1,1,1,1,1,1,1,{"$f":"IF(EU114=\"\",0,1)","v":1},1,1,1,1,null,null,null,15,0,0,0,1,0," لغة عربية","لغة إنجليزية ","رياضيات ","فيزياء ","كيمياء","الدراسات الاجتماعية ","الحاسب الالي","تربية وطنية","تربية دينية","تربية عسكرية",null,null,0,0,0,0,0,"لم يجتاز","لم يجتاز","لم يجتاز","لم يجتاز","لم يجتاز","السلامة والصحة المهنية","اساسيات الحاسب","الدوائر الرقمية والمنطقية","تجميع أجهزة الحاسب الالي","الرسم الفني",null,null,"لغة عربية","لغة انجليزية","رياضيات","فيزياء","كيمياء","الدراسات الاجتماعية"," الحاسب الالي","تربية وطنية"," تربية دينية","تربية عسكرية"]
["",null,"اختر الديانة",null,null,"اختر البيان",null,"","","","","","","","","",null,null,"","",null,null,null,null,0,null,null,null,null,0,null,null,null,null,0,null,null,null,null,0,null,null,null,null,0,null,null,null,null,0,null,null,null,null,0,0,null,null,null,null,"لم يجتاز",null,null,null,null,"لم يجتاز",null,null,null,null,"لم يجتاز",null,null,null,null,"لم يجتاز",null,null,null,null,"لم يجتاز",null,null,null,null,0,null,null,null,null,0,null,null,0,"راسب وله حق الإعادة","راسب وله حق الإعادة","",null,null,null,null,2,"",null,1,1,1,1,1,1,1,1,1,1,1,1,1,1,1,null,null,null,15,0,0,0,1,0," لغة عربية","لغة إنجليزية ","رياضيات ","فيزياء ","كيمياء","الدراسات الاجتماعية ","الحاسب الالي","تربية وطنية","تربية دينية","تربية عسكرية",null,null,0,0,0,0,0,"لم يجتاز","لم يجتاز","لم يجتاز","لم يجتاز","لم يجتاز","السلامة والصحة المهنية","اساسيات الحاسب","الدوائر الرقمية والمنطقية","تجميع أجهزة الحاسب الالي","الرسم الفني",null,null,"لغة عربية","لغة انجليزية","رياضيات","فيزياء","كيمياء","الدراسات الاجتماعية"," الحاسب الالي","تربية وطنية"," تربية دينية","تربية عسكرية"]
["",null,"اختر الديانة",null,null,"اختر البيان",null,"","","","","","","","","",null,null,"","",null,null,null,null,0,null,null,null,null,0,null,null,null,null,0,null,null,null,null,0,null,null,null,null,0,null,null,null,null,0,null,null,null,null,0,0,null,null,null,null,"لم يجتاز",null,null,null,null,"لم يجتاز",null,null,null,null,"لم يجتاز",null,null,null,null,"لم يجتاز",null,null,null,null,"لم يجتاز",null,null,null,null,0,null,null,null,null,0,null,null,0,"راسب وله حق الإعادة","راسب وله حق الإعادة","",null,null,null,null,2,"",null,1,1,1,1,1,1,1,1,1,1,1,1,1,1,1,null,null,null,15,0,0,0,1,0," لغة عربية","لغة إنجليزية ","رياضيات ","فيزياء ","كيمياء","الدراسات الاجتماعية ","الحاسب الالي","تربية وطنية","تربية دينية","تربية عسكرية",null,null,0,0,0,0,0,"لم يجتاز","لم يجتاز","لم يجتاز","لم يجتاز","لم يجتاز","السلامة والصحة المهنية","اساسيات الحاسب","الدوائر الرقمية والمنطقية","تجميع أجهزة الحاسب الالي","الرسم الفني",null,null,"لغة عربية","لغة انجليزية","رياضيات","فيزياء","كيمياء","الدراسات الاجتماعية"," الحاسب الالي","تربية وطنية"," تربية دينية","تربية عسكرية"]
["",null,"اختر الديانة",null,null,"اختر البيان",null,"","","","","","","","","",null,null,"","",null,null,null,null,0,null,null,null,null,0,null,null,null,null,0,null,null,null,null,0,null,null,null,null,0,null,null,null,null,0,null,null,null,null,0,0,null,null,null,null,"لم يجتاز",null,null,null,null,"لم يجتاز",null,null,null,null,"لم يجتاز",null,null,null,null,"لم يجتاز",null,null,null,null,"لم يجتاز",null,null,null,null,0,null,null,null,null,0,null,null,0,"راسب وله حق الإعادة","راسب وله حق الإعادة","",null,null,null,null,2,"",null,1,1,1,1,1,1,1,1,1,1,1,1,1,1,1,null,null,null,15,0,0,0,1,0," لغة عربية","لغة إنجليزية ","رياضيات ","فيزياء ","كيمياء","الدراسات الاجتماعية ","الحاسب الالي","تربية وطنية","تربية دينية","تربية عسكرية",null,null,0,0,0,0,0,"لم يجتاز","لم يجتاز","لم يجتاز","لم يجتاز","لم يجتاز","السلامة والصحة المهنية","اساسيات الحاسب","الدوائر الرقمية والمنطقية","تجميع أجهزة الحاسب الالي","الرسم الفني",null,null,"لغة عربية","لغة انجليزية","رياضيات","فيزياء","كيمياء","الدراسات الاجتماعية"," الحاسب الالي","تربية وطنية"," تربية دينية","تربية عسكرية"]
["",null,"اختر الديانة",null,null,"اختر البيان",null,"","","","","","","","","",null,null,"","",null,null,null,null,0,null,null,null,null,0,null,null,null,null,0,null,null,null,null,0,null,null,null,null,0,null,null,null,null,0,null,null,null,null,0,0,null,null,null,null,"لم يجتاز",null,null,null,null,"لم يجتاز",null,null,null,null,"لم يجتاز",null,null,null,null,"لم يجتاز",null,null,null,null,"لم يجتاز",null,null,null,null,0,null,null,null,null,0,null,null,0,"راسب وله حق الإعادة","راسب وله حق الإعادة","",null,null,null,null,2,"",null,1,1,1,1,1,1,1,1,1,1,1,1,1,1,1,null,null,null,15,0,0,0,1,0," لغة عربية","لغة إنجليزية ","رياضيات ","فيزياء ","كيمياء","الدراسات الاجتماعية ","الحاسب الالي","تربية وطنية","تربية دينية","تربية عسكرية",null,null,0,0,0,0,0,"لم يجتاز","لم يجتاز","لم يجتاز","لم يجتاز","لم يجتاز","السلامة والصحة المهنية","اساسيات الحاسب","الدوائر الرقمية والمنطقية","تجميع أجهزة الحاسب الالي","الرسم الفني",null,null,"لغة عربية","لغة انجليزية","رياضيات","فيزياء","كيمياء","الدراسات الاجتماعية"," الحاسب الالي","تربية وطنية"," تربية دينية","تربية عسكرية"]
["",null,"اختر الديانة",null,null,"اختر البيان",null,"","","","","","","","","",null,null,"","",null,null,null,null,0,null,null,null,null,0,null,null,null,null,0,null,null,null,null,0,null,null,null,null,0,null,null,null,null,0,null,null,null,null,0,0,null,null,null,null,"لم يجتاز",null,null,null,null,"لم يجتاز",null,null,null,null,"لم يجتاز",null,null,null,null,"لم يجتاز",null,null,null,null,"لم يجتاز",null,null,null,null,0,null,null,null,null,0,null,null,0,"راسب وله حق الإعادة","راسب وله حق الإعادة","",null,null,null,null,2,"",null,1,1,1,1,1,1,1,1,1,1,1,1,1,1,1,null,null,null,15,0,0,0,1,0," لغة عربية","لغة إنجليزية ","رياضيات ","فيزياء ","كيمياء","الدراسات الاجتماعية ","الحاسب الالي","تربية وطنية","تربية دينية","تربية عسكرية",null,null,0,0,0,0,0,"لم يجتاز","لم يجتاز","لم يجتاز","لم يجتاز","لم يجتاز","السلامة والصحة المهنية","اساسيات الحاسب","الدوائر الرقمية والمنطقية","تجميع أجهزة الحاسب الالي","الرسم الفني",null,null,"لغة عربية","لغة انجليزية","رياضيات","فيزياء","كيمياء","الدراسات الاجتماعية"," الحاسب الالي","تربية وطنية"," تربية دينية","تربية عسكرية"]
["",null,"اختر الديانة",null,null,"اختر البيان",null,"","","","","","","","","",null,null,"","",null,null,null,null,0,null,null,null,null,0,null,null,null,null,0,null,null,null,null,0,null,null,null,null,0,null,null,null,null,0,null,null,null,null,0,0,null,null,null,null,"لم يجتاز",null,null,null,null,"لم يجتاز",null,null,null,null,"لم يجتاز",null,null,null,null,"لم يجتاز",null,null,null,null,"لم يجتاز",null,null,null,null,0,null,null,null,null,0,null,null,0,"راسب وله حق الإعادة","راسب وله حق الإعادة","",null,null,null,null,2,"",null,1,1,1,1,1,1,1,1,1,1,1,1,1,1,1,null,null,null,15,0,0,0,1,0," لغة عربية","لغة إنجليزية ","رياضيات ","فيزياء ","كيمياء","الدراسات الاجتماعية ","الحاسب الالي","تربية وطنية","تربية دينية","تربية عسكرية",null,null,0,0,0,0,0,"لم يجتاز","لم يجتاز","لم يجتاز","لم يجتاز","لم يجتاز","السلامة والصحة المهنية","اساسيات الحاسب","الدوائر الرقمية والمنطقية","تجميع أجهزة الحاسب الالي","الرسم الفني",null,null,"لغة عربية","لغة انجليزية","رياضيات","فيزياء","كيمياء","الدراسات الاجتماعية"," الحاسب الالي","تربية وطنية"," تربية دينية","تربية عسكرية"]
["",null,"اختر الديانة",null,null,"اختر البيان",null,"","","","","","","","","",null,null,"","",null,null,null,null,0,null,null,null,null,0,null,null,null,null,0,null,null,null,null,0,null,null,null,null,0,null,null,null,null,0,null,null,null,null,0,0,null,null,null,null,"لم يجتاز",null,null,null,null,"لم يجتاز",null,null,null,null,"لم يجتاز",null,null,null,null,"لم يجتاز",null,null,null,null,"لم يجتاز",null,null,null,null,0,null,null,null,null,0,null,null,0,"راسب وله حق الإعادة","راسب وله حق الإعادة","",null,null,null,null,2,"",null,1,1,1,1,1,1,1,1,1,1,1,1,1,1,1,null,null,null,15,0,0,0,1,0," لغة عربية","لغة إنجليزية ","رياضيات ","فيزياء ","كيمياء","الدراسات الاجتماعية ","الحاسب الالي","تربية وطنية","تربية دينية","تربية عسكرية",null,null,0,0,0,0,0,"لم يجتاز","لم يجتاز","لم يجتاز","لم يجتاز","لم يجتاز","السلامة والصحة المهنية","اساسيات الحاسب","الدوائر الرقمية والمنطقية","تجميع أجهزة الحاسب الالي","الرسم الفني",null,null,"لغة عربية","لغة انجليزية","رياضيات","فيزياء","كيمياء","الدراسات الاجتماعية"," الحاسب الالي","تربية وطنية"," تربية دينية","تربية عسكرية"]
["",null,"اختر الديانة",null,null,"اختر البيان",null,"","","","","","","","","",null,null,"","",null,null,null,null,0,null,null,null,null,0,null,null,null,null,0,null,null,null,null,0,null,null,null,null,0,null,null,null,null,0,null,null,null,null,0,0,null,null,null,null,"لم يجتاز",null,null,null,null,"لم يجتاز",null,null,null,null,"لم يجتاز",null,null,null,null,"لم يجتاز",null,null,null,null,"لم يجتاز",null,null,null,null,0,null,null,null,null,0,null,null,0,"راسب وله حق الإعادة","راسب وله حق الإعادة","",null,null,null,null,2,"",null,1,1,1,1,1,1,1,1,1,1,1,1,1,1,1,null,null,null,15,0,0,0,1,0," لغة عربية","لغة إنجليزية ","رياضيات ","فيزياء ","كيمياء","الدراسات الاجتماعية ","الحاسب الالي","تربية وطنية","تربية دينية","تربية عسكرية",null,null,0,0,0,0,0,"لم يجتاز","لم يجتاز","لم يجتاز","لم يجتاز","لم يجتاز","السلامة والصحة المهنية","اساسيات الحاسب","الدوائر الرقمية والمنطقية","تجميع أجهزة الحاسب الالي","الرسم الفني",null,null,"لغة عربية","لغة انجليزية","رياضيات","فيزياء","كيمياء","الدراسات الاجتماعية"," الحاسب الالي","تربية وطنية"," تربية دينية","تربية عسكرية"]
["",null,"اختر الديانة",null,null,"اختر البيان",null,"","","","","","","","","",null,null,"","",null,null,null,null,0,null,null,null,null,0,null,null,null,null,0,null,null,null,null,0,null,null,null,null,0,null,null,null,null,0,null,null,null,null,0,0,null,null,null,null,"لم يجتاز",null,null,null,null,"لم يجتاز",null,null,null,null,"لم يجتاز",null,null,null,null,"لم يجتاز",null,null,null,null,"لم يجتاز",null,null,null,null,0,null,null,null,null,0,null,null,0,"راسب وله حق الإعادة","راسب وله حق الإعادة","",null,null,null,null,2,"",null,1,1,1,1,1,1,1,1,1,1,1,1,1,1,1,null,null,null,15,0,0,0,1,0," لغة عربية","لغة إنجليزية ","رياضيات ","فيزياء ","كيمياء","الدراسات الاجتماعية ","الحاسب الالي","تربية وطنية","تربية دينية","تربية عسكرية",null,null,0,0,0,0,0,"لم يجتاز","لم يجتاز","لم يجتاز","لم يجتاز","لم يجتاز","السلامة والصحة المهنية","اساسيات الحاسب","الدوائر الرقمية والمنطقية","تجميع أجهزة الحاسب الالي","الرسم الفني",null,null,"لغة عربية","لغة انجليزية","رياضيات","فيزياء","كيمياء","الدراسات الاجتماعية"," الحاسب الالي","تربية وطنية"," تربية دينية","تربية عسكرية"]
["",null,"اختر الديانة",null,null,"اختر البيان",null,"","","","","","","","","",null,null,"","",null,null,null,null,0,null,null,null,null,0,null,null,null,null,0,null,null,null,null,0,null,null,null,null,0,null,null,null,null,0,null,null,null,null,0,0,null,null,null,null,"لم يجتاز",null,null,null,null,"لم يجتاز",null,null,null,null,"لم يجتاز",null,null,null,null,"لم يجتاز",null,null,null,null,"لم يجتاز",null,null,null,null,0,null,null,null,null,0,null,null,0,"راسب وله حق الإعادة","راسب وله حق الإعادة","",null,null,null,null,2,"",null,1,1,1,1,1,1,1,1,1,1,1,1,1,1,1,null,null,null,15,0,0,0,1,0," لغة عربية","لغة إنجليزية ","رياضيات ","فيزياء ","كيمياء","الدراسات الاجتماعية ","الحاسب الالي","تربية وطنية","تربية دينية","تربية عسكرية",null,null,0,0,0,0,0,"لم يجتاز","لم يجتاز","لم يجتاز","لم يجتاز","لم يجتاز","السلامة والصحة المهنية","اساسيات الحاسب","الدوائر الرقمية والمنطقية","تجميع أجهزة الحاسب الالي","الرسم الفني",null,null,"لغة عربية","لغة انجليزية","رياضيات","فيزياء","كيمياء","الدراسات الاجتماعية"," الحاسب الالي","تربية وطنية"," تربية دينية","تربية عسكرية"]
["",null,"اختر الديانة",null,null,"اختر البيان",null,"","","","","","","","","",null,null,"","",null,null,null,null,0,null,null,null,null,0,null,null,null,null,0,null,null,null,null,0,null,null,null,null,0,null,null,null,null,0,null,null,null,null,0,0,null,null,null,null,"لم يجتاز",null,null,null,null,"لم يجتاز",null,null,null,null,"لم يجتاز",null,null,null,null,"لم يجتاز",null,null,null,null,"لم يجتاز",null,null,null,null,0,null,null,null,null,0,null,null,0,"راسب وله حق الإعادة","راسب وله حق الإعادة","",null,null,null,null,2,"",null,1,1,1,1,1,1,1,1,1,1,1,1,1,1,1,null,null,null,15,0,0,0,1,0," لغة عربية","لغة إنجليزية ","رياضيات ","فيزياء ","كيمياء","الدراسات الاجتماعية ","الحاسب الالي","تربية وطنية","تربية دينية","تربية عسكرية",null,null,0,0,0,0,0,"لم يجتاز","لم يجتاز","لم يجتاز","لم يجتاز","لم يجتاز","السلامة والصحة المهنية","اساسيات الحاسب","الدوائر الرقمية والمنطقية","تجميع أجهزة الحاسب الالي","الرسم الفني",null,null,"لغة عربية","لغة انجليزية","رياضيات","فيزياء","كيمياء","الدراسات الاجتماعية"," الحاسب الالي","تربية وطنية"," تربية دينية","تربية عسكرية"]
["",null,"اختر الديانة",null,null,"اختر البيان",null,"","","","","","","","","",null,null,"","",null,null,null,null,0,null,null,null,null,0,null,null,null,null,0,null,null,null,null,0,null,null,null,null,0,null,null,null,null,0,null,null,null,null,0,0,null,null,null,null,"لم يجتاز",null,null,null,null,"لم يجتاز",null,null,null,null,"لم يجتاز",null,null,null,null,"لم يجتاز",null,null,null,null,"لم يجتاز",null,null,null,null,0,null,null,null,null,0,null,null,0,"راسب وله حق الإعادة","راسب وله حق الإعادة","",null,null,null,null,2,"",null,1,1,1,1,1,1,1,1,1,1,1,1,1,1,1,null,null,null,15,0,0,0,1,0," لغة عربية","لغة إنجليزية ","رياضيات ","فيزياء ","كيمياء","الدراسات الاجتماعية ","الحاسب الالي","تربية وطنية","تربية دينية","تربية عسكرية",null,null,0,0,0,0,0,"لم يجتاز","لم يجتاز","لم يجتاز","لم يجتاز","لم يجتاز","السلامة والصحة المهنية","اساسيات الحاسب","الدوائر الرقمية والمنطقية","تجميع أجهزة الحاسب الالي","الرسم الفني",null,null,"لغة عربية","لغة انجليزية","رياضيات","فيزياء","كيمياء","الدراسات الاجتماعية"," الحاسب الالي","تربية وطنية"," تربية دينية","تربية عسكرية"]
["",null,"اختر الديانة",null,null,"اختر البيان",null,"","","","","","","","","",null,null,"","",null,null,null,null,0,null,null,null,null,0,null,null,null,null,0,null,null,null,null,0,null,null,null,null,0,null,null,null,null,0,null,null,null,null,0,0,null,null,null,null,"لم يجتاز",null,null,null,null,"لم يجتاز",null,null,null,null,"لم يجتاز",null,null,null,null,"لم يجتاز",null,null,null,null,"لم يجتاز",null,null,null,null,0,null,null,null,null,0,null,null,0,"راسب وله حق الإعادة","راسب وله حق الإعادة","",null,null,null,null,2,"",null,1,1,1,1,1,1,1,1,1,1,1,1,1,1,1,null,null,null,15,0,0,0,1,0," لغة عربية","لغة إنجليزية ","رياضيات ","فيزياء ","كيمياء","الدراسات الاجتماعية ","الحاسب الالي","تربية وطنية","تربية دينية","تربية عسكرية",null,null,0,0,0,0,0,"لم يجتاز","لم يجتاز","لم يجتاز","لم يجتاز","لم يجتاز","السلامة والصحة المهنية","اساسيات الحاسب","الدوائر الرقمية والمنطقية","تجميع أجهزة الحاسب الالي","الرسم الفني",null,null,"لغة عربية","لغة انجليزية","رياضيات","فيزياء","كيمياء","الدراسات الاجتماعية"," الحاسب الالي","تربية وطنية"," تربية دينية","تربية عسكرية"]
["",null,"اختر الديانة",null,null,"اختر البيان",null,"","","","","","","","","",null,null,"","",null,null,null,null,0,null,null,null,null,0,null,null,null,null,0,null,null,null,null,0,null,null,null,null,0,null,null,null,null,0,null,null,null,null,0,0,null,null,null,null,"لم يجتاز",null,null,null,null,"لم يجتاز",null,null,null,null,"لم يجتاز",null,null,null,null,"لم يجتاز",null,null,null,null,"لم يجتاز",null,null,null,null,0,null,null,null,null,0,null,null,0,"راسب وله حق الإعادة","راسب وله حق الإعادة","",null,null,null,null,2,"",null,1,1,1,1,1,1,1,1,1,1,1,1,1,1,1,null,null,null,15,0,0,0,1,0," لغة عربية","لغة إنجليزية ","رياضيات ","فيزياء ","كيمياء","الدراسات الاجتماعية ","الحاسب الالي","تربية وطنية","تربية دينية","تربية عسكرية",null,null,0,0,0,0,0,"لم يجتاز","لم يجتاز","لم يجتاز","لم يجتاز","لم يجتاز","السلامة والصحة المهنية","اساسيات الحاسب","الدوائر الرقمية والمنطقية","تجميع أجهزة الحاسب الالي","الرسم الفني",null,null,"لغة عربية","لغة انجليزية","رياضيات","فيزياء","كيمياء","الدراسات الاجتماعية"," الحاسب الالي","تربية وطنية"," تربية دينية","تربية عسكرية"]
["",null,"اختر الديانة",null,null,"اختر البيان",null,"","","","","","","","","",null,null,"","",null,null,null,null,0,null,null,null,null,0,null,null,null,null,0,null,null,null,null,0,null,null,null,null,0,null,null,null,null,0,null,null,null,null,0,0,null,null,null,null,"لم يجتاز",null,null,null,null,"لم يجتاز",null,null,null,null,"لم يجتاز",null,null,null,null,"لم يجتاز",null,null,null,null,"لم يجتاز",null,null,null,null,0,null,null,null,null,0,null,null,0,"راسب وله حق الإعادة","راسب وله حق الإعادة","",null,null,null,null,2,"",null,1,1,1,1,1,1,1,1,1,1,1,1,1,1,1,null,null,null,15,0,0,0,1,0," لغة عربية","لغة إنجليزية ","رياضيات ","فيزياء ","كيمياء","الدراسات الاجتماعية ","الحاسب الالي","تربية وطنية","تربية دينية","تربية عسكرية",null,null,0,0,0,0,0,"لم يجتاز","لم يجتاز","لم يجتاز","لم يجتاز","لم يجتاز","السلامة والصحة المهنية","اساسيات الحاسب","الدوائر الرقمية والمنطقية","تجميع أجهزة الحاسب الالي","الرسم الفني",null,null,"لغة عربية","لغة انجليزية","رياضيات","فيزياء","كيمياء","الدراسات الاجتماعية"," الحاسب الالي","تربية وطنية"," تربية دينية","تربية عسكرية"]
["",null,"اختر الديانة",null,null,"اختر البيان",null,"","","","","","","","","",null,null,"","",null,null,null,null,0,null,null,null,null,0,null,null,null,null,0,null,null,null,null,0,null,null,null,null,0,null,null,null,null,0,null,null,null,null,0,0,null,null,null,null,"لم يجتاز",null,null,null,null,"لم يجتاز",null,null,null,null,"لم يجتاز",null,null,null,null,"لم يجتاز",null,null,null,null,"لم يجتاز",null,null,null,null,0,null,null,null,null,0,null,null,0,"راسب وله حق الإعادة","راسب وله حق الإعادة","",null,null,null,null,2,"",null,1,1,1,1,1,1,1,1,1,1,1,1,1,1,1,null,null,null,15,0,0,0,1,0," لغة عربية","لغة إنجليزية ","رياضيات ","فيزياء ","كيمياء","الدراسات الاجتماعية ","الحاسب الالي","تربية وطنية","تربية دينية","تربية عسكرية",null,null,0,0,0,0,0,"لم يجتاز","لم يجتاز","لم يجتاز","لم يجتاز","لم يجتاز","السلامة والصحة المهنية","اساسيات الحاسب","الدوائر الرقمية والمنطقية","تجميع أجهزة الحاسب الالي","الرسم الفني",null,null,"لغة عربية","لغة انجليزية","رياضيات","فيزياء","كيمياء","الدراسات الاجتماعية"," الحاسب الالي","تربية وطنية"," تربية دينية","تربية عسكرية"]
["",null,"اختر الديانة",null,null,"اختر البيان",null,"","","","","","","","","",null,null,"","",null,null,null,null,0,null,null,null,null,0,null,null,null,null,0,null,null,null,null,0,null,null,null,null,0,null,null,null,null,0,null,null,null,null,0,0,null,null,null,null,"لم يجتاز",null,null,null,null,"لم يجتاز",null,null,null,null,"لم يجتاز",null,null,null,null,"لم يجتاز",null,null,null,null,"لم يجتاز",null,null,null,null,0,null,null,null,null,0,null,null,0,"راسب وله حق الإعادة","راسب وله حق الإعادة","",null,null,null,null,2,"",null,1,1,1,1,1,1,1,1,1,1,1,1,1,1,1,null,null,null,15,0,0,0,1,0," لغة عربية","لغة إنجليزية ","رياضيات ","فيزياء ","كيمياء","الدراسات الاجتماعية ","الحاسب الالي","تربية وطنية","تربية دينية","تربية عسكرية",null,null,0,0,0,0,0,"لم يجتاز","لم يجتاز","لم يجتاز","لم يجتاز","لم يجتاز","السلامة والصحة المهنية","اساسيات الحاسب","الدوائر الرقمية والمنطقية","تجميع أجهزة الحاسب الالي","الرسم الفني",null,null,"لغة عربية","لغة انجليزية","رياضيات","فيزياء","كيمياء","الدراسات الاجتماعية"," الحاسب الالي","تربية وطنية"," تربية دينية","تربية عسكرية"]
["",null,"اختر الديانة",null,null,"اختر البيان",null,"","","","","","","","","",null,null,"","",null,null,null,null,0,null,null,null,null,0,null,null,null,null,0,null,null,null,null,0,null,null,null,null,0,null,null,null,null,0,null,null,null,null,0,0,null,null,null,null,"لم يجتاز",null,null,null,null,"لم يجتاز",null,null,null,null,"لم يجتاز",null,null,null,null,"لم يجتاز",null,null,null,null,"لم يجتاز",null,null,null,null,0,null,null,null,null,0,null,null,0,"راسب وله حق الإعادة","راسب وله حق الإعادة","",null,null,null,null,2,"",null,1,1,1,1,1,1,1,1,1,1,1,1,1,1,1,null,null,null,15,0,0,0,1,0," لغة عربية","لغة إنجليزية ","رياضيات ","فيزياء ","كيمياء","الدراسات الاجتماعية ","الحاسب الالي","تربية وطنية","تربية دينية","تربية عسكرية",null,null,0,0,0,0,0,"لم يجتاز","لم يجتاز","لم يجتاز","لم يجتاز","لم يجتاز","السلامة والصحة المهنية","اساسيات الحاسب","الدوائر الرقمية والمنطقية","تجميع أجهزة الحاسب الالي","الرسم الفني",null,null,"لغة عربية","لغة انجليزية","رياضيات","فيزياء","كيمياء","الدراسات الاجتماعية"," الحاسب الالي","تربية وطنية"," تربية دينية","تربية عسكرية"]
["",null,"اختر الديانة",null,null,"اختر البيان",null,"","","","","","","","","",null,null,"","",null,null,null,null,0,null,null,null,null,0,null,null,null,null,0,null,null,null,null,0,null,null,null,null,0,null,null,null,null,0,null,null,null,null,0,0,null,null,null,null,"لم يجتاز",null,null,null,null,"لم يجتاز",null,null,null,null,"لم يجتاز",null,null,null,null,"لم يجتاز",null,null,null,null,"لم يجتاز",null,null,null,null,0,null,null,null,null,0,null,null,0,"راسب وله حق الإعادة","راسب وله حق الإعادة","",null,null,null,null,2,"",null,1,1,1,1,1,1,1,1,1,1,1,1,1,1,1,null,null,null,15,0,0,0,1,0," لغة عربية","لغة إنجليزية ","رياضيات ","فيزياء ","كيمياء","الدراسات الاجتماعية ","الحاسب الالي","تربية وطنية","تربية دينية","تربية عسكرية",null,null,0,0,0,0,0,"لم يجتاز","لم يجتاز","لم يجتاز","لم يجتاز","لم يجتاز","السلامة والصحة المهنية","اساسيات الحاسب","الدوائر الرقمية والمنطقية","تجميع أجهزة الحاسب الالي","الرسم الفني",null,null,"لغة عربية","لغة انجليزية","رياضيات","فيزياء","كيمياء","الدراسات الاجتماعية"," الحاسب الالي","تربية وطنية"," تربية دينية","تربية عسكرية"]
["",null,"اختر الديانة",null,null,"اختر البيان",null,"","","","","","","","","",null,null,"","",null,null,null,null,0,null,null,null,null,0,null,null,null,null,0,null,null,null,null,0,null,null,null,null,0,null,null,null,null,0,null,null,null,null,0,0,null,null,null,null,"لم يجتاز",null,null,null,null,"لم يجتاز",null,null,null,null,"لم يجتاز",null,null,null,null,"لم يجتاز",null,null,null,null,"لم يجتاز",null,null,null,null,0,null,null,null,null,0,null,null,0,"راسب وله حق الإعادة","راسب وله حق الإعادة","",null,null,null,null,2,"",null,1,1,1,1,1,1,1,1,1,1,1,1,1,1,1,null,null,null,15,0,0,0,1,0," لغة عربية","لغة إنجليزية ","رياضيات ","فيزياء ","كيمياء","الدراسات الاجتماعية ","الحاسب الالي","تربية وطنية","تربية دينية","تربية عسكرية",null,null,0,0,0,0,0,"لم يجتاز","لم يجتاز","لم يجتاز","لم يجتاز","لم يجتاز","السلامة والصحة المهنية","اساسيات الحاسب","الدوائر الرقمية والمنطقية","تجميع أجهزة الحاسب الالي","الرسم الفني",null,null,"لغة عربية","لغة انجليزية","رياضيات","فيزياء","كيمياء","الدراسات الاجتماعية"," الحاسب الالي","تربية وطنية"," تربية دينية","تربية عسكرية"]
["",null,"اختر الديانة",null,null,"اختر البيان",null,"","","","","","","","","",null,null,"","",null,null,null,null,0,null,null,null,null,0,null,null,null,null,0,null,null,null,null,0,null,null,null,null,0,null,null,null,null,0,null,null,null,null,0,0,null,null,null,null,"لم يجتاز",null,null,null,null,"لم يجتاز",null,null,null,null,"لم يجتاز",null,null,null,null,"لم يجتاز",null,null,null,null,"لم يجتاز",null,null,null,null,0,null,null,null,null,0,null,null,0,"راسب وله حق الإعادة","راسب وله حق الإعادة","",null,null,null,null,2,"",null,1,1,1,1,1,1,1,1,1,1,1,1,1,1,1,null,null,null,15,0,0,0,1,0," لغة عربية","لغة إنجليزية ","رياضيات ","فيزياء ","كيمياء","الدراسات الاجتماعية ","الحاسب الالي","تربية وطنية","تربية دينية","تربية عسكرية",null,null,0,0,0,0,0,"لم يجتاز","لم يجتاز","لم يجتاز","لم يجتاز","لم يجتاز","السلامة والصحة المهنية","اساسيات الحاسب","الدوائر الرقمية والمنطقية","تجميع أجهزة الحاسب الالي","الرسم الفني",null,null,"لغة عربية","لغة انجليزية","رياضيات","فيزياء","كيمياء","الدراسات الاجتماعية"," الحاسب الالي","تربية وطنية"," تربية دينية","تربية عسكرية"]
["",null,"اختر الديانة",null,null,"اختر البيان",null,"","","","","","","","","",null,null,"","",null,null,null,null,0,null,null,null,null,0,null,null,null,null,0,null,null,null,null,0,null,null,null,null,0,null,null,null,null,0,null,null,null,null,0,0,null,null,null,null,"لم يجتاز",null,null,null,null,"لم يجتاز",null,null,null,null,"لم يجتاز",null,null,null,null,"لم يجتاز",null,null,null,null,"لم يجتاز",null,null,null,null,0,null,null,null,null,0,null,null,0,"راسب وله حق الإعادة","راسب وله حق الإعادة","",null,null,null,null,2,"",null,1,1,1,1,1,1,1,1,1,1,1,1,1,1,1,null,null,null,15,0,0,0,1,0," لغة عربية","لغة إنجليزية ","رياضيات ","فيزياء ","كيمياء","الدراسات الاجتماعية ","الحاسب الالي","تربية وطنية","تربية دينية","تربية عسكرية",null,null,0,0,0,0,0,"لم يجتاز","لم يجتاز","لم يجتاز","لم يجتاز","لم يجتاز","السلامة والصحة المهنية","اساسيات الحاسب","الدوائر الرقمية والمنطقية","تجميع أجهزة الحاسب الالي","الرسم الفني",null,null,"لغة عربية","لغة انجليزية","رياضيات","فيزياء","كيمياء","الدراسات الاجتماعية"," الحاسب الالي","تربية وطنية"," تربية دينية","تربية عسكرية"]
["",null,"اختر الديانة",null,null,"اختر البيان",null,"","","","","","","","","",null,null,"","",null,null,null,null,0,null,null,null,null,0,null,null,null,null,0,null,null,null,null,0,null,null,null,null,0,null,null,null,null,0,null,null,null,null,0,0,null,null,null,null,"لم يجتاز",null,null,null,null,"لم يجتاز",null,null,null,null,"لم يجتاز",null,null,null,null,"لم يجتاز",null,null,null,null,"لم يجتاز",null,null,null,null,0,null,null,null,null,0,null,null,0,"راسب وله حق الإعادة","راسب وله حق الإعادة","",null,null,null,null,2,"",null,1,1,1,1,1,1,1,1,1,1,1,1,1,1,1,null,null,null,15,0,0,0,1,0," لغة عربية","لغة إنجليزية ","رياضيات ","فيزياء ","كيمياء","الدراسات الاجتماعية ","الحاسب الالي","تربية وطنية","تربية دينية","تربية عسكرية",null,null,0,0,0,0,0,"لم يجتاز","لم يجتاز","لم يجتاز","لم يجتاز","لم يجتاز","السلامة والصحة المهنية","اساسيات الحاسب","الدوائر الرقمية والمنطقية","تجميع أجهزة الحاسب الالي","الرسم الفني",null,null,"لغة عربية","لغة انجليزية","رياضيات","فيزياء","كيمياء","الدراسات الاجتماعية"," الحاسب الالي","تربية وطنية"," تربية دينية","تربية عسكرية"]
["",null,"اختر الديانة",null,null,"اختر البيان",null,"","","","","","","","","",null,null,"","",null,null,null,null,0,null,null,null,null,0,null,null,null,null,0,null,null,null,null,0,null,null,null,null,0,null,null,null,null,0,null,null,null,null,0,0,null,null,null,null,"لم يجتاز",null,null,null,null,"لم يجتاز",null,null,null,null,"لم يجتاز",null,null,null,null,"لم يجتاز",null,null,null,null,"لم يجتاز",null,null,null,null,0,null,null,null,null,0,null,null,0,"راسب وله حق الإعادة","راسب وله حق الإعادة","",null,null,null,null,2,"",null,1,1,1,1,1,1,1,1,1,1,1,1,1,1,1,null,null,null,15,0,0,0,1,0," لغة عربية","لغة إنجليزية ","رياضيات ","فيزياء ","كيمياء","الدراسات الاجتماعية ","الحاسب الالي","تربية وطنية","تربية دينية","تربية عسكرية",null,null,0,0,0,0,0,"لم يجتاز","لم يجتاز","لم يجتاز","لم يجتاز","لم يجتاز","السلامة والصحة المهنية","اساسيات الحاسب","الدوائر الرقمية والمنطقية","تجميع أجهزة الحاسب الالي","الرسم الفني",null,null,"لغة عربية","لغة انجليزية","رياضيات","فيزياء","كيمياء","الدراسات الاجتماعية"," الحاسب الالي","تربية وطنية"," تربية دينية","تربية عسكرية"]
["",null,"اختر الديانة",null,null,"اختر البيان",null,"","","","","","","","","",null,null,"","",null,null,null,null,0,null,null,null,null,0,null,null,null,null,0,null,null,null,null,0,null,null,null,null,0,null,null,null,null,0,null,null,null,null,0,0,null,null,null,null,"لم يجتاز",null,null,null,null,"لم يجتاز",null,null,null,null,"لم يجتاز",null,null,null,null,"لم يجتاز",null,null,null,null,"لم يجتاز",null,null,null,null,0,null,null,null,null,0,null,null,0,"راسب وله حق الإعادة","راسب وله حق الإعادة",{"$f":"IF(CR139=\"راسب وله حق الاعادة\",\"\",IF(CR139=\"راسب وليس له حق الاعادة\",\"\",CONCATENATE(DY139,\" \",DZ139,\" \",EA139,\" \",EB139,\" \",EC139,\" \",ED139,\" \",EE139,\" \",EF139,\" \",EG139,\" \",EH139,\" \",EU139,\" \",EV139,\" \",EW139,\" \",EX139,\" \",EY139)))","v":""},null,null,null,null,2,"",null,{"$f":"IF(OR(X139<$X$9,Y139<$Y$9,X139=\"غ\"),1,0)","v":1},{"$f":"IF(OR(AC139<$AC$9,AD139<$AD$9,AC139=\"غ\"),1,0)","v":1},{"$f":"IF(OR(AH139<$AH$9,AI139<$AI$9,AH139=\"غ\"),1,0)","v":1},{"$f":"IF(OR(AM139<$AM$9,AN139<$AN$9,AM139=\"غ\"),1,0)","v":1},{"$f":"IF(OR(AR139<$AR$9,AS139<$AS$9,AR139=\"غ\"),1,0)","v":1},{"$f":"IF(OR(AW139<$AW$9,AX139<$AX$9,AW139=\"غ\"),1,0)","v":1},{"$f":"IF(OR(BB139<$BB$9,BC139<$BC$9,BB139=\"غ\"),1,0)","v":1},{"$f":"IF(OR(CH139<$CH$9,CG139<$CG$9,CG139=\"غ\"),1,0)","v":1},{"$f":"IF(OR(CM139<$CM$9,CL139<$CL$9,CL139=\"غ\"),1,0)","v":1},1,1,1,1,1,1,null,null,null,15,0,0,0,1,{"$f":"IF(CY139=\"راسب وليس له حق الإعادة\",1,0)","v":0}," لغة عربية","لغة إنجليزية ","رياضيات ","فيزياء ","كيمياء","الدراسات الاجتماعية ","الحاسب الالي","تربية وطنية","تربية دينية","تربية عسكرية",null,null,{"$f":"COUNTIF(BE139:BH139,\"اجتاز\")","v":0},{"$f":"COUNTIF(BJ139:BM139,\"اجتاز\")","v":0},{"$f":"COUNTIF(BO139:BR139,\"اجتاز\")","v":0},{"$f":"COUNTIF(BT139:BW139,\"اجتاز\")","v":0},{"$f":"COUNTIF(BY139:CB139,\"اجتاز\")","v":0},{"$f":"IF(EK139>0,\"اجتاز\",\"لم يجتاز\")","v":"لم يجتاز"},"لم يجتاز","لم يجتاز","لم يجتاز","لم يجتاز","السلامة والصحة المهنية","اساسيات الحاسب","الدوائر الرقمية والمنطقية","تجميع أجهزة الحاسب الالي","الرسم الفني",null,null,{"$f":"IF(X139<$X$9,\"لغة عربية\",\"\")","v":"لغة عربية"},{"$f":"IF(AC139<$AC$9,\"لغة انجليزية\",\"\")","v":"لغة انجليزية"},{"$f":"IF(AH139<$AH$9,\"رياضيات\",\"\")","v":"رياضيات"},{"$f":"IF(AM139<$AM$9,\"فيزياء\",\"\")","v":"فيزياء"},{"$f":"IF(AR139<$AR$9,\"كيمياء\",\"\")","v":"كيمياء"},{"$f":"IF(AW139<$AW$9,\"الدراسات الاجتماعية\",\"\")","v":"الدراسات الاجتماعية"},{"$f":"IF(BB139<$BB$9,\" الحاسب الالي\",\"\")","v":" الحاسب الالي"},{"$f":"IF(CG139<$CG$9,\"تربية وطنية\",\"\")","v":"تربية وطنية"},{"$f":"IF(CL139<$CL$9,\" تربية دينية\",\"\")","v":" تربية دينية"},{"$f":"IF(CO139<$CO$9,\"تربية عسكرية\",\"\")","v":"تربية عسكرية"}]
["",null,"اختر الديانة",null,null,"اختر البيان",null,{"$f":"IF(G140=\"\",\"\",DATE(IF(LEFT(G140,1)*1=3,20,19)&MID(G140,2,2),MID(G140,4,2),MID(G140,6,2)))","v":""},{"$f":"IF(G140=\"\",\"\",(DAY(H140)))","v":""},{"$f":"IF(G140=\"\",\"\",(MONTH(H140)))","v":""},{"$f":"IF(G140=\"\",\"\",(YEAR(H140)))","v":""},{"$f":"IF(H140<>\"\",IF(DAY(H140)>DAY($L$7),(DAY($L$7)+30)-DAY(H140),DAY($L$7)-DAY(E133)),\"\")","v":""},{"$f":"IF(H140 =\"\",\"\",DATEDIF(H140,$L$7,\"ym\"))","v":""},{"$f":"IF(H140 =\"\",\"\",DATEDIF(H140,$L$7,\"y\"))","v":""},{"$f":"IF(F140=\"باق\",1,\"\")","v":""},{"$f":"IF(F140=\"مفصول ويفصل\",2,IF(F140=\"باق\",2,IF(F140=\"سحب ملف\",2,IF(F140=\"\",2,\"\"))))","v":""},null,null,"","",null,null,null,null,{"$f":"SUM(U140:X140)","v":0},null,null,null,null,{"$f":"SUM(Z140:AC140)","v":0},null,null,null,null,{"$f":"SUM(AE140:AH140)","v":0},null,null,null,null,{"$f":"SUM(AJ140:AM140)","v":0},null,null,null,null,{"$f":"SUM(AO140:AR140)","v":0},null,null,null,null,{"$f":"SUM(AT140:AW140)","v":0},null,null,null,null,{"$f":"SUM(AY140:BB140)","v":0},{"$f":"SUM(BC140,AX140,AS140,AN140,AI140,AD140,Y140)","v":0},null,null,null,null,{"$f":"EP140","v":"لم يجتاز"},null,null,null,null,{"$f":"EQ140","v":"لم يجتاز"},null,null,null,null,{"$f":"ER140","v":"لم يجتاز"},null,null,null,null,{"$f":"ES140","v":"لم يجتاز"},null,null,null,null,{"$f":"ET140","v":"لم يجتاز"},null,null,null,null,{"$f":"SUM(CD140:CG140)","v":0},null,null,null,null,{"$f":"SUM(CI140:CL140)","v":0},null,null,0,{"$f":"IF(DS140=0,$DT$10,IF(DS140=1,$DU$10,IF(DS140=2,$DV$10,$DW$10)))","v":"راسب وله حق الإعادة"},{"$f":"IF(CY140=\"\",CQ140,CY140)","v":"راسب وله حق الإعادة"},"",null,null,null,null,{"$f":"IF(CQ140=$DT$10,0,IF(CQ140=$DU$10,1,IF(CQ140=$DV$10,3,IF(CQ140=$DW$10,2,$DX$10))))","v":2},{"$f":"IF(P140=CX140,$DX$10,\"\")","v":""},null,1,1,1,1,1,1,1,1,1,{"$f":"IF(OR(CP140<$CP$9,CO140=\"غ\"),1,0)","v":1},1,1,1,1,1,null,null,null,{"$f":"SUM(DA140:DO140)","v":15},{"$f":"IF(DS140=0,1,0)","v":0},{"$f":"IF(DS140=1,1,0)","v":0},{"$f":"IF(DS140=2,1,0)","v":0},{"$f":"IF(DS140>2,1,0)","v":1},0,{"$f":"IF(X140=\"غ\",\"العربي _ للغياب\",IF(DA140=0,\"\",\" لغة عربية\"))","v":" لغة عربية"},{"$f":"IF(AC140=\"غ\",\"الإنجليزي _ للغياب\",IF(DB140=0,\"\",\"لغة إنجليزية \"))","v":"لغة إنجليزية "},{"$f":"IF(AH140=\"غ\",\"الرياضيات _ للغياب\",IF(DC140=0,\"\",\"رياضيات \"))","v":"رياضيات "},{"$f":"IF(AM140=\"غ\",\"الفيزياء _ للغياب\",IF(DD140=0,\"\",\"فيزياء \"))","v":"فيزياء "},{"$f":"IF(AR140=\"غ\",\"الكيمياء _ للغياب\",IF(DE140=0,\"\",\"كيمياء\"))","v":"كيمياء"},{"$f":"IF(AW140=\"غ\",\"الدراسات _ للغياب\",IF(DF140=0,\"\",\"الدراسات الاجتماعية \"))","v":"الدراسات الاجتماعية "},{"$f":"IF(BB140=\"غ\",\"الحاسب_ للغياب\",IF(DG140=0,\"\",\"الحاسب الالي\"))","v":"الحاسب الالي"},{"$f":"IF(CG140=\"غ\",\"الوطنية _ للغياب\",IF(DH140=0,\"\",\"تربية وطنية\"))","v":"تربية وطنية"},{"$f":"IF(CL140=\"غ\",\"الدين _ للغياب\",IF(DI140=0,\"\",\"تربية دينية\"))","v":"تربية دينية"},{"$f":"IF(CO140=\"غ\",\"العسكرية _ للغياب\",IF(DJ140=0,\"\",\"تربية عسكرية\"))","v":"تربية عسكرية"},null,null,0,0,0,0,0,"لم يجتاز","لم يجتاز","لم يجتاز","لم يجتاز","لم يجتاز",{"$f":"IF(EP140=\"لم يجتاز\",$EU$7,\"\")","v":"السلامة والصحة المهنية"},{"$f":"IF(EQ140=\"لم يجتاز\",$EV$7,\"\")","v":"اساسيات الحاسب"},{"$f":"IF(ER140=\"لم يجتاز\",$EW$7,\"\")","v":"الدوائر الرقمية والمنطقية"},{"$f":"IF(ES140=\"لم يجتاز\",$EX$7,\"\")","v":"تجميع أجهزة الحاسب الالي"},{"$f":"IF(ET140=\"لم يجتاز\",$EY$7,\"\")","v":"الرسم الفني"},null,null,"لغة عربية","لغة انجليزية","رياضيات","فيزياء","كيمياء","الدراسات الاجتماعية"," الحاسب الالي","تربية وطنية"," تربية دينية","تربية عسكرية"]
[{"$f":"IF(B141=\"\",\"\",A140+1)","v":""},null,"اختر الديانة",null,null,"اختر البيان",null,"","","","","","","","","",null,null,"",{"$f":"IF(T140=\"\",\"\",$T140+1)","v":""},null,null,null,null,0,null,null,null,null,0,null,null,null,null,0,null,null,null,null,0,null,null,null,null,0,null,null,null,null,0,null,null,null,null,0,0,null,null,null,null,"لم يجتاز",null,null,null,null,"لم يجتاز",null,null,null,null,"لم يجتاز",null,null,null,null,"لم يجتاز",null,null,null,null,"لم يجتاز",null,null,null,null,0,null,null,null,null,0,null,null,0,"راسب وله حق الإعادة","راسب وله حق الإعادة","",null,null,null,null,2,"",null,1,1,1,1,1,1,1,1,1,1,1,1,1,1,1,null,null,null,15,0,0,0,1,0," لغة عربية","لغة إنجليزية ","رياضيات ","فيزياء ","كيمياء","الدراسات الاجتماعية ","الحاسب الالي","تربية وطنية","تربية دينية","تربية عسكرية",null,null,0,0,0,0,0,"لم يجتاز","لم يجتاز","لم يجتاز","لم يجتاز","لم يجتاز","السلامة والصحة المهنية","اساسيات الحاسب","الدوائر الرقمية والمنطقية","تجميع أجهزة الحاسب الالي","الرسم الفني",null,null,"لغة عربية","لغة انجليزية","رياضيات","فيزياء","كيمياء","الدراسات الاجتماعية"," الحاسب الالي","تربية وطنية"," تربية دينية","تربية عسكرية"]
["",null,"اختر الديانة",null,null,"اختر البيان",null,"","","","","","","","","",null,null,"","",null,null,null,null,0,null,null,null,null,0,null,null,null,null,0,null,null,null,null,0,null,null,null,null,0,null,null,null,null,0,null,null,null,null,0,0,null,null,null,null,"لم يجتاز",null,null,null,null,"لم يجتاز",null,null,null,null,"لم يجتاز",null,null,null,null,"لم يجتاز",null,null,null,null,"لم يجتاز",null,null,null,null,0,null,null,null,null,0,null,null,0,"راسب وله حق الإعادة","راسب وله حق الإعادة","",null,null,null,null,2,"",null,1,1,1,1,1,1,1,1,1,1,1,1,1,1,1,null,null,null,15,0,0,0,1,0," لغة عربية","لغة إنجليزية ","رياضيات ","فيزياء ","كيمياء","الدراسات الاجتماعية ","الحاسب الالي","تربية وطنية","تربية دينية","تربية عسكرية",null,null,0,0,0,0,0,"لم يجتاز","لم يجتاز","لم يجتاز","لم يجتاز","لم يجتاز","السلامة والصحة المهنية","اساسيات الحاسب","الدوائر الرقمية والمنطقية","تجميع أجهزة الحاسب الالي","الرسم الفني",null,null,"لغة عربية","لغة انجليزية","رياضيات","فيزياء","كيمياء","الدراسات الاجتماعية"," الحاسب الالي","تربية وطنية"," تربية دينية","تربية عسكرية"]
["",null,"اختر الديانة",null,null,"اختر البيان",null,"","","","","","","","","",null,null,"","",null,null,null,null,0,null,null,null,null,0,null,null,null,null,0,null,null,null,null,0,null,null,null,null,0,null,null,null,null,0,null,null,null,null,0,0,null,null,null,null,"لم يجتاز",null,null,null,null,"لم يجتاز",null,null,null,null,"لم يجتاز",null,null,null,null,"لم يجتاز",null,null,null,null,"لم يجتاز",null,null,null,null,0,null,null,null,null,0,null,null,0,"راسب وله حق الإعادة","راسب وله حق الإعادة","",null,null,null,null,2,"",null,1,1,1,1,1,1,1,1,1,1,1,1,1,1,1,null,null,null,15,0,0,0,1,0," لغة عربية","لغة إنجليزية ","رياضيات ","فيزياء ","كيمياء","الدراسات الاجتماعية ","الحاسب الالي","تربية وطنية","تربية دينية","تربية عسكرية",null,null,0,0,0,0,0,"لم يجتاز","لم يجتاز","لم يجتاز","لم يجتاز","لم يجتاز","السلامة والصحة المهنية","اساسيات الحاسب","الدوائر الرقمية والمنطقية","تجميع أجهزة الحاسب الالي","الرسم الفني",null,null,"لغة عربية","لغة انجليزية","رياضيات","فيزياء","كيمياء","الدراسات الاجتماعية"," الحاسب الالي","تربية وطنية"," تربية دينية","تربية عسكرية"]
["",null,"اختر الديانة",null,null,"اختر البيان",null,"","","","","","","","","",null,null,"","",null,null,null,null,0,null,null,null,null,0,null,null,null,null,0,null,null,null,null,0,null,null,null,null,0,null,null,null,null,0,null,null,null,null,0,0,null,null,null,null,"لم يجتاز",null,null,null,null,"لم يجتاز",null,null,null,null,"لم يجتاز",null,null,null,null,"لم يجتاز",null,null,null,null,"لم يجتاز",null,null,null,null,0,null,null,null,null,0,null,null,{"$f":"SUM(CN144:CO144)","v":0},"راسب وله حق الإعادة","راسب وله حق الإعادة","",null,null,null,null,2,"",null,1,1,1,1,1,1,1,1,1,1,1,1,1,1,1,null,null,null,15,0,0,0,1,0," لغة عربية","لغة إنجليزية ","رياضيات ","فيزياء ","كيمياء","الدراسات الاجتماعية ","الحاسب الالي","تربية وطنية","تربية دينية","تربية عسكرية",null,null,0,0,0,0,0,"لم يجتاز","لم يجتاز","لم يجتاز","لم يجتاز","لم يجتاز","السلامة والصحة المهنية","اساسيات الحاسب","الدوائر الرقمية والمنطقية","تجميع أجهزة الحاسب الالي","الرسم الفني",null,null,"لغة عربية","لغة انجليزية","رياضيات","فيزياء","كيمياء","الدراسات الاجتماعية"," الحاسب الالي","تربية وطنية"," تربية دينية","تربية عسكرية"]
["",null,"اختر الديانة",null,null,"اختر البيان",null,"","","","","","","","","",null,null,"","",null,null,null,null,0,null,null,null,null,0,null,null,null,null,0,null,null,null,null,0,null,null,null,null,0,null,null,null,null,0,null,null,null,null,0,0,null,null,null,null,"لم يجتاز",null,null,null,null,"لم يجتاز",null,null,null,null,"لم يجتاز",null,null,null,null,"لم يجتاز",null,null,null,null,"لم يجتاز",null,null,null,null,0,null,null,null,null,0,null,null,0,"راسب وله حق الإعادة","راسب وله حق الإعادة","",null,null,null,null,2,"",null,1,1,1,1,1,1,1,1,1,1,1,1,1,1,1,null,null,null,15,0,0,0,1,0," لغة عربية","لغة إنجليزية ","رياضيات ","فيزياء ","كيمياء","الدراسات الاجتماعية ","الحاسب الالي","تربية وطنية","تربية دينية","تربية عسكرية",null,null,0,0,0,0,0,"لم يجتاز","لم يجتاز","لم يجتاز","لم يجتاز","لم يجتاز","السلامة والصحة المهنية","اساسيات الحاسب","الدوائر الرقمية والمنطقية","تجميع أجهزة الحاسب الالي","الرسم الفني",null,null,"لغة عربية","لغة انجليزية","رياضيات","فيزياء","كيمياء","الدراسات الاجتماعية"," الحاسب الالي","تربية وطنية"," تربية دينية","تربية عسكرية"]
["",null,"اختر الديانة",null,null,"اختر البيان",null,"","","","","","","","","",null,null,"","",null,null,null,null,0,null,null,null,null,0,null,null,null,null,0,null,null,null,null,0,null,null,null,null,0,null,null,null,null,0,null,null,null,null,0,0,null,null,null,null,"لم يجتاز",null,null,null,null,"لم يجتاز",null,null,null,null,"لم يجتاز",null,null,null,null,"لم يجتاز",null,null,null,null,"لم يجتاز",null,null,null,null,0,null,null,null,null,0,null,null,0,"راسب وله حق الإعادة","راسب وله حق الإعادة","",null,null,null,null,2,"",null,1,1,1,1,1,1,1,1,1,1,1,1,1,1,1,null,null,null,15,0,0,0,1,0," لغة عربية","لغة إنجليزية ","رياضيات ","فيزياء ","كيمياء","الدراسات الاجتماعية ","الحاسب الالي","تربية وطنية","تربية دينية","تربية عسكرية",null,null,0,0,0,0,0,"لم يجتاز","لم يجتاز","لم يجتاز","لم يجتاز","لم يجتاز","السلامة والصحة المهنية","اساسيات الحاسب","الدوائر الرقمية والمنطقية","تجميع أجهزة الحاسب الالي","الرسم الفني",null,null,"لغة عربية","لغة انجليزية","رياضيات","فيزياء","كيمياء","الدراسات الاجتماعية"," الحاسب الالي","تربية وطنية"," تربية دينية","تربية عسكرية"]
["",null,"اختر الديانة",null,null,"اختر البيان",null,"","","","","","","","","",null,null,"","",null,null,null,null,0,null,null,null,null,0,null,null,null,null,0,null,null,null,null,0,null,null,null,null,0,null,null,null,null,0,null,null,null,null,0,0,null,null,null,null,"لم يجتاز",null,null,null,null,"لم يجتاز",null,null,null,null,"لم يجتاز",null,null,null,null,"لم يجتاز",null,null,null,null,"لم يجتاز",null,null,null,null,0,null,null,null,null,0,null,null,0,"راسب وله حق الإعادة","راسب وله حق الإعادة","",null,null,null,null,2,"",null,1,1,1,1,1,1,1,1,1,1,1,1,1,1,1,null,null,null,15,0,0,0,1,0," لغة عربية","لغة إنجليزية ","رياضيات ","فيزياء ","كيمياء","الدراسات الاجتماعية ","الحاسب الالي","تربية وطنية","تربية دينية","تربية عسكرية",null,null,0,0,0,0,0,"لم يجتاز","لم يجتاز","لم يجتاز","لم يجتاز","لم يجتاز","السلامة والصحة المهنية","اساسيات الحاسب","الدوائر الرقمية والمنطقية","تجميع أجهزة الحاسب الالي","الرسم الفني",null,null,"لغة عربية","لغة انجليزية","رياضيات","فيزياء","كيمياء","الدراسات الاجتماعية"," الحاسب الالي","تربية وطنية"," تربية دينية","تربية عسكرية"]
["",null,"اختر الديانة",null,null,"اختر البيان",null,"","","","","","","","","",null,null,"","",null,null,null,null,0,null,null,null,null,0,null,null,null,null,0,null,null,null,null,0,null,null,null,null,0,null,null,null,null,0,null,null,null,null,0,0,null,null,null,null,"لم يجتاز",null,null,null,null,"لم يجتاز",null,null,null,null,"لم يجتاز",null,null,null,null,"لم يجتاز",null,null,null,null,"لم يجتاز",null,null,null,null,0,null,null,null,null,0,null,null,0,"راسب وله حق الإعادة","راسب وله حق الإعادة","",null,null,null,null,2,"",null,1,1,1,1,1,1,1,1,1,1,1,1,1,1,1,null,null,null,15,0,0,0,1,0," لغة عربية","لغة إنجليزية ","رياضيات ","فيزياء ","كيمياء","الدراسات الاجتماعية ","الحاسب الالي","تربية وطنية","تربية دينية","تربية عسكرية",null,null,0,0,0,0,0,"لم يجتاز","لم يجتاز","لم يجتاز","لم يجتاز","لم يجتاز","السلامة والصحة المهنية","اساسيات الحاسب","الدوائر الرقمية والمنطقية","تجميع أجهزة الحاسب الالي","الرسم الفني",null,null,"لغة عربية","لغة انجليزية","رياضيات","فيزياء","كيمياء","الدراسات الاجتماعية"," الحاسب الالي","تربية وطنية"," تربية دينية","تربية عسكرية"]
["",null,"اختر الديانة",null,null,"اختر البيان",null,"","","","","","","","","",null,null,"","",null,null,null,null,0,null,null,null,null,0,null,null,null,null,0,null,null,null,null,0,null,null,null,null,0,null,null,null,null,0,null,null,null,null,0,0,null,null,null,null,"لم يجتاز",null,null,null,null,"لم يجتاز",null,null,null,null,"لم يجتاز",null,null,null,null,"لم يجتاز",null,null,null,null,"لم يجتاز",null,null,null,null,0,null,null,null,null,0,null,null,0,"راسب وله حق الإعادة","راسب وله حق الإعادة","",null,null,null,null,2,"",null,1,1,1,1,1,1,1,1,1,1,1,1,1,1,1,null,null,null,15,0,0,0,1,0," لغة عربية","لغة إنجليزية ","رياضيات ","فيزياء ","كيمياء","الدراسات الاجتماعية ","الحاسب الالي","تربية وطنية","تربية دينية","تربية عسكرية",null,null,0,0,0,0,0,"لم يجتاز","لم يجتاز","لم يجتاز","لم يجتاز","لم يجتاز","السلامة والصحة المهنية","اساسيات الحاسب","الدوائر الرقمية والمنطقية","تجميع أجهزة الحاسب الالي","الرسم الفني",null,null,"لغة عربية","لغة انجليزية","رياضيات","فيزياء","كيمياء","الدراسات الاجتماعية"," الحاسب الالي","تربية وطنية"," تربية دينية","تربية عسكرية"]
["",null,"اختر الديانة",null,null,"اختر البيان",null,"","","","","","","","","",null,null,"","",null,null,null,null,0,null,null,null,null,0,null,null,null,null,0,null,null,null,null,0,null,null,null,null,0,null,null,null,null,0,null,null,null,null,0,0,null,null,null,null,"لم يجتاز",null,null,null,null,"لم يجتاز",null,null,null,null,"لم يجتاز",null,null,null,null,"لم يجتاز",null,null,null,null,"لم يجتاز",null,null,null,null,0,null,null,null,null,0,null,null,0,"راسب وله حق الإعادة","راسب وله حق الإعادة","",null,null,null,null,2,"",null,1,1,1,1,1,1,1,1,1,1,1,1,1,1,1,null,null,null,15,0,0,0,1,0," لغة عربية","لغة إنجليزية ","رياضيات ","فيزياء ","كيمياء","الدراسات الاجتماعية ","الحاسب الالي","تربية وطنية","تربية دينية","تربية عسكرية",null,null,0,0,0,0,0,"لم يجتاز","لم يجتاز","لم يجتاز","لم يجتاز","لم يجتاز","السلامة والصحة المهنية","اساسيات الحاسب","الدوائر الرقمية والمنطقية","تجميع أجهزة الحاسب الالي","الرسم الفني",null,null,"لغة عربية","لغة انجليزية","رياضيات","فيزياء","كيمياء","الدراسات الاجتماعية"," الحاسب الالي","تربية وطنية"," تربية دينية","تربية عسكرية"]
["",null,"اختر الديانة",null,null,"اختر البيان",null,"","","","","","","","","",null,null,"","",null,null,null,null,0,null,null,null,null,0,null,null,null,null,0,null,null,null,null,0,null,null,null,null,0,null,null,null,null,0,null,null,null,null,0,0,null,null,null,null,"لم يجتاز",null,null,null,null,"لم يجتاز",null,null,null,null,"لم يجتاز",null,null,null,null,"لم يجتاز",null,null,null,null,"لم يجتاز",null,null,null,null,0,null,null,null,null,0,null,null,0,"راسب وله حق الإعادة","راسب وله حق الإعادة","",null,null,null,null,2,"",null,1,1,1,1,1,1,1,1,1,1,1,1,1,1,1,null,null,null,15,0,0,0,1,0," لغة عربية","لغة إنجليزية ","رياضيات ","فيزياء ","كيمياء","الدراسات الاجتماعية ","الحاسب الالي","تربية وطنية","تربية دينية","تربية عسكرية",null,null,0,0,0,0,0,"لم يجتاز","لم يجتاز","لم يجتاز","لم يجتاز","لم يجتاز","السلامة والصحة المهنية","اساسيات الحاسب","الدوائر الرقمية والمنطقية","تجميع أجهزة الحاسب الالي","الرسم الفني",null,null,"لغة عربية","لغة انجليزية","رياضيات","فيزياء","كيمياء","الدراسات الاجتماعية"," الحاسب الالي","تربية وطنية"," تربية دينية","تربية عسكرية"]
["",null,"اختر الديانة",null,null,"اختر البيان",null,"","","","","","","","","",null,null,"","",null,null,null,null,0,null,null,null,null,0,null,null,null,null,0,null,null,null,null,0,null,null,null,null,0,null,null,null,null,0,null,null,null,null,0,0,null,null,null,null,"لم يجتاز",null,null,null,null,"لم يجتاز",null,null,null,null,"لم يجتاز",null,null,null,null,"لم يجتاز",null,null,null,null,"لم يجتاز",null,null,null,null,0,null,null,null,null,0,null,null,0,"راسب وله حق الإعادة","راسب وله حق الإعادة","",null,null,null,null,2,"",null,1,1,1,1,1,1,1,1,1,1,1,1,1,1,1,null,null,null,15,0,0,0,1,0," لغة عربية","لغة إنجليزية ","رياضيات ","فيزياء ","كيمياء","الدراسات الاجتماعية ","الحاسب الالي","تربية وطنية","تربية دينية","تربية عسكرية",null,null,0,0,0,0,0,"لم يجتاز","لم يجتاز","لم يجتاز","لم يجتاز","لم يجتاز","السلامة والصحة المهنية","اساسيات الحاسب","الدوائر الرقمية والمنطقية","تجميع أجهزة الحاسب الالي","الرسم الفني",null,null,"لغة عربية","لغة انجليزية","رياضيات","فيزياء","كيمياء","الدراسات الاجتماعية"," الحاسب الالي","تربية وطنية"," تربية دينية","تربية عسكرية"]
["",null,"اختر الديانة",null,null,"اختر البيان",null,"","","","","","","","","",null,null,"","",null,null,null,null,0,null,null,null,null,0,null,null,null,null,0,null,null,null,null,0,null,null,null,null,0,null,null,null,null,0,null,null,null,null,0,0,null,null,null,null,"لم يجتاز",null,null,null,null,"لم يجتاز",null,null,null,null,"لم يجتاز",null,null,null,null,"لم يجتاز",null,null,null,null,"لم يجتاز",null,null,null,null,0,null,null,null,null,0,null,null,0,"راسب وله حق الإعادة","راسب وله حق الإعادة","",null,null,null,null,2,"",null,1,1,1,1,1,1,1,1,1,1,1,1,1,1,1,null,null,null,15,0,0,0,1,0," لغة عربية","لغة إنجليزية ","رياضيات ","فيزياء ","كيمياء","الدراسات الاجتماعية ","الحاسب الالي","تربية وطنية","تربية دينية","تربية عسكرية",null,null,0,0,0,0,0,"لم يجتاز","لم يجتاز","لم يجتاز","لم يجتاز","لم يجتاز","السلامة والصحة المهنية","اساسيات الحاسب","الدوائر الرقمية والمنطقية","تجميع أجهزة الحاسب الالي","الرسم الفني",null,null,"لغة عربية","لغة انجليزية","رياضيات","فيزياء","كيمياء","الدراسات الاجتماعية"," الحاسب الالي","تربية وطنية"," تربية دينية","تربية عسكرية"]
["",null,"اختر الديانة",null,null,"اختر البيان",null,"","","","","","","","","",null,null,"","",null,null,null,null,0,null,null,null,null,0,null,null,null,null,0,null,null,null,null,0,null,null,null,null,0,null,null,null,null,0,null,null,null,null,0,0,null,null,null,null,"لم يجتاز",null,null,null,null,"لم يجتاز",null,null,null,null,"لم يجتاز",null,null,null,null,"لم يجتاز",null,null,null,null,"لم يجتاز",null,null,null,null,0,null,null,null,null,0,null,null,0,"راسب وله حق الإعادة","راسب وله حق الإعادة","",null,null,null,null,2,"",null,1,1,1,1,1,1,1,1,1,1,1,1,1,1,1,null,null,null,15,0,0,0,1,0," لغة عربية","لغة إنجليزية ","رياضيات ","فيزياء ","كيمياء","الدراسات الاجتماعية ","الحاسب الالي","تربية وطنية","تربية دينية","تربية عسكرية",null,null,0,0,0,0,0,"لم يجتاز","لم يجتاز","لم يجتاز","لم يجتاز","لم يجتاز","السلامة والصحة المهنية","اساسيات الحاسب","الدوائر الرقمية والمنطقية","تجميع أجهزة الحاسب الالي","الرسم الفني",null,null,"لغة عربية","لغة انجليزية","رياضيات","فيزياء","كيمياء","الدراسات الاجتماعية"," الحاسب الالي","تربية وطنية"," تربية دينية","تربية عسكرية"]
["",null,"اختر الديانة",null,null,"اختر البيان",null,"","","","","","","","","",null,null,"","",null,null,null,null,0,null,null,null,null,0,null,null,null,null,0,null,null,null,null,0,null,null,null,null,0,null,null,null,null,0,null,null,null,null,0,0,null,null,null,null,"لم يجتاز",null,null,null,null,"لم يجتاز",null,null,null,null,"لم يجتاز",null,null,null,null,"لم يجتاز",null,null,null,null,"لم يجتاز",null,null,null,null,0,null,null,null,null,0,null,null,0,"راسب وله حق الإعادة","راسب وله حق الإعادة","",null,null,null,null,2,"",null,1,1,1,1,1,1,1,1,1,1,1,1,1,1,1,null,null,null,15,0,0,0,1,0," لغة عربية","لغة إنجليزية ","رياضيات ","فيزياء ","كيمياء","الدراسات الاجتماعية ","الحاسب الالي","تربية وطنية","تربية دينية","تربية عسكرية",null,null,0,0,0,0,0,"لم يجتاز","لم يجتاز","لم يجتاز","لم يجتاز","لم يجتاز","السلامة والصحة المهنية","اساسيات الحاسب","الدوائر الرقمية والمنطقية","تجميع أجهزة الحاسب الالي","الرسم الفني",null,null,"لغة عربية","لغة انجليزية","رياضيات","فيزياء","كيمياء","الدراسات الاجتماعية"," الحاسب الالي","تربية وطنية"," تربية دينية","تربية عسكرية"]
["",null,"اختر الديانة",null,null,"اختر البيان",null,"","","","","","","","","",null,null,"","",null,null,null,null,0,null,null,null,null,0,null,null,null,null,0,null,null,null,null,0,null,null,null,null,0,null,null,null,null,0,null,null,null,null,0,0,null,null,null,null,"لم يجتاز",null,null,null,null,"لم يجتاز",null,null,null,null,"لم يجتاز",null,null,null,null,"لم يجتاز",null,null,null,null,"لم يجتاز",null,null,null,null,0,null,null,null,null,0,null,null,0,"راسب وله حق الإعادة","راسب وله حق الإعادة","",null,null,null,null,2,"",null,1,1,1,1,1,1,1,1,1,1,1,1,1,1,1,null,null,null,15,0,0,0,1,0," لغة عربية","لغة إنجليزية ","رياضيات ","فيزياء ","كيمياء","الدراسات الاجتماعية ","الحاسب الالي","تربية وطنية","تربية دينية","تربية عسكرية",null,null,0,0,0,0,0,"لم يجتاز","لم يجتاز","لم يجتاز","لم يجتاز","لم يجتاز","السلامة والصحة المهنية","اساسيات الحاسب","الدوائر الرقمية والمنطقية","تجميع أجهزة الحاسب الالي","الرسم الفني",null,null,"لغة عربية","لغة انجليزية","رياضيات","فيزياء","كيمياء","الدراسات الاجتماعية"," الحاسب الالي","تربية وطنية"," تربية دينية","تربية عسكرية"]
["",null,"اختر الديانة",null,null,"اختر البيان",null,"","","","","","","","","",null,null,"","",null,null,null,null,0,null,null,null,null,0,null,null,null,null,0,null,null,null,null,0,null,null,null,null,0,null,null,null,null,0,null,null,null,null,0,0,null,null,null,null,"لم يجتاز",null,null,null,null,"لم يجتاز",null,null,null,null,"لم يجتاز",null,null,null,null,"لم يجتاز",null,null,null,null,"لم يجتاز",null,null,null,null,0,null,null,null,null,0,null,null,0,"راسب وله حق الإعادة","راسب وله حق الإعادة","",null,null,null,null,2,"",null,1,1,1,1,1,1,1,1,1,1,1,1,1,1,1,null,null,null,15,0,0,0,1,0," لغة عربية","لغة إنجليزية ","رياضيات ","فيزياء ","كيمياء","الدراسات الاجتماعية ","الحاسب الالي","تربية وطنية","تربية دينية","تربية عسكرية",null,null,0,0,0,0,0,"لم يجتاز","لم يجتاز","لم يجتاز","لم يجتاز","لم يجتاز","السلامة والصحة المهنية","اساسيات الحاسب","الدوائر الرقمية والمنطقية","تجميع أجهزة الحاسب الالي","الرسم الفني",null,null,"لغة عربية","لغة انجليزية","رياضيات","فيزياء","كيمياء","الدراسات الاجتماعية"," الحاسب الالي","تربية وطنية"," تربية دينية","تربية عسكرية"]
["",null,"اختر الديانة",null,null,"اختر البيان",null,"","","","","","","","","",null,null,{"$f":"IF(B158=\"\",\"\",$S157+1)","v":""},"",null,null,null,null,0,null,null,null,null,0,null,null,null,null,0,null,null,null,null,0,null,null,null,null,0,null,null,null,null,0,null,null,null,null,0,0,null,null,null,null,"لم يجتاز",null,null,null,null,"لم يجتاز",null,null,null,null,"لم يجتاز",null,null,null,null,"لم يجتاز",null,null,null,null,"لم يجتاز",null,null,null,null,0,null,null,null,null,0,null,null,0,"راسب وله حق الإعادة","راسب وله حق الإعادة","",null,null,null,null,2,"",null,1,1,1,1,1,1,1,1,1,1,1,1,1,1,1,null,null,null,15,0,0,0,1,0," لغة عربية","لغة إنجليزية ","رياضيات ","فيزياء ","كيمياء","الدراسات الاجتماعية ","الحاسب الالي","تربية وطنية","تربية دينية","تربية عسكرية",null,null,0,0,0,0,0,"لم يجتاز","لم يجتاز","لم يجتاز","لم يجتاز","لم يجتاز","السلامة والصحة المهنية","اساسيات الحاسب","الدوائر الرقمية والمنطقية","تجميع أجهزة الحاسب الالي","الرسم الفني",null,null,"لغة عربية","لغة انجليزية","رياضيات","فيزياء","كيمياء","الدراسات الاجتماعية"," الحاسب الالي","تربية وطنية"," تربية دينية","تربية عسكرية"]
["",null,"اختر الديانة",null,null,"اختر البيان",null,"","","","","","","","","",null,null,"","",null,null,null,null,0,null,null,null,null,0,null,null,null,null,0,null,null,null,null,0,null,null,null,null,0,null,null,null,null,0,null,null,null,null,0,0,null,null,null,null,"لم يجتاز",null,null,null,null,"لم يجتاز",null,null,null,null,"لم يجتاز",null,null,null,null,"لم يجتاز",null,null,null,null,"لم يجتاز",null,null,null,null,0,null,null,null,null,0,null,null,0,"راسب وله حق الإعادة","راسب وله حق الإعادة","",null,null,null,null,2,"",null,1,1,1,1,1,1,1,1,1,1,1,1,1,1,1,null,null,null,15,0,0,0,1,0," لغة عربية","لغة إنجليزية ","رياضيات ","فيزياء ","كيمياء","الدراسات الاجتماعية ","الحاسب الالي","تربية وطنية","تربية دينية","تربية عسكرية",null,null,0,0,0,0,0,"لم يجتاز","لم يجتاز","لم يجتاز","لم يجتاز","لم يجتاز","السلامة والصحة المهنية","اساسيات الحاسب","الدوائر الرقمية والمنطقية","تجميع أجهزة الحاسب الالي","الرسم الفني",null,null,"لغة عربية","لغة انجليزية","رياضيات","فيزياء","كيمياء","الدراسات الاجتماعية"," الحاسب الالي","تربية وطنية"," تربية دينية","تربية عسكرية"]
["",null,"اختر الديانة",null,null,"اختر البيان",null,"","","","","","","","","",null,null,"","",null,null,null,null,0,null,null,null,null,0,null,null,null,null,0,null,null,null,null,0,null,null,null,null,0,null,null,null,null,0,null,null,null,null,0,0,null,null,null,null,"لم يجتاز",null,null,null,null,"لم يجتاز",null,null,null,null,"لم يجتاز",null,null,null,null,"لم يجتاز",null,null,null,null,"لم يجتاز",null,null,null,null,0,null,null,null,null,0,null,null,0,"راسب وله حق الإعادة","راسب وله حق الإعادة","",null,null,null,null,2,"",null,1,1,1,1,1,1,1,1,1,1,1,1,1,1,1,null,null,null,15,0,0,0,1,0," لغة عربية","لغة إنجليزية ","رياضيات ","فيزياء ","كيمياء","الدراسات الاجتماعية ","الحاسب الالي","تربية وطنية","تربية دينية","تربية عسكرية",null,null,0,0,0,0,0,"لم يجتاز","لم يجتاز","لم يجتاز","لم يجتاز","لم يجتاز","السلامة والصحة المهنية","اساسيات الحاسب","الدوائر الرقمية والمنطقية","تجميع أجهزة الحاسب الالي","الرسم الفني",null,null,"لغة عربية","لغة انجليزية","رياضيات","فيزياء","كيمياء","الدراسات الاجتماعية"," الحاسب الالي","تربية وطنية"," تربية دينية","تربية عسكرية"]
["",null,"اختر الديانة",null,null,"اختر البيان",null,"","","","","","","","","",null,null,"","",null,null,null,null,0,null,null,null,null,0,null,null,null,null,0,null,null,null,null,0,null,null,null,null,0,null,null,null,null,0,null,null,null,null,0,0,null,null,null,null,"لم يجتاز",null,null,null,null,"لم يجتاز",null,null,null,null,"لم يجتاز",null,null,null,null,"لم يجتاز",null,null,null,null,"لم يجتاز",null,null,null,null,0,null,null,null,null,0,null,null,0,"راسب وله حق الإعادة","راسب وله حق الإعادة","",null,null,null,null,2,"",null,1,1,1,1,1,1,1,1,1,1,1,1,1,1,1,null,null,null,15,0,0,0,1,0," لغة عربية","لغة إنجليزية ","رياضيات ","فيزياء ","كيمياء","الدراسات الاجتماعية ","الحاسب الالي","تربية وطنية","تربية دينية","تربية عسكرية",null,null,0,0,0,0,0,"لم يجتاز","لم يجتاز","لم يجتاز","لم يجتاز","لم يجتاز","السلامة والصحة المهنية","اساسيات الحاسب","الدوائر الرقمية والمنطقية","تجميع أجهزة الحاسب الالي","الرسم الفني",null,null,"لغة عربية","لغة انجليزية","رياضيات","فيزياء","كيمياء","الدراسات الاجتماعية"," الحاسب الالي","تربية وطنية"," تربية دينية","تربية عسكرية"]
["",null,"اختر الديانة",null,null,"اختر البيان",null,"","","","","","","","","",null,null,"","",null,null,null,null,0,null,null,null,null,0,null,null,null,null,0,null,null,null,null,0,null,null,null,null,0,null,null,null,null,0,null,null,null,null,0,0,null,null,null,null,"لم يجتاز",null,null,null,null,"لم يجتاز",null,null,null,null,"لم يجتاز",null,null,null,null,"لم يجتاز",null,null,null,null,"لم يجتاز",null,null,null,null,0,null,null,null,null,0,null,null,0,"راسب وله حق الإعادة","راسب وله حق الإعادة","",null,null,null,null,2,"",null,1,1,1,1,1,1,1,1,1,1,1,1,1,1,1,null,null,null,15,0,0,0,1,0," لغة عربية","لغة إنجليزية ","رياضيات ","فيزياء ","كيمياء","الدراسات الاجتماعية ","الحاسب الالي","تربية وطنية","تربية دينية","تربية عسكرية",null,null,0,0,0,0,0,"لم يجتاز","لم يجتاز","لم يجتاز","لم يجتاز","لم يجتاز","السلامة والصحة المهنية","اساسيات الحاسب","الدوائر الرقمية والمنطقية","تجميع أجهزة الحاسب الالي","الرسم الفني",null,null,"لغة عربية","لغة انجليزية","رياضيات","فيزياء","كيمياء","الدراسات الاجتماعية"," الحاسب الالي","تربية وطنية"," تربية دينية","تربية عسكرية"]
["",null,"اختر الديانة",null,null,"اختر البيان",null,"","","","","","","","","",null,null,"","",null,null,null,null,0,null,null,null,null,0,null,null,null,null,0,null,null,null,null,0,null,null,null,null,0,null,null,null,null,0,null,null,null,null,0,0,null,null,null,null,"لم يجتاز",null,null,null,null,"لم يجتاز",null,null,null,null,"لم يجتاز",null,null,null,null,"لم يجتاز",null,null,null,null,"لم يجتاز",null,null,null,null,0,null,null,null,null,0,null,null,0,"راسب وله حق الإعادة","راسب وله حق الإعادة","",null,null,null,null,2,"",null,1,1,1,1,1,1,1,1,1,1,1,1,1,1,1,null,null,null,15,0,0,0,1,0," لغة عربية","لغة إنجليزية ","رياضيات ","فيزياء ","كيمياء","الدراسات الاجتماعية ","الحاسب الالي","تربية وطنية","تربية دينية","تربية عسكرية",null,null,0,0,0,0,0,"لم يجتاز","لم يجتاز","لم يجتاز","لم يجتاز","لم يجتاز","السلامة والصحة المهنية","اساسيات الحاسب","الدوائر الرقمية والمنطقية","تجميع أجهزة الحاسب الالي","الرسم الفني",null,null,"لغة عربية","لغة انجليزية","رياضيات","فيزياء","كيمياء","الدراسات الاجتماعية"," الحاسب الالي","تربية وطنية"," تربية دينية","تربية عسكرية"]
["",null,"اختر الديانة",null,null,"اختر البيان",null,"","","","","","","","","",null,null,"","",null,null,null,null,0,null,null,null,null,0,null,null,null,null,0,null,null,null,null,0,null,null,null,null,0,null,null,null,null,0,null,null,null,null,0,0,null,null,null,null,"لم يجتاز",null,null,null,null,"لم يجتاز",null,null,null,null,"لم يجتاز",null,null,null,null,"لم يجتاز",null,null,null,null,"لم يجتاز",null,null,null,null,0,null,null,null,null,0,null,null,0,"راسب وله حق الإعادة","راسب وله حق الإعادة","",null,null,null,null,2,"",null,1,1,1,1,1,1,1,1,1,1,1,1,1,1,1,null,null,null,15,0,0,0,1,0," لغة عربية","لغة إنجليزية ","رياضيات ","فيزياء ","كيمياء","الدراسات الاجتماعية ","الحاسب الالي","تربية وطنية","تربية دينية","تربية عسكرية",null,null,0,0,0,0,0,"لم يجتاز","لم يجتاز","لم يجتاز","لم يجتاز","لم يجتاز","السلامة والصحة المهنية","اساسيات الحاسب","الدوائر الرقمية والمنطقية","تجميع أجهزة الحاسب الالي","الرسم الفني",null,null,"لغة عربية","لغة انجليزية","رياضيات","فيزياء","كيمياء","الدراسات الاجتماعية"," الحاسب الالي","تربية وطنية"," تربية دينية","تربية عسكرية"]
["",null,"اختر الديانة",null,null,"اختر البيان",null,"","","","","","","","","",null,null,"","",null,null,null,null,0,null,null,null,null,0,null,null,null,null,0,null,null,null,null,0,null,null,null,null,0,null,null,null,null,0,null,null,null,null,0,0,null,null,null,null,"لم يجتاز",null,null,null,null,"لم يجتاز",null,null,null,null,"لم يجتاز",null,null,null,null,"لم يجتاز",null,null,null,null,"لم يجتاز",null,null,null,null,0,null,null,null,null,0,null,null,0,"راسب وله حق الإعادة","راسب وله حق الإعادة","",null,null,null,null,2,"",null,1,1,1,1,1,1,1,1,1,1,{"$f":"IF(EU165=\"\",0,1)","v":1},1,1,1,1,null,null,null,15,0,0,0,1,0," لغة عربية","لغة إنجليزية ","رياضيات ","فيزياء ","كيمياء","الدراسات الاجتماعية ","الحاسب الالي","تربية وطنية","تربية دينية","تربية عسكرية",null,null,0,0,0,0,0,"لم يجتاز","لم يجتاز","لم يجتاز","لم يجتاز","لم يجتاز","السلامة والصحة المهنية","اساسيات الحاسب","الدوائر الرقمية والمنطقية","تجميع أجهزة الحاسب الالي","الرسم الفني",null,null,"لغة عربية","لغة انجليزية","رياضيات","فيزياء","كيمياء","الدراسات الاجتماعية"," الحاسب الالي","تربية وطنية"," تربية دينية","تربية عسكرية"]
["",null,"اختر الديانة",null,null,"اختر البيان",null,"","","","","","","","","",null,null,"","",null,null,null,null,0,null,null,null,null,0,null,null,null,null,0,null,null,null,null,0,null,null,null,null,0,null,null,null,null,0,null,null,null,null,0,0,null,null,null,null,"لم يجتاز",null,null,null,null,"لم يجتاز",null,null,null,null,"لم يجتاز",null,null,null,null,"لم يجتاز",null,null,null,null,"لم يجتاز",null,null,null,null,0,null,null,null,null,0,null,null,0,"راسب وله حق الإعادة","راسب وله حق الإعادة","",null,null,null,null,2,"",null,1,1,1,1,1,1,1,1,1,1,1,1,1,1,1,null,null,null,15,0,0,0,1,0," لغة عربية","لغة إنجليزية ","رياضيات ","فيزياء ","كيمياء","الدراسات الاجتماعية ","الحاسب الالي","تربية وطنية","تربية دينية","تربية عسكرية",null,null,0,0,0,0,0,"لم يجتاز","لم يجتاز","لم يجتاز","لم يجتاز","لم يجتاز","السلامة والصحة المهنية","اساسيات الحاسب","الدوائر الرقمية والمنطقية","تجميع أجهزة الحاسب الالي","الرسم الفني",null,null,"لغة عربية","لغة انجليزية","رياضيات","فيزياء","كيمياء","الدراسات الاجتماعية"," الحاسب الالي","تربية وطنية"," تربية دينية","تربية عسكرية"]
["",null,"اختر الديانة",null,null,"اختر البيان",null,"","","","","","","","","",null,null,"","",null,null,null,null,0,null,null,null,null,0,null,null,null,null,0,null,null,null,null,0,null,null,null,null,0,null,null,null,null,0,null,null,null,null,0,0,null,null,null,null,"لم يجتاز",null,null,null,null,"لم يجتاز",null,null,null,null,"لم يجتاز",null,null,null,null,"لم يجتاز",null,null,null,null,"لم يجتاز",null,null,null,null,0,null,null,null,null,0,null,null,0,"راسب وله حق الإعادة","راسب وله حق الإعادة","",null,null,null,null,2,"",null,1,1,1,1,1,1,1,1,1,1,1,1,1,1,1,null,null,null,15,0,0,0,1,0," لغة عربية","لغة إنجليزية ","رياضيات ","فيزياء ","كيمياء","الدراسات الاجتماعية ","الحاسب الالي","تربية وطنية","تربية دينية","تربية عسكرية",null,null,0,0,0,0,0,"لم يجتاز","لم يجتاز","لم يجتاز","لم يجتاز","لم يجتاز","السلامة والصحة المهنية","اساسيات الحاسب","الدوائر الرقمية والمنطقية","تجميع أجهزة الحاسب الالي","الرسم الفني",null,null,"لغة عربية","لغة انجليزية","رياضيات","فيزياء","كيمياء","الدراسات الاجتماعية"," الحاسب الالي","تربية وطنية"," تربية دينية","تربية عسكرية"]
["",null,"اختر الديانة",null,null,"اختر البيان",null,"","","","","","","","","",null,null,"","",null,null,null,null,0,null,null,null,null,0,null,null,null,null,0,null,null,null,null,0,null,null,null,null,0,null,null,null,null,0,null,null,null,null,0,0,null,null,null,null,"لم يجتاز",null,null,null,null,"لم يجتاز",null,null,null,null,"لم يجتاز",null,null,null,null,"لم يجتاز",null,null,null,null,"لم يجتاز",null,null,null,null,0,null,null,null,null,0,null,null,0,"راسب وله حق الإعادة","راسب وله حق الإعادة","",null,null,null,null,2,"",null,1,1,1,1,1,1,1,1,1,1,1,1,1,1,1,null,null,null,15,0,0,0,1,0," لغة عربية","لغة إنجليزية ","رياضيات ","فيزياء ","كيمياء","الدراسات الاجتماعية ","الحاسب الالي","تربية وطنية","تربية دينية","تربية عسكرية",null,null,0,0,0,0,0,"لم يجتاز","لم يجتاز","لم يجتاز","لم يجتاز","لم يجتاز","السلامة والصحة المهنية","اساسيات الحاسب","الدوائر الرقمية والمنطقية","تجميع أجهزة الحاسب الالي","الرسم الفني",null,null,"لغة عربية","لغة انجليزية","رياضيات","فيزياء","كيمياء","الدراسات الاجتماعية"," الحاسب الالي","تربية وطنية"," تربية دينية","تربية عسكرية"]
["",null,"اختر الديانة",null,null,"اختر البيان",null,"","","","","","","","","",null,null,"","",null,null,null,null,0,null,null,null,null,0,null,null,null,null,0,null,null,null,null,0,null,null,null,null,0,null,null,null,null,0,null,null,null,null,0,0,null,null,null,null,"لم يجتاز",null,null,null,null,"لم يجتاز",null,null,null,null,"لم يجتاز",null,null,null,null,"لم يجتاز",null,null,null,null,"لم يجتاز",null,null,null,null,0,null,null,null,null,0,null,null,0,"راسب وله حق الإعادة","راسب وله حق الإعادة","",null,null,null,null,2,"",null,1,1,1,1,1,1,1,1,1,1,1,1,1,1,1,null,null,null,15,0,0,0,1,0," لغة عربية","لغة إنجليزية ","رياضيات ","فيزياء ","كيمياء","الدراسات الاجتماعية ","الحاسب الالي","تربية وطنية","تربية دينية","تربية عسكرية",null,null,0,0,0,0,0,"لم يجتاز","لم يجتاز","لم يجتاز","لم يجتاز","لم يجتاز","السلامة والصحة المهنية","اساسيات الحاسب","الدوائر الرقمية والمنطقية","تجميع أجهزة الحاسب الالي","الرسم الفني",null,null,"لغة عربية","لغة انجليزية","رياضيات","فيزياء","كيمياء","الدراسات الاجتماعية"," الحاسب الالي","تربية وطنية"," تربية دينية","تربية عسكرية"]
["",null,"اختر الديانة",null,null,"اختر البيان",null,"","","","","","","","","",null,null,"","",null,null,null,null,0,null,null,null,null,0,null,null,null,null,0,null,null,null,null,0,null,null,null,null,0,null,null,null,null,0,null,null,null,null,0,0,null,null,null,null,"لم يجتاز",null,null,null,null,"لم يجتاز",null,null,null,null,"لم يجتاز",null,null,null,null,"لم يجتاز",null,null,null,null,"لم يجتاز",null,null,null,null,0,null,null,null,null,0,null,null,0,"راسب وله حق الإعادة","راسب وله حق الإعادة","",null,null,null,null,2,"",null,1,1,1,1,1,1,1,1,1,1,1,1,1,1,1,null,null,null,15,0,0,0,1,0," لغة عربية","لغة إنجليزية ","رياضيات ","فيزياء ","كيمياء","الدراسات الاجتماعية ","الحاسب الالي","تربية وطنية","تربية دينية","تربية عسكرية",null,null,0,0,0,0,0,"لم يجتاز","لم يجتاز","لم يجتاز","لم يجتاز","لم يجتاز","السلامة والصحة المهنية","اساسيات الحاسب","الدوائر الرقمية والمنطقية","تجميع أجهزة الحاسب الالي","الرسم الفني",null,null,"لغة عربية","لغة انجليزية","رياضيات","فيزياء","كيمياء","الدراسات الاجتماعية"," الحاسب الالي","تربية وطنية"," تربية دينية","تربية عسكرية"]
["",null,"اختر الديانة",null,null,"اختر البيان",null,"","","","","","","","","",null,null,"","",null,null,null,null,0,null,null,null,null,0,null,null,null,null,0,null,null,null,null,0,null,null,null,null,0,null,null,null,null,0,null,null,null,null,0,0,null,null,null,null,"لم يجتاز",null,null,null,null,"لم يجتاز",null,null,null,null,"لم يجتاز",null,null,null,null,"لم يجتاز",null,null,null,null,"لم يجتاز",null,null,null,null,0,null,null,null,null,0,null,null,0,"راسب وله حق الإعادة","راسب وله حق الإعادة","",null,null,null,null,2,"",null,1,1,1,1,1,1,1,1,1,1,1,1,1,1,1,null,null,null,15,0,0,0,1,0," لغة عربية","لغة إنجليزية ","رياضيات ","فيزياء ","كيمياء","الدراسات الاجتماعية ","الحاسب الالي","تربية وطنية","تربية دينية","تربية عسكرية",null,null,0,0,0,0,0,"لم يجتاز","لم يجتاز","لم يجتاز","لم يجتاز","لم يجتاز","السلامة والصحة المهنية","اساسيات الحاسب","الدوائر الرقمية والمنطقية","تجميع أجهزة الحاسب الالي","الرسم الفني",null,null,"لغة عربية","لغة انجليزية","رياضيات","فيزياء","كيمياء","الدراسات الاجتماعية"," الحاسب الالي","تربية وطنية"," تربية دينية","تربية عسكرية"]
["",null,"اختر الديانة",null,null,"اختر البيان",null,"","","","","","","","","",null,null,"","",null,null,null,null,0,null,null,null,null,0,null,null,null,null,0,null,null,null,null,0,null,null,null,null,0,null,null,null,null,0,null,null,null,null,0,0,null,null,null,null,"لم يجتاز",null,null,null,null,"لم يجتاز",null,null,null,null,"لم يجتاز",null,null,null,null,"لم يجتاز",null,null,null,null,"لم يجتاز",null,null,null,null,0,null,null,null,null,0,null,null,0,"راسب وله حق الإعادة","راسب وله حق الإعادة","",null,null,null,null,2,"",null,1,1,1,1,1,1,1,1,1,1,1,1,1,1,1,null,null,null,15,0,0,0,1,0," لغة عربية","لغة إنجليزية ","رياضيات ","فيزياء ","كيمياء","الدراسات الاجتماعية ","الحاسب الالي","تربية وطنية","تربية دينية","تربية عسكرية",null,null,0,0,0,0,0,{"$f":"IF(EK172>0,\"اجتاز\",\"لم يجتاز\")","v":"لم يجتاز"},"لم يجتاز","لم يجتاز","لم يجتاز","لم يجتاز","السلامة والصحة المهنية","اساسيات الحاسب","الدوائر الرقمية والمنطقية","تجميع أجهزة الحاسب الالي","الرسم الفني",null,null,"لغة عربية","لغة انجليزية","رياضيات","فيزياء","كيمياء","الدراسات الاجتماعية"," الحاسب الالي","تربية وطنية"," تربية دينية","تربية عسكرية"]
["",null,"اختر الديانة",null,null,"اختر البيان",null,"","","","","","","","","",null,null,"","",null,null,null,null,0,null,null,null,null,0,null,null,null,null,0,null,null,null,null,0,null,null,null,null,0,null,null,null,null,0,null,null,null,null,0,0,null,null,null,null,"لم يجتاز",null,null,null,null,"لم يجتاز",null,null,null,null,"لم يجتاز",null,null,null,null,"لم يجتاز",null,null,null,null,"لم يجتاز",null,null,null,null,0,null,null,null,null,0,null,null,0,"راسب وله حق الإعادة","راسب وله حق الإعادة","",null,null,null,null,2,"",null,1,1,1,1,1,1,1,1,1,1,1,1,1,1,1,null,null,null,15,0,0,0,1,0," لغة عربية","لغة إنجليزية ","رياضيات ","فيزياء ","كيمياء","الدراسات الاجتماعية ","الحاسب الالي","تربية وطنية","تربية دينية","تربية عسكرية",null,null,0,0,0,0,0,"لم يجتاز","لم يجتاز","لم يجتاز","لم يجتاز","لم يجتاز","السلامة والصحة المهنية","اساسيات الحاسب","الدوائر الرقمية والمنطقية","تجميع أجهزة الحاسب الالي","الرسم الفني",null,null,"لغة عربية","لغة انجليزية","رياضيات","فيزياء","كيمياء","الدراسات الاجتماعية"," الحاسب الالي","تربية وطنية"," تربية دينية","تربية عسكرية"]
["",null,"اختر الديانة",null,null,"اختر البيان",null,"","","","","","","","","",null,null,"","",null,null,null,null,0,null,null,null,null,0,null,null,null,null,0,null,null,null,null,0,null,null,null,null,0,null,null,null,null,0,null,null,null,null,0,0,null,null,null,null,"لم يجتاز",null,null,null,null,"لم يجتاز",null,null,null,null,"لم يجتاز",null,null,null,null,"لم يجتاز",null,null,null,null,"لم يجتاز",null,null,null,null,0,null,null,null,null,0,null,null,0,"راسب وله حق الإعادة","راسب وله حق الإعادة","",null,null,null,null,2,"",null,1,1,1,1,1,1,1,1,1,1,1,1,1,1,1,null,null,null,15,0,0,0,1,0," لغة عربية","لغة إنجليزية ","رياضيات ","فيزياء ","كيمياء","الدراسات الاجتماعية ","الحاسب الالي","تربية وطنية","تربية دينية","تربية عسكرية",null,null,0,0,0,0,0,"لم يجتاز","لم يجتاز","لم يجتاز","لم يجتاز","لم يجتاز","السلامة والصحة المهنية","اساسيات الحاسب","الدوائر الرقمية والمنطقية","تجميع أجهزة الحاسب الالي","الرسم الفني",null,null,"لغة عربية","لغة انجليزية","رياضيات","فيزياء","كيمياء","الدراسات الاجتماعية"," الحاسب الالي","تربية وطنية"," تربية دينية","تربية عسكرية"]
["",null,"اختر الديانة",null,null,"اختر البيان",null,"","","","","","","","","",null,null,"","",null,null,null,null,0,null,null,null,null,0,null,null,null,null,0,null,null,null,null,0,null,null,null,null,0,null,null,null,null,0,null,null,null,null,0,0,null,null,null,null,"لم يجتاز",null,null,null,null,"لم يجتاز",null,null,null,null,"لم يجتاز",null,null,null,null,"لم يجتاز",null,null,null,null,"لم يجتاز",null,null,null,null,0,null,null,null,null,0,null,null,0,"راسب وله حق الإعادة","راسب وله حق الإعادة","",null,null,null,null,2,"",null,1,1,1,1,1,1,1,1,1,1,1,1,1,1,1,null,null,null,15,0,0,0,1,0," لغة عربية","لغة إنجليزية ","رياضيات ","فيزياء ","كيمياء","الدراسات الاجتماعية ","الحاسب الالي","تربية وطنية","تربية دينية","تربية عسكرية",null,null,0,0,0,0,0,"لم يجتاز","لم يجتاز","لم يجتاز","لم يجتاز","لم يجتاز","السلامة والصحة المهنية","اساسيات الحاسب","الدوائر الرقمية والمنطقية","تجميع أجهزة الحاسب الالي","الرسم الفني",null,null,"لغة عربية","لغة انجليزية","رياضيات","فيزياء","كيمياء","الدراسات الاجتماعية"," الحاسب الالي","تربية وطنية"," تربية دينية","تربية عسكرية"]
["",null,"اختر الديانة",null,null,"اختر البيان",null,"","","","","","","","","",null,null,"","",null,null,null,null,0,null,null,null,null,0,null,null,null,null,0,null,null,null,null,0,null,null,null,null,0,null,null,null,null,0,null,null,null,null,0,0,null,null,null,null,"لم يجتاز",null,null,null,null,"لم يجتاز",null,null,null,null,"لم يجتاز",null,null,null,null,"لم يجتاز",null,null,null,null,"لم يجتاز",null,null,null,null,0,null,null,null,null,0,null,null,0,"راسب وله حق الإعادة","راسب وله حق الإعادة","",null,null,null,null,2,"",null,1,1,1,1,1,1,1,1,1,1,1,1,1,1,1,null,null,null,15,0,0,0,1,0," لغة عربية","لغة إنجليزية ","رياضيات ","فيزياء ","كيمياء","الدراسات الاجتماعية ","الحاسب الالي","تربية وطنية","تربية دينية","تربية عسكرية",null,null,0,0,0,0,0,"لم يجتاز","لم يجتاز","لم يجتاز","لم يجتاز","لم يجتاز","السلامة والصحة المهنية","اساسيات الحاسب","الدوائر الرقمية والمنطقية","تجميع أجهزة الحاسب الالي","الرسم الفني",null,null,"لغة عربية","لغة انجليزية","رياضيات","فيزياء","كيمياء","الدراسات الاجتماعية"," الحاسب الالي","تربية وطنية"," تربية دينية","تربية عسكرية"]
["",null,"اختر الديانة",null,null,"اختر البيان",null,"","","","","","","","","",null,null,"","",null,null,null,null,0,null,null,null,null,0,null,null,null,null,0,null,null,null,null,0,null,null,null,null,0,null,null,null,null,0,null,null,null,null,0,0,null,null,null,null,"لم يجتاز",null,null,null,null,"لم يجتاز",null,null,null,null,"لم يجتاز",null,null,null,null,"لم يجتاز",null,null,null,null,"لم يجتاز",null,null,null,null,0,null,null,null,null,0,null,null,{"$f":"SUM(CN177:CO177)","v":0},"راسب وله حق الإعادة","راسب وله حق الإعادة","",null,null,null,null,2,"",null,1,1,1,1,1,1,1,1,1,1,1,1,1,1,1,null,null,null,15,0,0,0,1,0," لغة عربية","لغة إنجليزية ","رياضيات ","فيزياء ","كيمياء","الدراسات الاجتماعية ","الحاسب الالي","تربية وطنية","تربية دينية","تربية عسكرية",null,null,0,0,0,0,0,"لم يجتاز","لم يجتاز","لم يجتاز","لم يجتاز","لم يجتاز","السلامة والصحة المهنية","اساسيات الحاسب","الدوائر الرقمية والمنطقية","تجميع أجهزة الحاسب الالي","الرسم الفني",null,null,"لغة عربية","لغة انجليزية","رياضيات","فيزياء","كيمياء","الدراسات الاجتماعية"," الحاسب الالي","تربية وطنية"," تربية دينية","تربية عسكرية"]
["",null,"اختر الديانة",null,null,"اختر البيان",null,"","","","","","","","","",null,null,"","",null,null,null,null,0,null,null,null,null,0,null,null,null,null,0,null,null,null,null,0,null,null,null,null,0,null,null,null,null,0,null,null,null,null,0,0,null,null,null,null,"لم يجتاز",null,null,null,null,"لم يجتاز",null,null,null,null,"لم يجتاز",null,null,null,null,"لم يجتاز",null,null,null,null,"لم يجتاز",null,null,null,null,0,null,null,null,null,0,null,null,{"$f":"SUM(CN178:CO178)","v":0},"راسب وله حق الإعادة","راسب وله حق الإعادة","",null,null,null,null,2,"",null,1,1,1,1,1,1,1,1,1,1,1,1,1,1,1,null,null,null,15,0,0,0,1,0," لغة عربية","لغة إنجليزية ","رياضيات ","فيزياء ","كيمياء","الدراسات الاجتماعية ","الحاسب الالي","تربية وطنية","تربية دينية","تربية عسكرية",null,null,0,0,0,0,0,"لم يجتاز","لم يجتاز","لم يجتاز","لم يجتاز","لم يجتاز","السلامة والصحة المهنية","اساسيات الحاسب","الدوائر الرقمية والمنطقية","تجميع أجهزة الحاسب الالي","الرسم الفني",null,null,"لغة عربية","لغة انجليزية","رياضيات","فيزياء","كيمياء","الدراسات الاجتماعية"," الحاسب الالي","تربية وطنية"," تربية دينية","تربية عسكرية"]
["",null,"اختر الديانة",null,null,"اختر البيان",null,"","","","","","","","","",null,null,"","",null,null,null,null,0,null,null,null,null,0,null,null,null,null,0,null,null,null,null,0,null,null,null,null,0,null,null,null,null,0,null,null,null,null,0,0,null,null,null,null,"لم يجتاز",null,null,null,null,"لم يجتاز",null,null,null,null,"لم يجتاز",null,null,null,null,"لم يجتاز",null,null,null,null,"لم يجتاز",null,null,null,null,0,null,null,null,null,0,null,null,{"$f":"SUM(CN179:CO179)","v":0},"راسب وله حق الإعادة","راسب وله حق الإعادة","",null,null,null,null,2,"",null,1,1,1,1,1,1,1,1,1,1,1,1,1,1,1,null,null,null,15,0,0,0,1,0," لغة عربية","لغة إنجليزية ","رياضيات ","فيزياء ","كيمياء","الدراسات الاجتماعية ","الحاسب الالي","تربية وطنية","تربية دينية","تربية عسكرية",null,null,0,0,0,0,0,"لم يجتاز","لم يجتاز","لم يجتاز","لم يجتاز","لم يجتاز","السلامة والصحة المهنية","اساسيات الحاسب","الدوائر الرقمية والمنطقية","تجميع أجهزة الحاسب الالي","الرسم الفني",null,null,"لغة عربية","لغة انجليزية","رياضيات","فيزياء","كيمياء","الدراسات الاجتماعية"," الحاسب الالي","تربية وطنية"," تربية دينية","تربية عسكرية"]
["",null,"اختر الديانة",null,null,"اختر البيان",null,"","","","","","","","","",null,null,"","",null,null,null,null,0,null,null,null,null,0,null,null,null,null,0,null,null,null,null,0,null,null,null,null,0,null,null,null,null,0,null,null,null,null,0,0,null,null,null,null,"لم يجتاز",null,null,null,null,"لم يجتاز",null,null,null,null,"لم يجتاز",null,null,null,null,"لم يجتاز",null,null,null,null,"لم يجتاز",null,null,null,null,0,null,null,null,null,0,null,null,{"$f":"SUM(CN180:CO180)","v":0},"راسب وله حق الإعادة","راسب وله حق الإعادة","",null,null,null,null,2,"",null,1,1,1,1,1,1,1,1,1,1,1,1,1,1,1,null,null,null,15,0,0,0,1,0," لغة عربية","لغة إنجليزية ","رياضيات ","فيزياء ","كيمياء","الدراسات الاجتماعية ","الحاسب الالي","تربية وطنية","تربية دينية","تربية عسكرية",null,null,0,0,0,0,0,"لم يجتاز","لم يجتاز","لم يجتاز","لم يجتاز","لم يجتاز","السلامة والصحة المهنية","اساسيات الحاسب","الدوائر الرقمية والمنطقية","تجميع أجهزة الحاسب الالي","الرسم الفني",null,null,"لغة عربية","لغة انجليزية","رياضيات","فيزياء","كيمياء","الدراسات الاجتماعية"," الحاسب الالي","تربية وطنية"," تربية دينية","تربية عسكرية"]
["",null,"اختر الديانة",null,null,"اختر البيان",null,"","","","","","","","","",null,null,"","",null,null,null,null,0,null,null,null,null,0,null,null,null,null,0,null,null,null,null,0,null,null,null,null,0,null,null,null,null,0,null,null,null,null,0,0,null,null,null,null,"لم يجتاز",null,null,null,null,"لم يجتاز",null,null,null,null,"لم يجتاز",null,null,null,null,"لم يجتاز",null,null,null,null,"لم يجتاز",null,null,null,null,0,null,null,null,null,0,null,null,{"$f":"SUM(CN181:CO181)","v":0},"راسب وله حق الإعادة","راسب وله حق الإعادة","",null,null,null,null,2,"",null,1,1,1,1,1,1,1,1,1,1,1,1,1,1,1,null,null,null,15,0,0,0,1,0," لغة عربية","لغة إنجليزية ","رياضيات ","فيزياء ","كيمياء","الدراسات الاجتماعية ","الحاسب الالي","تربية وطنية","تربية دينية","تربية عسكرية",null,null,0,0,0,0,0,"لم يجتاز","لم يجتاز","لم يجتاز","لم يجتاز","لم يجتاز","السلامة والصحة المهنية","اساسيات الحاسب","الدوائر الرقمية والمنطقية","تجميع أجهزة الحاسب الالي","الرسم الفني",null,null,"لغة عربية","لغة انجليزية","رياضيات","فيزياء","كيمياء","الدراسات الاجتماعية"," الحاسب الالي","تربية وطنية"," تربية دينية","تربية عسكرية"]
[]
[]
[null,null,"مسلم",{"$f":"COUNTIF(C11:C181,C184)","v":17},"مسيحي",{"$f":"COUNTIF(C11:C181,\"مسيحي\")","v":1}]
[null,null,"عدد المتقدمين",{"$f":"COUNTA(B11:B181)","v":4},"متقدم",null,null,null,null,null,null,null,null,null,null,null,null,null,null,"بيان",null,null,"ناجح",null,{"$f":"DT8","v":1},{"$f":"NoToTxt(Y185,\"ناجح\",\"ناجح\")","v":{"$error":"#NAME?"}}]
[null,null,"مستجد",{"$f":"COUNTIF(F11:F181,C186)","v":17},null,"عدد المتقدمين","مستجد","باق","مفصول","سحب ملف","محروم بقرار","مفصول ويفصل",null,null,null,null,null,null,null,"بيان",null,"دور ثاني مادة",null,null,{"$f":"DU8","v":1},{"$f":"NoToTxt(Y186,\"دور ثاني مادة\",\"دور ثاني مادة\")","v":{"$error":"#NAME?"}}]
[null,null,"باق",{"$f":"COUNTIF(F11:F181,C187)","v":0},null,{"$f":"$D$185","v":4},{"$f":"D186","v":17},{"$f":"D187","v":0},{"$f":"D188","v":0},{"$f":"D189","v":1},{"$f":"D190","v":0},{"$f":"D191","v":0},null,null,null,null,null,null,null,"بيان","دور ثاني مادتين",null,null,null,{"$f":"DV8","v":1},{"$f":"NoToTxt(Y187,\"دور ثاني مادتين\",\"دور ثاني مادتين\")","v":{"$error":"#NAME?"}}]
[null,null,"مفصول",{"$f":"COUNTIF(F11:F181,C188)","v":0},null,null,null,null,null,null,null,null,null,null,null,null,null,null,null,"بيان",null,"راسب",null,null,{"$f":"DW8","v":14},{"$f":"NoToTxt(Y188,\"راسب\",\"راسب\")","v":{"$error":"#NAME?"}}]
[null,null,"سحب ملف",{"$f":"COUNTIF(F11:F181,C189)","v":1},null,null,null,null,null,null,null,null,null,null,null,null,null,null,null,"بيان","راسب ويفصل",null,null,null,{"$f":"DX8","v":1},{"$f":"NoToTxt(Y189,\" راسب ويفصل\",\"راسب\")","v":{"$error":"#NAME?"}}]
[null,null,"محروم بقرار",{"$f":"COUNTIF(F11:F181,C190)","v":0}]
[null,null,"مفصول ويفصل",{"$f":"COUNTIF(F11:F181,C191)","v":0}]
[]
[null,null,null,null,null,null,null,null,null,null,"اجمالي المتقدمون في القسم",null,null,null,null,null,null,{"$f":"D185","v":4},null,null,null,null,null,null,null,"عدد اجتاز","عدد لم يجتاز"]
[null,null,{"$f":"CONCATENATE(D185,\" \",E185)","v":"4 متقدم"},null,null,null,null,null,null,null,"اجمالي المفصولين في القسم",null,null,null,null,null,null,{"$f":"D189+D190+D192+D191","v":1},null,null,"م","أسماء الوحدات"]
[null,null,null,null,null,null,null,null,null,null,"المتقدمون لآداء الامتحان",null,null,null,null,null,null,{"$f":"R193-R194","v":3}]
[null,null,null,null,null,null,null,null,null,null,null,null,null,null,null,{"$f":"U5","v":"اللغة العربية"}]
[null,null,null,null,null,null,null,null,null,null,"اجمالي الناجحون في مادة",null,null,null,null,{"$f":"R193-DA9","v":-10},null,null,null,null,1,{"$f":"BE5","v":"السلامة والصحة المهنية"},null,null,null,{"$f":"COUNTIF(BI11:BI28,\"اجتاز\")-$R$194","v":3},{"$f":"COUNTIF(BI11:BI28,\"لم يجتاز\")","v":14},null,{"$f":"Z197/$R$195","v":1}]
[null,null,null,null,null,null,null,null,null,null,"اجمالي الراسبون في مادة",null,null,null,null,{"$f":"DA9","v":14}]
[null,null,null,null,null,null,null,null,null,null,"نسبة النجاح في مادة",null,null,null,null,{"$f":"P197/R195","v":-3.3333333333333335},null,null,null,null,2,{"$f":"BJ5","v":"اساسيات الحاسب"},null,null,null,{"$f":"COUNTIF(BN11:BN28,\"اجتاز\")-$R$194","v":2},{"$f":"COUNTIF(BN11:BN28,\"لم يجتاز\")","v":15},null,{"$f":"Z199/$R$195","v":0.66666666666666663}]
[]
[null,null,null,null,null,null,null,null,null,null,null,null,null,null,null,{"$f":"Z5","v":"اللغة الأجنبية"},null,null,null,null,3,{"$f":"BO5","v":"الدوائر الرقمية والمنطقية"},null,null,null,{"$f":"COUNTIF(BS11:BS28,\"اجتاز\")-$R$194","v":2},{"$f":"COUNTIF(BS11:BS28,\"لم يجتاز\")","v":15},null,{"$f":"Z201/$R$195","v":0.66666666666666663}]
[null,null,null,null,null,null,null,null,null,null,null,null,null,null,null,{"$f":"R193-DB9","v":-12}]
[null,null,null,null,null,null,null,null,null,null,null,null,null,null,null,{"$f":"DB9","v":16},null,null,null,null,4,{"$f":"BT5","v":"تجميع أجهزة الحاسب الالي"},null,null,null,{"$f":"COUNTIF(BX11:BX28,\"اجتاز\")-$R$194","v":3},{"$f":"COUNTIF(BX11:BX28,\"لم يجتاز\")","v":14},null,{"$f":"Z203/$R$195","v":1}]
[null,null,null,null,null,null,null,null,null,null,null,null,null,null,null,{"$f":"P202/R195","v":-4}]
[null,null,null,null,null,null,null,null,null,null,null,null,null,null,null,null,null,null,null,null,5,{"$f":"BY5","v":"الرسم الفني"},null,null,null,{"$f":"COUNTIF(CC11:CC28,\"اجتاز\")-$R$194","v":2},{"$f":"COUNTIF(CC11:CC28,\"لم يجتاز\")","v":15},null,{"$f":"Z205/$R$195","v":0.66666666666666663}]
[null,null,null,null,null,null,null,null,null,null,null,null,null,null,null,{"$f":"AE5","v":"رياضيات"}]
[null,null,null,null,null,null,null,null,null,null,null,null,null,null,null,{"$f":"R193-DC9","v":-11}]
[null,null,null,null,null,null,null,null,null,null,null,null,null,null,null,{"$f":"DC9","v":15}]
[null,null,null,null,null,null,null,null,null,null,null,null,null,null,null,{"$f":"P207/R195","v":-3.6666666666666665}]
[]
[null,null,null,null,null,null,null,null,null,null,null,null,null,null,null,{"$f":"AJ5","v":"فيزياء"}]
[null,null,null,null,null,null,null,null,null,null,null,null,null,null,null,{"$f":"R193-DD9","v":-10}]
[null,null,null,null,null,null,null,null,null,null,null,null,null,null,null,{"$f":"DD9","v":14}]
[null,null,null,null,null,null,null,null,null,null,null,null,null,null,null,{"$f":"P212/R195","v":-3.3333333333333335}]
[]
[null,null,null,null,null,null,null,null,null,null,null,null,null,null,null,{"$f":"AO5","v":"كيمياء"}]
[null,null,null,null,null,null,null,null,null,null,null,null,null,null,null,{"$f":"R193-DE9","v":-10}]
[null,null,null,null,null,null,null,null,null,null,null,null,null,null,null,{"$f":"DE9","v":14}]
[null,null,null,null,null,null,null,null,null,null,null,null,null,null,null,{"$f":"P217/R195","v":-3.3333333333333335}]
[]
[null,null,null,null,null,null,null,null,null,null,null,null,null,null,null,{"$f":"AT5","v":"الدراسات الاجتماعية"}]
[null,null,null,null,null,null,null,null,null,null,null,null,null,null,null,{"$f":"R193-DF9","v":-10}]
[null,null,null,null,null,null,null,null,null,null,null,null,null,null,null,{"$f":"DF9","v":14}]
[null,null,null,null,null,null,null,null,null,null,null,null,null,null,null,{"$f":"P222/R195","v":-3.3333333333333335}]
[]
[null,null,null,null,null,null,null,null,null,null,null,null,null,null,null,{"$f":"AY5","v":"الحاسب الالي"}]
[null,null,null,null,null,null,null,null,null,null,null,null,null,null,null,{"$f":"R193-DG9","v":-10}]
[null,null,null,null,null,null,null,null,null,null,null,null,null,null,null,{"$f":"DG9","v":14}]
[null,null,null,null,null,null,null,null,null,null,null,null,null,null,null,{"$f":"P227/R195","v":-3.3333333333333335}]
[]
[null,null,null,null,null,null,null,null,null,null,null,null,null,null,null,{"$f":"CD5","v":"تربية وطنية"}]
[null,null,null,null,null,null,null,null,null,null,null,null,null,null,null,{"$f":"R193-DH9","v":-10}]
[null,null,null,null,null,null,null,null,null,null,null,null,null,null,null,{"$f":"DH9","v":14}]
[null,null,null,null,null,null,null,null,null,null,null,null,null,null,null,{"$f":"P232/R195","v":-3.3333333333333335}]
[]
[null,null,null,null,null,null,null,null,null,null,null,null,null,null,null,{"$f":"CI5","v":"تربية دينية"}]
[null,null,null,null,null,null,null,null,null,null,null,null,null,null,null,{"$f":"R193-DI9","v":-10}]
[null,null,null,null,null,null,null,null,null,null,null,null,null,null,null,{"$f":"DI9","v":14}]
[null,null,null,null,null,null,null,null,null,null,null,null,null,null,null,{"$f":"P237/R195","v":-3.3333333333333335}]

{"sheet":"sh_nesf_hasbat","index":1,"n_rows":44,"n_cols":45,"rows_kept":44,"cut":false,"hidden":false,"merged":[[6,2,6,6],[6,7,7,8],[6,9,7,15],[6,16,7,17],[6,18,7,19],[6,20,7,21],[3,9,3,13],[4,2,4,7],[4,8,4,12],[4,13,4,15],[4,18,5,19],[4,20,5,21],[5,2,5,7],[5,8,5,13],[8,2,10,2],[8,3,8,9],[8,10,10,10],[8,11,8,13],[8,14,12,14],[8,15,8,21],[9,3,10,3],[9,4,10,4],[9,5,10,5],[9,6,10,6],[9,15,9,19],[9,20,9,21],[10,15,10,19],[10,20,10,21],[11,15,11,19],[11,20,11,21],[9,7,10,7],[9,8,10,8],[9,9,10,9],[9,11,10,11],[9,12,10,12],[9,13,10,13],[15,9,15,13],[17,9,17,13],[18,2,18,7],[18,8,18,12],[18,13,18,15],[18,18,19,19],[12,15,12,21],[13,2,13,4],[13,7,13,10],[13,13,13,16],[13,18,13,20],[14,2,14,4],[14,7,14,10],[14,13,14,16],[14,18,14,20],[18,20,19,21],[19,2,19,7],[19,8,19,13],[20,2,20,6],[20,7,21,8],[20,9,21,15],[20,16,21,17],[20,18,21,19],[20,20,21,21],[22,2,24,2],[22,3,22,9],[22,10,24,10],[22,11,22,13],[22,14,26,14],[22,15,22,21],[23,3,24,3],[23,4,24,4],[23,5,24,5],[23,6,24,6],[23,15,23,19],[23,20,23,21],[24,15,24,19],[24,20,24,21],[25,15,25,19],[25,20,25,21],[23,7,24,7],[23,8,24,8],[23,9,24,9],[23,11,24,11],[23,12,24,12],[23,13,24,13],[29,9,29,13],[31,9,31,13],[32,2,32,7],[32,8,32,12],[32,13,32,15],[32,18,33,19],[26,15,26,21],[27,2,27,4],[27,7,27,10],[27,13,27,16],[27,18,27,20],[28,2,28,4],[28,7,28,10],[28,13,28,16],[28,18,28,20],[32,20,33,21],[33,2,33,7],[33,8,33,13],[34,2,34,6],[34,7,35,8],[34,9,35,15],[34,16,35,17],[34,18,35,19],[34,20,35,21],[36,2,38,2],[36,3,36,9],[36,10,38,10],[36,11,36,13],[36,14,40,14],[36,15,36,21],[37,3,38,3],[37,4,38,4],[37,5,38,5],[37,6,38,6],[37,15,37,19],[37,20,37,21],[38,15,38,19],[38,20,38,21],[39,15,39,19],[39,20,39,21],[37,7,38,7],[37,8,38,8],[37,9,38,9],[37,11,38,11],[37,12,38,12],[37,13,38,13],[43,9,43,13],[40,15,40,21],[41,2,41,4],[41,7,41,10],[41,13,41,16],[41,18,41,20],[42,2,42,4],[42,7,42,10],[42,13,42,16],[42,18,42,20]]}
[null,null,null,null,null,null,null,null,null,null,null,null,null,4,null,null,null,null,null,null,null,null,null,null,null,null,null,{"$f":"LOOKUP($Y$11,hasbat!$A$11:$A$181,hasbat!$F$11:$F$181)","v":"مستجد"}]
[null,null,null,null,null,null,null,null,null,null,null,null,null,null,null,null,null,null,null,null,null,null,null,null,null,null,null,{"$f":"LOOKUP($Y$11+1,hasbat!$A$11:$A$181,hasbat!$F$11:$F$181)","v":"مستجد"},"رئيس غرفة ","………..","اختر العام الدراسي",null,"اختر التخصص"]
[null,null,null,null,null,null,null,null,null,null,null,null,null,null,null,null,null,null,null,null,null,null,null,null,null,null,null,{"$f":"LOOKUP($Y$11+2,hasbat!$A$11:$A$181,hasbat!$F$11:$F$181)","v":"مستجد"},"رئيس الكنترول :","…………","2021 / 2022",null,"ميكانيكا"]
[null,null,null,null,null,null,null,null,null,"كنترول الصف الأول _ جدارات",null,null,null,null,null,null,null,null,null,null,null,null,null,null,null,null,null,null,"كنترول المواد الثقافية","……………..","2022 / 2023",null,"السيارات"]
[null,null,"محافظة الاسكندرية (ادارة وسط التعليمية)",null,null,null,null,null,"بيان الدرجات والتقييم لنصف العام",null,null,null,null,"2023 / 2024",null,null,null,null,"رقم الجلوس",null,{"$f":"LOOKUP($Y$11,hasbat!A11:A181,hasbat!S11:S181)","v":5001},null,null,null,null,null,null,null,"مدير المدرسة :","…………..","2023 / 2024",null,"شعبة_كهربية"]
[null,null,"مدرسة اسكندرية الفنية المتقدمة (محرم بك)",null,null,null,null,null,"          الصف الاول : فني _ تكنولوجيا الحاسبات",null,null,null,null,null,null,null,null,null,null,null,null,null,null,null,null,null,"صقحات الطباعة",null,"مدير المدرسة :",null,"2024 / 2025",null,"التبريد والتكييف"]
[null,null,"نظام الجدارات ثلاث سنوات",null,null,null,null,"الاسم :",null,{"$f":"LOOKUP($Y$11,hasbat!$A$11:$A$181,hasbat!$B$11:$B$181)","v":"خالد"},null,null,null,null,null,null,{"$f":"IF($AB$1=\"مستجد\",\"\",IF($AB$1=\"باق\",\"\",IF($AB$1=\"محول\",\"\",LOOKUP($Y$11,hasbat!$A$11:$A$181,hasbat!$F$11:$F$181))))","v":""},null,"الفصل",null,{"$f":"LOOKUP($Y$11,hasbat!$A$11:$A$181,hasbat!$E$11:$E$181)","v":"10/1"},null,null,null,null,null,null,"Y12",">=",null,"2025 / 2026",null,"البتروكيماويات"]
[null,null,null,null,null,null,null,null,null,null,null,null,null,null,null,null,null,null,null,null,null,null,null,null,null,null,0,1,{"$f":"AB8-1","v":0},null,"2026 / 2027",null,"الطاقة_المتجددة"]
[null,null,"المادة","المواد الثقافية العامة",null,null,null,null,null,null,"مجموع المواد","مواد خارج المجموع",null,null,null,"التقييم النهائي للوحدات _ نظام الجدارات",null,null,null,null,null,null,null,null,null,null,1,4,{"$f":"AB9-1","v":3},null,"2027 / 2028"]
[null,null,null,"اللغة العربية","اللغة الانجليزية","رياضيات ","فيزياء","كيمياء","دراسات اجتماعية","حاسب الي",null,"تربية وطنية","تربيـة دينيـة","تربية عسكرية",null,{"$f":"CONCATENATE(\"تقييم وحدة\",\" ( \",hasbat!$BE$5,\" )\")","v":"تقييم وحدة ( السلامة والصحة المهنية )"},null,null,null,null,{"$f":"LOOKUP($Y$11,hasbat!$A$11:$A$181,hasbat!$BI$11:$BI$181)","v":"اجتاز"}]
[null,null,null,null,null,null,null,null,null,null,null,null,null,null,null,{"$f":"CONCATENATE(\"تقييم وحدة\",\" ( \",hasbat!$BJ$5,\" )\")","v":"تقييم وحدة ( اساسيات الحاسب )"},null,null,null,null,{"$f":"LOOKUP($Y$11,hasbat!$A$11:$A$181,hasbat!$BN$11:$BN$181)","v":"اجتاز"},null,null,null,1,null,2,7,6,null,"2028 / 2029"]
[null,null,"درجة نصف العام",25,20,15,10,10,10,10,{"$f":"SUM(D12:J12)","v":100},10,10,25,null,{"$f":"CONCATENATE(\"تقييم وحدة\",\" ( \",hasbat!$BO$5,\" )\")","v":"تقييم وحدة ( الدوائر الرقمية والمنطقية )"},null,null,null,null,{"$f":"LOOKUP($Y$11,hasbat!$A$11:$A$181,hasbat!$BS$11:$BS$181)","v":"اجتاز"},null,null,null,{"$f":"hasbat!D185","v":4},null,3,10,9,null,"2029 / 2030",null,null,null,null,null,null,null,null,null,null,null,null,null,14]
[null,null,"درجة الطالب",{"$f":"LOOKUP($Y$11,hasbat!$A$11:$A$181,hasbat!$Y$11:$Y$181)","v":28},{"$f":"LOOKUP($Y$11,hasbat!$A$11:$A$181,hasbat!$AD$11:$AD$181)","v":28},{"$f":"LOOKUP($Y$11,hasbat!$A$11:$A$181,hasbat!$AI$11:$AI$181)","v":25},{"$f":"LOOKUP($Y$11,hasbat!$A$11:$A$181,hasbat!$AN$11:$AN$181)","v":11},{"$f":"LOOKUP($Y$11,hasbat!$A$11:$A$181,hasbat!$AS$11:$AS$181)","v":11},{"$f":"LOOKUP($Y$11,hasbat!$A$11:$A$181,hasbat!$AX$11:$AX$181)","v":11},{"$f":"LOOKUP($Y$11,hasbat!$A$11:$A$181,hasbat!$BC$11:$BC$181)","v":11},{"$f":"SUM(D13:J13)","v":125},{"$f":"LOOKUP($Y$11,hasbat!$A$11:$A$181,hasbat!$CH$11:$CH$181)","v":11},{"$f":"LOOKUP($Y$11,hasbat!$A$11:$A$181,hasbat!$CM$11:$CM$181)","v":11},{"$f":"LOOKUP($Y$11,hasbat!$A$11:$A$181,hasbat!$CP$11:$CP$181)","v":20},null,{"$f":"CONCATENATE(\"يتم \",\"\",$P$12,\" في نهاية العام \"  )","v":"يتم تقييم وحدة ( الدوائر الرقمية والمنطقية ) في نهاية العام "},null,null,null,null,null,null,null,null,null,null,5,16,15,null,"2030 / 2031"]
[null,null,"رئيس الكنترول :",null,null,null,null,{"$f":"AC4","v":"كنترول المواد الثقافية"},null,null,null,null,null,"رئيس غرفة التقييم والتحقق",null,null,null,null,"مدير المدرسة :",null,null,null,null,null,null,null,7,22,21]
[null,null,{"$f":"$AD$3","v":"…………"},null,null,null,null,{"$f":"$AD$4","v":"…………….."},null,null,null,null,null,{"$f":"$AD$2","v":"……….."},null,null,null,null,{"$f":"$AD$5","v":"………….."},null,null,null,null,null,null,null,8,25,24]
[null,null,null,null,null,null,null,null,null,"كنترول الصف الأول _ جدارات",null,null,null,null,null,null,null,null,null,null,null,null,null,null,null,null,9,28,27]
[null,null,null,null,null,null,null,null,null,null,null," ",null,null,null,null,null,null,null,null,null,null,null,null,null,null,10,31,30]
[null,null,null,null,null,null,null,null,null,"كنترول الصف الأول _ جدارات",null,null,null,null,null,null,null,null,null,null,null,null,null,null,null,null,11,34,33]
[null,null,"محافظة الاسكندرية (ادارة وسط التعليمية)",null,null,null,null,null,"بيان الدرجات والتقييم لنصف العام",null,null,null,null,{"$f":"$N$5","v":"2023 / 2024"},null,null,null,null,"رقم الجلوس",null,{"$f":"LOOKUP($Y$11+1,hasbat!$A$11:$A$181,hasbat!$S$11:$S$181)","v":5002},null,null,null,null,null,12,37,36]
[null,null,"مدرسة اسكندرية الفنية المتقدمة (محرم بك)",null,null,null,null,null,"          الصف الاول : فني _ تكنولوجيا الحاسبات",null,null,null,null,null,null,null,null,null,null,null,null,null,null,null,null,null,13,40,39]
[null,null,"نظام الجدارات ثلاث سنوات",null,null,null,null,"الاسم :",null,{"$f":"LOOKUP($Y$11+1,hasbat!$A$11:$A$181,hasbat!$B$11:$B$181)","v":"محمد"},null,null,null,null,null,null,{"$f":"IF($AB$2=\"مستجد\",\"\",IF($AB$2=\"باق\",\"\",IF($AB$2=\"محول\",\"\",LOOKUP($Y$11+1,hasbat!$A$11:$A$181,hasbat!$F$11:$F$181))))","v":""},null,"الفصل",null,{"$f":"LOOKUP($Y$11+1,hasbat!$A$11:$A$181,hasbat!$E$11:$E$181)","v":"10/1"},null,null,null,null,null,14,43,42]
[null,null,null,null,null,null,null,null,null,null,null,null,null,null,null,null,null,null,null,null,null,null,null,null,null,null,15,46,45]
[null,null,"المادة","المواد الثقافية العامة",null,null,null,null,null,null,"مجموع المواد","مواد خارج المجموع",null,null,null,"التقييم النهائي للوحدات _ نظام الجدارات",null,null,null,null,null,null,null,null,null,null,1,4,{"$f":"AB23-1","v":3},null,"2027 / 2028"]
[null,null,null,"اللغة العربية","اللغة الانجليزية","رياضيات ","فيزياء","كيمياء","دراسات اجتماعية","حاسب الي",null,"تربية وطنية","تربيـة دينيـة","تربية عسكرية",null,{"$f":"CONCATENATE(\"تقييم وحدة\",\" ( \",hasbat!$BE$5,\" )\")","v":"تقييم وحدة ( السلامة والصحة المهنية )"},null,null,null,null,{"$f":"LOOKUP($Y$11+1,hasbat!$A$11:$A$181,hasbat!$BI$11:$BI$181)","v":"اجتاز"}]
[null,null,null,null,null,null,null,null,null,null,null,null,null,null,null,{"$f":"CONCATENATE(\"تقييم وحدة\",\" ( \",hasbat!$BJ$5,\" )\")","v":"تقييم وحدة ( اساسيات الحاسب )"},null,null,null,null,{"$f":"LOOKUP($Y$11+1,hasbat!$A$11:$A$181,hasbat!$BN$11:$BN$181)","v":"لم يجتاز"},null,null,null,null,null,2,7,{"$f":"AB25-1","v":6},null,"2028 / 2029"]
[null,null,"درجة نصف العام",25,20,15,10,10,10,10,{"$f":"SUM(D26:J26)","v":100},10,10,25,null,{"$f":"CONCATENATE(\"تقييم وحدة\",\" ( \",hasbat!$BO$5,\" )\")","v":"تقييم وحدة ( الدوائر الرقمية والمنطقية )"},null,null,null,null,{"$f":"LOOKUP($Y$11+1,hasbat!$A$11:$A$181,hasbat!$BS$11:$BS$181)","v":"اجتاز"},null,null,null,null,null,3,10,{"$f":"AB26-1","v":9},null,"2029 / 2030",null,null,null,null,null,null,null,null,null,null,null,null,null,14]
[null,null,"درجة الطالب",{"$f":"LOOKUP($Y$11+1,hasbat!$A$11:$A$181,hasbat!$Y$11:$Y$181)","v":28},{"$f":"LOOKUP($Y$11+1,hasbat!$A$11:$A$181,hasbat!$AD$11:$AD$181)","v":20},{"$f":"LOOKUP($Y$11+1,hasbat!$A$11:$A$181,hasbat!$AI$11:$AI$181)","v":25},{"$f":"LOOKUP($Y$11+1,hasbat!$A$11:$A$181,hasbat!$AN$11:$AN$181)","v":11},{"$f":"LOOKUP($Y$11+1,hasbat!$A$11:$A$181,hasbat!$AS$11:$AS$181)","v":11},{"$f":"LOOKUP($Y$11+1,hasbat!$A$11:$A$181,hasbat!$AX$11:$AX$181)","v":11},{"$f":"LOOKUP($Y$11+1,hasbat!$A$11:$A$181,hasbat!$BC$11:$BC$181)","v":11},{"$f":"SUM(D27:J27)","v":117},{"$f":"LOOKUP($Y$11+1,hasbat!$A$11:$A$181,hasbat!$CH$11:$CH$181)","v":11},{"$f":"LOOKUP($Y$11+1,hasbat!$A$11:$A$181,hasbat!$CM$11:$CM$181)","v":11},{"$f":"LOOKUP($Y$11+1,hasbat!$A$11:$A$181,hasbat!$CP$11:$CP$181)","v":20},null,{"$f":"CONCATENATE(\"يتم \",\"\",$P$12,\" في نهاية العام \"  )","v":"يتم تقييم وحدة ( الدوائر الرقمية والمنطقية ) في نهاية العام "},null,null,null,null,null,null,null,null,null,null,5,16,{"$f":"AB27-1","v":15},null,"2030 / 2031"]
[null,null,"رئيس الكنترول :",null,null,null,null,{"$f":"H14","v":"كنترول المواد الثقافية"},null,null,null,null,null,"رئيس غرفة التقييم والتحقق",null,null,null,null,"مدير المدرسة :",null,null,null,null,null,null,null,22,67,66]
[null,null,{"$f":"$C$15","v":"…………"},null,null,null,null,{"$f":"H15","v":"…………….."},null,null,null,null,null,{"$f":"N15","v":"……….."},null,null,null,null,{"$f":"$AD$5","v":"………….."},null,null,null,null,null,null,null,23,70,69]
[null,null,null,null,null,null,null,null,null,"كنترول الصف الأول _ جدارات"]
[null,null,null,null,null,null,null,null,null,null,null,null,null,null,null,null,null,null,null,null,null,null,null,null,null,null,24,73,72]
[null,null,null,null,null,null,null,null,null,"كنترول الصف الأول _ جدارات",null,null,null,null,null,null,null,null,null,null,null,null,null,null,null,null,25,76,75]
[null,null,"محافظة الاسكندرية (ادارة وسط التعليمية)",null,null,null,null,null,"بيان الدرجات والتقييم لنصف العام",null,null,null,null,{"$f":"$N$5","v":"2023 / 2024"},null,null,null,null,"رقم الجلوس",null,{"$f":"LOOKUP($Y$11+2,hasbat!$A$11:$A$181,hasbat!$S$11:$S$181)","v":5003}]
[null,null,"مدرسة اسكندرية الفنية المتقدمة (محرم بك)",null,null,null,null,null,"          الصف الاول : فني _ تكنولوجيا الحاسبات"]
[null,null,"نظام الجدارات ثلاث سنوات",null,null,null,null,"الاسم :",null,{"$f":"LOOKUP($Y$11+2,hasbat!$A$11:$A$181,hasbat!$B$11:$B$181)","v":"عبدالله"},null,null,null,null,null,null,{"$f":"IF($AB$3=\"مستجد\",\"\",IF($AB$3=\"باق\",\"\",IF($AB$3=\"محول\",\"\",LOOKUP($Y$11+2,hasbat!$A$11:$A$181,hasbat!$F$11:$F$181))))","v":""},null,"الفصل",null,{"$f":"LOOKUP($Y$11+2,hasbat!$A$11:$A$181,hasbat!$E$11:$E$181)","v":"10/1"}]
[]
[null,null,"المادة","المواد الثقافية العامة",null,null,null,null,null,null,"مجموع المواد","مواد خارج المجموع",null,null,null,"التقييم النهائي للوحدات _ نظام الجدارات",null,null,null,null,null,null,null,null,null,null,1,4,{"$f":"AB37-1","v":3},null,"2027 / 2028"]
[null,null,null,"اللغة العربية","اللغة الانجليزية","رياضيات ","فيزياء","كيمياء","دراسات اجتماعية","حاسب الي",null,"تربية وطنية","تربيـة دينيـة","تربية عسكرية",null,{"$f":"CONCATENATE(\"تقييم وحدة\",\" ( \",hasbat!$BE$5,\" )\")","v":"تقييم وحدة ( السلامة والصحة المهنية )"},null,null,null,null,{"$f":"LOOKUP($Y$11+2,hasbat!$A$11:$A$181,hasbat!$BI$11:$BI$181)","v":"اجتاز"}]
[null,null,null,null,null,null,null,null,null,null,null,null,null,null,null,{"$f":"CONCATENATE(\"تقييم وحدة\",\" ( \",hasbat!$BJ$5,\" )\")","v":"تقييم وحدة ( اساسيات الحاسب )"},null,null,null,null,{"$f":"LOOKUP($Y$11+2,hasbat!$A$11:$A$181,hasbat!$BN$11:$BN$181)","v":"اجتاز"},null,null,null,null,null,2,7,{"$f":"AB39-1","v":6},null,"2028 / 2029"]
[null,null,"درجة نصف العام",25,20,15,10,10,10,10,{"$f":"SUM(D40:J40)","v":100},10,10,25,null,{"$f":"CONCATENATE(\"تقييم وحدة\",\" ( \",hasbat!$BO$5,\" )\")","v":"تقييم وحدة ( الدوائر الرقمية والمنطقية )"},null,null,null,null,{"$f":"LOOKUP($Y$11+2,hasbat!$A$11:$A$181,hasbat!$BS$11:$BS$181)","v":"اجتاز"},null,null,null,null,null,3,10,{"$f":"AB40-1","v":9},null,"2029 / 2030",null,null,null,null,null,null,null,null,null,null,null,null,null,14]
[null,null,"درجة الطالب",{"$f":"LOOKUP($Y$11+2,hasbat!$A$11:$A$181,hasbat!$Y$11:$Y$181)","v":28},{"$f":"LOOKUP($Y$11+2,hasbat!$A$11:$A$181,hasbat!$AD$11:$AD$181)","v":28},{"$f":"LOOKUP($Y$11+2,hasbat!$A$11:$A$181,hasbat!$AI$11:$AI$181)","v":15},{"$f":"LOOKUP($Y$11+2,hasbat!$A$11:$A$181,hasbat!$AN$11:$AN$181)","v":11},{"$f":"LOOKUP($Y$11+2,hasbat!$A$11:$A$181,hasbat!$AS$11:$AS$181)","v":11},{"$f":"LOOKUP($Y$11+2,hasbat!$A$11:$A$181,hasbat!$AX$11:$AX$181)","v":11},{"$f":"LOOKUP($Y$11+2,hasbat!$A$11:$A$181,hasbat!$BC$11:$BC$181)","v":11},{"$f":"SUM(D41:J41)","v":115},{"$f":"LOOKUP($Y$11+2,hasbat!$A$11:$A$181,hasbat!$CH$11:$CH$181)","v":11},{"$f":"LOOKUP($Y$11+2,hasbat!$A$11:$A$181,hasbat!$CM$11:$CM$181)","v":11},{"$f":"LOOKUP($Y$11+2,hasbat!$A$11:$A$181,hasbat!$CP$11:$CP$181)","v":20},null,{"$f":"CONCATENATE(\"يتم \",\"\",$P$12,\" في نهاية العام \"  )","v":"يتم تقييم وحدة ( الدوائر الرقمية والمنطقية ) في نهاية العام "},null,null,null,null,null,null,null,null,null,null,5,16,{"$f":"AB41-1","v":15},null,"2030 / 2031"]
[null,null,"رئيس الكنترول :",null,null,null,null,{"$f":"H14","v":"كنترول المواد الثقافية"},null,null,null,null,null,"رئيس غرفة التقييم والتحقق",null,null,null,null,"مدير المدرسة :"]
[null,null,{"$f":"$AD$3","v":"…………"},null,null,null,null,{"$f":"H15","v":"…………….."},null,null,null,null,null,{"$f":"N15","v":"……….."},null,null,null,null,{"$f":"$AD$5","v":"………….."}]
[null,null,null,null,null,null,null,null,null,"كنترول الصف الأول _ جدارات"]

{"sheet":"sh_ahker_hasbat","index":2,"n_rows":53,"n_cols":45,"rows_kept":53,"cut":false,"hidden":false,"merged":[[6,2,6,6],[6,7,7,8],[6,9,7,15],[6,16,7,17],[6,18,7,19],[6,20,7,21],[3,9,3,13],[4,2,4,7],[4,8,4,12],[4,13,4,15],[4,18,5,19],[4,20,5,21],[5,2,5,7],[5,8,5,14],[8,2,10,2],[8,3,8,9],[8,10,10,10],[8,11,8,13],[8,14,13,14],[8,15,8,21],[9,3,10,3],[9,4,10,4],[9,5,10,5],[9,6,10,6],[12,15,12,21],[13,15,13,21],[14,3,14,6],[14,7,14,14],[14,15,14,16],[14,17,14,21],[9,15,9,19],[9,20,9,21],[10,15,10,19],[10,20,10,21],[11,15,11,19],[11,20,11,21],[9,7,10,7],[9,8,10,8],[9,9,10,9],[9,11,10,11],[9,12,10,12],[9,13,10,13],[17,2,17,4],[17,7,17,10],[17,13,17,16],[17,18,17,21],[18,9,18,13],[20,9,20,13],[15,2,15,6],[15,7,15,14],[15,15,15,16],[15,17,15,18],[16,2,16,4],[16,7,16,10],[16,13,16,16],[16,18,16,20],[23,2,23,6],[23,7,24,8],[23,9,24,15],[23,16,24,17],[23,18,24,19],[23,20,24,21],[21,2,21,7],[21,8,21,12],[21,13,21,15],[21,18,22,19],[21,20,22,21],[22,2,22,7],[22,8,22,14],[25,2,27,2],[25,3,25,9],[25,10,27,10],[25,11,25,13],[25,14,30,14],[25,15,25,21],[26,3,27,3],[26,4,27,4],[26,5,27,5],[26,6,27,6],[29,15,29,21],[30,15,30,21],[31,3,31,6],[31,7,31,14],[31,15,31,16],[31,17,31,21],[26,15,26,19],[26,20,26,21],[27,15,27,19],[27,20,27,21],[28,15,28,19],[28,20,28,21],[26,7,27,7],[26,8,27,8],[26,9,27,9],[26,11,27,11],[26,12,27,12],[26,13,27,13],[34,2,34,4],[34,7,34,10],[34,13,34,16],[34,18,34,21],[35,9,35,13],[37,9,37,13],[32,2,32,6],[32,7,32,14],[32,15,32,16],[32,17,32,18],[33,2,33,4],[33,7,33,10],[33,13,33,16],[33,18,33,20],[40,2,40,6],[40,7,41,8],[40,9,41,15],[40,16,41,17],[40,18,41,19],[40,20,41,21],[38,2,38,7],[38,8,38,12],[38,13,38,15],[38,18,39,19],[38,20,39,21],[39,2,39,7],[39,8,39,14],[42,2,44,2],[42,3,42,9],[42,10,44,10],[42,11,42,13],[42,14,47,14],[42,15,42,21],[43,3,44,3],[43,4,44,4],[43,5,44,5],[43,6,44,6],[46,15,46,21],[47,15,47,21],[48,3,48,6],[48,7,48,14],[48,15,48,16],[48,17,48,21],[43,15,43,19],[43,20,43,21],[44,15,44,19],[44,20,44,21],[45,15,45,19],[45,20,45,21],[43,7,44,7],[43,8,44,8],[43,9,44,9],[43,11,44,11],[43,12,44,12],[43,13,44,13],[51,2,51,4],[51,7,51,10],[51,13,51,16],[51,18,51,21],[52,9,52,13],[49,2,49,6],[49,7,49,14],[49,15,49,16],[49,17,49,18],[50,2,50,4],[50,7,50,10],[50,13,50,16],[50,18,50,20]]}
[null,null,null,null,null,null,null,null,null,null,null,null,null,4,null,null,null,null,null,null,null,null,null,{"$f":"IF($R$15=\"خارج الترتيب للـ 10  الاوائل\",\"\",\" مبروك انت من أوائل القسم\")","v":" مبروك انت من أوائل القسم"},null,null,null,{"$f":"LOOKUP($Y$11,hasbat!$A$11:$A$181,hasbat!$F$11:$F$181)","v":"مستجد"}]
[null,null,null,null,null,null,null,null,null,null,null,null,null,null,null,null,null,null,null,null,null,null,null,{"$f":"IF($R$32=\"خارج الترتيب للـ 10  الاوائل\",\"\",\" مبروك انت من أوائل القسم\")","v":" مبروك انت من أوائل القسم"},null,null,null,{"$f":"LOOKUP($Y$11+1,hasbat!$A$11:$A$181,hasbat!$F$11:$F$181)","v":"مستجد"},"رئيس غرفة ","………….","اختر العام الدراسي",null,"اختر التخصص"]
[null,null,null,null,null,null,null,null,null,null,null,null,null,null,null,null,null,null,null,null,null,null,null,{"$f":"IF($R$49=\"خارج الترتيب للـ 10  الاوائل\",\"\",\" مبروك انت من أوائل القسم\")","v":""},null,null,null,{"$f":"LOOKUP($Y$11+2,hasbat!$A$11:$A$181,hasbat!$F$11:$F$181)","v":"مستجد"},"رئيس الكنترول :","………………..","2021 / 2022",null,"ميكانيكا"]
[null,null,null,null,null,null,null,null,null,"كنترول الصف الأول _ جدارات",null,null,null,null,null,null,null,null,null,null,null,null,null,null,null,null,null,null,"مشرف جدارات فنية","……………..","2022 / 2023",null,"السيارات"]
[null,null,"محافظة الاسكندرية (ادارة وسط التعليمية)",null,null,null,null,null,"بيان الدرجات والتقييم لنهاية العام",null,null,null,null,"2023 / 2024",null,null,null,null,"رقم الجلوس",null,{"$f":"LOOKUP($Y$11,hasbat!$A$11:$A$181,hasbat!$S$11:$S$181)","v":5001},null,null,null,null,null,null,null,"مدير المدرسة :","………………","2023 / 2024",null,"شعبة_كهربية"]
[null,null,"مدرسة اسكندرية الفنية المتقدمة (محرم بك)",null,null,null,null,null,"          الصف الاول : فني _ تكنولوجيا الحاسبات",null,null,null,null,null,null,null,null,null,null,null,null,null,null,null,null,null,null,null,"مشرف جدارات فنية","ا / امل خربوش","2024 / 2025",null,"التبريد والتكييف"]
[null,null,"نظام الجدارات ثلاث سنوات",null,null,null,null,"الاسم :",null,{"$f":"LOOKUP($Y$11,hasbat!$A$11:$A$181,hasbat!$B$11:$B$181)","v":"خالد"},null,null,null,null,null,null,{"$f":"IF($AB$1=\"مستجد\",\"\",IF($AB$1=\"باق\",\"\",IF($AB$1=\"محول\",\"\",LOOKUP($Y$11,hasbat!$A$11:$A$181,hasbat!$F$11:$F$181))))","v":""},null,"الفصل",null,{"$f":"LOOKUP($Y$11,hasbat!$A$11:$A$181,hasbat!$E$11:$E$181)","v":"10/1"},null,null,null,null,null,null,null,null,null,"2025 / 2026",null,"البتروكيماويات"]
[null,null,null,null,null,null,null,null,null,null,null,null,null,null,null,null,null,null,null,null,null,null,null,null,null,null,null,null,null,null,"2026 / 2027",null,"الطاقة_المتجددة"]
[null,null,"المادة","المواد الثقافية العامة",null,null,null,null,null,null,"مجموع المواد","مواد خارج المجموع",null,null,null,"التقييم النهائي للوحدات _ نظام الجدارات",null,null,null,null,null,null,null,null,null,null,null,null,null,null,"2027 / 2028"]
[null,null,null,"اللغة العربية","اللغة الانجليزية","رياضيات ","فيزياء","كيمياء","دراسات اجتماعية","حاسب الي",null,"تربية وطنية","تربيـة دينيـة","تربية عسكرية",null,{"$f":"CONCATENATE(\"تقييم وحدة\",\" ( \",hasbat!$BO$5,\" )\")","v":"تقييم وحدة ( الدوائر الرقمية والمنطقية )"},null,null,null,null,{"$f":"LOOKUP($Y$11,hasbat!$A$11:$A$181,hasbat!$BS$11:$BS$181)","v":"اجتاز"}]
[null,null,null,null,null,null,null,null,null,null,null,null,null,null,null,{"$f":"CONCATENATE(\"تقييم وحدة\",\" ( \",hasbat!$BT$5,\" )\")","v":"تقييم وحدة ( تجميع أجهزة الحاسب الالي )"},null,null,null,null,{"$f":"LOOKUP($Y$11,hasbat!$A$11:$A$181,hasbat!$BX$11:$BX$181)","v":"اجتاز"},null,null,null,1,null,null,null,null,null,"2028 / 2029"]
[null,null,"النهاية العظمى",{"$f":"D13*2","v":50},40,30,20,20,20,20,{"$f":"SUM(D12:J12)","v":200},{"$f":"L13*2","v":20},{"$f":"M13*2","v":20},50,null,{"$f":"CONCATENATE(\"تقييم وحدة\",\" ( \",hasbat!$BY$5,\" )\")","v":"تقييم وحدة ( الرسم الفني )"},null,null,null,null,{"$f":"LOOKUP($Y$11,hasbat!$A$11:$A$181,hasbat!$CC$11:$CC$181)","v":"اجتاز"},null,null,null,{"$f":"hasbat!D185","v":4},null,null,null,null,null,"2029 / 2030",null,null,null,null,null,null,null,null,null,null,null,null,null,14]
[null,null,"النهاية الصغرى",25,20,15,10,10,10,10,{"$f":"SUM(D13:J13)","v":100},10,10,20]
[null,null,"درجة الطالب",{"$f":"LOOKUP($Y$11,hasbat!$A$11:$A$181,hasbat!$Y$11:$Y$181)","v":28},{"$f":"LOOKUP($Y$11,hasbat!$A$11:$A$181,hasbat!$AD$11:$AD$181)","v":28},{"$f":"LOOKUP($Y$11,hasbat!$A$11:$A$181,hasbat!$AI$11:$AI$181)","v":25},{"$f":"LOOKUP($Y$11,hasbat!$A$11:$A$181,hasbat!$AN$11:$AN$181)","v":11},{"$f":"LOOKUP($Y$11,hasbat!$A$11:$A$181,hasbat!$AS$11:$AS$181)","v":11},{"$f":"LOOKUP($Y$11,hasbat!$A$11:$A$181,hasbat!$AX$11:$AX$181)","v":11},{"$f":"LOOKUP($Y$11,hasbat!$A$11:$A$181,hasbat!$BC$11:$BC$181)","v":11},{"$f":"SUM(D14:J14)","v":125},{"$f":"LOOKUP($Y$11,hasbat!$A$11:$A$181,hasbat!$CH$11:$CH$181)","v":11},{"$f":"LOOKUP($Y$11,hasbat!$A$11:$A$181,hasbat!$CM$11:$CM$181)","v":11},{"$f":"LOOKUP($Y$11,hasbat!$A$11:$A$181,hasbat!$CP$11:$CP$181)","v":20},null,null,null,null,null,null,null,null,null,null,null,null,null,null,null,null,"2030 / 2031"]
[null,null,"النتيجة",{"$f":"LOOKUP($Y$11,hasbat!$A$11:$A$130,hasbat!$CR$11:$CR$130)","v":"ناجح ومنقول للصف الثاني"},null,null,null,{"$f":"LOOKUP($Y$11,hasbat!$A$11:$A$130,hasbat!$CS$11:$CS$130)","v":"              "},null,null,null,null,null,null,null,"    الترتيب",null,{"$f":"IF(K14<117,\"خارج الترتيب للـ 10  الاوائل\",CONCATENATE(LOOKUP(U5,Awael_has!$B$7:$B$24,Awael_has!$F$7:$F$24),\" \",\"/\",\" \",$Y$12,\"_\",\" \",\"طالب\"))","v":"الأول / 4_ طالب"}]
[null,null,{"$f":"IF(D15=\"ناجح ومنقول للصف الثاني\",\"\",IF(D15=\"راسب وله حق الاعادة\",\"\",IF(H16=\"\",\"\",\"مواد الرسوب لعدم حصولك على ربع الدرجة :\")))","v":""},null,null,null,null,{"$f":"LOOKUP($Y$11,hasbat!$A$11:$A$130,hasbat!$FM$11:$FM$130)","v":"       "},null,null,null,null,null,null,null,"النسبة",null,{"$f":"K14/K12","v":0.625}]
[null,null,"رئيس الكنترول :",null,null,null,null,"مشرف جدارات فنية",null,null,null,null,null,"رئيس غرفة التقييم والتحقق",null,null,null,null,"مدير المدرسة :"]
[null,null,{"$f":"$AD$3","v":"……………….."},null,null,null,null,{"$f":"$AD$4","v":"…………….."},null,null,null,null,null,{"$f":"$AD$2","v":"…………."},null,null,null,null,{"$f":"$AD$5","v":"………………"}]
[null,null,null,null,null,null,null,null,null,"كنترول الصف الأول _ جدارات"]
[null,null,null,null,null,null,null,null,null,null,null," "]
[null,null,null,null,null,null,null,null,null,"كنترول الصف الأول _ جدارات"]
[null,null,"محافظة الاسكندرية (ادارة وسط التعليمية)",null,null,null,null,null,"بيان الدرجات والتقييم لنهاية العام",null,null,null,null,"2023 / 2024",null,null,null,null,"رقم الجلوس",null,{"$f":"LOOKUP($Y$11+1,hasbat!$A$11:$A$181,hasbat!$S$11:$S$181)","v":5002}]
[null,null,"مدرسة اسكندرية الفنية المتقدمة (محرم بك)",null,null,null,null,null,"          الصف الاول : فني _ تكنولوجيا الحاسبات"]
[null,null,"نظام الجدارات ثلاث سنوات",null,null,null,null,"الاسم :",null,{"$f":"LOOKUP($Y$11+1,hasbat!$A$11:$A$181,hasbat!$B$11:$B$181)","v":"محمد"},null,null,null,null,null,null,{"$f":"IF($AB$2=\"مستجد\",\"\",IF($AB$2=\"باق\",\"\",IF($AB$2=\"محول\",\"\",LOOKUP($Y$11+1,hasbat!$A$11:$A$181,hasbat!$F$11:$F$181))))","v":""},null,"الفصل",null,{"$f":"LOOKUP($Y$11+1,hasbat!$A$11:$A$181,hasbat!$E$11:$E$181)","v":"10/1"}]
[]
[null,null,"المادة","المواد الثقافية العامة",null,null,null,null,null,null,"مجموع المواد","مواد خارج المجموع",null,null,null,"التقييم النهائي للوحدات _ نظام الجدارات",null,null,null,null,null,null,null,null,null,null,null,null,null,null,"2027 / 2028"]
[null,null,null,"اللغة العربية","اللغة الانجليزية","رياضيات ","فيزياء","كيمياء","دراسات اجتماعية","حاسب الي",null,"تربية وطنية","تربيـة دينيـة","تربية عسكرية",null,{"$f":"CONCATENATE(\"تقييم وحدة\",\" ( \",hasbat!$BO$5,\" )\")","v":"تقييم وحدة ( الدوائر الرقمية والمنطقية )"},null,null,null,null,{"$f":"LOOKUP($Y$11+1,hasbat!$A$11:$A$181,hasbat!$BS$11:$BS$181)","v":"اجتاز"}]
[null,null,null,null,null,null,null,null,null,null,null,null,null,null,null,{"$f":"CONCATENATE(\"تقييم وحدة\",\" ( \",hasbat!$BT$5,\" )\")","v":"تقييم وحدة ( تجميع أجهزة الحاسب الالي )"},null,null,null,null,{"$f":"LOOKUP($Y$11+1,hasbat!$A$11:$A$181,hasbat!$BX$11:$BX$181)","v":"اجتاز"},null,null,null,null,null,null,null,null,null,"2028 / 2029"]
[null,null,"النهاية العظمى",{"$f":"D30*2","v":50},40,30,20,20,20,20,{"$f":"SUM(D29:J29)","v":200},{"$f":"L30*2","v":20},{"$f":"M30*2","v":20},50,null,{"$f":"CONCATENATE(\"تقييم وحدة\",\" ( \",hasbat!$BY$5,\" )\")","v":"تقييم وحدة ( الرسم الفني )"},null,null,null,null,{"$f":"LOOKUP($Y$11+1,hasbat!$A$11:$A$181,hasbat!$CC$11:$CC$181)","v":"اجتاز"},null,null,null,null,null,null,null,null,null,"2029 / 2030",null,null,null,null,null,null,null,null,null,null,null,null,null,14]
[null,null,"النهاية الصغرى",25,20,15,10,10,10,10,{"$f":"SUM(D30:J30)","v":100},10,10,20]
[null,null,"درجة الطالب",{"$f":"LOOKUP($Y$11+1,hasbat!$A$11:$A$181,hasbat!$Y$11:$Y$181)","v":28},{"$f":"LOOKUP($Y$11+1,hasbat!$A$11:$A$181,hasbat!$AD$11:$AD$181)","v":20},{"$f":"LOOKUP($Y$11+1,hasbat!$A$11:$A$181,hasbat!$AI$11:$AI$181)","v":25},{"$f":"LOOKUP($Y$11+1,hasbat!$A$11:$A$181,hasbat!$AN$11:$AN$181)","v":11},{"$f":"LOOKUP($Y$11+1,hasbat!$A$11:$A$181,hasbat!$AS$11:$AS$181)","v":11},{"$f":"LOOKUP($Y$11+1,hasbat!$A$11:$A$181,hasbat!$AX$11:$AX$181)","v":11},{"$f":"LOOKUP($Y$11+1,hasbat!$A$11:$A$181,hasbat!$BC$11:$BC$181)","v":11},{"$f":"SUM(D31:J31)","v":117},{"$f":"LOOKUP($Y$11+1,hasbat!$A$11:$A$181,hasbat!$CH$11:$CH$181)","v":11},{"$f":"LOOKUP($Y$11+1,hasbat!$A$11:$A$181,hasbat!$CM$11:$CM$181)","v":11},{"$f":"LOOKUP($Y$11+1,hasbat!$A$11:$A$181,hasbat!$CP$11:$CP$181)","v":20},null,null,null,null,null,null,null,null,null,null,null,null,null,null,null,null,"2030 / 2031"]
[null,null,"النتيجة",{"$f":"LOOKUP($Y$11+1,hasbat!$A$11:$A$130,hasbat!$CR$11:$CR$130)","v":"دور ثان مادتين"},null,null,null,{"$f":"LOOKUP($Y$11+1,hasbat!$A$11:$A$130,hasbat!$CS$11:$CS$130)","v":" لغة إنجليزية           اساسيات الحاسب   "},null,null,null,null,null,null,null,"    الترتيب",null,{"$f":"IF(K31<117,\"خارج الترتيب للـ 10  الاوائل\",CONCATENATE(LOOKUP(U22,Awael_has!$B$7:$B$24,Awael_has!$F$7:$F$24),\" \",\"/\",\" \",$Y$12,\"_\",\" \",\"طالب\"))","v":"الثاني / 4_ طالب"}]
[null,null,{"$f":"IF(D32=\"ناجح ومنقول للصف الثاني\",\"\",IF(D15=\"راسب وله حق الاعادة\",\"\",IF(H33=\"\",\"\",\"مواد الرسوب لعدم حصولك على ربع الدرجة :\")))","v":"مواد الرسوب لعدم حصولك على ربع الدرجة :"},null,null,null,null,{"$f":"LOOKUP($Y$11+1,hasbat!$A$11:$A$130,hasbat!$FM$11:$FM$130)","v":" لغة انجليزية      "},null,null,null,null,null,null,null,"النسبة",null,{"$f":"K31/K29","v":0.58499999999999996}]
[null,null,"رئيس الكنترول :",null,null,null,null,"مشرف جدارات فنية",null,null,null,null,null,"رئيس غرفة التقييم والتحقق",null,null,null,null,"مدير المدرسة :"]
[null,null,{"$f":"$C$18","v":"……………….."},null,null,null,null,{"$f":"H18","v":"…………….."},null,null,null,null,null,{"$f":"N18","v":"…………."},null,null,null,null,{"$f":"$AD$5","v":"………………"}]
[null,null,null,null,null,null,null,null,null,"كنترول الصف الأول _ جدارات"]
[]
[null,null,null,null,null,null,null,null,null,"كنترول الصف الأول _ جدارات"]
[null,null,"محافظة الاسكندرية (ادارة وسط التعليمية)",null,null,null,null,null,"بيان الدرجات والتقييم لنهاية العام",null,null,null,null,"2023 / 2024",null,null,null,null,"رقم الجلوس",null,{"$f":"LOOKUP($Y$11+2,hasbat!$A$11:$A$181,hasbat!$S$11:$S$181)","v":5003}]
[null,null,"مدرسة اسكندرية الفنية المتقدمة (محرم بك)",null,null,null,null,null,"          الصف الاول : فني _ تكنولوجيا الحاسبات"]
[null,null,"نظام الجدارات ثلاث سنوات",null,null,null,null,"الاسم :",null,{"$f":"LOOKUP($Y$11+2,hasbat!$A$11:$A$181,hasbat!$B$11:$B$181)","v":"عبدالله"},null,null,null,null,null,null,{"$f":"IF($AB$3=\"مستجد\",\"\",IF($AB$3=\"باق\",\"\",IF($AB$3=\"محول\",\"\",LOOKUP($Y$11+2,hasbat!$A$11:$A$181,hasbat!$F$11:$F$181))))","v":""},null,"الفصل",null,{"$f":"LOOKUP($Y$11+2,hasbat!$A$11:$A$181,hasbat!$E$11:$E$181)","v":"10/1"}]
[]
[null,null,"المادة","المواد الثقافية العامة",null,null,null,null,null,null,"مجموع المواد","مواد خارج المجموع",null,null,null,"التقييم النهائي للوحدات _ نظام الجدارات",null,null,null,null,null,null,null,null,null,null,null,null,null,null,"2027 / 2028"]
[null,null,null,"اللغة العربية","اللغة الانجليزية","رياضيات ","فيزياء","كيمياء","دراسات اجتماعية","حاسب الي",null,"تربية وطنية","تربيـة دينيـة","تربية عسكرية",null,{"$f":"CONCATENATE(\"تقييم وحدة\",\" ( \",hasbat!$BO$5,\" )\")","v":"تقييم وحدة ( الدوائر الرقمية والمنطقية )"},null,null,null,null,{"$f":"LOOKUP($Y$11+2,hasbat!$A$11:$A$181,hasbat!$BS$11:$BS$181)","v":"اجتاز"}]
[null,null,null,null,null,null,null,null,null,null,null,null,null,null,null,{"$f":"CONCATENATE(\"تقييم وحدة\",\" ( \",hasbat!$BT$5,\" )\")","v":"تقييم وحدة ( تجميع أجهزة الحاسب الالي )"},null,null,null,null,{"$f":"LOOKUP($Y$11+2,hasbat!$A$11:$A$181,hasbat!$BX$11:$BX$181)","v":"اجتاز"},null,null,null,null,null,null,null,null,null,"2028 / 2029"]
[null,null,"النهاية العظمى",{"$f":"D47*2","v":50},{"$f":"E47*2","v":40},30,20,20,20,20,{"$f":"SUM(D46:J46)","v":200},{"$f":"L47*2","v":20},{"$f":"M47*2","v":20},50,null,{"$f":"CONCATENATE(\"تقييم وحدة\",\" ( \",hasbat!$BY$5,\" )\")","v":"تقييم وحدة ( الرسم الفني )"},null,null,null,null,{"$f":"LOOKUP($Y$11+2,hasbat!$A$11:$A$181,hasbat!$CC$11:$CC$181)","v":"اجتاز"},null,null,null,null,null,null,null,null,null,"2029 / 2030",null,null,null,null,null,null,null,null,null,null,null,null,null,14]
[null,null,"النهاية الصغرى",25,20,15,10,10,10,10,{"$f":"SUM(D47:J47)","v":100},10,10,20]
[null,null,"درجة الطالب",{"$f":"LOOKUP($Y$11+2,hasbat!$A$11:$A$181,hasbat!$Y$11:$Y$181)","v":28},{"$f":"LOOKUP($Y$11+2,hasbat!$A$11:$A$181,hasbat!$AD$11:$AD$181)","v":28},{"$f":"LOOKUP($Y$11+2,hasbat!$A$11:$A$181,hasbat!$AI$11:$AI$181)","v":15},{"$f":"LOOKUP($Y$11+2,hasbat!$A$11:$A$181,hasbat!$AN$11:$AN$181)","v":11},{"$f":"LOOKUP($Y$11+2,hasbat!$A$11:$A$181,hasbat!$AS$11:$AS$181)","v":11},{"$f":"LOOKUP($Y$11+2,hasbat!$A$11:$A$181,hasbat!$AX$11:$AX$181)","v":11},{"$f":"LOOKUP($Y$11+2,hasbat!$A$11:$A$181,hasbat!$BC$11:$BC$181)","v":11},{"$f":"SUM(D48:J48)","v":115},{"$f":"LOOKUP($Y$11+2,hasbat!$A$11:$A$181,hasbat!$CH$11:$CH$181)","v":11},{"$f":"LOOKUP($Y$11+2,hasbat!$A$11:$A$181,hasbat!$CM$11:$CM$181)","v":11},{"$f":"LOOKUP($Y$11+2,hasbat!$A$11:$A$181,hasbat!$CP$11:$CP$181)","v":20},null,null,null,null,null,null,null,null,null,null,null,null,null,null,null,null,"2030 / 2031"]
[null,null,"النتيجة",{"$f":"LOOKUP($Y$11+2,hasbat!$A$11:$A$130,hasbat!$CR$11:$CR$130)","v":"دور ثان مادة"},null,null,null,{"$f":"LOOKUP($Y$11+2,hasbat!$A$11:$A$130,hasbat!$CS$11:$CS$130)","v":"  الرياضيات _ للغياب            "},null,null,null,null,null,null,null,"    الترتيب",null,{"$f":"IF(K48<117,\"خارج الترتيب للـ 10  الاوائل\",CONCATENATE(LOOKUP(U39,Awael_has!$B$7:$B$24,Awael_has!$F$7:$F$24),\" \",\"/\",\" \",$Y$12,\"_\",\" \",\"طالب\"))","v":"خارج الترتيب للـ 10  الاوائل"}]
[null,null,{"$f":"IF(D49=\"ناجح ومنقول للصف الثاني\",\"\",IF(D15=\"راسب وله حق الاعادة\",\"\",IF(H50=\"\",\"\",\"مواد الرسوب لعدم حصولك على ربع الدرجة :\")))","v":"مواد الرسوب لعدم حصولك على ربع الدرجة :"},null,null,null,null,{"$f":"LOOKUP($Y$11+2,hasbat!$A$11:$A$130,hasbat!$FM$11:$FM$130)","v":"       "},null,null,null,null,null,null,null,"النسبة",null,{"$f":"K48/K46","v":0.57499999999999996}]
[null,null,"رئيس الكنترول :",null,null,null,null,"مشرف جدارات فنية",null,null,null,null,null,"رئيس غرفة التقييم والتحقق",null,null,null,null,"مدير المدرسة :"]
[null,null,{"$f":"$AD$3","v":"……………….."},null,null,null,null,{"$f":"H18","v":"…………….."},null,null,null,null,null,{"$f":"N18","v":"…………."},null,null,null,null,{"$f":"$AD$5","v":"………………"}]
[null,null,null,null,null,null,null,null,null,"كنترول الصف الأول _ جدارات"]

{"sheet":"degre","index":3,"n_rows":34,"n_cols":24,"rows_kept":34,"cut":false,"hidden":true,"merged":[[5,22,7,22],[5,23,7,23],[6,17,6,18],[6,19,6,21],[29,4,29,16],[30,4,32,4],[30,5,33,5],[0,0,0,4],[1,0,1,4],[2,0,2,4],[3,4,3,21],[5,0,7,0],[5,1,6,1],[5,2,7,2],[5,3,7,3],[5,4,7,4]]}
["محافظة الإسكندرية"]
["إدارة وسط التعليمية"]
["مدرسة اسكندرية الفنية المتقدمة العسكرية ( محرم بك )"]
[null,"إحصاء القسم",null,null,"كشف رصد درجات وتقييم الوحدات للطلبة في النصف الأول للعام الدراسي   202   /   202  _ الصف الاول :  فني _  تكنولوجيا الحاسبات"]
[]
["م",null,"بيان حالة الطالب","رقم الجلوس","الفصل","كود الطالب","اللغة العربية","اللغة الانجليزية","رياضيات","فيزياء","كيمياء","دراسات اجتماعيىة"," حاسب الي","المجموع الكلي"," تربية وطنية"," تربية دينية","تربية عسكرية","السلامة والصحة المهنية","اساسيات الحاسب","الدوائر الرقمية والمنطقية","تجميع أجهزة الحاسب الالي","الرسم الفني","بيان نتيجة الطالب","مواد الرسوب"]
[null,null,null,null,null,"الكبرى",50,40,30,20,20,20,20,{"$f":"SUM(G7:M7)","v":200},40,20,40,"التيرم الأول",null,"التيرم الثاني"]
[null,"اسم الطالب",null,null,null,"الصغرى",{"$f":"G7/2","v":25},{"$f":"H7/2","v":20},15,10,10,10,10,100,20,10,20,"وحدة _ 1","وحدة _ 2","وحدة _ 3","وحدة _ 4","وحدة _ 5"]
[{"$f":"IF(B9=\"\",\"\",1)","v":1},{"$f":"hasbat!$B11","v":"خالد"},{"$f":"hasbat!$F11","v":"مستجد"},{"$f":"hasbat!$S11","v":5001},{"$f":"hasbat!$E11","v":"10/1"},{"$f":"hasbat!$D11","v":0},{"$f":"hasbat!$Y11","v":28},{"$f":"hasbat!$AD11","v":28},{"$f":"hasbat!$AI11","v":25},{"$f":"hasbat!$AN11","v":11},{"$f":"hasbat!$AS11","v":11},{"$f":"hasbat!$AX11","v":11},{"$f":"hasbat!$BC11","v":11},{"$f":"hasbat!$BD11","v":125},{"$f":"hasbat!$CH11","v":11},{"$f":"hasbat!$CM11","v":11},{"$f":"hasbat!$CT11","v":0},{"$f":"hasbat!$BI11","v":"اجتاز"},{"$f":"hasbat!$BN11","v":"اجتاز"},{"$f":"hasbat!$BS11","v":"اجتاز"},{"$f":"hasbat!$BX11","v":"اجتاز"},{"$f":"hasbat!$CC11","v":"اجتاز"},{"$f":"hasbat!$CV11","v":0},{"$f":"hasbat!$CW11","v":0}]
[{"$f":"IF(B10=\"\",\"\",A9+1)","v":2},{"$f":"hasbat!$B12","v":"محمد"},{"$f":"hasbat!$F12","v":"مستجد"},{"$f":"hasbat!$S12","v":5002},{"$f":"hasbat!$E12","v":"10/1"},{"$f":"hasbat!$D12","v":0},{"$f":"hasbat!$Y12","v":28},{"$f":"hasbat!$AD12","v":20},{"$f":"hasbat!$AI12","v":25},{"$f":"hasbat!$AN12","v":11},{"$f":"hasbat!$AS12","v":11},{"$f":"hasbat!$AX12","v":11},{"$f":"hasbat!$BC12","v":11},{"$f":"hasbat!$BD12","v":117},{"$f":"hasbat!$CH12","v":11},{"$f":"hasbat!$CM12","v":11},{"$f":"hasbat!$CT12","v":0},{"$f":"hasbat!$BI12","v":"اجتاز"},{"$f":"hasbat!$BN12","v":"لم يجتاز"},{"$f":"hasbat!$BS12","v":"اجتاز"},{"$f":"hasbat!$BX12","v":"اجتاز"},{"$f":"hasbat!$CC12","v":"اجتاز"},{"$f":"hasbat!$CV12","v":0},{"$f":"hasbat!$CW12","v":0}]
[{"$f":"IF(B11=\"\",\"\",A10+1)","v":3},{"$f":"hasbat!$B13","v":"عبدالله"},{"$f":"hasbat!$F13","v":"مستجد"},{"$f":"hasbat!$S13","v":5003},{"$f":"hasbat!$E13","v":"10/1"},{"$f":"hasbat!$D13","v":0},{"$f":"hasbat!$Y13","v":28},{"$f":"hasbat!$AD13","v":28},{"$f":"hasbat!$AI13","v":15},{"$f":"hasbat!$AN13","v":11},{"$f":"hasbat!$AS13","v":11},{"$f":"hasbat!$AX13","v":11},{"$f":"hasbat!$BC13","v":11},{"$f":"hasbat!$BD13","v":115},{"$f":"hasbat!$CH13","v":11},{"$f":"hasbat!$CM13","v":11},{"$f":"hasbat!$CT13","v":0},{"$f":"hasbat!$BI13","v":"اجتاز"},{"$f":"hasbat!$BN13","v":"اجتاز"},{"$f":"hasbat!$BS13","v":"اجتاز"},{"$f":"hasbat!$BX13","v":"اجتاز"},{"$f":"hasbat!$CC13","v":"اجتاز"},{"$f":"hasbat!$CV13","v":0},{"$f":"hasbat!$CW13","v":0}]
[4,{"$f":"hasbat!$B14","v":"جون"},{"$f":"hasbat!$F14","v":"مستجد"},{"$f":"hasbat!$S14","v":5004},{"$f":"hasbat!$E14","v":"10/1"},{"$f":"hasbat!$D14","v":0},{"$f":"hasbat!$Y14","v":28},{"$f":"hasbat!$AD14","v":18},{"$f":"hasbat!$AI14","v":25},{"$f":"hasbat!$AN14","v":11},{"$f":"hasbat!$AS14","v":11},{"$f":"hasbat!$AX14","v":11},{"$f":"hasbat!$BC14","v":11},{"$f":"hasbat!$BD14","v":115},{"$f":"hasbat!$CH14","v":11},{"$f":"hasbat!$CM14","v":11},{"$f":"hasbat!$CT14","v":0},{"$f":"hasbat!$BI14","v":"اجتاز"},{"$f":"hasbat!$BN14","v":"اجتاز"},{"$f":"hasbat!$BS14","v":"لم يجتاز"},{"$f":"hasbat!$BX14","v":"اجتاز"},{"$f":"hasbat!$CC14","v":"لم يجتاز"},{"$f":"hasbat!$CV14","v":0},{"$f":"hasbat!$CW14","v":0}]
[5,{"$f":"hasbat!$B15","v":0},{"$f":"hasbat!$F15","v":"مستجد"},{"$f":"hasbat!$S15","v":5005},{"$f":"hasbat!$E15","v":"10/1"},{"$f":"hasbat!$D15","v":0},{"$f":"hasbat!$Y15","v":0},{"$f":"hasbat!$AD15","v":0},{"$f":"hasbat!$AI15","v":0},{"$f":"hasbat!$AN15","v":0},{"$f":"hasbat!$AS15","v":0},{"$f":"hasbat!$AX15","v":0},{"$f":"hasbat!$BC15","v":0},{"$f":"hasbat!$BD15","v":0},{"$f":"hasbat!$CH15","v":0},{"$f":"hasbat!$CM15","v":0},{"$f":"hasbat!$CT15","v":0},{"$f":"hasbat!$BI15","v":"لم يجتاز"},{"$f":"hasbat!$BN15","v":"لم يجتاز"},{"$f":"hasbat!$BS15","v":"لم يجتاز"},{"$f":"hasbat!$BX15","v":"لم يجتاز"},{"$f":"hasbat!$CC15","v":"لم يجتاز"},{"$f":"hasbat!$CV15","v":0},{"$f":"hasbat!$CW15","v":0}]
[6,{"$f":"hasbat!$B16","v":0},{"$f":"hasbat!$F16","v":"سحب ملف"},{"$f":"hasbat!$S16","v":5006},{"$f":"hasbat!$E16","v":"10/1"},{"$f":"hasbat!$D16","v":0},{"$f":"hasbat!$Y16","v":0},{"$f":"hasbat!$AD16","v":0},{"$f":"hasbat!$AI16","v":0},{"$f":"hasbat!$AN16","v":0},{"$f":"hasbat!$AS16","v":0},{"$f":"hasbat!$AX16","v":0},{"$f":"hasbat!$BC16","v":0},{"$f":"hasbat!$BD16","v":0},{"$f":"hasbat!$CH16","v":0},{"$f":"hasbat!$CM16","v":0},{"$f":"hasbat!$CT16","v":0},{"$f":"hasbat!$BI16","v":"لم يجتاز"},{"$f":"hasbat!$BN16","v":"لم يجتاز"},{"$f":"hasbat!$BS16","v":"لم يجتاز"},{"$f":"hasbat!$BX16","v":"لم يجتاز"},{"$f":"hasbat!$CC16","v":"لم يجتاز"},{"$f":"hasbat!$CV16","v":0},{"$f":"hasbat!$CW16","v":0}]
[7,{"$f":"hasbat!$B17","v":0},{"$f":"hasbat!$F17","v":"مستجد"},{"$f":"hasbat!$S17","v":5007},{"$f":"hasbat!$E17","v":"10/1"},{"$f":"hasbat!$D17","v":0},{"$f":"hasbat!$Y17","v":0},{"$f":"hasbat!$AD17","v":0},{"$f":"hasbat!$AI17","v":0},{"$f":"hasbat!$AN17","v":0},{"$f":"hasbat!$AS17","v":0},{"$f":"hasbat!$AX17","v":0},{"$f":"hasbat!$BC17","v":0},{"$f":"hasbat!$BD17","v":0},{"$f":"hasbat!$CH17","v":0},{"$f":"hasbat!$CM17","v":0},{"$f":"hasbat!$CT17","v":0},{"$f":"hasbat!$BI17","v":"لم يجتاز"},{"$f":"hasbat!$BN17","v":"لم يجتاز"},{"$f":"hasbat!$BS17","v":"لم يجتاز"},{"$f":"hasbat!$BX17","v":"لم يجتاز"},{"$f":"hasbat!$CC17","v":"لم يجتاز"},{"$f":"hasbat!$CV17","v":0},{"$f":"hasbat!$CW17","v":0}]
[8,{"$f":"hasbat!$B18","v":0},{"$f":"hasbat!$F18","v":"مستجد"},{"$f":"hasbat!$S18","v":5008},{"$f":"hasbat!$E18","v":"10/1"},{"$f":"hasbat!$D18","v":0},{"$f":"hasbat!$Y18","v":0},{"$f":"hasbat!$AD18","v":0},{"$f":"hasbat!$AI18","v":0},{"$f":"hasbat!$AN18","v":0},{"$f":"hasbat!$AS18","v":0},{"$f":"hasbat!$AX18","v":0},{"$f":"hasbat!$BC18","v":0},{"$f":"hasbat!$BD18","v":0},{"$f":"hasbat!$CH18","v":0},{"$f":"hasbat!$CM18","v":0},{"$f":"hasbat!$CT18","v":0},{"$f":"hasbat!$BI18","v":"لم يجتاز"},{"$f":"hasbat!$BN18","v":"لم يجتاز"},{"$f":"hasbat!$BS18","v":"لم يجتاز"},{"$f":"hasbat!$BX18","v":"لم يجتاز"},{"$f":"hasbat!$CC18","v":"لم يجتاز"},{"$f":"hasbat!$CV18","v":0},{"$f":"hasbat!$CW18","v":0}]
[9,{"$f":"hasbat!$B19","v":0},{"$f":"hasbat!$F19","v":"مستجد"},{"$f":"hasbat!$S19","v":5009},{"$f":"hasbat!$E19","v":"10/1"},{"$f":"hasbat!$D19","v":0},{"$f":"hasbat!$Y19","v":0},{"$f":"hasbat!$AD19","v":0},{"$f":"hasbat!$AI19","v":0},{"$f":"hasbat!$AN19","v":0},{"$f":"hasbat!$AS19","v":0},{"$f":"hasbat!$AX19","v":0},{"$f":"hasbat!$BC19","v":0},{"$f":"hasbat!$BD19","v":0},{"$f":"hasbat!$CH19","v":0},{"$f":"hasbat!$CM19","v":0},{"$f":"hasbat!$CT19","v":0},{"$f":"hasbat!$BI19","v":"لم يجتاز"},{"$f":"hasbat!$BN19","v":"لم يجتاز"},{"$f":"hasbat!$BS19","v":"لم يجتاز"},{"$f":"hasbat!$BX19","v":"لم يجتاز"},{"$f":"hasbat!$CC19","v":"لم يجتاز"},{"$f":"hasbat!$CV19","v":0},{"$f":"hasbat!$CW19","v":0}]
[10,{"$f":"hasbat!$B20","v":0},{"$f":"hasbat!$F20","v":"مستجد"},{"$f":"hasbat!$S20","v":5010},{"$f":"hasbat!$E20","v":"10/1"},{"$f":"hasbat!$D20","v":0},{"$f":"hasbat!$Y20","v":0},{"$f":"hasbat!$AD20","v":0},{"$f":"hasbat!$AI20","v":0},{"$f":"hasbat!$AN20","v":0},{"$f":"hasbat!$AS20","v":0},{"$f":"hasbat!$AX20","v":0},{"$f":"hasbat!$BC20","v":0},{"$f":"hasbat!$BD20","v":0},{"$f":"hasbat!$CH20","v":0},{"$f":"hasbat!$CM20","v":0},{"$f":"hasbat!$CT20","v":0},{"$f":"hasbat!$BI20","v":"لم يجتاز"},{"$f":"hasbat!$BN20","v":"لم يجتاز"},{"$f":"hasbat!$BS20","v":"لم يجتاز"},{"$f":"hasbat!$BX20","v":"لم يجتاز"},{"$f":"hasbat!$CC20","v":"لم يجتاز"},{"$f":"hasbat!$CV20","v":0},{"$f":"hasbat!$CW20","v":0}]
[11,{"$f":"hasbat!$B21","v":0},{"$f":"hasbat!$F21","v":"مستجد"},{"$f":"hasbat!$S21","v":5011},{"$f":"hasbat!$E21","v":"10/1"},{"$f":"hasbat!$D21","v":0},{"$f":"hasbat!$Y21","v":0},{"$f":"hasbat!$AD21","v":0},{"$f":"hasbat!$AI21","v":0},{"$f":"hasbat!$AN21","v":0},{"$f":"hasbat!$AS21","v":0},{"$f":"hasbat!$AX21","v":0},{"$f":"hasbat!$BC21","v":0},{"$f":"hasbat!$BD21","v":0},{"$f":"hasbat!$CH21","v":0},{"$f":"hasbat!$CM21","v":0},{"$f":"hasbat!$CT21","v":0},{"$f":"hasbat!$BI21","v":"لم يجتاز"},{"$f":"hasbat!$BN21","v":"لم يجتاز"},{"$f":"hasbat!$BS21","v":"لم يجتاز"},{"$f":"hasbat!$BX21","v":"لم يجتاز"},{"$f":"hasbat!$CC21","v":"لم يجتاز"},{"$f":"hasbat!$CV21","v":0},{"$f":"hasbat!$CW21","v":0}]
[12,{"$f":"hasbat!$B22","v":0},{"$f":"hasbat!$F22","v":"مستجد"},{"$f":"hasbat!$S22","v":5012},{"$f":"hasbat!$E22","v":"10/1"},{"$f":"hasbat!$D22","v":0},{"$f":"hasbat!$Y22","v":0},{"$f":"hasbat!$AD22","v":0},{"$f":"hasbat!$AI22","v":0},{"$f":"hasbat!$AN22","v":0},{"$f":"hasbat!$AS22","v":0},{"$f":"hasbat!$AX22","v":0},{"$f":"hasbat!$BC22","v":0},{"$f":"hasbat!$BD22","v":0},{"$f":"hasbat!$CH22","v":0},{"$f":"hasbat!$CM22","v":0},{"$f":"hasbat!$CT22","v":0},{"$f":"hasbat!$BI22","v":"لم يجتاز"},{"$f":"hasbat!$BN22","v":"لم يجتاز"},{"$f":"hasbat!$BS22","v":"لم يجتاز"},{"$f":"hasbat!$BX22","v":"لم يجتاز"},{"$f":"hasbat!$CC22","v":"لم يجتاز"},{"$f":"hasbat!$CV22","v":0},{"$f":"hasbat!$CW22","v":0}]
[13,{"$f":"hasbat!$B23","v":0},{"$f":"hasbat!$F23","v":"مستجد"},{"$f":"hasbat!$S23","v":5013},{"$f":"hasbat!$E23","v":"10/1"},{"$f":"hasbat!$D23","v":0},{"$f":"hasbat!$Y23","v":0},{"$f":"hasbat!$AD23","v":0},{"$f":"hasbat!$AI23","v":0},{"$f":"hasbat!$AN23","v":0},{"$f":"hasbat!$AS23","v":0},{"$f":"hasbat!$AX23","v":0},{"$f":"hasbat!$BC23","v":0},{"$f":"hasbat!$BD23","v":0},{"$f":"hasbat!$CH23","v":0},{"$f":"hasbat!$CM23","v":0},{"$f":"hasbat!$CT23","v":0},{"$f":"hasbat!$BI23","v":"لم يجتاز"},{"$f":"hasbat!$BN23","v":"لم يجتاز"},{"$f":"hasbat!$BS23","v":"لم يجتاز"},{"$f":"hasbat!$BX23","v":"لم يجتاز"},{"$f":"hasbat!$CC23","v":"لم يجتاز"},{"$f":"hasbat!$CV23","v":0},{"$f":"hasbat!$CW23","v":0}]
[14,{"$f":"hasbat!$B24","v":0},{"$f":"hasbat!$F24","v":"مستجد"},{"$f":"hasbat!$S24","v":5014},{"$f":"hasbat!$E24","v":"10/1"},{"$f":"hasbat!$D24","v":0},{"$f":"hasbat!$Y24","v":0},{"$f":"hasbat!$AD24","v":0},{"$f":"hasbat!$AI24","v":0},{"$f":"hasbat!$AN24","v":0},{"$f":"hasbat!$AS24","v":0},{"$f":"hasbat!$AX24","v":0},{"$f":"hasbat!$BC24","v":0},{"$f":"hasbat!$BD24","v":0},{"$f":"hasbat!$CH24","v":0},{"$f":"hasbat!$CM24","v":0},{"$f":"hasbat!$CT24","v":0},{"$f":"hasbat!$BI24","v":"لم يجتاز"},{"$f":"hasbat!$BN24","v":"لم يجتاز"},{"$f":"hasbat!$BS24","v":"لم يجتاز"},{"$f":"hasbat!$BX24","v":"لم يجتاز"},{"$f":"hasbat!$CC24","v":"لم يجتاز"},{"$f":"hasbat!$CV24","v":0},{"$f":"hasbat!$CW24","v":0}]
[15,{"$f":"hasbat!$B25","v":0},{"$f":"hasbat!$F25","v":"مستجد"},{"$f":"hasbat!$S25","v":5015},{"$f":"hasbat!$E25","v":"10/1"},{"$f":"hasbat!$D25","v":0},{"$f":"hasbat!$Y25","v":0},{"$f":"hasbat!$AD25","v":0},{"$f":"hasbat!$AI25","v":0},{"$f":"hasbat!$AN25","v":0},{"$f":"hasbat!$AS25","v":0},{"$f":"hasbat!$AX25","v":0},{"$f":"hasbat!$BC25","v":0},{"$f":"hasbat!$BD25","v":0},{"$f":"hasbat!$CH25","v":0},{"$f":"hasbat!$CM25","v":0},{"$f":"hasbat!$CT25","v":0},{"$f":"hasbat!$BI25","v":"لم يجتاز"},{"$f":"hasbat!$BN25","v":"لم يجتاز"},{"$f":"hasbat!$BS25","v":"لم يجتاز"},{"$f":"hasbat!$BX25","v":"لم يجتاز"},{"$f":"hasbat!$CC25","v":"لم يجتاز"},{"$f":"hasbat!$CV25","v":0},{"$f":"hasbat!$CW25","v":0}]
[16,{"$f":"hasbat!$B26","v":0},{"$f":"hasbat!$F26","v":"مستجد"},{"$f":"hasbat!$S26","v":5016},{"$f":"hasbat!$E26","v":"10/1"},{"$f":"hasbat!$D26","v":0},{"$f":"hasbat!$Y26","v":0},{"$f":"hasbat!$AD26","v":0},{"$f":"hasbat!$AI26","v":0},{"$f":"hasbat!$AN26","v":0},{"$f":"hasbat!$AS26","v":0},{"$f":"hasbat!$AX26","v":0},{"$f":"hasbat!$BC26","v":0},{"$f":"hasbat!$BD26","v":0},{"$f":"hasbat!$CH26","v":0},{"$f":"hasbat!$CM26","v":0},{"$f":"hasbat!$CT26","v":0},{"$f":"hasbat!$BI26","v":"لم يجتاز"},{"$f":"hasbat!$BN26","v":"لم يجتاز"},{"$f":"hasbat!$BS26","v":"لم يجتاز"},{"$f":"hasbat!$BX26","v":"لم يجتاز"},{"$f":"hasbat!$CC26","v":"لم يجتاز"},{"$f":"hasbat!$CV26","v":0},{"$f":"hasbat!$CW26","v":0}]
[17,{"$f":"hasbat!$B27","v":0},{"$f":"hasbat!$F27","v":"مستجد"},{"$f":"hasbat!$S27","v":5017},{"$f":"hasbat!$E27","v":"10/1"},{"$f":"hasbat!$D27","v":0},{"$f":"hasbat!$Y27","v":0},{"$f":"hasbat!$AD27","v":0},{"$f":"hasbat!$AI27","v":0},{"$f":"hasbat!$AN27","v":0},{"$f":"hasbat!$AS27","v":0},{"$f":"hasbat!$AX27","v":0},{"$f":"hasbat!$BC27","v":0},{"$f":"hasbat!$BD27","v":0},{"$f":"hasbat!$CH27","v":0},{"$f":"hasbat!$CM27","v":0},{"$f":"hasbat!$CT27","v":0},{"$f":"hasbat!$BI27","v":"لم يجتاز"},{"$f":"hasbat!$BN27","v":"لم يجتاز"},{"$f":"hasbat!$BS27","v":"لم يجتاز"},{"$f":"hasbat!$BX27","v":"لم يجتاز"},{"$f":"hasbat!$CC27","v":"لم يجتاز"},{"$f":"hasbat!$CV27","v":0},{"$f":"hasbat!$CW27","v":0}]
[18,{"$f":"hasbat!$B28","v":0},{"$f":"hasbat!$F28","v":"مستجد"},{"$f":"hasbat!$S28","v":5018},{"$f":"hasbat!$E28","v":"10/1"},{"$f":"hasbat!$D28","v":0},{"$f":"hasbat!$Y28","v":0},{"$f":"hasbat!$AD28","v":0},{"$f":"hasbat!$AI28","v":0},{"$f":"hasbat!$AN28","v":0},{"$f":"hasbat!$AS28","v":0},{"$f":"hasbat!$AX28","v":0},{"$f":"hasbat!$BC28","v":0},{"$f":"hasbat!$BD28","v":0},{"$f":"hasbat!$CH28","v":0},{"$f":"hasbat!$CM28","v":0},{"$f":"hasbat!$CT28","v":0},{"$f":"hasbat!$BI28","v":"لم يجتاز"},{"$f":"hasbat!$BN28","v":"لم يجتاز"},{"$f":"hasbat!$BS28","v":"لم يجتاز"},{"$f":"hasbat!$BX28","v":"لم يجتاز"},{"$f":"hasbat!$CC28","v":"لم يجتاز"},{"$f":"hasbat!$CV28","v":0},{"$f":"hasbat!$CW28","v":0}]
[{"$f":"IF(B27=\"\",\"\",A26+1)","v":19},{"$f":"hasbat!$B29","v":0},{"$f":"hasbat!$F29","v":"اختر البيان"},{"$f":"hasbat!$S29","v":0},{"$f":"hasbat!$E29","v":0},{"$f":"hasbat!$D29","v":0},{"$f":"hasbat!$Y29","v":0},{"$f":"hasbat!$AD29","v":0},{"$f":"hasbat!$AI29","v":0},{"$f":"hasbat!$AN29","v":0},{"$f":"hasbat!$AS29","v":0},{"$f":"hasbat!$AX29","v":0},{"$f":"hasbat!$BC29","v":0},{"$f":"hasbat!$BD29","v":0},{"$f":"hasbat!$CH29","v":0},{"$f":"hasbat!$CM29","v":0},{"$f":"hasbat!$CT29","v":0},{"$f":"hasbat!$BI29","v":"لم يجتاز"},{"$f":"hasbat!$BN29","v":"لم يجتاز"},{"$f":"hasbat!$BS29","v":"لم يجتاز"},{"$f":"hasbat!$BX29","v":"لم يجتاز"},{"$f":"hasbat!$CC29","v":"لم يجتاز"},{"$f":"hasbat!$CV29","v":0},{"$f":"hasbat!$CW29","v":0}]
[20,{"$f":"hasbat!$B30","v":0},{"$f":"hasbat!$F30","v":"اختر البيان"},{"$f":"hasbat!$S30","v":""},{"$f":"hasbat!$E30","v":0},{"$f":"hasbat!$D30","v":0},{"$f":"hasbat!$Y30","v":0},{"$f":"hasbat!$AD30","v":0},{"$f":"hasbat!$AI30","v":0},{"$f":"hasbat!$AN30","v":0},{"$f":"hasbat!$AS30","v":0},{"$f":"hasbat!$AX30","v":0},{"$f":"hasbat!$BC30","v":0},{"$f":"hasbat!$BD30","v":0},{"$f":"hasbat!$CH30","v":0},{"$f":"hasbat!$CM30","v":0},{"$f":"hasbat!$CT30","v":0},{"$f":"hasbat!$BI30","v":"لم يجتاز"},{"$f":"hasbat!$BN30","v":"لم يجتاز"},{"$f":"hasbat!$BS30","v":"لم يجتاز"},{"$f":"hasbat!$BX30","v":"لم يجتاز"},{"$f":"hasbat!$CC30","v":"لم يجتاز"},{"$f":"hasbat!$CV30","v":0},{"$f":"hasbat!$CW30","v":0}]
[]
[null,null,null,null,"كشف بيان نسب نجاح المواد لكل فصل  للعام الدراسي   202   /   202  _ الصف الاول ( فني _  تكنولوجيا الحاسبات ) "]
[null,null,null,null,"الفصل","كود الطالب","اللغة العربية","اللغة الانجليزية","رياضيات","فيزياء","كيمياء","دراسات اجتماعيىة"," حاسب الي","المجموع الكلي"," تربية وطنية"," تربية دينية","تربية عسكرية"]
[null,null,null,null,null,null,50,40,30,20,20,20,20,{"$f":"SUM(G32:M32)","v":200},40,20,40]
[null,null,null,null,null,null,{"$f":"G32/2","v":25},{"$f":"H32/2","v":20},15,10,10,10,10,100,20,10,20]
[null,null,null,null,"10/1",null,{"$f":"COUNTIF(G8:G28,\">=25\")/COUNTA($B$9:$B$28)","v":0.25},{"$f":"COUNTIF(H9:H28,\">=20\")/COUNTA($B$9:$B$28)","v":0.15},{"$f":"COUNTIF(I9:I28,\">=15\")/COUNTA($B$9:$B$28)","v":0.2},{"$f":"COUNTIF(J9:J28,\">=10\")/COUNTA($B$9:$B$28)","v":0.2},{"$f":"COUNTIF(K9:K28,\">=10\")/COUNTA($B$9:$B$28)","v":0.2},{"$f":"COUNTIF(L9:L28,\">=10\")/COUNTA($B$9:$B$28)","v":0.2},{"$f":"COUNTIF(M9:M28,\">=10\")/COUNTA($B$9:$B$28)","v":0.2},{"$f":"COUNTIF(N9:N28,\">=100\")/COUNTA($B$9:$B$28)","v":0.2},{"$f":"COUNTIF(O9:O28,\">=20\")/COUNTA($B$9:$B$28)","v":0},{"$f":"COUNTIF(P9:P28,\">=10\")/COUNTA($B$9:$B$28)","v":0.2},{"$f":"COUNTIF(Q9:Q28,\">=20\")/COUNTA($B$9:$B$28)","v":0}]

{"sheet":"Awael_has","index":4,"n_rows":179,"n_cols":13,"rows_kept":179,"cut":false,"hidden":true,"merged":[[1,6,2,10]]}
[]
[null,null,null,null,null,null,{"$f":"NoToTxt(H8,\"درجة\",\"درجة\")","v":{"$error":"#NAME?"}}]
[null,null,"العشرة الاوائل في قسم ",null,"ميكانيكا_تشكيل"]
[]
[]
["م","رقم الجلوس","اســـــــــم الطـــــالب",{"$f":"M6","v":"الفصل"},"المجموع","الترتيب",null,null,null,"رقم الجلوس","اســـــــــم الطـــــالب","المجموع","الفصل"]
[1,{"$f":"J7","v":5001},"خالد",{"$f":"M7","v":"10/1"},{"$f":"L7","v":125},{"$f":"OrdinalNum(RANK(E7,E$7:E$153))","v":"الأول"},null,null,null,{"$f":"degre!D9","v":5001},{"$f":"degre!B9","v":"خالد"},{"$f":"degre!N9","v":125},{"$f":"degre!E9","v":"10/1"}]
[2,5002,"محمد",{"$f":"M8","v":"10/1"},{"$f":"L8","v":117},{"$f":"IF(E8=E7,OrdinalNum(RANK(E8,$E$7:$E$153))&\" مكرر\",OrdinalNum(RANK(E8,$E$7:$E$153)))","v":"الثاني"},null,162,null,{"$f":"degre!D10","v":5002},{"$f":"degre!B10","v":"محمد"},{"$f":"degre!N10","v":117},{"$f":"degre!E10","v":"10/1"}]
[3,5003,"عبدالله","10/1",115,{"$f":"IF(E9=E8,OrdinalNum(RANK(E9,$E$7:$E$153))&\" مكرر\",OrdinalNum(RANK(E9,$E$7:$E$153)))","v":"الثالث"},null,null,null,{"$f":"degre!D11","v":5003},{"$f":"degre!B11","v":"عبدالله"},{"$f":"degre!N11","v":115},{"$f":"degre!E11","v":"10/1"}]
[4,5004,"جون","10/1",115,"الثالث مكرر",null,null,null,{"$f":"degre!D12","v":5004},{"$f":"degre!B12","v":"جون"},{"$f":"degre!N12","v":115},{"$f":"degre!E12","v":"10/1"}]
[5,5005,0,"10/1",0,"السادس",null,null,null,{"$f":"degre!D13","v":5005},{"$f":"degre!B13","v":0},{"$f":"degre!N13","v":0},{"$f":"degre!E13","v":"10/1"}]
[6,5006,0,"10/1",0,"السادس مكرر",null,null,null,{"$f":"degre!D14","v":5006},{"$f":"degre!B14","v":0},{"$f":"degre!N14","v":0},{"$f":"degre!E14","v":"10/1"}]
[7,5007,0,"10/1",0,"السادس مكرر",null,null,null,{"$f":"degre!D15","v":5007},{"$f":"degre!B15","v":0},{"$f":"degre!N15","v":0},{"$f":"degre!E15","v":"10/1"}]
[8,5008,0,"10/1",0,"السادس مكرر",null,null,null,{"$f":"degre!D16","v":5008},{"$f":"degre!B16","v":0},{"$f":"degre!N16","v":0},{"$f":"degre!E16","v":"10/1"}]
[9,5009,0,"10/1",0,"السادس مكرر",null,null,null,{"$f":"degre!D17","v":5009},{"$f":"degre!B17","v":0},{"$f":"degre!N17","v":0},{"$f":"degre!E17","v":"10/1"}]
[10,5010,0,"10/1",0,"السادس مكرر",null,null,null,{"$f":"degre!D18","v":5010},{"$f":"degre!B18","v":0},{"$f":"degre!N18","v":0},{"$f":"degre!E18","v":"10/1"}]
[11,5011,0,"10/1",0,"السادس مكرر",null,null,null,{"$f":"degre!D19","v":5011},{"$f":"degre!B19","v":0},{"$f":"degre!N19","v":0},{"$f":"degre!E19","v":"10/1"}]
[12,5012,0,"10/1",0,"السادس مكرر",null,null,null,{"$f":"degre!D20","v":5012},{"$f":"degre!B20","v":0},{"$f":"degre!N20","v":0},{"$f":"degre!E20","v":"10/1"}]
[13,5013,0,"10/1",0,"السادس مكرر",null,null,null,{"$f":"degre!D21","v":5013},{"$f":"degre!B21","v":0},{"$f":"degre!N21","v":0},{"$f":"degre!E21","v":"10/1"}]
[14,5014,0,"10/1",0,"السادس مكرر",null,null,null,{"$f":"degre!D22","v":5014},{"$f":"degre!B22","v":0},{"$f":"degre!N22","v":0},{"$f":"degre!E22","v":"10/1"}]
[15,5015,0,"10/1",0,"السادس مكرر",null,null,null,{"$f":"degre!D23","v":5015},{"$f":"degre!B23","v":0},{"$f":"degre!N23","v":0},{"$f":"degre!E23","v":"10/1"}]
[16,5016,0,"10/1",0,"السادس مكرر",null,null,null,{"$f":"degre!D24","v":5016},{"$f":"degre!B24","v":0},{"$f":"degre!N24","v":0},{"$f":"degre!E24","v":"10/1"}]
[17,5017,0,"10/1",0,"السادس مكرر",null,null,null,{"$f":"degre!D25","v":5017},{"$f":"degre!B25","v":0},{"$f":"degre!N25","v":0},{"$f":"degre!E25","v":"10/1"}]
[18,5018,0,"10/1",0,"السادس مكرر",null,null,null,{"$f":"degre!D26","v":5018},{"$f":"degre!B26","v":0},{"$f":"degre!N26","v":0},{"$f":"degre!E26","v":"10/1"}]
[19,0,0,0,0,"السادس مكرر",null,null,null,{"$f":"degre!D27","v":0},{"$f":"degre!B27","v":0},{"$f":"degre!N27","v":0},{"$f":"degre!E27","v":0}]
[20,"",0,0,0,"السادس مكرر",null,null,null,{"$f":"degre!D28","v":""},{"$f":"degre!B28","v":0},{"$f":"degre!N28","v":0},{"$f":"degre!E28","v":0}]
[21,0,0,0,0,"السادس مكرر"]
[22,0,0,0,0,"السادس مكرر"]
[23,0,0,0,0,"السادس مكرر"]
[24,0,0,0,0,"السادس مكرر"]
[25,0,0,0,0,"السادس مكرر"]
[26,0,0,0,0,"السادس مكرر"]
[27,0,0,0,0,"السادس مكرر"]
[28,0,0,0,0,"السادس مكرر"]
[29,0,0,0,0,"السادس مكرر"]
[30,0,0,0,0,"السادس مكرر"]
[31,0,0,0,0,"السادس مكرر"]
[32,0,0,0,0,"السادس مكرر"]
[33,{"$f":"J39","v":0},0,0,0,"السادس مكرر"]
[34,0,0,0,0,"السادس مكرر"]
[35,0,0,0,0,"السادس مكرر"]
[36,0,0,0,0,"السادس مكرر"]
[37,0,0,0,0,"السادس مكرر"]
[38,0,0,0,0,"السادس مكرر"]
[39,0,0,0,0,"السادس مكرر"]
[40,0,0,0,0,"السادس مكرر"]
[41,0,0,0,0,"السادس مكرر"]
[42,0,0,0,0,"السادس مكرر"]
[43,0,0,0,0,"السادس مكرر"]
[44,0,0,1,1,"الخامس",null,null,null,0,0,1,1]
[45,0,0,0,0,"السادس",null,null,null,0,0,0,0]
[46,0,0,0,0,"السادس مكرر",null,null,null,0,0,0,0]
[47,0,0,0,0,"السادس مكرر",null,null,null,0,0,0,0]
[48,0,0,0,0,"السادس مكرر",null,null,null,0,0,0,0]
[49,0,0,0,0,"السادس مكرر",null,null,null,0,0,0,0]
[50,0,0,0,0,"السادس مكرر",null,null,null,0,0,0,0]
[51,0,0,0,0,"السادس مكرر",null,null,null,0,0,0,0]
[52,0,0,0,0,"السادس مكرر",null,null,null,0,0,0,0]
[53,0,0,0,0,"السادس مكرر",null,null,null,0,0,0,0]
[54,0,0,0,0,"السادس مكرر",null,null,null,0,0,0,0]
[55,0,0,0,0,"السادس مكرر",null,null,null,0,0,0,0]
[56,0,0,0,0,"السادس مكرر",null,null,null,0,0,0,0]
[57,0,0,0,0,"السادس مكرر",null,null,null,0,0,0,0]
[58,0,0,0,0,"السادس مكرر",null,null,null,0,0,0,0]
[59,0,0,0,0,"السادس مكرر",null,null,null,0,0,0,0]
[60,0,0,0,0,"السادس مكرر",null,null,null,0,0,0,0]
[61,0,0,0,0,"السادس مكرر",null,null,null,0,0,0,0]
[62,0,0,0,0,"السادس مكرر",null,null,null,0,0,0,0]
[63,0,0,0,0,"السادس مكرر",null,null,null,0,0,0,0]
[64,0,0,0,0,"السادس مكرر",null,null,null,0,0,0,0]
[65,{"$f":"J71","v":0},0,0,0,"السادس مكرر",null,null,null,0,0,0,0]
[66,0,0,{"$f":"M72","v":0},{"$f":"L72","v":0},{"$f":"IF(E72=E71,OrdinalNum(RANK(E72,$E$7:$E$153))&\" مكرر\",OrdinalNum(RANK(E72,$E$7:$E$153)))","v":"السادس مكرر"},null,null,null,0,0,0,0]
[67,0,0,0,0,"السادس مكرر",null,null,null,0,0,0,0]
[68,0,0,0,0,"السادس مكرر",null,null,null,0,0,0,0]
[69,0,0,0,0,"السادس مكرر",null,null,null,0,0,0,0]
[70,0,0,0,0,"السادس مكرر",null,null,null,0,0,0,0]
[71,0,0,0,0,"السادس مكرر",null,null,null,0,0,0,0]
[72,0,0,0,0,"السادس مكرر",null,null,null,0,0,0,0]
[73,0,0,0,0,"السادس مكرر",null,null,null,0,0,0,0]
[74,0,0,0,0,"السادس مكرر",null,null,null,0,0,0,0]
[75,0,0,0,0,"السادس مكرر",null,null,null,0,0,0,0]
[76,0,0,0,0,"السادس مكرر",null,null,null,0,0,0,0]
[77,0,0,0,0,"السادس مكرر",null,null,null,0,0,0,0]
[78,0,0,0,0,"السادس مكرر",null,null,null,0,0,0,0]
[79,0,0,0,0,"السادس مكرر",null,null,null,0,0,0,0]
[80,0,0,0,0,"السادس مكرر",null,null,null,0,0,0,0]
[81,0,0,0,0,"السادس مكرر",null,null,null,0,0,0,0]
[82,0,0,0,0,"السادس مكرر",null,null,null,0,0,0,0]
[83,0,0,0,0,"السادس مكرر",null,null,null,0,0,0,0]
[84,0,0,0,0,"السادس مكرر",null,null,null,0,0,0,0]
[85,0,0,0,0,"السادس مكرر",null,null,null,0,0,0,0]
[86,0,0,0,0,"السادس مكرر",null,null,null,0,0,0,0]
[87,0,0,0,0,"السادس مكرر",null,null,null,0,0,0,0]
[88,0,0,0,0,"السادس مكرر",null,null,null,0,0,0,0]
[89,0,0,0,0,"السادس مكرر",null,null,null,0,0,0,0]
[90,0,0,0,0,"السادس مكرر",null,null,null,0,0,0,0]
[91,0,0,0,0,"السادس مكرر",null,null,null,0,0,0,0]
[92,0,0,0,0,"السادس مكرر",null,null,null,0,0,0,0]
[93,0,0,0,0,"السادس مكرر",null,null,null,0,0,0,0]
[94,0,0,0,0,"السادس مكرر",null,null,null,0,0,0,0]
[95,0,0,0,0,"السادس مكرر",null,null,null,0,0,0,0]
[96,0,0,0,0,"السادس مكرر",null,null,null,0,0,0,0]
[97,{"$f":"J103","v":0},0,0,0,"السادس مكرر",null,null,null,0,0,0,0]
[98,0,0,0,0,"السادس مكرر",null,null,null,0,0,0,0]
[99,0,0,0,0,"السادس مكرر",null,null,null,0,0,0,0]
[100,0,0,0,0,"السادس مكرر",null,null,null,0,0,0,0]
[101,0,0,0,0,"السادس مكرر",null,null,null,0,0,0,0]
[102,0,0,0,0,"السادس مكرر",null,null,null,0,0,0,0]
[103,0,0,0,0,"السادس مكرر",null,null,null,0,0,0,0]
[104,0,0,0,0,"السادس مكرر",null,null,null,0,0,0,0]
[105,0,0,0,0,"السادس مكرر",null,null,null,0,0,0,0]
[106,0,0,0,0,"السادس مكرر",null,null,null,0,0,0,0]
[107,0,0,0,0,"السادس مكرر",null,null,null,0,0,0,0]
[108,0,0,0,0,"السادس مكرر",null,null,null,0,0,0,0]
[109,0,0,0,0,"السادس مكرر",null,null,null,0,0,0,0]
[110,0,0,0,0,"السادس مكرر"]
[111,0,0,0,0,"السادس مكرر"]
[112,0,0,0,0,"السادس مكرر"]
[113,0,0,0,0,"السادس مكرر"]
[114,0,0,0,0,"السادس مكرر"]
[115,0,0,0,0,"السادس مكرر"]
[116,0,0,0,0,"السادس مكرر"]
[117,0,0,0,0,"السادس مكرر"]
[118,0,0,0,0,"السادس مكرر"]
[119,0,0,0,0,"السادس مكرر"]
[120,0,0,0,0,"السادس مكرر"]
[121,0,0,0,0,"السادس مكرر"]
[122,0,0,0,0,"السادس مكرر"]
[123,0,0,0,0,"السادس مكرر"]
[124,0,0,0,0,"السادس مكرر"]
[125,0,0,0,0,"السادس مكرر"]
[126,0,0,0,0,"السادس مكرر"]
[127,0,0,0,0,"السادس مكرر"]
[128,0,0,0,0,"السادس مكرر"]
[129,{"$f":"J135","v":0},0,0,0,"السادس مكرر"]
[130,0,0,{"$f":"M136","v":0},{"$f":"L136","v":0},{"$f":"IF(E136=E135,OrdinalNum(RANK(E136,$E$7:$E$153))&\" مكرر\",OrdinalNum(RANK(E136,$E$7:$E$153)))","v":"السادس مكرر"}]
[131,0,0,0,0,"السادس مكرر"]
[132,0,0,0,0,"السادس مكرر"]
[133,0,0,0,0,"السادس مكرر"]
[134,0,0,0,0,"السادس مكرر"]
[135,0,0,0,0,"السادس مكرر"]
[136,0,0,0,0,"السادس مكرر"]
[137,0,0,0,0,"السادس مكرر"]
[138,0,0,0,0,"السادس مكرر"]
[139,0,0,0,0,"السادس مكرر"]
[140,0,0,0,0,"السادس مكرر"]
[141,0,0,0,0,"السادس مكرر"]
[142,0,0,0,0,"السادس مكرر"]
[143,0,0,"مستجد",0,"السادس مكرر",null,null,null,null,null,null,"مستجد"]
[144,0,0,"مستجد",0,"السادس مكرر",null,null,null,null,null,null,"مستجد"]
[145,0,0,"مستجد",0,"السادس مكرر",null,null,null,null,null,null,"مستجد"]
[146,0,0,"مستجد",0,"السادس مكرر",null,null,null,null,null,null,"مستجد"]
[147,0,0,"مستجد",0,"السادس مكرر",null,null,null,null,null,null,"مستجد"]
[148,0,0,0,0,"السادس مكرر"]
[149,0,0,0,0,"السادس مكرر"]
[150,0,0,0,0,"السادس مكرر"]
[151,0,0,0,0,"السادس مكرر"]
[152,0,0,0,0,"السادس مكرر"]
[153,0,0,0,0,"السادس مكرر"]
[154,0,0,0,0,"السادس مكرر"]
[155,0,0,0,0,"السادس مكرر"]
[156,0,0,0,0,"السادس مكرر"]
[157,0,0,0,0,"السادس مكرر"]
[158,0,0,0,0,"السادس مكرر"]
[159,0,0,0,0,"السادس مكرر"]
[160,0,0,0,0,"السادس مكرر"]
[161,{"$f":"J167","v":0},0,0,0,"السادس مكرر"]
[162,0,0,0,0,"السادس مكرر"]
[163,0,0,0,0,"السادس مكرر"]
[164,0,0,0,0,"السادس مكرر"]
[165,0,0,0,0,"السادس مكرر"]
[166,0,0,0,0,"السادس مكرر"]
[167,0,0,0,0,"السادس مكرر"]
[168,0,0,0,0,"السادس مكرر"]
[169,0,0,0,0,"السادس مكرر"]
[170,0,0,0,0,"السادس مكرر"]
[171,0,0,0,0,"السادس مكرر"]
[172,0,0,0,0,"السادس مكرر"]
[173,0,0,0,0,"السادس مكرر"]